Workbook

Sheet Om kalkylen
A1: Samhällsekomisk analysmodell för åtgärder i plankorsningar
A2: Håkan Berell, WSP Analys & Stategi, 2013-12-12
A4: Instruktioner till användaren
A5: Denna kalkylmodell kan användas till att göra samhällsekonomiska analyser av åtgärder i plankorsningar (dvs korsning mellan väg och järnväg). Ifall du vill studera flera olika åtgärder (eller paket av åtgärder)
A6: så får du använda modellen upprepade gånger och spara varje körning med eget filnamn.
A8: Som användare kommer du att fylla i indataförutsättningar i gröna fält under fliken "Indata" och - när det är klart - trycka på de makro-knappar som initierar beräkningarna. Resultatet kan därefter avläsas under fliken "SEK Resultat".
A9: Ifall du vill ha mer detaljerad information om effekterna/beräkningarna kan detta utläsas under de båda beräkningsflikarna "Kvantiteter" och "Ekonomi".
A11: I övrigt förväntas du längs ned på denna sida skriva in information om den åtgärd som du nu studerar. Vidare finns det en icke skrivskyddad flik vid namn "TEMP" där du kan göra sidoberäkningar och spara underlagsdata etc.
A13: De färger som används har följande innebörd:
B14: = fyll i gröna rutor! Samtliga gröna rutor måste innehålla ett igenomtänkt värde (som kan innebära att cellen lämnas tom...)
B15: = cell som innehåller resultat av en beräkning
A18: Kalkylsituationer
A19: Modellen kan hantera både åtgärder i en viss plankorsning - men också analysera resultatet av ett paket med åtgärder.
A21: Modellen kan hantera följande kalkylsituationer:
A23: 1) En befintlig korsning får en ändrad skyddsnivå (1 korsning i JA, 1 korsning i UA)
A24: 2) En eller flera plankorsningar stängs och vägtrafiken (inklusive gående och cyklande) får en längre resväg (fler korsningar i JA än i UA)
A25: 3) En eller flera plankorsningar tillkommer och vägtrafiekn (inkl GC) får en kortare resväg (färre korsningar i JA än i UA)
A26: 4) En kombination av ovanstående åtgärder genomförs (t.ex. i samband med en stråkkalkyl).
A29: Antaganden
A30: a) Vad gäller antal tågpassager antar vi att två tåg inte passerar korsningen vid samma tidpunkt
A31: b) Alla fordon som fastnar bakom grindarna hinner passera korsningen innan nästa tåg fäller bommarna igen.
A32: c) Vad gäller olycksrisker antar vi att risken är lika oavsett vilken tid på dygnet tågpassagen inträffar
A33: d) Modellen utgår ifrån att storleken på flödet av fordon, gående och cyklande inte påverkas av åtgärderna. Ingen slutar/börjar såldes resa pga plankorsningsåtgärderna, vilket innebär att antal fordon måste vara lika i JA och UA.
A37: Kalkyldokumentation av studerad åtgärd
A38: Fylls i av den som gör kalkylen…
A40: Åtgärdens namn
A41: Handläggarens namn
A43: Text…
A46: Plankorsningsmodellen_200615_ver 2.0

Sheet Kalkylvärden
A1: Kalkylvärden och systemvärden | K1: Källor med mera…
A2: Modellen länkar till nedanstående tabeller. Till höger finns källhänvisningar men också vissa celler med indata till de "skarpa" indatatabellerna nedan. | K2: Andelar | T2: Interpolering av fordonsandelar
A3: Övergripande kalkylparametrar | B3: ASEK 7.1 | D3: Internaliseringsgrader | K3: Personbil, andelar | L3: 2010 | M3: 2020 | N3: 2030 | O3: 2050 | P3: Genomsnitt av interpolerade årsvärden | U3: Bensin | W3: Diesel
A4: Kalkylränta (%) | B4: 3.5 | E4: extern del | K4: andel bensin | L4: 0.69 | M4: 0.36 | N4: 0.34 | O4: 0.34 | P4: =AVERAGE(U4:U45) ->  | Q4: Källa: "Bygg om eller bygg nytt", kap 7, sid. 23. | T4: 2010 | U4: =L4 -> 0.69 | V4: =(U4-U15)/(ROW(U4)-ROW(U15)) -> -0.03 | W4: =1-U4 -> 0.31
A5: Skattefaktor | B5: 1.3 | D5: Personbil | E5: 0.555 | K5: andel diesel | L5: 0.31 | M5: 0.64 | N5: 0.66 | O5: 0.66 | P5: =AVERAGE(W4:W45) ->  | Q5: Källa: "Bygg om eller bygg nytt", kap 7, sid. 23. | T5: 2011 | U5: =U4+$V$4 -> 0.66 | W5: =1-U5 -> 0.34
A6: Diskonteringsår | B6: 2025 | D6: Tung lastbil | E6: 0.665 | T6: 2012 | U6: =U5+$V$4 -> 0.63 | W6: =1-U6 -> 0.37
A7: Prognosår | B7: 2040 | K7: Lastbil, andelar
A8: Brytpunktsår för trafiktillväxt | B8: 2065 | E8: Källa: se kommentaren | K8: Lbu | T8: 2013 | U8: =U6+$V$4 -> 0.6 | W8: 0.4
A9: Prisnivå kalkylvärden | B9: 2017-medel | K9: Lbs | T9: 2014 | U9: 0.57 | W9: 0.43
T10: 2015 | U10: 0.54 | W10: 0.46
A11: Uppräkning med "real BNP" | B11: ASEK 7.1 | K11: Internaliseringsgrader | T11: 2016 | U11: 0.51 | W11: 0.49
B12: ökn. år 40 | D12: Internaliseringsgrad | E12: 2017 | F12: 2040 | G12: Genomsnitt 2017-2040 | K12: Personbil, bensin | T12: 2017 | U12: 0.48 | W12: 0.52
A13: Uppräkningsfaktor per år (%) | B13: 1.5 | D13: pb | E13: 0.64 | F13: 0.47 | G13: =(E13+F13)/2 -> 0.555 | K13: Personbil, diesel | T13: 2018 | U13: 0.45 | W13: 0.55
A14: Antal år som uppräkningen avser | B14: 40 | D14: lbs | E14: 0.78 | F14: 0.55 | G14: =(E14+F14)/2 -> 0.665 | L14: Från | M14: Till | T14: 2019 | U14: 0.42 | W14: 0.58
A15: Notera: Denna uppräkningsfaktor skall tillämpas på betalningsviljepåverkade kalkylvärden | K15: Lbu | T15: 2020 | U15: =M4 -> 0.36 | V15: =(U15-U25)/(ROW(U15)-ROW(U25)) -> -0.002 | W15: 0.64
K16: Lbs | T16: 2021 | U16: =U15+$V$15 -> 0.358 | W16: 0.642
A17: Uppräkning till årsvärden | B17: Samma som i sampers/samkalk | T17: 2022 | U17: =U16+$V$15 -> 0.356 | W17: 0.644
B18: Faktor | K18: Internaliseringsgrader, viktade | T18: 2023 | U18: 0.354 | W18: 0.646
A19: Från ÅDT till fordon per år | B19: 365 | L19: internt | M19: externt | T19: 2024 | U19: 0.352 | W19: 0.648
A20: Antal tåg per vardagsmedeldygn | B20: 320 | K20: Personbil | T20: 2025 | U20: 0.35 | W20: 0.65
K21: Tung lastbil | T21: 2026 | U21: 0.348 | W21: 0.652
A22: Olycksvärdering | C22: ASEK 7.1 | T22: 2027 | U22: 0.346 | W22: 0.654
B23: Materiella | C23: Riskvärdering | D23: Totalt | T23: 2028 | U23: 0.344 | W23: 0.656
A24: Dödsfall | B24: 6225000 | C24: 49593000 | D24: =B24+C24 -> 55818000 | T24: 2029 | U24: 0.342 | W24: 0.658
A25: Mycket allvarligt skadad (MAS) | B25: 4534500 | C25: 14938000 | D25: =B25+C25 -> 19472500 | T25: 2030 | U25: =N4 -> 0.34 | V25: =(U25-U45)/(ROW(U25)-ROW(U45)) -> 0 | W25: 0.66
A26: Allvarligt skadad (AS-MAS) | B26: 364500 | C26: 12979000 | D26: =B26+C26 -> 13343500
A27: Ej allvarligt skadad (EAS) | B27: 39000 | C27: 5142000 | D27: =B27+C27 -> 5181000 | T27: 2031 | U27: =U25+$V$25 -> 0.34 | W27: 0.66
A28: Egendomsskada | B28: 15000 | C28: 0 | D28: =B28+C28 -> 15000 | T28: 2032 | U28: =U27+$V$25 -> 0.34 | W28: 0.66
T29: 2033 | U29: 0.34 | W29: 0.66
A30: Värdering av emissioner (regionala effekter) | I30: 1.13 | T30: 2035 | U30: =#REF!+$V$25 -> 
B31: Kr/kg | C31: ASEK 7.1 | E31: värderingen ASEK7 2017, kr/kg | G31: få dem i 2025 års värde faktorn 1,13 | T31: 2036
A32: kväveoxider, NOx | B32: 3.39 | E32: Nox | F32: 3 | H32: =F32*I$30 -> 3.39 | T32: 2037
B33: 0 | E33: avPartiklar PM2,5 | F33: 6900 | H33: =F33*I$30 -> 7797 | T33: 2038
A34: koldioxid, CO2 | B34: 7 | C34: 1.14 | E34: CO2 | F34: 7 | H34: 7.91 | T34: 2039
A35: avgaspartiklar, PM 3,5 | B35: 7797 | E35: slitPartiklar PM10 | F35: 1719 | H35: 1942.47 | T35: 2040
A36: slitagepartiklar, PM 10 | B36: 1942.47 | T36: 2041
T37: 2042
T38: 2043
T39: 2044
T40: 2045
T41: 2046
T42: 2047
A43: Tidsvärden persontrafik, regionala värden | C43: ASEK 7.1 | T43: 2048
B44: kr/tim | C44: andel | D44: viktat | T44: 2049
A45: Åktid med bil | D45: =(B46*C46+B47*C47) -> 87.75 | T45: 2050 | U45: =O4 -> 0.34 | W45: 0.66
A46: Bil ,arbete | B46: 114 | C46: =13/48 -> 0.2708333333
A47: Bil, övrigt | B47: 78 | C47: =35/48 -> 0.7291666667
A48: Åktid med cykel | D48: =B49*C49+B50*C50+B51*C51+B52*C52 -> 181.4
A49: Cykel, blandtrafik | B49: 198 | C49: 0.5 | E49: Andelen är ett antagande
A50: Cykel, cykelfält i körbana | B50: 178 | C50: 0.1 | E50: Andelen är ett antagande
A51: Cykel, cykelbana vid väg | B51: 165 | C51: 0.2 | E51: Andelen är ett antagande
A52: Cykel, cykelbana | B52: 158 | C52: 0.2 | E52: Andelen är ett antagande
A53: Promenadtid till fots | B53: 230 | C53: 1 | D53: =B53*C53 -> 230
A54: Lastbil, förarlön | B54: 278
A56: Notera: Beträffande cykel väljer jag att inte bygga upp indatafliken så att det går att göra en fullständig CYKALK-beräkning. Här bedöms de nyttor
A57: som kommer från cykel vara så pass små att det inte motiverar att "tynga" användaren med detaljerade indata-möjligheter.
A59: Tidsvärden godstrafik | C59: ASEK 7.1
B60: kr/ntontim | C60: andel | D60: viktat | E60: ton per Lb | F60: kr/fordon
A61: Genomsnittlig tung lastbil, kr/ntontim | D61: =B62*C62+B63*C63 -> 2.483095238
A62: Lbu | B62: =F62/E62 -> 2.483333333 | C62: 0.5 | E62: 3 | F62: 7.45
A63: Lbs | B63: =F63/E63 -> 2.482857143 | C63: 0.5 | E63: 14 | F63: 34.76
A71: Transportkostnad med cykel på länk | B71: ASEK 7.1
B72: kr/fkm
A73: Cykel (inkl. moms, prisnivå 2010) | B73: 0.7
A75: Cykel: Olycksrisk och olyckskostnad på länk
C76: ASEK 7.1
A77: Antal olyckor per miljoner pkm | B77: 2.5
A78: Olyckskostnad per cykelolycka (mkr) | B78: 4.2
A95: Gång- och cykel, trafiktillväxt
B96: % per år
A97: Trafiktillväxt, 2012-2040 | B97: 0.01 | C97: ASEK 7.1
A98: Trafiktillväxt, 2041-- | B98: 0.01
A102: Gång- och cykel, hastigheter
B103: km/h
A104: Gående | B104: 5 | C104: ASEK 7.1
A105: Cyklande | B105: 15 | C105: ASEK 7.1
A106: Källa: BGF version 2015-04-00
A107: Antal personer per fordonstyp | B107: ASEK 7.1 | C107: ASEK 7.1
B108: Personer | C108: andel
A109: Personbil | B109: =B110*C110+B111*C111 -> 1.721
A110: odifferentierat, privatresa (EVA) | B110: 1.77 | C110: 0.9
A111: odifferentierat, tjänsteresa (EVA) | B111: 1.28 | C111: 0.1
A112: Lastbil | B112: =(1.2+1)/2 -> 1.1 | D112: Källa: ASEK 7.1 med egen viktning 50/50 mellan Lbu/Lbs.
A113: Cykel | B113: 1 | D113: Källa: Eget antagande
A119: KORSNINGSEFFEKTER
A120: Olycksrisker i korsningar | C120: ASEK 7.1
A121: Vägkategori | B121: Planfri korsning | C121: Helbom | D121: Halvbom | E121: Ljud/ljus | F121: Oskyddad
A122: Statliga/regionala vägar | B122: 0 | C122: =(7*10^-8)*B132 -> 7e-08 | D122: =(1*10^-7)*B132 -> 1e-07 | E122: =(1.11*10^-6)*B132 -> 1.11e-06 | F122: 0
A123: Gator, andra vägar | B123: 0 | C123: =(2.938*10^-8)*B132 -> 2.938e-08 | D123: =(3.88*10^-8)*B132 -> 3.88e-08 | E123: =(2.66*10^-7)*B132 -> 2.66e-07 | F123: =(2.43*10^-7)*B132 -> 2.43e-07
A124: Privata vägar | B124: 0 | C124: =(3.75*10^-9)*B132 -> 3.75e-09 | D124: =(4.38*10^-9)*B132 -> 4.38e-09 | E124: =(2.69*10^-8)*B132 -> 2.69e-08 | F124: =(3.94*10^-8)*B132 -> 3.94e-08
B125: NOTERA: Denna tabell länkas via INDIREKT formler. Tabellen får inte flyttas så att
B126: radnummer ändras!
A130: Uppräkningsfaktor för egendomsskador som andel av antal olyckor med personskador
B131: Andel
A132: Andel egendomsolyckor | B132: =1.01/(1.01-B143) -> 1
A133: Används ej!! Har använts i tidigare versioner men inte från 180401. satt till 1 för att inte påverka beräkningar.
A136: Olyckans konsekvens | C136: ASEK 7.1
A137: Förväntat antal dödade, skadade m.m. vid genomsnittlig plankorsningsolycka
B138: Andel | C138: Kr per olycka | D138: Andel av kr
A139: Dödsfall | B139: 0.31 | C139: 17351320 | D139: =C139/C$144 -> 0.6481846607
A140: Mycket allvarligt skadad (MAS) | B140: 0.31 | C140: 6051045 | D140: =C140/C$144 -> 0.2260458887
A141: Allvarligt skadad (AS-MAS) | B141: 0.17 | C141: 2275365 | D141: =C141/C$144 -> 0.08499968247
A142: Ej allvarligt skadad (EAS) | B142: 0.21 | C142: 1091370 | D142: =C142/C$144 -> 0.04076976813
A143: Egendomsskada | B143: 0 | C143: 0 | D143: =C143/C$144 -> 0
B144: =SUM(B139:B143) -> 1 | C144: =SUM(C139:C143) -> 26769100 | D144: =SUM(D139:D143) -> 1
A156: Fordonskostnader till följd av ett stopp | B156: kr/stopp | L156: 3.4 | M156: 3.9 | N156: 4.7
A157: km/h | B157: 30 | C157: 40 | D157: 50 | E157: 60 | F157: 70 | G157: 80 | H157: 90 | L157: 4.7 | M157: 5.8 | N157: 7.5
A158: Personbil | B158: 0 | C158: 0 | D158: 0 | E158: 0 | F158: 0 | G158: 0 | H158: 0 | L158: 6 | M158: 8.2 | N158: 11
A159: Lastbil | B159: 0 | C159: 0 | D159: 0 | E159: 0 | F159: 0 | G159: 0 | H159: 0 | L159: 7.5 | M159: 11.3 | N159: 16
A160: Källa: EVA 2020.1 | B160: NOTERA: Denna tabell länkas via INDIREKT formler. Tabellen får inte flyttas så att | L160: 9.3 | M160: 15 | N160: 22
B161: radnummer ändras! | L161: 11 | M161: 19.9 | N161: 30
A162: Miljöeffekter | B162: gram/stopp | L162: 14 | M162: 26.8 | N162: 40
A163: km/h | B163: 30 | C163: 40 | D163: 50 | E163: 60 | F163: 70 | G163: 80 | H163: 90 | L163: Källa: Samma som tidigare. Manuell avläsning av diagram från VGU 2004.
A164: Personbil
A165: kväveoxider, NOx | B165: 0 | C165: 0 | D165: 0 | E165: 0 | F165: 0 | G165: 0 | H165: 0
B166: 0 | C166: 0 | D166: 0 | E166: 0 | F166: 0 | G166: 0 | H166: 0
A167: koldioxid, CO2 | B167: 0 | C167: 0 | D167: 0 | E167: 0 | F167: 0 | G167: 0 | H167: 0
A168: avgaspartiklar, PM 3,5 | B168: 0 | C168: 0 | D168: 0 | E168: 0 | F168: 0 | G168: 0 | H168: 0
A169: slitagepartiklar, PM 10 | B169: 0 | C169: 0 | D169: 0 | E169: 0 | F169: 0 | G169: 0 | H169: 0
A170: Lastbil
A171: kväveoxider, NOx | B171: 0 | C171: 0 | D171: 0 | E171: 0 | F171: 0 | G171: 0 | H171: 0
B172: 0 | C172: 0 | D172: 0 | E172: 0 | F172: 0 | G172: 0 | H172: 0
A173: koldioxid, CO2 | B173: 0 | C173: 0 | D173: 0 | E173: 0 | F173: 0 | G173: 0 | H173: 0
A174: avgaspartiklar, PM 3,5 | B174: 0 | C174: 0 | D174: 0 | E174: 0 | F174: 0 | G174: 0 | H174: 0
A175: slitagepartiklar, PM 10 | B175: 0 | C175: 0 | D175: 0 | E175: 0 | F175: 0 | G175: 0 | H175: 0
A176: Källa: EVA 2020.1 | B176: NOTERA: Denna tabell länkas via INDIREKT formler. Tabellen får inte flyttas så att
B177: radnummer ändras!
A178: Tidsåtgång vid passage av korsning med sänkt hastighet
A179: km/h | B179: Personbil (sek.) | C179: Lastbil (sek.)
A180: 30 | B180: =L156 -> 3.4 | C180: =(M156+N156)/2 -> 4.3
A181: 40 | B181: 4.7 | C181: 6.65
A182: 50 | B182: 6 | C182: 9.6
A183: 60 | B183: 7.5 | C183: 13.65
A184: 70 | B184: 9.3 | C184: 18.5
A185: 80 | B185: 11 | C185: 24.95
A186: 90 | B186: 14 | C186: 33.4
A187: Källa: Samma som tidigare. Manuell avläsning av diagram från VGU 2004.
A188: Notera: Fördröjningen för lastbil avser nu en 50/50 fördelning mellan Lbs och Lbu.
A193: LÄNKEFFEKTER
A194: Restidsvinst- eller förlust vid omledning | B194: sekunder/fkm
A195: km/h | B195: 30 | C195: 40 | D195: 50 | E195: 60 | F195: 70 | G195: 80 | H195: 90
A196: Personbil | B196: 86.1268753 | C196: 86.1268753 | D196: 69.64335881 | E196: 58.94917495 | F196: 49.06123823 | G196: 43.78766079 | H196: 40.86360501
A197: Lastbil | B197: 86.1268753 | C197: 86.1268753 | D197: 69.64335881 | E197: 59.67285242 | F197: 50.42223651 | G197: 45.71173488 | H197: 44.49917486
A198: Källa: EVA 2020.1
A200: Godskostnader | B200: kr/fkm
A201: km/h | B201: 30 | C201: 40 | D201: 50 | E201: 60 | F201: 70 | G201: 80 | H201: 90
A202: Lastbil | B202: 0.4467831656 | C202: 0.4467831656 | D202: 0.3612749239 | E202: 0.3103715779 | F202: 0.2638970131 | G202: 0.239998808 | H202: 0.2358179356
A203: Källa: EVA 2020.1
A205: Fordonskostnader | B205: kr/fkm
B206: 30 | C206: 40 | D206: 50 | E206: 60 | F206: 70 | G206: 80 | H206: 90
A207: Personbil | B207: 1.08726853 | C207: 1.08726853 | D207: 1.074383951 | E207: 1.069448057 | F207: 1.058704895 | G207: 1.061483693 | H207: 1.064654177
A208: Lastbil | B208: 6.581278025 | C208: 6.581278025 | D208: 6.255194773 | E208: 6.151188356 | F208: 5.97448225 | G208: 5.9622255 | H208: 5.974063683
A209: Källa: EVA 2020.1
A211: Miljöeffekter | B211: gram/fkm
A212: km/h | B212: 30 | C212: 40 | D212: 50 | E212: 60 | F212: 70 | G212: 80 | H212: 90
A213: Personbil
A214: kväveoxider, NOx | B214: 0.05354803498 | C214: 0.05354803498 | D214: 0.05413121246 | E214: 0.04086139107 | F214: 0.03398791144 | G214: 0.03242694229 | H214: 0.02836140325
A216: koldioxid, CO2 | B216: 25.99904316 | C216: 25.99904316 | D216: 21.04338845 | E216: 18.72200294 | F216: 17.31733228 | G216: 17.31619882 | H216: 15.88935159
A217: avgaspartiklar, PM 3,5 | B217: 0.001047764005 | C217: 0.001047764005 | D217: 0.000909314446 | E217: 0.0007676327624 | F217: 0.0006613062835 | G217: 0.0006343226714 | H217: 0.0005679439778
A218: slitagepartiklar, PM 10 | B218: 0.1720251122 | C218: 0.1720251122 | D218: 0.1720251122 | E218: 0.1720251122 | F218: 0.1720251122 | G218: 0.1720251122 | H218: 0.1720251122
A219: Lastbil
A220: kväveoxider, NOx | B220: 0.00730200477 | C220: 0.00730200477 | D220: 0.007381528972 | E220: 0.005572007873 | F220: 0.004634715196 | G220: 0.004421855767 | H220: 0.003867464079
A222: koldioxid, CO2 | B222: 3.545324067 | C222: 3.545324067 | D222: 2.86955297 | E222: 2.553000401 | F222: 2.361454402 | G222: 2.361299839 | H222: 2.166729762
A223: avgaspartiklar, PM 3,5 | B223: 0.0001428769098 | C223: 0.0001428769098 | D223: 0.0001239974245 | E223: 0.0001046771949 | F223: 9.017812957e-05 | G223: 8.64985461e-05 | H223: 7.744690606e-05
A224: slitagepartiklar, PM 10 | B224: 0.02345796984 | C224: 0.02345796984 | D224: 0.02345796984 | E224: 0.02345796984 | F224: 0.02345796984 | G224: 0.02345796984 | H224: 0.02345796984
A225: Källa: EVA 2020.1
C226: Källa: EVA 2020.1
A227: Trafiksäkerhetseffekter | B227: Antal per mfkm
A228: km/h | B228: 30 | C228: 40 | D228: 50 | E228: 60 | F228: 70 | G228: 80 | H228: 90
A229: Personbil
A230: Dödsfall | B230: 0.001181173015 | C230: 0.001181173015 | D230: 0.001532650384 | E230: 0.001497646641 | F230: 0.001420143494 | G230: 0.001696642135 | H230: 0.002992227291
A231: Mycket allvarligt skadad (MAS) | B231: 0.00853653508 | C231: 0.00853653508 | D231: 0.009082367948 | E231: 0.006113352842 | F231: 0.008507013463 | G231: 0.005949943796 | H231: 0.006087341863
A232: Allvarligt skadad (AS-MAS) | B232: 0.04341098174 | C232: 0.04341098174 | D232: 0.0453314409 | E232: 0.03174335782 | F232: 0.04039814633 | G232: 0.02841558606 | H232: 0.02693873373
A233: Ej allvarligt skadad (EAS) | B233: 0.2840692956 | C233: 0.2840692956 | D233: 0.2960378438 | E233: 0.2198058057 | F233: 0.2638171189 | G233: 0.2057005984 | H233: 0.2081059126
A234: Egendomsskada | B234: 4.379531037 | C234: 4.379531037 | D234: 4.806802358 | E234: 2.652631773 | F234: 3.602156007 | G234: 2.730326034 | H234: 2.608626372
A235: Lastbil
A236: Dödsfall | B236: 0.0001610690476 | C236: 0.0001610690476 | D236: 0.0002089977796 | E236: 0.0002042245419 | F236: 0.000193655931 | G236: 0.0002313602912 | H236: 0.0004080309942
A237: Mycket allvarligt skadad (MAS) | B237: 0.001164072965 | C237: 0.001164072965 | D237: 0.00123850472 | E237: 0.0008336390239 | F237: 0.00116004729 | G237: 0.0008113559722 | H237: 0.0008300920722
A238: Allvarligt skadad (AS-MAS) | B238: 0.005919679328 | C238: 0.005919679328 | D238: 0.006181560123 | E238: 0.004328639702 | F238: 0.005508838135 | G238: 0.003874852645 | H238: 0.003673463691
A239: Ej allvarligt skadad (EAS) | B239: 0.03873672212 | C239: 0.03873672212 | D239: 0.04036879689 | E239: 0.02997351896 | F239: 0.03597506166 | G239: 0.02805008161 | H239: 0.02837807899
A240: Egendomsskada | B240: 0.5972087778 | C240: 0.5972087778 | D240: 0.6554730488 | E240: 0.3617225145 | F240: 0.4912030919 | G240: 0.3723171864 | H240: 0.3557217781
A241: Infrastrukturslitage (väg) | B241: ASEK 7.1
A243: Personbil (kr/fdkm) | B243: 0.04
A244: Lastbil (kr/fdkm) | B244: 0.43
A249: Ton per lastbil | B249: Källa: antagande
B250: Nton/lastbil | C250: Andel
A251: Nettoton per lastbil (genomsnitt) | B251: 8.5
A252: Nettoton per Lbu (genomsnitt) | B252: 3 | C252: 0.5
A253: Nettoton per Lbs (genomsnitt) | B253: 14 | C253: 0.5
A255: KÄNSLIGHETSANALYSER
A256: Dessa förutsättningar används i sambande med den ekonomiska planeringen och skall redovisas i den samhällsekonomiska effektbeskrivningen.
A257: Hög CO2 värdering | B257: Kr/kg
A258: Värdering av CO2 | B258: 15 | D258: 3.5
A260: Låg tillväxt | B260: % per år | C260: Dessa indata är resultat av indata som specas i indatabladet
A261: Trafiktillväxt 2017-2040 (väg) | B261: 0 | C261: Dessa är inte krönta
A262: Trafiktillväxt 2041-- (väg) | B262: 0
A263: Trafiktillväxt 2019-2040 (järnväg) | B263: 0
A264: Trafiktillväxt 2041-- (järnväg) | B264: 0
A266: Hög tillväxt | B266: % per år
A267: Trafiktillväxt 2017-2040 (väg) | B267: =IF(Indata!B27>0,Indata!B27*(1+Kalkylvärden!$B$271/100),Indata!B27/(1+Kalkylvärden!$B$271/100)) -> 3 | C267: Dessa indata är resultat av indata som specas i indatabladet
... 4 more rows

Sheet Indata
A2: Indata
A4: Steg 1 - Infrastrukturkostnader och förutsättningar
A6: Huvudanalys
A7: När du anger anläggningskostnaden behöver du göra detta i prisnivå 2017-årsmedel. I samhällsekononomiska kalkyler antas att alla projekt har trafikstart år 2025. Detta innebär att ni för ett projekt med 2 års byggtid skall lägga in kostnaderna i cellerna för år -1 och -2, oavsett vilket år ni i verkligheten räknar med att trafikstart skall ske.
A8: I samhällsekononomiska kalkyler antas att alla projekt har trafikstart år 2025. Detta innebär att ni för ett projekt med 2 års byggtid skall lägga in kostnaderna i cellerna för år -1 och -2, oavsett vilket år ni i verkligheten räknar med att trafikstart skall ske.
A10: Investeringskostnader
A11: År | B11: -6 | C11: -5 | D11: -4 | E11: -3 | F11: -2 | G11: -1 | H11: 2025 | I11: =H11+1 -> 2026 | J11: 2027 | K11: 2028 | L11: 2029 | M11: 2030 | N11: 2031 | O11: 2032 | P11: 2033 | Q11: 2034 | R11: 2035 | S11: 2036 | T11: 2037 | U11: 2038 | V11: 2039 | W11: 2040 | X11: 2041 | Y11: 2042 | Z11: 2043 | AA11: 2044 | AB11: 2045 | AC11: 2046 | AD11: 2047 | AE11: 2048 | AF11: 2049 | AG11: 2050 | AH11: 2051 | AI11: 2052 | AJ11: 2053 | AK11: 2054 | AL11: 2055 | AM11: 2056 | AN11: 2057 | AO11: =AN11+1 -> 2058 | AP11: 2059 | AQ11: 2060 | AR11: 2061 | AS11: 2062 | AT11: 2063 | AU11: 2064 | AV11: 2065 | AW11: 2066 | AX11: 2067 | AY11: 2068 | AZ11: 2069 | BA11: 2070 | BB11: 2071 | BC11: 2072 | BD11: 2073 | BE11: 2074 | BF11: 2075 | BG11: 2076 | BH11: 2077 | BI11: 2078 | BJ11: 2079 | BK11: 2080 | BL11: 2081 | BM11: 2082 | BN11: 2083 | BO11: 2084 | BP11: 2085 | BQ11: 2086 | BR11: 2087 | BS11: 2088
A12: Investeringskostnader UA (prisnivå 2017-årsmedel)
A13: Investeringskostnader JA (prisnivå 2017-årsmedel)
A15: Reinvesteringskostnader
A16: Om en reinvesteringskostnad är planerad t.ex. år 2024 så läggs den på år -1. Annars läggs de in för det år där den är planerad/behövd. Notera att kalkylperdiodens längd begränsar hur långt framåt i tiden ni behöver titta.
A17: År | B17: -6 | C17: -5 | D17: -4 | E17: -3 | F17: -2 | G17: -1 | H17: 2025 | I17: =H17+1 -> 2026 | J17: 2027 | K17: 2028 | L17: 2029 | M17: 2030 | N17: 2031 | O17: 2032 | P17: 2033 | Q17: 2034 | R17: 2035 | S17: 2036 | T17: 2037 | U17: 2038 | V17: 2039 | W17: 2040 | X17: 2041 | Y17: 2042 | Z17: 2043 | AA17: 2044 | AB17: 2045 | AC17: 2046 | AD17: 2047 | AE17: 2048 | AF17: 2049 | AG17: 2050 | AH17: 2051 | AI17: 2052 | AJ17: 2053 | AK17: 2054 | AL17: 2055 | AM17: 2056 | AN17: 2057 | AO17: =AN17+1 -> 2058 | AP17: 2059 | AQ17: 2060 | AR17: 2061 | AS17: 2062 | AT17: 2063 | AU17: 2064 | AV17: 2065 | AW17: 2066 | AX17: 2067 | AY17: 2068 | AZ17: 2069 | BA17: 2070 | BB17: 2071 | BC17: 2072 | BD17: 2073 | BE17: 2074 | BF17: 2075 | BG17: 2076 | BH17: 2077 | BI17: 2078 | BJ17: 2079 | BK17: 2080 | BL17: 2081 | BM17: 2082 | BN17: 2083 | BO17: 2084 | BP17: 2085 | BQ17: 2086 | BR17: 2087 | BS17: 2088
A18: Reinvesteringskostnader UA (prisnivå 2017-årsmedel)
A19: Reinvesteringskostnader JA (prisnivå 2017-årsmedel)
A21: Ange ett positivt tal (nedan) ifall kostnaden för drift och underhåll ÖKAR i och med de studerade åtgärderna (UA) och ett negativt tal ifall de årliga kostnaderna MINSKAR.
A22: Förändring av årlig kostnad för drift och underhåll | C22: mkr/år
A24: Kalkylperiod | B24: 40 | C24: Notera: Max 40 år
A26: Trafikstart | B26: 2025
A27: Trafiktillväxt 2017-2040 (väg) | B27: 2 | C27: % per år
A28: Trafiktillväxt 2041-2065 (väg) | B28: 0.5 | C28: % per år
A29: Antal tåg per dygn i utgångsläget (nuläge) | B29: 20 | C29: antal/dygn
A30: Antal tåg per dygn i prognosen för år 2040 | B30: 20 | C30: antal/dygn
A31: Notera: Tågantalet per dygn i utgångsläget bör vara lika med tågantalet per dygn i indatatabellen nedan! Tänk även på att fördela tågantalet över dag och natt nedan.
A34: Steg 2 - Generera rätt antal korsningar
A35: Det första steget i beräkningen är att du får ange antal korsningar som berörs av den studerade åtgärden. Ibland innebär åtgärden bara att skyddet i en viss korsning förändras, ibland innebär åtgärderna
A36: att ett stort antal plankorsningar byggs om. Denna kalkylmodell skall ge dig möjlighet att göra såväl kalkyler för 1 korsning som för ett helt järnvägsstråk med flera inblandade korsningar.
A37: Vare sig du gör en kalkyl med 1 korsning endast eller studerar åtgärder längs ett stråk är det viktigt att utredningsomårdet görs så pass stort att eventuella omflyttningar av trafikflöden kan fångas.
A38: Om kalkylen avser en åtgärd som innebär att 1 korsning slopas så bör 3 korsningar ingå i JA ifall det bedöms bli aktuellt med omflyttning av trafik till närmaste korsning på vardera sida om den slopade korsningen.
A40: Antal korsningar som berörs i JA
A41: Antal korsningar som berörs i UA
A44: Steg 3 - Ange indata per korsning
A45: Här behöver du fylla i indata om respektive plankorsning och om den trafik som berör korsningen.
A46: Vad gäller bomfällningstid finns detaljerade data att hämta från Trafikverkets system DS-analys, som samlar in data från Tågledningssystemen i Malmö, Göteborg, Norrköping, Hallsberg och Stockholm. Dock inte för Ånge och Boden.
A48: Viktigt 1! När du anger namnet på vägarna/plankorsningarna så är det viktigt att du startar i ena änden av järnvägssträckan och namnger korsningarna i turordning. Modellen beaktar den ordning som korsningarna i JA och UA ligger i
A49: till att beräkna mellan vilka korsningar eventuella omflyttningar sker.
A51: Viktigt 2! Modellen förutsätter att antalet fordon som passerar järnvägen inte påverkas av plankorsningsåtgärderna! Således kan fordon flytta mellan olika korsningar, men summan av fordon i JA-korsningarna måste
A52: vara lika med summan av fordon i UA-korsningarna. Det samma måste gälla inom varje underkategori, t.ex. mellan klockan 06-22, respektive mellan klockan 22-06. Antal lastbilar och personbilar måste också vara lika.
A54: Viktigt 3! Det är viktigt att korsningarna ges genomtänkta namn/beteckningar som är konsistena mellan JA och UA. Dvs om en viss korsning finns med i både JA och UA så bör dessa ha samma namn/beteckning. Detta används för att
A55: avgöra ifall det sker en omflyttning av trafik mellan korsningar.
A61: Namn på plankorsning
A62: Typ av plankorsning (vägskyddsanordning, 4 alt.)
A63: Typ av väg (kategori, 3 alternativ)
A64: Antal personbilar (ÅDT)
A65: mellan kl. 06-22
A66: mellan kl. 22-06
A67: Antal lastbilar (ÅDT)
A68: mellan kl. 06-22
A69: mellan kl. 22-06
A70: Antal fordon per dygn ÅDT
A71: mellan kl. 06-22
A72: mellan kl. 22-06
A73: Antal cyklande per dygn ÅDT
A74: mellan kl. 06-22
A75: mellan kl. 22-06
A76: Antal gående per dygn ÅDT
A77: mellan kl. 06-22
A78: mellan kl. 22-06
A79: Antal tågpassager per dygn
A80: mellan kl. 06-22
A81: mellan kl. 22-06
A82: Bommarnas liggtid+förringning (minuter per tågpassage)
A83: Skyltad väghastighet vid vägkorsning
A84: Praktisk hastighet vid korsning när bommar inte ligger nere (sänkt hastighet för att skydda bilen…)
A87: När hela tabellen är ifylld - tryck på:
A89: Viktigt 3! Om du efter att du tryckt på "Run Steg 4" har anledning att ändra ÅDT i tabellen ovan och om det kommer att ske omledning mellan olika korsningar, så behöver du trycka på "Run Steg 4" igen.
A90: Om du bara ändrar i den tabell som hör till "Steg 3" så blir ändringarna korrekt hanterade vad avser effekterna i korsningarna - men det blir fel antal fordon som berörs i omledningsberäkningarna i "Steg 4".
A94: Steg 4 - Omledningsalgoritm och indata
A96: De uppgifter som fyllts i ovan visar att det sker ett antal omflyttningar av fordon mellan olika korsningar. Här nedanför redovisas de förändringar som uppkommer, mätt i fordonsomflyttningar.
A97: Om du har gjort förändringar av ÅDT i "Steg 3" och vill att dessa skall beaktas i "Steg 4" så kan du trycka på "Run Steg 4" igen.
A102: Från korsning | B102: b
A103: Till korsning | B103: a
A104: Antal personbilar (ÅDT)
A105: mellan kl. 06-22 | B105: 100
A106: mellan kl. 22-06 | B106: 200
A107: Antal lastbilar (ÅDT)
A108: mellan kl. 06-22 | B108: 100
A109: mellan kl. 22-06 | B109: 100
A110: Antal fordon per dygn ÅDT (år 2030)
A111: mellan kl. 06-22 | B111: 200
A112: mellan kl. 22-06 | B112: 300
A113: Antal cyklande per dygn
A114: mellan kl. 06-22
A115: mellan kl. 22-06
A116: Antal gående per dygn
A117: mellan kl. 06-22
A118: mellan kl. 22-06
A122: Dessa omflyttningar innebär förändrade körsträckor, vilket kommer att påverka tidsåtgång, kostnader, emissioner och antal olyckor (väg-väg). För att korrekt bedöma dessa
A123: effekter behövs det uppgifter om såväl hur antalet km per fordon och tur förändras - men också hur tidsåtgången förändras. De uppgifter som skall matas in i cellerna nedan avser
A124: förändringen i körsträcka i kilometer samt vilken hastighetsbegränsning som huvudsakligen gäller på de vägar som används. Således är det en differens som skall fyllas i.
A126: Sannolikt blir det nödvändigt med en sidoberäkning utanför denna modell, där dominerande flöde (från plats, till plats) identifieras för olika korsningar och där det görs en
A127: bedömning hur det dominerande flödet förändras när korsningar slopas/tillkommer.
A129: Personbilar
A130: Förändrad körsträcka (km) vid omflyttning av fordon från en korsning till en annan. Längre sträcka anges med (+) och kortare sträcka anges med (-)
A131: Förändrat antal km på väg med 30 km/h
A132: Förändrat antal km på väg med 50 km/h
A133: Förändrat antal km på väg med 70 km/h
A134: Förändrat antal km på väg med 90 km/h
A136: Lastbilar
A137: Förändrad körsträcka (km) om vid omflyttning av fordon från en korsning till en annan. Längre sträcka anges med (+) och kortare sträcka anges med (-)
A138: Förändrat antal km på väg med 30 km/h
A139: Förändrat antal km på väg med 50 km/h
A140: Förändrat antal km på väg med 70 km/h
A141: Förändrat antal km på väg med 90 km/h
A143: Cyklister
A144: Förändrad körsträcka (km) om vid omflyttning av cyklister från en korsning till en annan. Längre sträcka anges med (+) och kortare sträcka anges med (-)
A145: Förändrad sträcka (km)
A147: Gående
A148: Förändrad promenadsträcka (km) vid omflyttning av gående från en korsning till en annan. Längre sträcka anges med (+) och kortare sträcka anges med (-)
A149: Förändrad sträcka (km)
A154: Alla indata är nu på plats. Det återstår bara att trycka på knappen nedan för att aktivera de formler som skall genomföra beräkningarna.

Sheet Kvantiteter
A1: Effekter i kvantitativ form
A4: Beräkning av antal fordon/GC som berörs av bomfällning respektive inte berörs av bomfällning
B5: JA1 | C5: JA2 | D5: UA1
A6: Korsningens namn: | B6: =Indata!B61 -> 0 | C6: =Indata!C61 -> 0 | D6: =Indata!D61 -> 0
A7: Andel tid då bommarna ligger nere
A8: Mellan kl. 06-22 | B8: =(Indata!B82*Indata!B80)/(60*16) -> 0 | C8: =(Indata!C82*Indata!C80)/(60*16) -> 0 | D8: =(Indata!D82*Indata!D80)/(60*16) -> 0
A9: Mellan kl. 22-06 | B9: =(Indata!B82*Indata!B81)/(60*8) -> 0 | C9: =(Indata!C82*Indata!C81)/(60*8) -> 0 | D9: =(Indata!D82*Indata!D81)/(60*8) -> 0
A10: Antal fordon/GC som fastnar bakom bommarna (ÅDT)
A11: Personbilar mellan kl. 06-22 | B11: =B8*Indata!B65 -> 0 | C11: =C8*Indata!C65 -> 0 | D11: =D8*Indata!D65 -> 0
A12: Personbilar mellan kl. 22-06 | B12: =B9*Indata!B66 -> 0 | C12: =C9*Indata!C66 -> 0 | D12: =D9*Indata!D66 -> 0
A13: Lastbilar mellan kl. 06-22 | B13: =B8*Indata!B68 -> 0 | C13: =C8*Indata!C68 -> 0 | D13: =D8*Indata!D68 -> 0
A14: Lastbilar mellan kl. 22-06 | B14: =B9*Indata!B69 -> 0 | C14: =C9*Indata!C69 -> 0 | D14: =D9*Indata!D69 -> 0
A15: Cyklister mellan kl. 06-22 | B15: =B8*Indata!B74 -> 0 | C15: =C8*Indata!C74 -> 0 | D15: =D8*Indata!D74 -> 0
A16: Cyklister mellan kl. 22-06 | B16: =B9*Indata!B75 -> 0 | C16: =C9*Indata!C75 -> 0 | D16: =D9*Indata!D75 -> 0
A17: Gående mellan kl. 06-22 | B17: =B8*Indata!B77 -> 0 | C17: =C8*Indata!C77 -> 0 | D17: =D8*Indata!D77 -> 0
A18: Gående mellan kl. 22-06 | B18: =B9*Indata!B78 -> 0 | C18: =C9*Indata!C78 -> 0 | D18: =D9*Indata!D78 -> 0
A19: Antal fordon som fritt passerar korsningen (ÅDT)
A20: Personbilar mellan kl. 06-22 | B20: =Indata!B65-Kvantiteter!B11 -> 0 | C20: =Indata!C65-Kvantiteter!C11 -> 0 | D20: =Indata!D65-Kvantiteter!D11 -> 0
A21: Personbilar mellan kl. 22-06 | B21: =Indata!B66-Kvantiteter!B12 -> 0 | C21: =Indata!C66-Kvantiteter!C12 -> 0 | D21: =Indata!D66-Kvantiteter!D12 -> 0
A22: Lastbilar mellan kl. 06-22 | B22: =Indata!B68-Kvantiteter!B13 -> 0 | C22: =Indata!C68-Kvantiteter!C13 -> 0 | D22: =Indata!D68-Kvantiteter!D13 -> 0
A23: Lastbilar mellan kl. 22-06 | B23: =Indata!B69-Kvantiteter!B14 -> 0 | C23: =Indata!C69-Kvantiteter!C14 -> 0 | D23: =Indata!D69-Kvantiteter!D14 -> 0
A24: Genomsnittlig tid bakom bommarna för drabbat fordon/GC (min)
A25: Halva tiden, givet uniform fördelning av trafiken | B25: =Indata!B82/2 -> 0 | C25: =Indata!C82/2 -> 0 | D25: =Indata!D82/2 -> 0
A28: Antal olyckor i korsningarna (per år)
B29: JA1 | C29: JA2 | D29: UA1
A30: Korsningens namn: | B30: =Indata!B61 -> 0 | C30: =Indata!C61 -> 0 | D30: =Indata!D61 -> 0
A31: Antal olyckor per dygn
A32: Mellan kl. 06-22 | B32: =IF(OR(Indata!B$62=5, Indata!B$62=0),0, INDIRECT("Kalkylvärden!R"&(121+Indata!B$63) & "C" & (Indata!B$62+2), FALSE)) * Indata!B80 -> 0 | C32: =IF(OR(Indata!C$62=5, Indata!C$62=0),0, INDIRECT("Kalkylvärden!R"&(121+Indata!C$63) & "C" & (Indata!C$62+2), FALSE)) * Indata!C80 -> 0 | D32: =IF(OR(Indata!D$62=5, Indata!D$62=0),0, INDIRECT("Kalkylvärden!R"&(121+Indata!D$63) & "C" & (Indata!D$62+2), FALSE)) * Indata!D80 -> 0
A33: Mellan kl. 22-06 | B33: =IF(OR(Indata!B$62=5, Indata!B$62=0),0, INDIRECT("Kalkylvärden!R"&(121+Indata!B$63) & "C" & (Indata!B$62+2), FALSE)) * Indata!B81 -> 0 | C33: =IF(OR(Indata!C$62=5, Indata!C$62=0),0, INDIRECT("Kalkylvärden!R"&(121+Indata!C$63) & "C" & (Indata!C$62+2), FALSE)) * Indata!C81 -> 0 | D33: =IF(OR(Indata!D$62=5, Indata!D$62=0),0, INDIRECT("Kalkylvärden!R"&(121+Indata!D$63) & "C" & (Indata!D$62+2), FALSE)) * Indata!D81 -> 0
A34: Summa antal olyckor per år | B34: =(B32+B33)*Kalkylvärden!$B$20 -> 0 | C34: =(C32+C33)*Kalkylvärden!$B$20 -> 0 | D34: =(D32+D33)*Kalkylvärden!$B$20 -> 0
A35: Antal olyckor per skadetyp per år
A36: Antal dödade per år | B36: =B34*Kalkylvärden!$B$139 -> 0 | C36: =C34*Kalkylvärden!$B$139 -> 0 | D36: =D34*Kalkylvärden!$B$139 -> 0
A37: Mycket allvarligt skadad (MAS) | B37: =B34*Kalkylvärden!$B$140 -> 0 | C37: =C34*Kalkylvärden!$B$140 -> 0 | D37: =D34*Kalkylvärden!$B$140 -> 0
A38: Allvarligt skadad (AS-MAS) | B38: =B34*Kalkylvärden!$B$141 -> 0 | C38: =C34*Kalkylvärden!$B$141 -> 0 | D38: =D34*Kalkylvärden!$B$141 -> 0
A39: Ej allvarligt skadad (EAS) | B39: =B34*Kalkylvärden!$B$142 -> 0 | C39: =C34*Kalkylvärden!$B$142 -> 0 | D39: =D34*Kalkylvärden!$B$142 -> 0
A40: Antal olyckor med bara materiella skador per år | B40: =B34*Kalkylvärden!$B$143 -> 0 | C40: =C34*Kalkylvärden!$B$143 -> 0 | D40: =D34*Kalkylvärden!$B$143 -> 0
B42: Summa JA | C42: Summa UA | D42: Skillnad (UA -JA)
A43: Antal dödade per år | B43: =SUM(B36:C36) -> 0 | C43: =SUM(D36:D36) -> 0 | D43: =C43-B43 -> 0
A44: Mycket allvarligt skadad (MAS) | B44: =SUM(B37:C37) -> 0 | C44: =SUM(D37:D37) -> 0 | D44: =C44-B44 -> 0
A45: Allvarligt skadad (AS-MAS) | B45: =SUM(B38:C38) -> 0 | C45: =SUM(D38:D38) -> 0 | D45: =C45-B45 -> 0
A46: Ej allvarligt skadad (EAS) | B46: =SUM(B39:C39) -> 0 | C46: =SUM(D39:D39) -> 0 | D46: =C46-B46 -> 0
A47: Antal olyckor med bara materiella skador per år | B47: =SUM(B40:C40) -> 0 | C47: =SUM(D40:D40) -> 0 | D47: =C47-B47 -> 0
A52: Antal olyckor vid omledning (per år)
A53: Från korsning | B53: =Indata!B102 -> b
A54: Till korsning | B54: =Indata!B103 -> a
A55: Antal personbilar (ÅDT)
A56: mellan kl. 06-22 | B56: =Indata!B105 -> 100
A57: mellan kl. 22-06 | B57: =Indata!B106 -> 200
A58: Antal lastbilar (ÅDT)
A59: mellan kl. 06-22 | B59: =Indata!B108 -> 100
A60: mellan kl. 22-06 | B60: =Indata!B109 -> 100
A61: Antal fordon per dygn ÅDT
A62: mellan kl. 06-22 | B62: =Indata!B111 -> 200
A63: mellan kl. 22-06 | B63: =Indata!B112 -> 300
A64: Antal cyklande per dygn
A65: mellan kl. 06-22 | B65: =Indata!B114 -> 0
A66: mellan kl. 22-06 | B66: =Indata!B115 -> 0
A68: Antal dödade per år
A69: pga personbilar | B69: =((B56+B57)*Indata!B131*Kalkylvärden!$B230/10^6+(B56+B57)*Indata!B132*Kalkylvärden!$D230/10^6+(B56+B57)*Indata!B133*Kalkylvärden!$F230/10^6+(B56+B57)*Indata!B134*Kalkylvärden!$H230/10^6)*Kalkylvärden!$B19 -> 0
A70: pga lastbilar | B70: =((B59+B60)*Indata!B138*Kalkylvärden!$B$236/10^6+(B59+B60)*Indata!B139*Kalkylvärden!$D$236/10^6+(B59+B60)*Indata!B140*Kalkylvärden!$F$236/10^6+(B59+B60)*Indata!B141*Kalkylvärden!$H$236/10^6)*Kalkylvärden!$B$19 -> 0
A71: Mycket allvarligt skadad (MAS)
A72: pga personbilar | B72: =((B56+B57)*Indata!B131*Kalkylvärden!$B$231/10^6+(B56+B57)*Indata!B132*Kalkylvärden!$D$231/10^6+(B56+B57)*Indata!B133*Kalkylvärden!$F$231/10^6+(B56+B57)*Indata!B134*Kalkylvärden!$H$231/10^6)*Kalkylvärden!$B$19 -> 0
A73: pga lastbilar | B73: =((B59+B60)*Indata!B138*Kalkylvärden!$B$237/10^6+(B59+B60)*Indata!B139*Kalkylvärden!$D$237/10^6+(B59+B60)*Indata!B140*Kalkylvärden!$F$237/10^6+(B59+B60)*Indata!B141*Kalkylvärden!$H$237/10^6)*Kalkylvärden!$B$19 -> 0
A74: Allvarligt skadad (AS-MAS)
A75: pga personbilar | B75: =((B56+B57)*Indata!B131*Kalkylvärden!$B$232/10^6+(B56+B57)*Indata!B132*Kalkylvärden!$D$232/10^6+(B56+B57)*Indata!B133*Kalkylvärden!$F$232/10^6+(B56+B57)*Indata!B134*Kalkylvärden!$H$232/10^6)*Kalkylvärden!$B$19 -> 0
A76: pga lastbilar | B76: =((B59+B60)*Indata!B138*Kalkylvärden!$B$238/10^6+(B59+B60)*Indata!B139*Kalkylvärden!$D$238/10^6+(B59+B60)*Indata!B140*Kalkylvärden!$F$238/10^6+(B59+B60)*Indata!B141*Kalkylvärden!$H$238/10^6)*Kalkylvärden!$B$19 -> 0
A77: Ej allvarligt skadad (EAS)
A78: pga personbilar | B78: =((B56+B57)*Indata!B131*Kalkylvärden!$B$233/10^6+(B56+B57)*Indata!B132*Kalkylvärden!$D$233/10^6+(B56+B57)*Indata!B133*Kalkylvärden!$F$233/10^6+(B56+B57)*Indata!B134*Kalkylvärden!$H$233/10^6)*Kalkylvärden!$B$19 -> 0
A79: pga lastbilar | B79: =((B59+B60)*Indata!B138*Kalkylvärden!$B$239/10^6+(B59+B60)*Indata!B139*Kalkylvärden!$D$239/10^6+(B59+B60)*Indata!B140*Kalkylvärden!$F$239/10^6+(B59+B60)*Indata!B141*Kalkylvärden!$H$239/10^6)*Kalkylvärden!$B$19 -> 0
A80: Antal olyckor med bara materiella skador per år
A81: pga personbilar | B81: =((B56+B57)*Indata!B131*Kalkylvärden!$B$234/10^6+(B56+B57)*Indata!B132*Kalkylvärden!$D$234/10^6+(B56+B57)*Indata!B133*Kalkylvärden!$F$234/10^6+(B56+B57)*Indata!B134*Kalkylvärden!$H$234/10^6)*Kalkylvärden!$B$19 -> 0
A82: pga lastbilar | B82: =((B59+B60)*Indata!B138*Kalkylvärden!$B$240/10^6+(B59+B60)*Indata!B139*Kalkylvärden!$D$240/10^6+(B59+B60)*Indata!B140*Kalkylvärden!$F$240/10^6+(B59+B60)*Indata!B141*Kalkylvärden!$H$240/10^6)*Kalkylvärden!$B$19 -> 0
A83: Antal cykelolcykor per år
A84: förändrad volym pga omledning | B84: =(B65+B66)*Kalkylvärden!$B$19*Indata!B145*1/10^6*Kalkylvärden!$B$77 -> 0
B86: Summa
A87: Antal dödade per år | B87: =SUM(B69:B69)+SUM(B70:B70) -> 0
A88: Mycket allvarligt skadad (MAS) | B88: =SUM(B72:B72)+SUM(B73:B73) -> 0
A89: Allvarligt skadad (AS-MAS) | B89: =SUM(B75:B75)+SUM(B76:B76) -> 0
A90: Ej allvarligt skadad (EAS) | B90: =SUM(B78:B78)+SUM(B79:B79) -> 0
A91: Antal olyckor med bara materiella skador per år | B91: =SUM(B81:B81)+SUM(B82:B82) -> 0
A92: Notera: + innebär fler skadade och - innebär färre
A94: Förändrad tidsåtgång per år för fordon - personbilstimmar och lastbilstimmar
B95: JA1 | C95: JA2 | D95: UA1
A96: Korsningens namn: | B96: =Indata!B61 -> 0 | C96: =Indata!C61 -> 0 | D96: =Indata!D61 -> 0
A97: Tidsförluster bakom bom (fordonstimmar per år)
A98: Personbilar mellan kl. 06-22 | B98: =IF(Indata!B$62=5,0,B11*B$25/60)*Kalkylvärden!$B$19 -> 0 | C98: =IF(Indata!C$62=5,0,C11*C$25/60)*Kalkylvärden!$B$19 -> 0 | D98: =IF(Indata!D$62=5,0,D11*D$25/60)*Kalkylvärden!$B$19 -> 0
A99: Personbilar mellan kl. 22-06 | B99: =IF(Indata!B$62=5,0,B12*B$25/60)*Kalkylvärden!$B$19 -> 0 | C99: =IF(Indata!C$62=5,0,C12*C$25/60)*Kalkylvärden!$B$19 -> 0 | D99: =IF(Indata!D$62=5,0,D12*D$25/60)*Kalkylvärden!$B$19 -> 0
A100: Lastbilar mellan kl. 06-22 | B100: =IF(Indata!B$62=5,0,B13*B$25/60)*Kalkylvärden!$B$19 -> 0 | C100: =IF(Indata!C$62=5,0,C13*C$25/60)*Kalkylvärden!$B$19 -> 0 | D100: =IF(Indata!D$62=5,0,D13*D$25/60)*Kalkylvärden!$B$19 -> 0
A101: Lastbilar mellan kl. 22-06 | B101: =IF(Indata!B$62=5,0,B14*B$25/60)*Kalkylvärden!$B$19 -> 0 | C101: =IF(Indata!C$62=5,0,C14*C$25/60)*Kalkylvärden!$B$19 -> 0 | D101: =IF(Indata!D$62=5,0,D14*D$25/60)*Kalkylvärden!$B$19 -> 0
A102: Cyklister mellan kl. 06-22 | B102: =IF(Indata!B$62=5,0,B15*B$25/60)*Kalkylvärden!$B$19 -> 0 | C102: =IF(Indata!C$62=5,0,C15*C$25/60)*Kalkylvärden!$B$19 -> 0 | D102: =IF(Indata!D$62=5,0,D15*D$25/60)*Kalkylvärden!$B$19 -> 0
A103: Cyklister mellan kl. 22-06 | B103: =IF(Indata!B$62=5,0,B16*B$25/60)*Kalkylvärden!$B$19 -> 0 | C103: =IF(Indata!C$62=5,0,C16*C$25/60)*Kalkylvärden!$B$19 -> 0 | D103: =IF(Indata!D$62=5,0,D16*D$25/60)*Kalkylvärden!$B$19 -> 0
A104: Gående mellan kl. 06-22 | B104: =IF(Indata!B$62=5,0,B17*B$25/60)*Kalkylvärden!$B$19 -> 0 | C104: =IF(Indata!C$62=5,0,C17*C$25/60)*Kalkylvärden!$B$19 -> 0 | D104: =IF(Indata!D$62=5,0,D17*D$25/60)*Kalkylvärden!$B$19 -> 0
A105: Gående mellan kl. 22-06 | B105: =IF(Indata!B$62=5,0,B18*B$25/60)*Kalkylvärden!$B$19 -> 0 | C105: =IF(Indata!C$62=5,0,C18*C$25/60)*Kalkylvärden!$B$19 -> 0 | D105: =IF(Indata!D$62=5,0,D18*D$25/60)*Kalkylvärden!$B$19 -> 0
A106: Tidsförluster vid fri passage av korsning (fordonstimmar per år)
A107: Personbilar mellan kl. 06-22 | B107: =B11*Kalkylvärden!$B$19*(INDIRECT("Kalkylvärden!R" & (179+Indata!B$83) & "C2", FALSE)-INDIRECT("Kalkylvärden!R" & (179+Indata!B$84) & "C2", FALSE))*1/3600 ->  | C107: =C11*Kalkylvärden!$B$19*(INDIRECT("Kalkylvärden!R" & (179+Indata!C$83) & "C2", FALSE)-INDIRECT("Kalkylvärden!R" & (179+Indata!C$84) & "C2", FALSE))*1/3600 ->  | D107: =D11*Kalkylvärden!$B$19*(INDIRECT("Kalkylvärden!R" & (179+Indata!D$83) & "C2", FALSE)-INDIRECT("Kalkylvärden!R" & (179+Indata!D$84) & "C2", FALSE))*1/3600 -> 
A108: Personbilar mellan kl. 22-06 | B108: =B12*Kalkylvärden!$B$19*(INDIRECT("Kalkylvärden!R" & (179+Indata!B$83) & "C2", FALSE)-INDIRECT("Kalkylvärden!R" & (179+Indata!B$84) & "C2", FALSE))*1/3600 ->  | C108: =C12*Kalkylvärden!$B$19*(INDIRECT("Kalkylvärden!R" & (179+Indata!C$83) & "C2", FALSE)-INDIRECT("Kalkylvärden!R" & (179+Indata!C$84) & "C2", FALSE))*1/3600 ->  | D108: =D12*Kalkylvärden!$B$19*(INDIRECT("Kalkylvärden!R" & (179+Indata!D$83) & "C2", FALSE)-INDIRECT("Kalkylvärden!R" & (179+Indata!D$84) & "C2", FALSE))*1/3600 -> 
A109: Lastbilar mellan kl. 06-22 | B109: =B13*Kalkylvärden!$B$19*(INDIRECT("Kalkylvärden!R" & (179+Indata!B$83) & "C3", FALSE)-INDIRECT("Kalkylvärden!R" & (179+Indata!B$84) & "C3", FALSE))*1/3600 ->  | C109: =C13*Kalkylvärden!$B$19*(INDIRECT("Kalkylvärden!R" & (179+Indata!C$83) & "C3", FALSE)-INDIRECT("Kalkylvärden!R" & (179+Indata!C$84) & "C3", FALSE))*1/3600 ->  | D109: =D13*Kalkylvärden!$B$19*(INDIRECT("Kalkylvärden!R" & (179+Indata!D$83) & "C3", FALSE)-INDIRECT("Kalkylvärden!R" & (179+Indata!D$84) & "C3", FALSE))*1/3600 -> 
A110: Lastbilar mellan kl. 22-06 | B110: =B14*Kalkylvärden!$B$19*(INDIRECT("Kalkylvärden!R" & (179+Indata!B$83) & "C3", FALSE)-INDIRECT("Kalkylvärden!R" & (179+Indata!B$84) & "C3", FALSE))*1/3600 ->  | C110: =C14*Kalkylvärden!$B$19*(INDIRECT("Kalkylvärden!R" & (179+Indata!C$83) & "C3", FALSE)-INDIRECT("Kalkylvärden!R" & (179+Indata!C$84) & "C3", FALSE))*1/3600 ->  | D110: =D14*Kalkylvärden!$B$19*(INDIRECT("Kalkylvärden!R" & (179+Indata!D$83) & "C3", FALSE)-INDIRECT("Kalkylvärden!R" & (179+Indata!D$84) & "C3", FALSE))*1/3600 -> 
A112: varav bakom bom
A113: personbilar | B113: =SUM(B98:B99) -> 0 | C113: =SUM(C98:C99) -> 0 | D113: 0
A114: lastbilar | B114: =SUM(B100:B101) -> 0 | C114: =SUM(C100:C101) -> 0 | D114: 0
A115: cyklar | B115: =SUM(B102:B103) -> 0 | C115: =SUM(C102:C103) -> 0 | D115: 0
A116: gående | B116: =SUM(B104:B105) -> 0 | C116: =SUM(C104:C105) -> 0 | D116: 0
A117: varav vid fri passage av korsning
A118: personbilar | B118: =SUM(B107:B108) ->  | C118: =SUM(C107:C108) -> 
A119: lastbilar | B119: =SUM(B109:B110) ->  | C119: =SUM(C109:C110) -> 
B121: Summa JA | C121: Summa UA
A122: Summa fordonstimmar (+GC) per år | B122: =SUM(B113:C119) ->  | C122: =SUM(D113:D119)+SUM(B132:B135) -> 
A124: Tidsförluster vid ev. omledning via annan korsning (fordonstimmar per år)
A125: Från korsning | B125: =Indata!B102 -> b
A126: Till korsning | B126: =Indata!B103 -> a
A127: Personbilar | B127: =((Indata!B105+Indata!B106)*Indata!B131*Kalkylvärden!$B$196/3600+(Indata!B105+Indata!B106)*Indata!B132*Kalkylvärden!$D$196/3600+(Indata!B105+Indata!B106)*Indata!B133*Kalkylvärden!$F$196/3600+(Indata!B105+Indata!B106)*Indata!B134*Kalkylvärden!$H$196/3600)*Kalkylvärden!$B$19 -> 0
A128: Lastbilar | B128: =((Indata!B108+Indata!B109)*Indata!B138*Kalkylvärden!$B$197/3600+(Indata!B108+Indata!B109)*Indata!B139*Kalkylvärden!$D$197/3600+(Indata!B108+Indata!B109)*Indata!B140*Kalkylvärden!$F$197/3600+(Indata!B108+Indata!B109)*Indata!B141*Kalkylvärden!$H$197/3600)*Kalkylvärden!$B$19 -> 0
A129: Cyklister | B129: =(Indata!B114+Indata!B115)*Indata!B145/Kalkylvärden!$B$105*Kalkylvärden!$B$19 -> 0
A130: Gående | B130: =(Indata!B117+Indata!B118)*Indata!B149/Kalkylvärden!$B$104*Kalkylvärden!$B$19 -> 0
A131: varav vid omledning | B131: Summa
A132: personbilar | B132: =SUM(B127:B127) -> 0
A133: lastbilar | B133: =SUM(B128:B128) -> 0
A134: cyklar | B134: =SUM(B129:B129) -> 0
A135: gående | B135: =SUM(B130:B130) -> 0
A137: Förändrad tidsåtgång per år uttryckt i antal persontimmar
A138: Nedanstående persontimmar används för att beräkna antal vunna/förlorade persontimmar - vilket ligger till grund för ett nyckeltal som beskriver åtgärdens effektivitet.
A139: Under fliken "Ekonomi" beräknas värdet av tidseffekterna där olika typer kategorier av resenärer får olika vikt.
B141: JA1 | C141: JA2 | D141: UA1
A142: Korsningens namn: | B142: =Indata!B61 -> 0 | C142: =Indata!C61 -> 0 | D142: =Indata!D61 -> 0
A143: Tidsförluster bakom bom (fordonstimmar per år)
A144: Antal persontimmar | B144: =(B98+B99)*Kalkylvärden!$B$109+(Kvantiteter!B100+Kvantiteter!B101)*Kalkylvärden!$B$112+SUM(Kvantiteter!B102:B105) -> 0 | C144: =(C98+C99)*Kalkylvärden!$B$109+(Kvantiteter!C100+Kvantiteter!C101)*Kalkylvärden!$B$112+SUM(Kvantiteter!C102:C105) -> 0 | D144: =(D98+D99)*Kalkylvärden!$B$109+(Kvantiteter!D100+Kvantiteter!D101)*Kalkylvärden!$B$112+SUM(Kvantiteter!D102:D105) -> 0
A145: Tidsförluster vid fri passage av korsning (fordonstimmar per år)
A146: Antal persontimmar | B146: =(B107+B108)*Kalkylvärden!$B$109+(Kvantiteter!B109+Kvantiteter!B110)*Kalkylvärden!$B$112 ->  | C146: =(C107+C108)*Kalkylvärden!$B$109+(Kvantiteter!C109+Kvantiteter!C110)*Kalkylvärden!$B$112 ->  | D146: =(D107+D108)*Kalkylvärden!$B$109+(Kvantiteter!D109+Kvantiteter!D110)*Kalkylvärden!$B$112 -> 
B148: Summa JA | C148: Summa UA
A149: Summa persontimmar | B149: =SUM(B144:C146) ->  | C149: =SUM(D144:D146)+SUM(B157:B157) -> 
A151: Tidsförluster vid ev. omledning via annan korsning (fordonstimmar per år)
A152: Från korsning | B152: =Indata!B102 -> b
A153: Till korsning | B153: =Indata!B103 -> a
A154: Antal persontimmar (+ avser fler timmar, - avser färre timmar) | B154: =(B127*Kalkylvärden!$B$109)+(Kvantiteter!B128*Kalkylvärden!$B$112)+Kvantiteter!B129+Kvantiteter!B130 -> 0
B156: Summa
A157: Antal persontimmar (+ avser fler timmar, - avser färre timmar) | B157: =SUM(B154:B154) -> 0
A160: Förändrade emissioner (kg/år)
B161: JA1 | C161: JA2 | D161: UA1
A162: Korsningens namn: | B162: =Indata!B61 -> 0 | C162: =Indata!C61 -> 0 | D162: =Indata!D61 -> 0
A163: Emissioner bakom bom (kg per år)
A164: Personbil
A165: kväveoxider, NOx | B165: =IF(OR(Indata!B$62=5, Indata!B$62=0),0, (B$11+B$12)*Kalkylvärden!$B$19*HLOOKUP(INDIRECT("Kalkylvärden!R163" & "C" & (Indata!B$83+1), FALSE),Kalkylvärden!$B$163:$H$175,3,FALSE)*1/1000) -> 0 | C165: =IF(OR(Indata!C$62=5, Indata!C$62=0),0, (C$11+C$12)*Kalkylvärden!$B$19*HLOOKUP(INDIRECT("Kalkylvärden!R163" & "C" & (Indata!C$83+1), FALSE),Kalkylvärden!$B$163:$H$175,3,FALSE)*1/1000) -> 0 | D165: =IF(OR(Indata!D$62=5, Indata!D$62=0),0, (D$11+D$12)*Kalkylvärden!$B$19*HLOOKUP(INDIRECT("Kalkylvärden!R163" & "C" & (Indata!D$83+1), FALSE),Kalkylvärden!$B$163:$H$175,3,FALSE)*1/1000) -> 0
B166: =IF(OR(Indata!B$62=5, Indata!B$62=0),0, (B$11+B$12)*Kalkylvärden!$B$19*HLOOKUP(INDIRECT("Kalkylvärden!R163" & "C" & (Indata!B$83+1), FALSE),Kalkylvärden!$B$163:$H$175,4,FALSE)*1/1000) -> 0 | C166: =IF(OR(Indata!C$62=5, Indata!C$62=0),0, (C$11+C$12)*Kalkylvärden!$B$19*HLOOKUP(INDIRECT("Kalkylvärden!R163" & "C" & (Indata!C$83+1), FALSE),Kalkylvärden!$B$163:$H$175,4,FALSE)*1/1000) -> 0 | D166: =IF(OR(Indata!D$62=5, Indata!D$62=0),0, (D$11+D$12)*Kalkylvärden!$B$19*HLOOKUP(INDIRECT("Kalkylvärden!R163" & "C" & (Indata!D$83+1), FALSE),Kalkylvärden!$B$163:$H$175,4,FALSE)*1/1000) -> 0
A167: koldioxid, CO2 | B167: =IF(OR(Indata!B$62=5, Indata!B$62=0),0, (B$11+B$12)*Kalkylvärden!$B$19*HLOOKUP(INDIRECT("Kalkylvärden!R163" & "C" & (Indata!B$83 +1), FALSE),Kalkylvärden!$B$163:$H$175,5,FALSE)*1/1000) -> 0 | C167: =IF(OR(Indata!C$62=5, Indata!C$62=0),0, (C$11+C$12)*Kalkylvärden!$B$19*HLOOKUP(INDIRECT("Kalkylvärden!R163" & "C" & (Indata!C$83 +1), FALSE),Kalkylvärden!$B$163:$H$175,5,FALSE)*1/1000) -> 0 | D167: =IF(OR(Indata!D$62=5, Indata!D$62=0),0, (D$11+D$12)*Kalkylvärden!$B$19*HLOOKUP(INDIRECT("Kalkylvärden!R163" & "C" & (Indata!D$83 +1), FALSE),Kalkylvärden!$B$163:$H$175,5,FALSE)*1/1000) -> 0
A168: avgaspartiklar, PM 3,5 | B168: =IF(OR(Indata!B$62=5, Indata!B$62=0),0, (B$11+B$12)*Kalkylvärden!$B$19*HLOOKUP(INDIRECT("Kalkylvärden!R163" & "C" & (Indata!B$83+1), FALSE),Kalkylvärden!$B$163:$H$175,6,FALSE)*1/1000) -> 0 | C168: =IF(OR(Indata!C$62=5, Indata!C$62=0),0, (C$11+C$12)*Kalkylvärden!$B$19*HLOOKUP(INDIRECT("Kalkylvärden!R163" & "C" & (Indata!C$83+1), FALSE),Kalkylvärden!$B$163:$H$175,6,FALSE)*1/1000) -> 0 | D168: =IF(OR(Indata!D$62=5, Indata!D$62=0),0, (D$11+D$12)*Kalkylvärden!$B$19*HLOOKUP(INDIRECT("Kalkylvärden!R163" & "C" & (Indata!D$83+1), FALSE),Kalkylvärden!$B$163:$H$175,6,FALSE)*1/1000) -> 0
A169: slitagepartiklar, PM 10 | B169: =IF(OR(Indata!B$62=5, Indata!B$62=0),0, (B$11+B$12)*Kalkylvärden!$B$19*HLOOKUP(INDIRECT("Kalkylvärden!R163" & "C" & (Indata!B$83+1), FALSE),Kalkylvärden!$B$163:$H$175,7,FALSE)*1/1000) -> 0 | C169: =IF(OR(Indata!C$62=5, Indata!C$62=0),0, (C$11+C$12)*Kalkylvärden!$B$19*HLOOKUP(INDIRECT("Kalkylvärden!R163" & "C" & (Indata!C$83+1), FALSE),Kalkylvärden!$B$163:$H$175,7,FALSE)*1/1000) -> 0 | D169: =IF(OR(Indata!D$62=5, Indata!D$62=0),0, (D$11+D$12)*Kalkylvärden!$B$19*HLOOKUP(INDIRECT("Kalkylvärden!R163" & "C" & (Indata!D$83+1), FALSE),Kalkylvärden!$B$163:$H$175,7,FALSE)*1/1000) -> 0
A170: Lastbil
A171: kväveoxider, NOx | B171: =IF(OR(Indata!B$62=5, Indata!B$62=0),0, (B$13+B$14)*Kalkylvärden!$B$19*HLOOKUP(INDIRECT("Kalkylvärden!R163" & "C" & (Indata!B$83+1), FALSE),Kalkylvärden!$B$163:$H$175,9,FALSE)*1/1000) -> 0 | C171: =IF(OR(Indata!C$62=5, Indata!C$62=0),0, (C$13+C$14)*Kalkylvärden!$B$19*HLOOKUP(INDIRECT("Kalkylvärden!R163" & "C" & (Indata!C$83+1), FALSE),Kalkylvärden!$B$163:$H$175,9,FALSE)*1/1000) -> 0 | D171: =IF(OR(Indata!D$62=5, Indata!D$62=0),0, (D$13+D$14)*Kalkylvärden!$B$19*HLOOKUP(INDIRECT("Kalkylvärden!R163" & "C" & (Indata!D$83+1), FALSE),Kalkylvärden!$B$163:$H$175,9,FALSE)*1/1000) -> 0
B172: =IF(OR(Indata!B$62=5, Indata!B$62=0),0, (B$13+B$14)*Kalkylvärden!$B$19*HLOOKUP(INDIRECT("Kalkylvärden!R163" & "C" & (Indata!B$83+1), FALSE),Kalkylvärden!$B$163:$H$175,10,FALSE)*1/1000) -> 0 | C172: =IF(OR(Indata!C$62=5, Indata!C$62=0),0, (C$13+C$14)*Kalkylvärden!$B$19*HLOOKUP(INDIRECT("Kalkylvärden!R163" & "C" & (Indata!C$83+1), FALSE),Kalkylvärden!$B$163:$H$175,10,FALSE)*1/1000) -> 0 | D172: =IF(OR(Indata!D$62=5, Indata!D$62=0),0, (D$13+D$14)*Kalkylvärden!$B$19*HLOOKUP(INDIRECT("Kalkylvärden!R163" & "C" & (Indata!D$83+1), FALSE),Kalkylvärden!$B$163:$H$175,10,FALSE)*1/1000) -> 0
A173: koldioxid, CO2 | B173: =IF(OR(Indata!B$62=5, Indata!B$62=0),0, (B$13+B$14)*Kalkylvärden!$B$19*HLOOKUP(INDIRECT("Kalkylvärden!R163" & "C" & (Indata!B$83+1), FALSE),Kalkylvärden!$B$163:$H$175,11,FALSE)*1/1000) -> 0 | C173: =IF(OR(Indata!C$62=5, Indata!C$62=0),0, (C$13+C$14)*Kalkylvärden!$B$19*HLOOKUP(INDIRECT("Kalkylvärden!R163" & "C" & (Indata!C$83+1), FALSE),Kalkylvärden!$B$163:$H$175,11,FALSE)*1/1000) -> 0 | D173: =IF(OR(Indata!D$62=5, Indata!D$62=0),0, (D$13+D$14)*Kalkylvärden!$B$19*HLOOKUP(INDIRECT("Kalkylvärden!R163" & "C" & (Indata!D$83+1), FALSE),Kalkylvärden!$B$163:$H$175,11,FALSE)*1/1000) -> 0
A174: avgaspartiklar, PM 3,5 | B174: =IF(OR(Indata!B$62=5, Indata!B$62=0),0, (B$13+B$14)*Kalkylvärden!$B$19*HLOOKUP(INDIRECT("Kalkylvärden!R163" & "C" & (Indata!B$83+1), FALSE),Kalkylvärden!$B$163:$H$175,12,FALSE)*1/1000) -> 0 | C174: =IF(OR(Indata!C$62=5, Indata!C$62=0),0, (C$13+C$14)*Kalkylvärden!$B$19*HLOOKUP(INDIRECT("Kalkylvärden!R163" & "C" & (Indata!C$83+1), FALSE),Kalkylvärden!$B$163:$H$175,12,FALSE)*1/1000) -> 0 | D174: =IF(OR(Indata!D$62=5, Indata!D$62=0),0, (D$13+D$14)*Kalkylvärden!$B$19*HLOOKUP(INDIRECT("Kalkylvärden!R163" & "C" & (Indata!D$83+1), FALSE),Kalkylvärden!$B$163:$H$175,12,FALSE)*1/1000) -> 0
A175: slitagepartiklar, PM 10 | B175: =IF(OR(Indata!B$62=5, Indata!B$62=0),0, (B$13+B$14)*Kalkylvärden!$B$19*HLOOKUP(INDIRECT("Kalkylvärden!R163" & "C" & (Indata!B$83+1), FALSE),Kalkylvärden!$B$163:$H$175,13,FALSE)*1/1000) -> 0 | C175: =IF(OR(Indata!C$62=5, Indata!C$62=0),0, (C$13+C$14)*Kalkylvärden!$B$19*HLOOKUP(INDIRECT("Kalkylvärden!R163" & "C" & (Indata!C$83+1), FALSE),Kalkylvärden!$B$163:$H$175,13,FALSE)*1/1000) -> 0 | D175: =IF(OR(Indata!D$62=5, Indata!D$62=0),0, (D$13+D$14)*Kalkylvärden!$B$19*HLOOKUP(INDIRECT("Kalkylvärden!R163" & "C" & (Indata!D$83+1), FALSE),Kalkylvärden!$B$163:$H$175,13,FALSE)*1/1000) -> 0
A176: Emissioner vid fri passage av korsning (kg per år)
A177: Personbil
A178: kväveoxider, NOx | B178: =(B$20+B$21)*Kalkylvärden!$B$19*(HLOOKUP(INDIRECT("Kalkylvärden!R163" & "C" & (Indata!B$83+1), FALSE),Kalkylvärden!$B$163:$H$175,3,FALSE)-HLOOKUP(INDIRECT("Kalkylvärden!R163" & "C" & (Indata!B$84+1), FALSE),Kalkylvärden!$B$163:$H$175,3,FALSE))*1/1000 ->  | C178: =(C$20+C$21)*Kalkylvärden!$B$19*(HLOOKUP(INDIRECT("Kalkylvärden!R163" & "C" & (Indata!C$83+1), FALSE),Kalkylvärden!$B$163:$H$175,3,FALSE)-HLOOKUP(INDIRECT("Kalkylvärden!R163" & "C" & (Indata!C$84+1), FALSE),Kalkylvärden!$B$163:$H$175,3,FALSE))*1/1000 ->  | D178: =(D$20+D$21)*Kalkylvärden!$B$19*(HLOOKUP(INDIRECT("Kalkylvärden!R163" & "C" & (Indata!D$83+1), FALSE),Kalkylvärden!$B$163:$H$175,3,FALSE)-HLOOKUP(INDIRECT("Kalkylvärden!R163" & "C" & (Indata!D$84+1), FALSE),Kalkylvärden!$B$163:$H$175,3,FALSE))*1/1000 -> 
B179: =(B$20+B$21)*Kalkylvärden!$B$19*(HLOOKUP(INDIRECT("Kalkylvärden!R163" & "C" & (Indata!B$83+1), FALSE),Kalkylvärden!$B$163:$H$175,4,FALSE)-HLOOKUP(INDIRECT("Kalkylvärden!R163" & "C" & (Indata!B$84+1), FALSE),Kalkylvärden!$B$163:$H$175,4,FALSE))*1/1000 ->  | C179: =(C$20+C$21)*Kalkylvärden!$B$19*(HLOOKUP(INDIRECT("Kalkylvärden!R163" & "C" & (Indata!C$83+1), FALSE),Kalkylvärden!$B$163:$H$175,4,FALSE)-HLOOKUP(INDIRECT("Kalkylvärden!R163" & "C" & (Indata!C$84+1), FALSE),Kalkylvärden!$B$163:$H$175,4,FALSE))*1/1000 ->  | D179: =(D$20+D$21)*Kalkylvärden!$B$19*(HLOOKUP(INDIRECT("Kalkylvärden!R163" & "C" & (Indata!D$83+1), FALSE),Kalkylvärden!$B$163:$H$175,4,FALSE)-HLOOKUP(INDIRECT("Kalkylvärden!R163" & "C" & (Indata!D$84+1), FALSE),Kalkylvärden!$B$163:$H$175,4,FALSE))*1/1000 -> 
A180: koldioxid, CO2 | B180: =(B$20+B$21)*Kalkylvärden!$B$19*(HLOOKUP(INDIRECT("Kalkylvärden!R163" & "C" & (Indata!B$83+1), FALSE),Kalkylvärden!$B$163:$H$175,5,FALSE)-HLOOKUP(INDIRECT("Kalkylvärden!R163" & "C" & (Indata!B$84+1), FALSE),Kalkylvärden!$B$163:$H$175,5,FALSE))*1/1000 ->  | C180: =(C$20+C$21)*Kalkylvärden!$B$19*(HLOOKUP(INDIRECT("Kalkylvärden!R163" & "C" & (Indata!C$83+1), FALSE),Kalkylvärden!$B$163:$H$175,5,FALSE)-HLOOKUP(INDIRECT("Kalkylvärden!R163" & "C" & (Indata!C$84+1), FALSE),Kalkylvärden!$B$163:$H$175,5,FALSE))*1/1000 ->  | D180: =(D$20+D$21)*Kalkylvärden!$B$19*(HLOOKUP(INDIRECT("Kalkylvärden!R163" & "C" & (Indata!D$83+1), FALSE),Kalkylvärden!$B$163:$H$175,5,FALSE)-HLOOKUP(INDIRECT("Kalkylvärden!R163" & "C" & (Indata!D$84+1), FALSE),Kalkylvärden!$B$163:$H$175,5,FALSE))*1/1000 -> 
A181: avgaspartiklar, PM 3,5 | B181: =(B$20+B$21)*Kalkylvärden!$B$19*(HLOOKUP(INDIRECT("Kalkylvärden!R163" & "C" & (Indata!B$83+1), FALSE),Kalkylvärden!$B$163:$H$175,6,FALSE)-HLOOKUP(INDIRECT("Kalkylvärden!R163" & "C" & (Indata!B$84+1), FALSE),Kalkylvärden!$B$163:$H$175,6,FALSE))*1/1000 ->  | C181: =(C$20+C$21)*Kalkylvärden!$B$19*(HLOOKUP(INDIRECT("Kalkylvärden!R163" & "C" & (Indata!C$83+1), FALSE),Kalkylvärden!$B$163:$H$175,6,FALSE)-HLOOKUP(INDIRECT("Kalkylvärden!R163" & "C" & (Indata!C$84+1), FALSE),Kalkylvärden!$B$163:$H$175,6,FALSE))*1/1000 ->  | D181: =(D$20+D$21)*Kalkylvärden!$B$19*(HLOOKUP(INDIRECT("Kalkylvärden!R163" & "C" & (Indata!D$83+1), FALSE),Kalkylvärden!$B$163:$H$175,6,FALSE)-HLOOKUP(INDIRECT("Kalkylvärden!R163" & "C" & (Indata!D$84+1), FALSE),Kalkylvärden!$B$163:$H$175,6,FALSE))*1/1000 -> 
A182: slitagepartiklar, PM 10 | B182: =(B$20+B$21)*Kalkylvärden!$B$19*(HLOOKUP(INDIRECT("Kalkylvärden!R163" & "C" & (Indata!B$83+1), FALSE),Kalkylvärden!$B$163:$H$175,7,FALSE)-HLOOKUP(INDIRECT("Kalkylvärden!R163" & "C" & (Indata!B$84+1), FALSE),Kalkylvärden!$B$163:$H$175,7,FALSE))*1/1000 ->  | C182: =(C$20+C$21)*Kalkylvärden!$B$19*(HLOOKUP(INDIRECT("Kalkylvärden!R163" & "C" & (Indata!C$83+1), FALSE),Kalkylvärden!$B$163:$H$175,7,FALSE)-HLOOKUP(INDIRECT("Kalkylvärden!R163" & "C" & (Indata!C$84+1), FALSE),Kalkylvärden!$B$163:$H$175,7,FALSE))*1/1000 ->  | D182: =(D$20+D$21)*Kalkylvärden!$B$19*(HLOOKUP(INDIRECT("Kalkylvärden!R163" & "C" & (Indata!D$83+1), FALSE),Kalkylvärden!$B$163:$H$175,7,FALSE)-HLOOKUP(INDIRECT("Kalkylvärden!R163" & "C" & (Indata!D$84+1), FALSE),Kalkylvärden!$B$163:$H$175,7,FALSE))*1/1000 -> 
A183: Lastbil
A184: kväveoxider, NOx | B184: =(B$13+B$14)*Kalkylvärden!$B$19*(HLOOKUP(INDIRECT("Kalkylvärden!R163" & "C" & (Indata!B$83+1), FALSE),Kalkylvärden!$B$163:$H$175,9,FALSE)-HLOOKUP(INDIRECT("Kalkylvärden!R163" & "C" & (Indata!B$84+1), FALSE),Kalkylvärden!$B$163:$H$175,9,FALSE))*1/1000 ->  | C184: =(C$13+C$14)*Kalkylvärden!$B$19*(HLOOKUP(INDIRECT("Kalkylvärden!R163" & "C" & (Indata!C$83+1), FALSE),Kalkylvärden!$B$163:$H$175,9,FALSE)-HLOOKUP(INDIRECT("Kalkylvärden!R163" & "C" & (Indata!C$84+1), FALSE),Kalkylvärden!$B$163:$H$175,9,FALSE))*1/1000 ->  | D184: =(D$13+D$14)*Kalkylvärden!$B$19*(HLOOKUP(INDIRECT("Kalkylvärden!R163" & "C" & (Indata!D$83+1), FALSE),Kalkylvärden!$B$163:$H$175,9,FALSE)-HLOOKUP(INDIRECT("Kalkylvärden!R163" & "C" & (Indata!D$84+1), FALSE),Kalkylvärden!$B$163:$H$175,9,FALSE))*1/1000 -> 
B185: =(C$13+C$14)*Kalkylvärden!$B$19*(HLOOKUP(INDIRECT("Kalkylvärden!R163" & "C" & (Indata!B$83+1), FALSE),Kalkylvärden!$B$163:$H$175,10,FALSE)-HLOOKUP(INDIRECT("Kalkylvärden!R163" & "C" & (Indata!B$84+1), FALSE),Kalkylvärden!$B$163:$H$175,10,FALSE))*1/1000 ->  | C185: =(D$13+D$14)*Kalkylvärden!$B$19*(HLOOKUP(INDIRECT("Kalkylvärden!R163" & "C" & (Indata!C$83+1), FALSE),Kalkylvärden!$B$163:$H$175,10,FALSE)-HLOOKUP(INDIRECT("Kalkylvärden!R163" & "C" & (Indata!C$84+1), FALSE),Kalkylvärden!$B$163:$H$175,10,FALSE))*1/1000 ->  | D185: =(E$13+E$14)*Kalkylvärden!$B$19*(HLOOKUP(INDIRECT("Kalkylvärden!R163" & "C" & (Indata!D$83+1), FALSE),Kalkylvärden!$B$163:$H$175,10,FALSE)-HLOOKUP(INDIRECT("Kalkylvärden!R163" & "C" & (Indata!D$84+1), FALSE),Kalkylvärden!$B$163:$H$175,10,FALSE))*1/1000 -> 
A186: koldioxid, CO2 | B186: =(B$13+B$14)*Kalkylvärden!$B$19*(HLOOKUP(INDIRECT("Kalkylvärden!R163" & "C" & (Indata!B$83+1), FALSE),Kalkylvärden!$B$163:$H$175,11,FALSE)-HLOOKUP(INDIRECT("Kalkylvärden!R163" & "C" & (Indata!B$84+1), FALSE),Kalkylvärden!$B$163:$H$175,11,FALSE))*1/1000 ->  | C186: =(C$13+C$14)*Kalkylvärden!$B$19*(HLOOKUP(INDIRECT("Kalkylvärden!R163" & "C" & (Indata!C$83+1), FALSE),Kalkylvärden!$B$163:$H$175,11,FALSE)-HLOOKUP(INDIRECT("Kalkylvärden!R163" & "C" & (Indata!C$84+1), FALSE),Kalkylvärden!$B$163:$H$175,11,FALSE))*1/1000 ->  | D186: =(D$13+D$14)*Kalkylvärden!$B$19*(HLOOKUP(INDIRECT("Kalkylvärden!R163" & "C" & (Indata!D$83+1), FALSE),Kalkylvärden!$B$163:$H$175,11,FALSE)-HLOOKUP(INDIRECT("Kalkylvärden!R163" & "C" & (Indata!D$84+1), FALSE),Kalkylvärden!$B$163:$H$175,11,FALSE))*1/1000 -> 
A187: avgaspartiklar, PM 3,5 | B187: =(B$13+B$14)*Kalkylvärden!$B$19*(HLOOKUP(INDIRECT("Kalkylvärden!R163" & "C" & (Indata!B$83+1), FALSE),Kalkylvärden!$B$163:$H$175,12,FALSE)-HLOOKUP(INDIRECT("Kalkylvärden!R163" & "C" & (Indata!B$84+1), FALSE),Kalkylvärden!$B$163:$H$175,12,FALSE))*1/1000 ->  | C187: =(C$13+C$14)*Kalkylvärden!$B$19*(HLOOKUP(INDIRECT("Kalkylvärden!R163" & "C" & (Indata!C$83+1), FALSE),Kalkylvärden!$B$163:$H$175,12,FALSE)-HLOOKUP(INDIRECT("Kalkylvärden!R163" & "C" & (Indata!C$84+1), FALSE),Kalkylvärden!$B$163:$H$175,12,FALSE))*1/1000 ->  | D187: =(D$13+D$14)*Kalkylvärden!$B$19*(HLOOKUP(INDIRECT("Kalkylvärden!R163" & "C" & (Indata!D$83+1), FALSE),Kalkylvärden!$B$163:$H$175,12,FALSE)-HLOOKUP(INDIRECT("Kalkylvärden!R163" & "C" & (Indata!D$84+1), FALSE),Kalkylvärden!$B$163:$H$175,12,FALSE))*1/1000 -> 
A188: slitagepartiklar, PM 10 | B188: =(B$13+B$14)*Kalkylvärden!$B$19*(HLOOKUP(INDIRECT("Kalkylvärden!R163" & "C" & (Indata!B$83+1), FALSE),Kalkylvärden!$B$163:$H$175,13,FALSE)-HLOOKUP(INDIRECT("Kalkylvärden!R163" & "C" & (Indata!B$84+1), FALSE),Kalkylvärden!$B$163:$H$175,13,FALSE))*1/1000 ->  | C188: =(C$13+C$14)*Kalkylvärden!$B$19*(HLOOKUP(INDIRECT("Kalkylvärden!R163" & "C" & (Indata!C$83+1), FALSE),Kalkylvärden!$B$163:$H$175,13,FALSE)-HLOOKUP(INDIRECT("Kalkylvärden!R163" & "C" & (Indata!C$84+1), FALSE),Kalkylvärden!$B$163:$H$175,13,FALSE))*1/1000 ->  | D188: =(D$13+D$14)*Kalkylvärden!$B$19*(HLOOKUP(INDIRECT("Kalkylvärden!R163" & "C" & (Indata!D$83+1), FALSE),Kalkylvärden!$B$163:$H$175,13,FALSE)-HLOOKUP(INDIRECT("Kalkylvärden!R163" & "C" & (Indata!D$84+1), FALSE),Kalkylvärden!$B$163:$H$175,13,FALSE))*1/1000 -> 
A190: Summa emissioner (kg per år) | B190: Summa JA | C190: Summa UA | D190: Skillnad (UA-JA)
A191: kväveoxider, NOx | B191: =B197+B203 ->  | C191: =C197+C203+B226 ->  | D191: =C191-B191 -> 
B192: =B198+B204 ->  | C192: =C198+C204+B227 ->  | D192: =C192-B192 -> 
A193: koldioxid, CO2 | B193: =B199+B205 ->  | C193: =C199+C205+B228 ->  | D193: =C193-B193 -> 
A194: avgaspartiklar, PM 3,5 | D194: =C194-B194 -> 
A195: slitagepartiklar, PM 10 | B195: =B201+B207 ->  | C195: =C201+C207+B230 ->  | D195: =C195-B195 -> 
A196: varav bakom bom
A197: kväveoxider, NOx | B197: =SUM(B165:C165)+SUM(B171:C171) -> 0 | C197: =SUM(D165:D165)+SUM(D171:D171) -> 0
B198: =SUM(B166:C166)+SUM(B172:C172) -> 0 | C198: =SUM(D166:D166)+SUM(D172:D172) -> 0
A199: koldioxid, CO2 | B199: =SUM(B167:C167)+SUM(B173:C173) -> 0 | C199: =SUM(D167:D167)+SUM(D173:D173) -> 0
A200: avgaspartiklar, PM 3,5 | B200: =SUM(B168:C168)+SUM(B174:C174) -> 0 | C200: =SUM(D168:D168)+SUM(D174:D174) -> 0
A201: slitagepartiklar, PM 10 | B201: =SUM(B169:C169)+SUM(B175:C175) -> 0 | C201: =SUM(D169:D169)+SUM(D175:D175) -> 0
A202: varav vid fri passage av korsning
A203: kväveoxider, NOx | B203: =SUM(B178:C178)+SUM(B184:C184) ->  | C203: =SUM(D178:D178)+SUM(D184:D184) -> 
B204: =SUM(B179:C179)+SUM(B185:C185) ->  | C204: =SUM(D179:D179)+SUM(D185:D185) -> 
A205: koldioxid, CO2 | B205: =SUM(B180:C180)+SUM(B186:C186) ->  | C205: =SUM(D180:D180)+SUM(D186:D186) -> 
A206: avgaspartiklar, PM 3,5 | B206: =SUM(B181:C181)+SUM(B187:C187) ->  | C206: =SUM(D181:D181)+SUM(D187:D187) -> 
A207: slitagepartiklar, PM 10 | B207: =SUM(B182:C182)+SUM(B188:C188) ->  | C207: =SUM(D182:D182)+SUM(D188:D188) -> 
A209: Emissioner vid ev. omledning via annan korsning (kg per år)
A210: Från korsning | B210: =Indata!B102 -> b
A211: Till korsning | B211: =Indata!B103 -> a
A212: Personbil
A213: kväveoxider, NOx | B213: =((Indata!B105+Indata!B106)*Kalkylvärden!$B$19*Indata!B131*Kalkylvärden!$B$214+(Indata!B105+Indata!B106)*Kalkylvärden!$B$19*Indata!B132*Kalkylvärden!$D$214+(Indata!B105+Indata!B106)*Kalkylvärden!$B$19*Indata!B133*Kalkylvärden!$F$214+(Indata!B105+Indata!B106)*Kalkylvärden!$B$19*Indata!B134*Kalkylvärden!$H$214)*1/1000 -> 0
B214: =((Indata!B105+Indata!B106)*Kalkylvärden!$B$19*Indata!B131*Kalkylvärden!$B$215+(Indata!B105+Indata!B106)*Kalkylvärden!$B$19*Indata!B132*Kalkylvärden!$D$215+(Indata!B105+Indata!B106)*Kalkylvärden!$B$19*Indata!B133*Kalkylvärden!$F$215+(Indata!B105+Indata!B106)*Kalkylvärden!$B$19*Indata!B134*Kalkylvärden!$H$215)*1/1000 -> 0
A215: koldioxid, CO2 | B215: =((Indata!B105+Indata!B106)*Kalkylvärden!$B$19*Indata!B131*Kalkylvärden!$B$216+(Indata!B105+Indata!B106)*Kalkylvärden!$B$19*Indata!B132*Kalkylvärden!$D$216+(Indata!B105+Indata!B106)*Kalkylvärden!$B$19*Indata!B133*Kalkylvärden!$F$216+(Indata!B105+Indata!B106)*Kalkylvärden!$B$19*Indata!B134*Kalkylvärden!$H$216)*1/1000 -> 0
A216: avgaspartiklar, PM 3,5 | B216: =((Indata!B105+Indata!B106)*Kalkylvärden!$B$19*Indata!B131*Kalkylvärden!$B$217+(Indata!B105+Indata!B106)*Kalkylvärden!$B$19*Indata!B132*Kalkylvärden!$D$217+(Indata!B105+Indata!B106)*Kalkylvärden!$B$19*Indata!B133*Kalkylvärden!$F$217+(Indata!B105+Indata!B106)*Kalkylvärden!$B$19*Indata!B134*Kalkylvärden!$H$217)*1/1000 -> 0
A217: slitagepartiklar, PM 10 | B217: =((Indata!B105+Indata!B106)*Kalkylvärden!$B$19*Indata!B131*Kalkylvärden!$B$218+(Indata!B105+Indata!B106)*Kalkylvärden!$B$19*Indata!B132*Kalkylvärden!$D$218+(Indata!B105+Indata!B106)*Kalkylvärden!$B$19*Indata!B133*Kalkylvärden!$F$218+(Indata!B105+Indata!B106)*Kalkylvärden!$B$19*Indata!B134*Kalkylvärden!$H$218)*1/1000 -> 0
A218: Lastbil
A219: kväveoxider, NOx | B219: =((Indata!B108+Indata!B109)*Kalkylvärden!$B$19*Indata!B138*Kalkylvärden!$B$220+(Indata!B108+Indata!B109)*Kalkylvärden!$B$19*Indata!B139*Kalkylvärden!$D$220+(Indata!B108+Indata!B109)*Kalkylvärden!$B$19*Indata!B140*Kalkylvärden!$F$220+(Indata!B108+Indata!B109)*Kalkylvärden!$B$19*Indata!B141*Kalkylvärden!$H$220)*1/1000 -> 0
B220: =((Indata!B108+Indata!B109)*Kalkylvärden!$B$19*Indata!B138*Kalkylvärden!$B$221+(Indata!B108+Indata!B109)*Kalkylvärden!$B$19*Indata!B139*Kalkylvärden!$D$221+(Indata!B108+Indata!B109)*Kalkylvärden!$B$19*Indata!B140*Kalkylvärden!$F$221+(Indata!B108+Indata!B109)*Kalkylvärden!$B$19*Indata!B141*Kalkylvärden!$H$221)*1/1000 -> 0
A221: koldioxid, CO2 | B221: =((Indata!B108+Indata!B109)*Kalkylvärden!$B$19*Indata!B138*Kalkylvärden!$B$222+(Indata!B108+Indata!B109)*Kalkylvärden!$B$19*Indata!B139*Kalkylvärden!$D$222+(Indata!B108+Indata!B109)*Kalkylvärden!$B$19*Indata!B140*Kalkylvärden!$F$222+(Indata!B108+Indata!B109)*Kalkylvärden!$B$19*Indata!B141*Kalkylvärden!$H$222)*1/1000 -> 0
A222: avgaspartiklar, PM 3,5 | B222: =((Indata!B108+Indata!B109)*Kalkylvärden!$B$19*Indata!B138*Kalkylvärden!$B$223+(Indata!B108+Indata!B109)*Kalkylvärden!$B$19*Indata!B139*Kalkylvärden!$D$223+(Indata!B108+Indata!B109)*Kalkylvärden!$B$19*Indata!B140*Kalkylvärden!$F$223+(Indata!B108+Indata!B109)*Kalkylvärden!$B$19*Indata!B141*Kalkylvärden!$H$223)*1/1000 -> 0
A223: slitagepartiklar, PM 10 | B223: =((Indata!B108+Indata!B109)*Kalkylvärden!$B$19*Indata!B138*Kalkylvärden!$B$224+(Indata!B108+Indata!B109)*Kalkylvärden!$B$19*Indata!B139*Kalkylvärden!$D$224+(Indata!B108+Indata!B109)*Kalkylvärden!$B$19*Indata!B140*Kalkylvärden!$F$224+(Indata!B108+Indata!B109)*Kalkylvärden!$B$19*Indata!B141*Kalkylvärden!$H$224)*1/1000 -> 0
A225: varav vid omledning | B225: Summa
... 43 more rows

Sheet Ekonomi
A1: Effekter i monetära termer (mkr/år för startåret)
A5: Trafiksäkerhet
A6: Ett positivt tal indikerar en nytta och ett negativt tal indikerar en ökad samhällskostnad (negativ nytta).
A8: Notera: I ett första steg värderas nivån på de förändrade trafiksäkerhetskostnaderna. I samhällsekonomin skall emellertid endast den externa effekten (dvs total kostnad minus den del bilister m.fl. redan har betalat för via skatter och dylikt) vara med.
A9: I ett andra steg beräknas således den externa kostnaden utifrån internaliseringsgraden. För närmare beskrivning - se ASEK.
B11: JA1 | C11: JA2 | D11: UA1
A12: Korsningens namn: | B12: =Indata!B61 -> 0 | C12: =Indata!C61 -> 0 | D12: =Indata!D61 -> 0
A13: I korsningen
A14: Dödade per år (mkr/år) | B14: =Kvantiteter!B36*Kalkylvärden!$D24*1/10^6 -> 0 | C14: =Kvantiteter!C36*Kalkylvärden!$D24*1/10^6 -> 0 | D14: =Kvantiteter!D36*Kalkylvärden!$D24*1/10^6 -> 0
A15: Mycket allvarligt skadad (MAS) (mkr/år) | B15: =Kvantiteter!B37*Kalkylvärden!$D25*1/10^6 -> 0 | C15: =Kvantiteter!C37*Kalkylvärden!$D25*1/10^6 -> 0 | D15: =Kvantiteter!D37*Kalkylvärden!$D25*1/10^6 -> 0
A16: Allvarligt skadad (AS-MAS) (mkr/år) | B16: =Kvantiteter!B38*Kalkylvärden!$D26*1/10^6 -> 0 | C16: =Kvantiteter!C38*Kalkylvärden!$D26*1/10^6 -> 0 | D16: =Kvantiteter!D38*Kalkylvärden!$D26*1/10^6 -> 0
A17: Ej allvarligt skadad (EAS) (mkr/år) | B17: =Kvantiteter!B39*Kalkylvärden!$D27*1/10^6 -> 0 | C17: =Kvantiteter!C39*Kalkylvärden!$D27*1/10^6 -> 0 | D17: =Kvantiteter!D39*Kalkylvärden!$D27*1/10^6 -> 0
A18: Olyckor med bara materiella skador per år (mkr/år) | B18: =Kvantiteter!B40*Kalkylvärden!$D28*1/10^6 -> 0 | C18: =Kvantiteter!C40*Kalkylvärden!$D28*1/10^6 -> 0 | D18: =Kvantiteter!D40*Kalkylvärden!$D28*1/10^6 -> 0
A20: Vid omledning
A21: Från korsning | B21: =Indata!B102 -> b
A22: Till korsning | B22: =Indata!B103 -> a
A23: Dödade per år (mkr/år) | B23: =(Kvantiteter!B69+Kvantiteter!B70)*Kalkylvärden!$D24*1/10^6 -> 0
A24: Mycket allvarligt skadad (MAS) (mkr/år) | B24: =(Kvantiteter!B72+Kvantiteter!B73)*Kalkylvärden!$D25*1/10^6 -> 0
A25: Allvarligt skadad (AS-MAS) (mkr/år) | B25: =(Kvantiteter!B75+Kvantiteter!B76)*Kalkylvärden!$D26*1/10^6 -> 0
A26: Ej allvarligt skadad (EAS) (mkr/år) | B26: =(Kvantiteter!B78+Kvantiteter!B79)*Kalkylvärden!$D27*1/10^6 -> 0
A27: Olyckor med bara materiella skador per år (mkr/år) | B27: =(Kvantiteter!B81+Kvantiteter!B82)*Kalkylvärden!$D28*1/10^6 -> 0
A28: Cykelolyckor (mkr/år) | B28: =Kvantiteter!B84*Kalkylvärden!$B$78 -> 0 | C28: =Kvantiteter!C84*Kalkylvärden!$B$78 -> 0
A30: Totala effekter (nivå, mkr/år)
A31: Summa JA i korsning | B31: =SUM(B14:C19) -> 0
A32: Summa UA i korsning | B32: =SUM(D14:D19) -> 0
A33: Summa omledning för Pb/Lb (UA) | B33: =SUM(B23:B27) -> 0
A34: Summa omledning för G/C (UA) | B34: =SUM(B28:B28) -> 0
A35: SEK kostnader UA-JA (mkr/år) | B35: =B32+B33+B34-B31 -> 0 | D35: Positivt sluttal = Högre kostnad i UA än i JA!
A37: Extern kostnad för Trafiksäkerhetseffekterna
A38: Ovan har trafiksäkerhetskostnaderna beräknats för JA och UA. I denna modell beräknar vi endast med den del som inte är "internaliserad" via bränsleskatter och dylikt (dvs den del av TS-kostnaderna som vägtrafikanter inte betalat för via skatten). Detta har ett samband med
A39: posten "Budgeteffekter", som ofta finns med i samhällsekonomiska kalkyler men som faller bort i denna modell eftersom vi har en "nettoansats" där olika saker kvittats mot varandra. Nedan så beräknas den andel av ovanstående kostnader som utgör den "externa" kostnaden.
A41: Bil och lastbilsandelar
A42: Andel Pb av ÅDT | B42: =SUM(Indata!B65:'Indata'!C66)/SUM(Indata!B71:'Indata'!C72) -> 
A43: Andel Lb av ÅDT | B43: =SUM(Indata!B68:'Indata'!C69)/SUM(Indata!B71:'Indata'!C72) -> 
A44: Viktad internaliseringsgrad | B44: =B42*Kalkylvärden!$E$5+Ekonomi!B43*Kalkylvärden!$E$6 -> 
A46: Summa JA i korsning | B46: =B31*B44 ->  | C46: mkr/år
A47: Summa UA i korsning | B47: =B32*B44 ->  | C47: mkr/år
A48: Summa omledning för Pb/Lb (UA) | B48: =B33*B44 ->  | C48: mkr/år
A49: Summa omledning för G/C (UA) | B49: =B34 -> 0
A50: SEK TS-kostnad, extern del (UA-JA) | B50: =(B47+B48+B49)-B46 ->  | C50: mkr/år
C52: Positivt sluttal = Högre kostnad i UA än i JA!
A53: Tidskostnader
A55: Tidskostnader för personer
A56: Här avses tidskostnader förchaufförer och passagerar i bilar/lastbilar samt för cyklister och gående. Antalet fordon per typ viktas ihop med antal personer per fordonstyp och tidsvärde per transportslag.
A58: I korsningen
B59: JA1 | C59: JA2 | D59: UA1
A60: Korsningens namn: | B60: =Indata!B61 -> 0 | C60: =Indata!C61 -> 0 | D60: =Indata!D61 -> 0
A61: Bakom bom
A62: Personbilar (mkr/år) | B62: =(Kvantiteter!B98+Kvantiteter!B99)*Kalkylvärden!$B$109*Kalkylvärden!$D$45*1/10^6 -> 0 | C62: =(Kvantiteter!C98+Kvantiteter!C99)*Kalkylvärden!$B$109*Kalkylvärden!$D$45*1/10^6 -> 0 | D62: =(Kvantiteter!D98+Kvantiteter!D99)*Kalkylvärden!$B$109*Kalkylvärden!$D$45*1/10^6 -> 0
A63: Lastbilar (mkr/år) | B63: =(Kvantiteter!B100+Kvantiteter!B101)*Kalkylvärden!$B$112*Kalkylvärden!$B$54*1/10^6 -> 0 | C63: =(Kvantiteter!C100+Kvantiteter!C101)*Kalkylvärden!$B$112*Kalkylvärden!$B$54*1/10^6 -> 0 | D63: =(Kvantiteter!D100+Kvantiteter!D101)*Kalkylvärden!$B$112*Kalkylvärden!$B$54*1/10^6 -> 0
A64: Cyklar (mkr/år) | B64: =(Kvantiteter!B102+Kvantiteter!B103)*Kalkylvärden!$B$113*Kalkylvärden!$D$48*1/10^6 -> 0 | C64: =(Kvantiteter!C102+Kvantiteter!C103)*Kalkylvärden!$B$113*Kalkylvärden!$D$48*1/10^6 -> 0 | D64: =(Kvantiteter!D102+Kvantiteter!D103)*Kalkylvärden!$B$113*Kalkylvärden!$D$48*1/10^6 -> 0
A65: Gående (mkr/år) | B65: =(Kvantiteter!B104+Kvantiteter!B105)*Kalkylvärden!$D$53*1/10^6 -> 0 | C65: =(Kvantiteter!C104+Kvantiteter!C105)*Kalkylvärden!$D$53*1/10^6 -> 0 | D65: =(Kvantiteter!D104+Kvantiteter!D105)*Kalkylvärden!$D$53*1/10^6 -> 0
A66: Vid fri passage av korsningen
A67: Personbilar (mkr/år) | B67: =(Kvantiteter!B107+Kvantiteter!B108)*Kalkylvärden!$B$109*Kalkylvärden!$D$45*1/10^6 ->  | C67: =(Kvantiteter!C107+Kvantiteter!C108)*Kalkylvärden!$B$109*Kalkylvärden!$D$45*1/10^6 ->  | D67: =(Kvantiteter!D107+Kvantiteter!D108)*Kalkylvärden!$B$109*Kalkylvärden!$D$45*1/10^6 -> 
A68: Lastbilar (mkr/år) | B68: =(Kvantiteter!B109+Kvantiteter!B110)*Kalkylvärden!$B$112*Kalkylvärden!$B$54*1/10^6 ->  | C68: =(Kvantiteter!C109+Kvantiteter!C110)*Kalkylvärden!$B$112*Kalkylvärden!$B$54*1/10^6 ->  | D68: =(Kvantiteter!D109+Kvantiteter!D110)*Kalkylvärden!$B$112*Kalkylvärden!$B$54*1/10^6 -> 
A70: Vid omledning
A71: Från korsning | B71: =Kvantiteter!B125 -> b
A72: Till korsning | B72: =Kvantiteter!B126 -> a
A73: Personbilar | B73: =Kvantiteter!B127*Kalkylvärden!$B$109*Kalkylvärden!$D$45*1/10^6 -> 0
A74: Lastbilar | B74: =Kvantiteter!B128*Kalkylvärden!$B$112*Kalkylvärden!$B$54*1/10^6 -> 0
A75: Cyklister | B75: =Kvantiteter!B129*Kalkylvärden!$B$113*Kalkylvärden!$D$48*1/10^6 -> 0
A76: Gående | B76: =Kvantiteter!B130*Kalkylvärden!$D$53*1/10^6 -> 0
A78: Summa JA för Pb/Lb, i korsning | B78: =SUM(B62:C63)+SUM(B67:C68) -> 
A79: Summa JA för G/C, i korsning | B79: =SUM(B64:C65) -> 0
A80: Summa UA för Pb/Lb, i korsning | B80: =SUM(D62:D63)+SUM(D67:D68) -> 
A81: Summa UA för G/C, i korsning | B81: =SUM(D64:D65) -> 0
A82: Summa omledning för Pb/Lb (UA) | B82: =SUM(B73:B74) -> 0
A83: Summa omledning för G/C (UA) | B83: =SUM(B75:B76) -> 0
A84: SEK tidskostnad för personer (UA-JA) | B84: =B80+B81+B82+B83-B78-B79 ->  | E84: Positivt sluttal = Högre kostnad i UA än i JA!
A86: Tidskostnader för godset
A87: Här avses tidskostnaden för godset. Detta värde har via räntan en koppling till kapitalbindningen (varuvärdet) under själva transporten.
B88: JA1 | C88: JA2 | D88: UA1
A89: Korsningens namn: | B89: =Indata!B61 -> 0 | C89: =Indata!C61 -> 0 | D89: =Indata!D61 -> 0
A90: Bakom bom
A91: Lastbil | B91: =(Kvantiteter!B100+Kvantiteter!B101)*Kalkylvärden!$B$251*Kalkylvärden!$D$61*1/10^6 -> 0 | C91: =(Kvantiteter!C100+Kvantiteter!C101)*Kalkylvärden!$B$251*Kalkylvärden!$D$61*1/10^6 -> 0 | D91: =(Kvantiteter!D100+Kvantiteter!D101)*Kalkylvärden!$B$251*Kalkylvärden!$D$61*1/10^6 -> 0
A92: Vid fri passage av korsningen
A93: Lastbil | B93: =(Kvantiteter!B109+Kvantiteter!B110)*Kalkylvärden!$B$251*Kalkylvärden!$D$61*1/10^6 ->  | C93: =(Kvantiteter!C109+Kvantiteter!C110)*Kalkylvärden!$B$251*Kalkylvärden!$D$61*1/10^6 ->  | D93: =(Kvantiteter!D109+Kvantiteter!D110)*Kalkylvärden!$B$251*Kalkylvärden!$D$61*1/10^6 -> 
A94: Vid omledning
A95: Från korsning | B95: =Indata!B102 -> b
A96: Till korsning | B96: =Indata!B103 -> a
A97: Lastbil | B97: =Kvantiteter!B128*Kalkylvärden!$B$251*Kalkylvärden!$D$61*1/10^6 -> 0
A99: Summa JA, i korsning | B99: =SUM(B91:C93) -> 
A100: Summa UA, i korsning | B100: =SUM(D91:D93) -> 
A101: Summa omledning (UA) | B101: =SUM(B97:B97) -> 0
A102: SEK tidskostnad för gods (UA-JA) | B102: =(B100+B101)-B99 -> 
A106: Fordonskostnader
A107: Under denna rubrik beräknas alla rörliga (dvs köravståndsberoende) kostnader exklusive tidskostnaden för förare och passagerare. Blanda inte ihop termen köravståndsberoende med avståndsberoende kostnad, som ofta används vid samhällsekonomiska beräkningar.
A108: Ingår: Drivmedel, däckkostnad, reparation (arbetstid), komponentförslitning (dvs fordonsslitage), värdeminskning och kapitalkostnad.
B110: JA1 | C110: JA2 | D110: UA1
A111: Korsningens namn: | B111: =Indata!B61 -> 0 | C111: =Indata!C61 -> 0 | D111: =Indata!D61 -> 0
A112: Bakom bom
A113: Personbilar | B113: =IF(OR(Indata!B62=0,Indata!B62=5),0,(Kvantiteter!B11+Kvantiteter!B12)*Kalkylvärden!$B$19*INDIRECT("Kalkylvärden!R158" & "C" & (Indata!B83 +1),FALSE)*1/10^6) -> 0 | C113: =IF(OR(Indata!C62=0,Indata!C62=5),0,(Kvantiteter!C11+Kvantiteter!C12)*Kalkylvärden!$B$19*INDIRECT("Kalkylvärden!R158" & "C" & (Indata!C83 +1),FALSE)*1/10^6) -> 0 | D113: =IF(OR(Indata!D62=0,Indata!D62=5),0,(Kvantiteter!D11+Kvantiteter!D12)*Kalkylvärden!$B$19*INDIRECT("Kalkylvärden!R158" & "C" & (Indata!D83 +1),FALSE)*1/10^6) -> 0
A114: Lastbilar | B114: =IF(OR(Indata!B62=0,Indata!B62=5),0,(Kvantiteter!B13+Kvantiteter!B14)*Kalkylvärden!$B$19*INDIRECT("Kalkylvärden!R159" & "C" & (Indata!B83 +1),FALSE)*1/10^6) -> 0 | C114: =IF(OR(Indata!C62=0,Indata!C62=5),0,(Kvantiteter!C13+Kvantiteter!C14)*Kalkylvärden!$B$19*INDIRECT("Kalkylvärden!R159" & "C" & (Indata!C83 +1),FALSE)*1/10^6) -> 0 | D114: =IF(OR(Indata!D62=0,Indata!D62=5),0,(Kvantiteter!D13+Kvantiteter!D14)*Kalkylvärden!$B$19*INDIRECT("Kalkylvärden!R159" & "C" & (Indata!D83 +1),FALSE)*1/10^6) -> 0
A115: Vid fri passage av korsningen
A116: Personbilar (mkr/år) | B116: =(Kvantiteter!B20+Kvantiteter!B21)*Kalkylvärden!$B$19*(INDIRECT("Kalkylvärden!R158C" & (Indata!B83+1),FALSE )-INDIRECT("kalkylvärden!R158C"&(Indata!B84+1),FALSE))*1/10^6 ->  | C116: =(Kvantiteter!C20+Kvantiteter!C21)*Kalkylvärden!$B$19*(INDIRECT("Kalkylvärden!R158C" & (Indata!C83+1),FALSE )-INDIRECT("kalkylvärden!R158C"&(Indata!C84+1),FALSE))*1/10^6 ->  | D116: =(Kvantiteter!D20+Kvantiteter!D21)*Kalkylvärden!$B$19*(INDIRECT("Kalkylvärden!R158C" & (Indata!D83+1),FALSE )-INDIRECT("kalkylvärden!R158C"&(Indata!D84+1),FALSE))*1/10^6 -> 
A117: Lastbilar (mkr/år) | B117: =(Kvantiteter!B22+Kvantiteter!B23)*Kalkylvärden!$B$19*(INDIRECT("Kalkylvärden!R159C" & (Indata!B83+1),FALSE )-INDIRECT("kalkylvärden!R159C"&(Indata!B84+1),FALSE))*1/10^6 ->  | C117: =(Kvantiteter!C22+Kvantiteter!C23)*Kalkylvärden!$B$19*(INDIRECT("Kalkylvärden!R159C" & (Indata!C83+1),FALSE )-INDIRECT("kalkylvärden!R159C"&(Indata!C84+1),FALSE))*1/10^6 ->  | D117: =(Kvantiteter!D22+Kvantiteter!D23)*Kalkylvärden!$B$19*(INDIRECT("Kalkylvärden!R159C" & (Indata!D83+1),FALSE )-INDIRECT("kalkylvärden!R159C"&(Indata!D84+1),FALSE))*1/10^6 -> 
A118: Vid omledning
A119: Från korsning | B119: =Indata!B102 -> b
A120: Till korsning | B120: =Indata!B103 -> a
A121: Personbilar (mkr/år) | B121: =((Indata!B105+Indata!B106)*Kalkylvärden!$B$19*Indata!B131*Kalkylvärden!$B$207+(Indata!B105+Indata!B106)*Kalkylvärden!$B$19*Indata!B132*Kalkylvärden!$D$207+(Indata!B105+Indata!B106)*Kalkylvärden!$B$19*Indata!B133*Kalkylvärden!$F$207+(Indata!B105+Indata!B106)*Kalkylvärden!$B$19*Indata!B134*Kalkylvärden!$H$207)*1/10^6 -> 0
A122: Lastbilar (mkr/år) | B122: =((Indata!B108+Indata!B109)*Kalkylvärden!$B$19*Indata!B138*Kalkylvärden!$B$208+(Indata!B108+Indata!B109)*Kalkylvärden!$B$19*Indata!B139*Kalkylvärden!$D$208+(Indata!B108+Indata!B109)*Kalkylvärden!$B$19*Indata!B140*Kalkylvärden!$F$208+(Indata!B108+Indata!B109)*Kalkylvärden!$B$19*Indata!B141*Kalkylvärden!$H$208)*1/10^6 -> 0
A123: Cyklar (mkr/år) | B123: =Indata!B145*(Indata!B114+Indata!B115)*Kalkylvärden!$B$19*Kalkylvärden!$B$73*1/10^6 -> 0
A125: Pb i korsning (UA-JA) | B125: =SUM(D113:D113,D116:D116)-SUM(B113:C113,B116:C116) -> 
A126: Lb i korsning (UA-JA) | B126: =SUM(D114:D114,D117:D117)-SUM(B114:C114,B117:C117) -> 
A127: Pb vid omledning (UA) | B127: =SUM(B121:B121) -> 0
A128: Lb vid omledning (UA) | B128: =SUM(B122:B122) -> 0
A129: Cykel vid omledning (UA) | B129: =SUM(B123:B123) -> 0
A131: Summa JA, i korsning | B131: =SUM(B113:C117) -> 
A132: Summa UA, i korsning | B132: =SUM(D113:D117) -> 
A133: Summa omledning för Pb/Lb (UA) | B133: =SUM(B121:B122) -> 0
A134: SEK fordonskostnader (UA-JA) | B134: =(B133+B132+B129)-B131 -> 
A137: Emissioner
A139: Notera: I ett första steg värderas nivån på de förändrade kostnaderna för emissioner. I samhällsekonomin skall emellertid endast den externa effekten (dvs total kostnad minus den del bilister m.fl. redan har betalat för via skatter och dylikt) vara med.
A140: I ett andra steg beräknas således den externa kostnaden utifrån internaliseringsgraden. För närmare beskrivning - se ASEK.
B142: JA1 | C142: JA2 | D142: UA1
A143: Korsningens namn: | B143: =Indata!B61 -> 0 | C143: =Indata!C61 -> 0 | D143: =Indata!D61 -> 0
A144: Bakom bom (mkr/år)
A145: Personbil
A146: kväveoxider, NOx | B146: =Kvantiteter!B165*Kalkylvärden!$B$32*1/10^6 -> 0 | C146: =Kvantiteter!C165*Kalkylvärden!$B$32*1/10^6 -> 0 | D146: =Kvantiteter!D165*Kalkylvärden!$B$32*1/10^6 -> 0
B147: =Kvantiteter!B166*Kalkylvärden!$B$33*1/10^6 -> 0 | C147: =Kvantiteter!C166*Kalkylvärden!$B$33*1/10^6 -> 0 | D147: =Kvantiteter!D166*Kalkylvärden!$B$33*1/10^6 -> 0
A148: koldioxid, CO2 | B148: =Kvantiteter!B167*Kalkylvärden!$B$34*1/10^6 -> 0 | C148: =Kvantiteter!C167*Kalkylvärden!$B$34*1/10^6 -> 0 | D148: =Kvantiteter!D167*Kalkylvärden!$B$34*1/10^6 -> 0
A149: avgaspartiklar, PM 3,5 | B149: =Kvantiteter!B168*Kalkylvärden!$B$35*1/10^6 -> 0 | C149: =Kvantiteter!C168*Kalkylvärden!$B$35*1/10^6 -> 0 | D149: =Kvantiteter!D168*Kalkylvärden!$B$35*1/10^6 -> 0
A150: slitagepartiklar, PM 10 | B150: =Kvantiteter!B169*Kalkylvärden!$B$36*1/10^6 -> 0 | C150: =Kvantiteter!C169*Kalkylvärden!$B$36*1/10^6 -> 0 | D150: =Kvantiteter!D169*Kalkylvärden!$B$36*1/10^6 -> 0
A151: Lastbil
A152: kväveoxider, NOx | B152: =Kvantiteter!B171*Kalkylvärden!$B$32*1/10^6 -> 0 | C152: =Kvantiteter!C171*Kalkylvärden!$B$32*1/10^6 -> 0 | D152: =Kvantiteter!D171*Kalkylvärden!$B$32*1/10^6 -> 0
B153: =Kvantiteter!B172*Kalkylvärden!$B$33*1/10^6 -> 0 | C153: =Kvantiteter!C172*Kalkylvärden!$B$33*1/10^6 -> 0 | D153: =Kvantiteter!D172*Kalkylvärden!$B$33*1/10^6 -> 0
A154: koldioxid, CO2 | B154: =Kvantiteter!B173*Kalkylvärden!$B$34*1/10^6 -> 0 | C154: =Kvantiteter!C173*Kalkylvärden!$B$34*1/10^6 -> 0 | D154: =Kvantiteter!D173*Kalkylvärden!$B$34*1/10^6 -> 0
A155: avgaspartiklar, PM 3,5 | B155: =Kvantiteter!B174*Kalkylvärden!$B$35*1/10^6 -> 0 | C155: =Kvantiteter!C174*Kalkylvärden!$B$35*1/10^6 -> 0 | D155: =Kvantiteter!D174*Kalkylvärden!$B$35*1/10^6 -> 0
A156: slitagepartiklar, PM 10 | B156: =Kvantiteter!B175*Kalkylvärden!$B$36*1/10^6 -> 0 | C156: =Kvantiteter!C175*Kalkylvärden!$B$36*1/10^6 -> 0 | D156: =Kvantiteter!D175*Kalkylvärden!$B$36*1/10^6 -> 0
A158: Vid fri passage av korsningen (mkr/år)
A159: Personbil
A160: kväveoxider, NOx | B160: =Kvantiteter!B178*Kalkylvärden!$B$32*1/10^6 ->  | C160: =Kvantiteter!C178*Kalkylvärden!$B$32*1/10^6 ->  | D160: =Kvantiteter!D178*Kalkylvärden!$B$32*1/10^6 -> 
B161: =Kvantiteter!B179*Kalkylvärden!$B$33*1/10^6 ->  | C161: =Kvantiteter!C179*Kalkylvärden!$B$33*1/10^6 ->  | D161: =Kvantiteter!D179*Kalkylvärden!$B$33*1/10^6 -> 
A162: koldioxid, CO2 | B162: =Kvantiteter!B180*Kalkylvärden!$B$34*1/10^6 ->  | C162: =Kvantiteter!C180*Kalkylvärden!$B$34*1/10^6 ->  | D162: =Kvantiteter!D180*Kalkylvärden!$B$34*1/10^6 -> 
A163: avgaspartiklar, PM 3,5 | B163: =Kvantiteter!B181*Kalkylvärden!$B$35*1/10^6 ->  | C163: =Kvantiteter!C181*Kalkylvärden!$B$35*1/10^6 ->  | D163: =Kvantiteter!D181*Kalkylvärden!$B$35*1/10^6 -> 
A164: slitagepartiklar, PM 10 | B164: =Kvantiteter!B182*Kalkylvärden!$B$36*1/10^6 ->  | C164: =Kvantiteter!C182*Kalkylvärden!$B$36*1/10^6 ->  | D164: =Kvantiteter!D182*Kalkylvärden!$B$36*1/10^6 -> 
A165: Lastbil
A166: kväveoxider, NOx | B166: =Kvantiteter!B184*Kalkylvärden!$B$32*1/10^6 ->  | C166: =Kvantiteter!C184*Kalkylvärden!$B$32*1/10^6 ->  | D166: =Kvantiteter!D184*Kalkylvärden!$B$32*1/10^6 -> 
B167: =Kvantiteter!B185*Kalkylvärden!$B$33*1/10^6 ->  | C167: =Kvantiteter!C185*Kalkylvärden!$B$33*1/10^6 ->  | D167: =Kvantiteter!D185*Kalkylvärden!$B$33*1/10^6 -> 
A168: koldioxid, CO2 | B168: =Kvantiteter!B186*Kalkylvärden!$B$34*1/10^6 ->  | C168: =Kvantiteter!C186*Kalkylvärden!$B$34*1/10^6 ->  | D168: =Kvantiteter!D186*Kalkylvärden!$B$34*1/10^6 -> 
A169: avgaspartiklar, PM 3,5 | B169: =Kvantiteter!B187*Kalkylvärden!$B$35*1/10^6 ->  | C169: =Kvantiteter!C187*Kalkylvärden!$B$35*1/10^6 ->  | D169: =Kvantiteter!D187*Kalkylvärden!$B$35*1/10^6 -> 
A170: slitagepartiklar, PM 10 | B170: =Kvantiteter!B188*Kalkylvärden!$B$36*1/10^6 ->  | C170: =Kvantiteter!C188*Kalkylvärden!$B$36*1/10^6 ->  | D170: =Kvantiteter!D188*Kalkylvärden!$B$36*1/10^6 -> 
A172: Från korsning | B172: =Indata!B102 -> b
A173: Till korsning | B173: =Indata!B103 -> a
A174: Vid omledning (mkr/år)
A175: Personbil
A176: kväveoxider, NOx | B176: =Kvantiteter!B213*Kalkylvärden!$B$32*1/10^6 -> 0
B177: =Kvantiteter!B214*Kalkylvärden!$B$33*1/10^6 -> 0
A178: koldioxid, CO2 | B178: =Kvantiteter!B215*Kalkylvärden!$B$34*1/10^6 -> 0
A179: avgaspartiklar, PM 3,5 | B179: =Kvantiteter!B216*Kalkylvärden!$B$35*1/10^6 -> 0
A180: slitagepartiklar, PM 10 | B180: =Kvantiteter!B217*Kalkylvärden!$B$36*1/10^6 -> 0
A181: Lastbil
A182: kväveoxider, NOx | B182: =Kvantiteter!B219*Kalkylvärden!$B$32*1/10^6 -> 0
B183: =Kvantiteter!B220*Kalkylvärden!$B$33*1/10^6 -> 0
A184: koldioxid, CO2 | B184: =Kvantiteter!B221*Kalkylvärden!$B$34*1/10^6 -> 0
A185: avgaspartiklar, PM 3,5 | B185: =Kvantiteter!B222*Kalkylvärden!$B$35*1/10^6 -> 0
A186: slitagepartiklar, PM 10 | B186: =Kvantiteter!B223*Kalkylvärden!$B$36*1/10^6 -> 0
B189: Summa JA | C189: Summa UA
A190: Summa emissioner (mkr/år)
A191: kväveoxider, NOx | B191: =Kvantiteter!B191*Kalkylvärden!$B$32*1/10^6 ->  | C191: =Kvantiteter!C191*Kalkylvärden!$B$32*1/10^6 -> 
B192: =Kvantiteter!B192*Kalkylvärden!$B$33*1/10^6 ->  | C192: =Kvantiteter!C192*Kalkylvärden!$B$33*1/10^6 -> 
A193: koldioxid, CO2 | B193: =Kvantiteter!B193*Kalkylvärden!$B$34*1/10^6 ->  | C193: =Kvantiteter!C193*Kalkylvärden!$B$34*1/10^6 -> 
A194: avgaspartiklar, PM 3,5 | B194: =Kvantiteter!B194*Kalkylvärden!$B$35*1/10^6 ->  | C194: =Kvantiteter!C194*Kalkylvärden!$B$35*1/10^6 -> 
A195: slitagepartiklar, PM 10 | B195: =Kvantiteter!B195*Kalkylvärden!$B$36*1/10^6 ->  | C195: =Kvantiteter!C195*Kalkylvärden!$B$36*1/10^6 -> 
A196: varav bakom bom
A197: kväveoxider, NOx | B197: =Kvantiteter!B197*Kalkylvärden!$B$32*1/10^6 -> 0 | C197: =Kvantiteter!C197*Kalkylvärden!$B$32*1/10^6 -> 0
B198: =Kvantiteter!B198*Kalkylvärden!$B$33*1/10^6 -> 0 | C198: =Kvantiteter!C198*Kalkylvärden!$B$33*1/10^6 -> 0
A199: koldioxid, CO2 | B199: =Kvantiteter!B199*Kalkylvärden!$B$34*1/10^6 -> 0 | C199: =Kvantiteter!C199*Kalkylvärden!$B$34*1/10^6 -> 0
A200: avgaspartiklar, PM 3,5 | B200: =Kvantiteter!B200*Kalkylvärden!$B$35*1/10^6 -> 0 | C200: =Kvantiteter!C200*Kalkylvärden!$B$35*1/10^6 -> 0
A201: slitagepartiklar, PM 10 | B201: =Kvantiteter!B201*Kalkylvärden!$B$36*1/10^6 -> 0 | C201: =Kvantiteter!C201*Kalkylvärden!$B$36*1/10^6 -> 0
A202: varav vid fri passage av korsning
A203: kväveoxider, NOx | B203: =Kvantiteter!B203*Kalkylvärden!$B$32*1/10^6 ->  | C203: =Kvantiteter!C203*Kalkylvärden!$B$32*1/10^6 -> 
B204: =Kvantiteter!B204*Kalkylvärden!$B$33*1/10^6 ->  | C204: =Kvantiteter!C204*Kalkylvärden!$B$33*1/10^6 -> 
A205: koldioxid, CO2 | B205: =Kvantiteter!B205*Kalkylvärden!$B$34*1/10^6 ->  | C205: =Kvantiteter!C205*Kalkylvärden!$B$34*1/10^6 -> 
A206: avgaspartiklar, PM 3,5 | B206: =Kvantiteter!B206*Kalkylvärden!$B$35*1/10^6 ->  | C206: =Kvantiteter!C206*Kalkylvärden!$B$35*1/10^6 -> 
A207: slitagepartiklar, PM 10 | B207: =Kvantiteter!B207*Kalkylvärden!$B$36*1/10^6 ->  | C207: =Kvantiteter!C207*Kalkylvärden!$B$36*1/10^6 -> 
A208: varav vid omledning | B208: Summa omledningar
A209: kväveoxider, NOx | B209: =Kvantiteter!B226*Kalkylvärden!B32*1/10^6 -> 0
B210: =Kvantiteter!B227*Kalkylvärden!B33*1/10^6 -> 0
A211: koldioxid, CO2 | B211: =Kvantiteter!B228*Kalkylvärden!B34*1/10^6 -> 0
A212: avgaspartiklar, PM 3,5 | B212: =Kvantiteter!B229*Kalkylvärden!B35*1/10^6 -> 0
A213: slitagepartiklar, PM 10 | B213: =Kvantiteter!B230*Kalkylvärden!B36*1/10^6 -> 0
A215: Skillnad (UA-JA) mkr/år
A216: kväveoxider, NOx | B216: =Kvantiteter!D191*Kalkylvärden!B32*1/10^6 -> 
B217: =Kvantiteter!D192*Kalkylvärden!B33*1/10^6 -> 
A218: koldioxid, CO2 | B218: =Kvantiteter!D193*Kalkylvärden!B34*1/10^6 -> 
A219: avgaspartiklar, PM 3,5 | B219: =Kvantiteter!D194*Kalkylvärden!B35*1/10^6 -> 
A220: slitagepartiklar, PM 10 | B220: =Kvantiteter!D195*Kalkylvärden!B36*1/10^6 -> 
A223: Extern kostnad för Emissionerna
A224: Ovan har emissionskostnaderna beräknats för JA och UA. I denna modell beräknar vi endast med den del som inte är "internaliserad" via bränsleskatter och dylikt (dvs den del av emissionskostnaderna som vägtrafikanter inte betalat för via skatten).
A225: Detta har ett samband med posten "Budgeteffekter", som ofta finns med i samhällsekonomiska kalkyler men som faller bort i denna modell eftersom vi har en "nettoansats" där olika saker kvittats mot varandra.
A226: Nedan så beräknas den andel av ovanstående kostnader som utgör den "externa" kostnaden.
A228: Bil och lastbilsandelar
A229: Andel Pb av ÅDT | B229: =B42 -> 
A230: Andel Lb av ÅDT | B230: =B43 -> 
A231: Viktad internaliseringsgrad | B231: =B44 -> 
B233: Summa JA | C233: Summa UA
A234: Summa emissioner (mkr/år)
A235: kväveoxider, NOx | B235: =B191*$B$231 ->  | C235: =C191*$B$231 -> 
B236: =B192*$B$231 -> 
... 36 more rows

Sheet Diskontering
A1: Diskontering av effekter till nuvärde
J2: Använda trafiktillväxter i modellen
J3: Trafiksäkerhet
A4: TRAFIKTILLVÄXTER | J4: I korsning | N4: väg*jvg*real BNP
A5: Personbilar och lastbilar | B5: % per år | J5: Vid omledning | N5: (väg*real BNP) samt (GC*real BNP)
A6: Trafiktillväxt 2017-2040 | B6: =Indata!B27 -> 2
A7: Trafiktillväxt 2041-2065 | B7: =Indata!B28 -> 0.5 | J7: Tidskostnader för: | N7: Gods | P7: Personer
A8: Tågtrafiken | J8: I korsning | N8: väg*jvg | P8: (väg*jvg) samt (GC*jvg)
A9: Trafiktillväxt 2019-2040 | B9: =(((Indata!B30/Indata!B29)^(1/(Kalkylvärden!B7-Kalkylvärden!B6)))-1)*100 -> 0 | J9: Vid omledning | N9: väg | P9: väg samt GC
A10: Trafiktillväxt 2041-2065 | B10: 0
A11: Gång- och cykeltrafik | J11: Fordonskostnader
A12: Trafiktillväxt 2017-2040 | B12: =Kalkylvärden!B97 -> 0.01 | J12: I korsning | N12: väg*jvg
A13: Trafiktillväxt 2041-2065 | B13: =Kalkylvärden!B98 -> 0.01 | J13: Vid omledning | N13: väg samt GC
A15: UPPRÄKNING MED "REAL BNP" | B15: % per år | J15: Trafiksäkerhetskostnader, extern kostnad
A16: Uppräkningsfaktor för betalningsviljepåverkade värden | B16: =Kalkylvärden!B13 -> 1.5 | J16: I korsning | N16: väg*jvg*real BNP
J17: Vid omledning | N17: (väg*real BNP) samt (GC*real BNP)
A18: DISKONTERINGFAKTOR
A19: Denna beskrivning följer manualen (och terminologin) till "Lönkalk, Handledning och Manual, Version 2.2". Där definieras följande: | J19: Emissioner, extern kostnad
J20: Bakom bom | N20: väg*jvg*real BNP
A21: Diskonteringsfaktor 1 år efter trafikstart: (1+diskonteringsränta)^(trafikstartsår-diskonteringsår+1) | J21: Vid fri passage av korsning | N21: väg*real BNP
A22: Diskonteringsnuvärde = (Trafiktillväxt/Diskonteringsfaktor) | J22: vid omledning | N22: väg*real BNP
J24: Vägslitage, extern kostnad
J25: Vid omledning | N25: väg
A27: År | B27: =Kalkylvärden!B6 -> 2025 | C27: =B27+1 -> 2026 | D27: =C27+1 -> 2027 | E27: 2028 | F27: 2029 | G27: 2030 | H27: 2031 | I27: 2032 | J27: 2033 | K27: 2034 | L27: 2035 | M27: 2036 | N27: 2037 | O27: 2038 | P27: 2039 | Q27: 2040 | R27: 2041 | S27: 2042 | T27: 2043 | U27: 2044 | V27: 2045 | W27: 2046 | X27: 2047 | Y27: 2048 | Z27: 2049 | AA27: 2050 | AB27: 2051 | AC27: 2052 | AD27: 2053 | AE27: 2054 | AF27: 2055 | AG27: 2056 | AH27: 2057 | AI27: 2058 | AJ27: 2059 | AK27: 2060 | AL27: 2061 | AM27: 2062 | AN27: 2063 | AO27: 2064 | AP27: 2065 | AQ27: 2066 | AR27: 2067 | AS27: 2068 | AT27: 2069 | AU27: 2070 | AV27: 2071 | AW27: 2072 | AX27: 2073 | AY27: 2074 | AZ27: 2075 | BA27: 2076 | BB27: 2077 | BC27: 2078 | BD27: 2079 | BE27: 2080 | BF27: 2081 | BG27: 2082 | BH27: 2083 | BI27: 2084 | BJ27: 2085 | BK27: 2086 | BL27: 2087 | BM27: 2088 | BN27: 2089 | BO27: 2090 | BP27: =BO27+1 -> 2091 | BQ27: 2092 | BR27: 2093 | BS27: 2094
A28: År (nr) | B28: 1 | C28: =B28+1 -> 2 | D28: 3 | E28: 4 | F28: 5 | G28: 6 | H28: 7 | I28: 8 | J28: 9 | K28: 10 | L28: 11 | M28: 12 | N28: 13 | O28: 14 | P28: 15 | Q28: 16 | R28: 17 | S28: 18 | T28: 19 | U28: 20 | V28: 21 | W28: 22 | X28: 23 | Y28: 24 | Z28: 25 | AA28: 26 | AB28: 27 | AC28: 28 | AD28: 29 | AE28: 30 | AF28: 31 | AG28: 32 | AH28: 33 | AI28: 34 | AJ28: 35 | AK28: 36 | AL28: 37 | AM28: 38 | AN28: 39 | AO28: 40 | AP28: 41 | AQ28: 42 | AR28: 43 | AS28: 44 | AT28: 45 | AU28: 46 | AV28: 47 | AW28: 48 | AX28: 49 | AY28: 50 | AZ28: 51 | BA28: 52 | BB28: 53 | BC28: 54 | BD28: 55 | BE28: 56 | BF28: 57 | BG28: 58 | BH28: 59 | BI28: 60 | BJ28: 61 | BK28: 62 | BL28: 63 | BM28: 64 | BN28: 65 | BO28: 66 | BP28: 67 | BQ28: 68 | BR28: 69 | BS28: 70
A29: Diskonteringsfaktor | B29: =(1+Kalkylvärden!$B$4/100)^(Diskontering!B28-1) -> 1 | C29: =(1+Kalkylvärden!$B$4/100)^(Diskontering!C28-1) -> 1.035 | D29: =(1+Kalkylvärden!$B$4/100)^(Diskontering!D28-1) -> 1.071225 | E29: =(1+Kalkylvärden!$B$4/100)^(Diskontering!E28-1) -> 1.108717875 | F29: =(1+Kalkylvärden!$B$4/100)^(Diskontering!F28-1) -> 1.147523001 | G29: =(1+Kalkylvärden!$B$4/100)^(Diskontering!G28-1) -> 1.187686306 | H29: =(1+Kalkylvärden!$B$4/100)^(Diskontering!H28-1) -> 1.229255326 | I29: =(1+Kalkylvärden!$B$4/100)^(Diskontering!I28-1) -> 1.272279263 | J29: =(1+Kalkylvärden!$B$4/100)^(Diskontering!J28-1) -> 1.316809037 | K29: =(1+Kalkylvärden!$B$4/100)^(Diskontering!K28-1) -> 1.362897353 | L29: =(1+Kalkylvärden!$B$4/100)^(Diskontering!L28-1) -> 1.410598761 | M29: =(1+Kalkylvärden!$B$4/100)^(Diskontering!M28-1) -> 1.459969717 | N29: =(1+Kalkylvärden!$B$4/100)^(Diskontering!N28-1) -> 1.511068657 | O29: =(1+Kalkylvärden!$B$4/100)^(Diskontering!O28-1) -> 1.56395606 | P29: =(1+Kalkylvärden!$B$4/100)^(Diskontering!P28-1) -> 1.618694522 | Q29: =(1+Kalkylvärden!$B$4/100)^(Diskontering!Q28-1) -> 1.675348831 | R29: =(1+Kalkylvärden!$B$4/100)^(Diskontering!R28-1) -> 1.73398604 | S29: =(1+Kalkylvärden!$B$4/100)^(Diskontering!S28-1) -> 1.794675551 | T29: =(1+Kalkylvärden!$B$4/100)^(Diskontering!T28-1) -> 1.857489196 | U29: =(1+Kalkylvärden!$B$4/100)^(Diskontering!U28-1) -> 1.922501317 | V29: =(1+Kalkylvärden!$B$4/100)^(Diskontering!V28-1) -> 1.989788863 | W29: =(1+Kalkylvärden!$B$4/100)^(Diskontering!W28-1) -> 2.059431474 | X29: =(1+Kalkylvärden!$B$4/100)^(Diskontering!X28-1) -> 2.131511575 | Y29: =(1+Kalkylvärden!$B$4/100)^(Diskontering!Y28-1) -> 2.20611448 | Z29: =(1+Kalkylvärden!$B$4/100)^(Diskontering!Z28-1) -> 2.283328487 | AA29: =(1+Kalkylvärden!$B$4/100)^(Diskontering!AA28-1) -> 2.363244984 | AB29: =(1+Kalkylvärden!$B$4/100)^(Diskontering!AB28-1) -> 2.445958559 | AC29: =(1+Kalkylvärden!$B$4/100)^(Diskontering!AC28-1) -> 2.531567108 | AD29: =(1+Kalkylvärden!$B$4/100)^(Diskontering!AD28-1) -> 2.620171957 | AE29: =(1+Kalkylvärden!$B$4/100)^(Diskontering!AE28-1) -> 2.711877976 | AF29: =(1+Kalkylvärden!$B$4/100)^(Diskontering!AF28-1) -> 2.806793705 | AG29: =(1+Kalkylvärden!$B$4/100)^(Diskontering!AG28-1) -> 2.905031484 | AH29: =(1+Kalkylvärden!$B$4/100)^(Diskontering!AH28-1) -> 3.006707586 | AI29: =(1+Kalkylvärden!$B$4/100)^(Diskontering!AI28-1) -> 3.111942352 | AJ29: =(1+Kalkylvärden!$B$4/100)^(Diskontering!AJ28-1) -> 3.220860334 | AK29: =(1+Kalkylvärden!$B$4/100)^(Diskontering!AK28-1) -> 3.333590446 | AL29: =(1+Kalkylvärden!$B$4/100)^(Diskontering!AL28-1) -> 3.450266111 | AM29: =(1+Kalkylvärden!$B$4/100)^(Diskontering!AM28-1) -> 3.571025425 | AN29: =(1+Kalkylvärden!$B$4/100)^(Diskontering!AN28-1) -> 3.696011315 | AO29: =(1+Kalkylvärden!$B$4/100)^(Diskontering!AO28-1) -> 3.825371711 | AP29: =(1+Kalkylvärden!$B$4/100)^(Diskontering!AP28-1) -> 3.959259721 | AQ29: =(1+Kalkylvärden!$B$4/100)^(Diskontering!AQ28-1) -> 4.097833811 | AR29: =(1+Kalkylvärden!$B$4/100)^(Diskontering!AR28-1) -> 4.241257995 | AS29: =(1+Kalkylvärden!$B$4/100)^(Diskontering!AS28-1) -> 4.389702025 | AT29: =(1+Kalkylvärden!$B$4/100)^(Diskontering!AT28-1) -> 4.543341595 | AU29: =(1+Kalkylvärden!$B$4/100)^(Diskontering!AU28-1) -> 4.702358551 | AV29: =(1+Kalkylvärden!$B$4/100)^(Diskontering!AV28-1) -> 4.866941101 | AW29: =(1+Kalkylvärden!$B$4/100)^(Diskontering!AW28-1) -> 5.037284039 | AX29: =(1+Kalkylvärden!$B$4/100)^(Diskontering!AX28-1) -> 5.213588981 | AY29: =(1+Kalkylvärden!$B$4/100)^(Diskontering!AY28-1) -> 5.396064595 | AZ29: =(1+Kalkylvärden!$B$4/100)^(Diskontering!AZ28-1) -> 5.584926856 | BA29: =(1+Kalkylvärden!$B$4/100)^(Diskontering!BA28-1) -> 5.780399296 | BB29: =(1+Kalkylvärden!$B$4/100)^(Diskontering!BB28-1) -> 5.982713271 | BC29: =(1+Kalkylvärden!$B$4/100)^(Diskontering!BC28-1) -> 6.192108235 | BD29: =(1+Kalkylvärden!$B$4/100)^(Diskontering!BD28-1) -> 6.408832024 | BE29: =(1+Kalkylvärden!$B$4/100)^(Diskontering!BE28-1) -> 6.633141145 | BF29: =(1+Kalkylvärden!$B$4/100)^(Diskontering!BF28-1) -> 6.865301085 | BG29: =(1+Kalkylvärden!$B$4/100)^(Diskontering!BG28-1) -> 7.105586623 | BH29: =(1+Kalkylvärden!$B$4/100)^(Diskontering!BH28-1) -> 7.354282154 | BI29: =(1+Kalkylvärden!$B$4/100)^(Diskontering!BI28-1) -> 7.61168203 | BJ29: =(1+Kalkylvärden!$B$4/100)^(Diskontering!BJ28-1) -> 7.878090901 | BK29: =(1+Kalkylvärden!$B$4/100)^(Diskontering!BK28-1) -> 8.153824082 | BL29: =(1+Kalkylvärden!$B$4/100)^(Diskontering!BL28-1) -> 8.439207925 | BM29: =(1+Kalkylvärden!$B$4/100)^(Diskontering!BM28-1) -> 8.734580203 | BN29: =(1+Kalkylvärden!$B$4/100)^(Diskontering!BN28-1) -> 9.04029051 | BO29: =(1+Kalkylvärden!$B$4/100)^(Diskontering!BO28-1) -> 9.356700677 | BP29: =(1+Kalkylvärden!$B$4/100)^(Diskontering!BP28-1) -> 9.684185201 | BQ29: =(1+Kalkylvärden!$B$4/100)^(Diskontering!BQ28-1) -> 10.02313168 | BR29: =(1+Kalkylvärden!$B$4/100)^(Diskontering!BR28-1) -> 10.37394129 | BS29: =(1+Kalkylvärden!$B$4/100)^(Diskontering!BS28-1) -> 10.73702924
A31: Trafiktillväxt
A32: Trafiktillväxt (Pb och Lb) | B32: 1 | C32: =IF((Kalkylvärden!$B$6+C28-1)<=Kalkylvärden!$B$7,B32*(1+$B$6/100),B32*(1+$B$7/100)) -> 1.02 | D32: =IF((Kalkylvärden!$B$6+D28-1)<=Kalkylvärden!$B$7,C32*(1+$B$6/100),C32*(1+$B$7/100)) -> 1.0404 | E32: =IF((Kalkylvärden!$B$6+E28-1)<=Kalkylvärden!$B$7,D32*(1+$B$6/100),D32*(1+$B$7/100)) -> 1.061208 | F32: =IF((Kalkylvärden!$B$6+F28-1)<=Kalkylvärden!$B$7,E32*(1+$B$6/100),E32*(1+$B$7/100)) -> 1.08243216 | G32: =IF((Kalkylvärden!$B$6+G28-1)<=Kalkylvärden!$B$7,F32*(1+$B$6/100),F32*(1+$B$7/100)) -> 1.104080803 | H32: =IF((Kalkylvärden!$B$6+H28-1)<=Kalkylvärden!$B$7,G32*(1+$B$6/100),G32*(1+$B$7/100)) -> 1.126162419 | I32: =IF((Kalkylvärden!$B$6+I28-1)<=Kalkylvärden!$B$7,H32*(1+$B$6/100),H32*(1+$B$7/100)) -> 1.148685668 | J32: =IF((Kalkylvärden!$B$6+J28-1)<=Kalkylvärden!$B$7,I32*(1+$B$6/100),I32*(1+$B$7/100)) -> 1.171659381 | K32: =IF((Kalkylvärden!$B$6+K28-1)<=Kalkylvärden!$B$7,J32*(1+$B$6/100),J32*(1+$B$7/100)) -> 1.195092569 | L32: =IF((Kalkylvärden!$B$6+L28-1)<=Kalkylvärden!$B$7,K32*(1+$B$6/100),K32*(1+$B$7/100)) -> 1.21899442 | M32: =IF((Kalkylvärden!$B$6+M28-1)<=Kalkylvärden!$B$7,L32*(1+$B$6/100),L32*(1+$B$7/100)) -> 1.243374308 | N32: =IF((Kalkylvärden!$B$6+N28-1)<=Kalkylvärden!$B$7,M32*(1+$B$6/100),M32*(1+$B$7/100)) -> 1.268241795 | O32: =IF((Kalkylvärden!$B$6+O28-1)<=Kalkylvärden!$B$7,N32*(1+$B$6/100),N32*(1+$B$7/100)) -> 1.29360663 | P32: =IF((Kalkylvärden!$B$6+P28-1)<=Kalkylvärden!$B$7,O32*(1+$B$6/100),O32*(1+$B$7/100)) -> 1.319478763 | Q32: =IF((Kalkylvärden!$B$6+Q28-1)<=Kalkylvärden!$B$7,P32*(1+$B$6/100),P32*(1+$B$7/100)) -> 1.345868338 | R32: =IF((Kalkylvärden!$B$6+R28-1)<=Kalkylvärden!$B$7,Q32*(1+$B$6/100),Q32*(1+$B$7/100)) -> 1.35259768 | S32: =IF((Kalkylvärden!$B$6+S28-1)<=Kalkylvärden!$B$7,R32*(1+$B$6/100),R32*(1+$B$7/100)) -> 1.359360668 | T32: =IF((Kalkylvärden!$B$6+T28-1)<=Kalkylvärden!$B$7,S32*(1+$B$6/100),S32*(1+$B$7/100)) -> 1.366157472 | U32: =IF((Kalkylvärden!$B$6+U28-1)<=Kalkylvärden!$B$7,T32*(1+$B$6/100),T32*(1+$B$7/100)) -> 1.372988259 | V32: =IF((Kalkylvärden!$B$6+V28-1)<=Kalkylvärden!$B$7,U32*(1+$B$6/100),U32*(1+$B$7/100)) -> 1.3798532 | W32: =IF((Kalkylvärden!$B$6+W28-1)<=Kalkylvärden!$B$7,V32*(1+$B$6/100),V32*(1+$B$7/100)) -> 1.386752466 | X32: =IF((Kalkylvärden!$B$6+X28-1)<=Kalkylvärden!$B$7,W32*(1+$B$6/100),W32*(1+$B$7/100)) -> 1.393686229 | Y32: =IF((Kalkylvärden!$B$6+Y28-1)<=Kalkylvärden!$B$7,X32*(1+$B$6/100),X32*(1+$B$7/100)) -> 1.40065466 | Z32: =IF((Kalkylvärden!$B$6+Z28-1)<=Kalkylvärden!$B$7,Y32*(1+$B$6/100),Y32*(1+$B$7/100)) -> 1.407657933 | AA32: =IF((Kalkylvärden!$B$6+AA28-1)<=Kalkylvärden!$B$7,Z32*(1+$B$6/100),Z32*(1+$B$7/100)) -> 1.414696223 | AB32: =IF((Kalkylvärden!$B$6+AB28-1)<=Kalkylvärden!$B$7,AA32*(1+$B$6/100),AA32*(1+$B$7/100)) -> 1.421769704 | AC32: =IF((Kalkylvärden!$B$6+AC28-1)<=Kalkylvärden!$B$7,AB32*(1+$B$6/100),AB32*(1+$B$7/100)) -> 1.428878552 | AD32: =IF((Kalkylvärden!$B$6+AD28-1)<=Kalkylvärden!$B$7,AC32*(1+$B$6/100),AC32*(1+$B$7/100)) -> 1.436022945 | AE32: =IF((Kalkylvärden!$B$6+AE28-1)<=Kalkylvärden!$B$7,AD32*(1+$B$6/100),AD32*(1+$B$7/100)) -> 1.44320306 | AF32: =IF((Kalkylvärden!$B$6+AF28-1)<=Kalkylvärden!$B$7,AE32*(1+$B$6/100),AE32*(1+$B$7/100)) -> 1.450419075 | AG32: =IF((Kalkylvärden!$B$6+AG28-1)<=Kalkylvärden!$B$7,AF32*(1+$B$6/100),AF32*(1+$B$7/100)) -> 1.457671171 | AH32: =IF((Kalkylvärden!$B$6+AH28-1)<=Kalkylvärden!$B$7,AG32*(1+$B$6/100),AG32*(1+$B$7/100)) -> 1.464959527 | AI32: =IF((Kalkylvärden!$B$6+AI28-1)<=Kalkylvärden!$B$7,AH32*(1+$B$6/100),AH32*(1+$B$7/100)) -> 1.472284324 | AJ32: =IF((Kalkylvärden!$B$6+AJ28-1)<=Kalkylvärden!$B$7,AI32*(1+$B$6/100),AI32*(1+$B$7/100)) -> 1.479645746 | AK32: =IF((Kalkylvärden!$B$6+AK28-1)<=Kalkylvärden!$B$7,AJ32*(1+$B$6/100),AJ32*(1+$B$7/100)) -> 1.487043974 | AL32: =IF((Kalkylvärden!$B$6+AL28-1)<=Kalkylvärden!$B$7,AK32*(1+$B$6/100),AK32*(1+$B$7/100)) -> 1.494479194 | AM32: =IF((Kalkylvärden!$B$6+AM28-1)<=Kalkylvärden!$B$7,AL32*(1+$B$6/100),AL32*(1+$B$7/100)) -> 1.50195159 | AN32: =IF((Kalkylvärden!$B$6+AN28-1)<=Kalkylvärden!$B$7,AM32*(1+$B$6/100),AM32*(1+$B$7/100)) -> 1.509461348 | AO32: =IF((Kalkylvärden!$B$6+AO28-1)<=Kalkylvärden!$B$7,AN32*(1+$B$6/100),AN32*(1+$B$7/100)) -> 1.517008655 | AP32: =IF((Kalkylvärden!$B$6+AP28-1)<=Kalkylvärden!$B$7,AO32*(1+$B$6/100),AO32*(1+$B$7/100)) -> 1.524593698 | AQ32: =IF((Kalkylvärden!$B$6+AQ28-1)<=Kalkylvärden!$B$7,AP32*(1+$B$6/100),AP32*(1+$B$7/100)) -> 1.532216667 | AR32: =IF((Kalkylvärden!$B$6+AR28-1)<=Kalkylvärden!$B$7,AQ32*(1+$B$6/100),AQ32*(1+$B$7/100)) -> 1.53987775 | AS32: =IF((Kalkylvärden!$B$6+AS28-1)<=Kalkylvärden!$B$7,AR32*(1+$B$6/100),AR32*(1+$B$7/100)) -> 1.547577139 | AT32: =IF((Kalkylvärden!$B$6+AT28-1)<=Kalkylvärden!$B$7,AS32*(1+$B$6/100),AS32*(1+$B$7/100)) -> 1.555315025 | AU32: =IF((Kalkylvärden!$B$6+AU28-1)<=Kalkylvärden!$B$7,AT32*(1+$B$6/100),AT32*(1+$B$7/100)) -> 1.5630916 | AV32: =IF((Kalkylvärden!$B$6+AV28-1)<=Kalkylvärden!$B$7,AU32*(1+$B$6/100),AU32*(1+$B$7/100)) -> 1.570907058 | AW32: =IF((Kalkylvärden!$B$6+AW28-1)<=Kalkylvärden!$B$7,AV32*(1+$B$6/100),AV32*(1+$B$7/100)) -> 1.578761593 | AX32: =IF((Kalkylvärden!$B$6+AX28-1)<=Kalkylvärden!$B$7,AW32*(1+$B$6/100),AW32*(1+$B$7/100)) -> 1.586655401 | AY32: =IF((Kalkylvärden!$B$6+AY28-1)<=Kalkylvärden!$B$7,AX32*(1+$B$6/100),AX32*(1+$B$7/100)) -> 1.594588678 | AZ32: =IF((Kalkylvärden!$B$6+AZ28-1)<=Kalkylvärden!$B$7,AY32*(1+$B$6/100),AY32*(1+$B$7/100)) -> 1.602561621 | BA32: =IF((Kalkylvärden!$B$6+BA28-1)<=Kalkylvärden!$B$7,AZ32*(1+$B$6/100),AZ32*(1+$B$7/100)) -> 1.610574429 | BB32: =IF((Kalkylvärden!$B$6+BB28-1)<=Kalkylvärden!$B$7,BA32*(1+$B$6/100),BA32*(1+$B$7/100)) -> 1.618627302 | BC32: =IF((Kalkylvärden!$B$6+BC28-1)<=Kalkylvärden!$B$7,BB32*(1+$B$6/100),BB32*(1+$B$7/100)) -> 1.626720438 | BD32: =IF((Kalkylvärden!$B$6+BD28-1)<=Kalkylvärden!$B$7,BC32*(1+$B$6/100),BC32*(1+$B$7/100)) -> 1.63485404 | BE32: =IF((Kalkylvärden!$B$6+BE28-1)<=Kalkylvärden!$B$7,BD32*(1+$B$6/100),BD32*(1+$B$7/100)) -> 1.64302831 | BF32: =IF((Kalkylvärden!$B$6+BF28-1)<=Kalkylvärden!$B$7,BE32*(1+$B$6/100),BE32*(1+$B$7/100)) -> 1.651243452 | BG32: =IF((Kalkylvärden!$B$6+BG28-1)<=Kalkylvärden!$B$7,BF32*(1+$B$6/100),BF32*(1+$B$7/100)) -> 1.659499669 | BH32: =IF((Kalkylvärden!$B$6+BH28-1)<=Kalkylvärden!$B$7,BG32*(1+$B$6/100),BG32*(1+$B$7/100)) -> 1.667797168 | BI32: =IF((Kalkylvärden!$B$6+BI28-1)<=Kalkylvärden!$B$7,BH32*(1+$B$6/100),BH32*(1+$B$7/100)) -> 1.676136153 | BJ32: =IF((Kalkylvärden!$B$6+BJ28-1)<=Kalkylvärden!$B$7,BI32*(1+$B$6/100),BI32*(1+$B$7/100)) -> 1.684516834 | BK32: =IF((Kalkylvärden!$B$6+BK28-1)<=Kalkylvärden!$B$7,BJ32*(1+$B$6/100),BJ32*(1+$B$7/100)) -> 1.692939418 | BL32: =IF((Kalkylvärden!$B$6+BL28-1)<=Kalkylvärden!$B$7,BK32*(1+$B$6/100),BK32*(1+$B$7/100)) -> 1.701404116 | BM32: =IF((Kalkylvärden!$B$6+BM28-1)<=Kalkylvärden!$B$7,BL32*(1+$B$6/100),BL32*(1+$B$7/100)) -> 1.709911136 | BN32: =IF((Kalkylvärden!$B$6+BN28-1)<=Kalkylvärden!$B$7,BM32*(1+$B$6/100),BM32*(1+$B$7/100)) -> 1.718460692 | BO32: =IF((Kalkylvärden!$B$6+BO28-1)<=Kalkylvärden!$B$7,BN32*(1+$B$6/100),BN32*(1+$B$7/100)) -> 1.727052995 | BP32: =IF((Kalkylvärden!$B$6+BP28-1)<=Kalkylvärden!$B$7,BO32*(1+$B$6/100),BO32*(1+$B$7/100)) -> 1.73568826 | BQ32: =IF((Kalkylvärden!$B$6+BQ28-1)<=Kalkylvärden!$B$7,BP32*(1+$B$6/100),BP32*(1+$B$7/100)) -> 1.744366702 | BR32: =IF((Kalkylvärden!$B$6+BR28-1)<=Kalkylvärden!$B$7,BQ32*(1+$B$6/100),BQ32*(1+$B$7/100)) -> 1.753088535
A33: Trafiktillväxt (antal tåg) | B33: 1 | C33: =IF((Kalkylvärden!$B$6+C28-1)<=Kalkylvärden!$B$7,B33*(1+$B$9/100),B33*(1+$B$10/100)) -> 1 | D33: =IF((Kalkylvärden!$B$6+D28-1)<=Kalkylvärden!$B$7,C33*(1+$B$9/100),C33*(1+$B$10/100)) -> 1 | E33: =IF((Kalkylvärden!$B$6+E28-1)<=Kalkylvärden!$B$7,D33*(1+$B$9/100),D33*(1+$B$10/100)) -> 1 | F33: =IF((Kalkylvärden!$B$6+F28-1)<=Kalkylvärden!$B$7,E33*(1+$B$9/100),E33*(1+$B$10/100)) -> 1 | G33: =IF((Kalkylvärden!$B$6+G28-1)<=Kalkylvärden!$B$7,F33*(1+$B$9/100),F33*(1+$B$10/100)) -> 1 | H33: =IF((Kalkylvärden!$B$6+H28-1)<=Kalkylvärden!$B$7,G33*(1+$B$9/100),G33*(1+$B$10/100)) -> 1 | I33: =IF((Kalkylvärden!$B$6+I28-1)<=Kalkylvärden!$B$7,H33*(1+$B$9/100),H33*(1+$B$10/100)) -> 1 | J33: =IF((Kalkylvärden!$B$6+J28-1)<=Kalkylvärden!$B$7,I33*(1+$B$9/100),I33*(1+$B$10/100)) -> 1 | K33: =IF((Kalkylvärden!$B$6+K28-1)<=Kalkylvärden!$B$7,J33*(1+$B$9/100),J33*(1+$B$10/100)) -> 1 | L33: =IF((Kalkylvärden!$B$6+L28-1)<=Kalkylvärden!$B$7,K33*(1+$B$9/100),K33*(1+$B$10/100)) -> 1 | M33: =IF((Kalkylvärden!$B$6+M28-1)<=Kalkylvärden!$B$7,L33*(1+$B$9/100),L33*(1+$B$10/100)) -> 1 | N33: =IF((Kalkylvärden!$B$6+N28-1)<=Kalkylvärden!$B$7,M33*(1+$B$9/100),M33*(1+$B$10/100)) -> 1 | O33: =IF((Kalkylvärden!$B$6+O28-1)<=Kalkylvärden!$B$7,N33*(1+$B$9/100),N33*(1+$B$10/100)) -> 1 | P33: =IF((Kalkylvärden!$B$6+P28-1)<=Kalkylvärden!$B$7,O33*(1+$B$9/100),O33*(1+$B$10/100)) -> 1 | Q33: =IF((Kalkylvärden!$B$6+Q28-1)<=Kalkylvärden!$B$7,P33*(1+$B$9/100),P33*(1+$B$10/100)) -> 1 | R33: =IF((Kalkylvärden!$B$6+R28-1)<=Kalkylvärden!$B$7,Q33*(1+$B$9/100),Q33*(1+$B$10/100)) -> 1 | S33: =IF((Kalkylvärden!$B$6+S28-1)<=Kalkylvärden!$B$7,R33*(1+$B$9/100),R33*(1+$B$10/100)) -> 1 | T33: =IF((Kalkylvärden!$B$6+T28-1)<=Kalkylvärden!$B$7,S33*(1+$B$9/100),S33*(1+$B$10/100)) -> 1 | U33: =IF((Kalkylvärden!$B$6+U28-1)<=Kalkylvärden!$B$7,T33*(1+$B$9/100),T33*(1+$B$10/100)) -> 1 | V33: =IF((Kalkylvärden!$B$6+V28-1)<=Kalkylvärden!$B$7,U33*(1+$B$9/100),U33*(1+$B$10/100)) -> 1 | W33: =IF((Kalkylvärden!$B$6+W28-1)<=Kalkylvärden!$B$7,V33*(1+$B$9/100),V33*(1+$B$10/100)) -> 1 | X33: =IF((Kalkylvärden!$B$6+X28-1)<=Kalkylvärden!$B$7,W33*(1+$B$9/100),W33*(1+$B$10/100)) -> 1 | Y33: =IF((Kalkylvärden!$B$6+Y28-1)<=Kalkylvärden!$B$7,X33*(1+$B$9/100),X33*(1+$B$10/100)) -> 1 | Z33: =IF((Kalkylvärden!$B$6+Z28-1)<=Kalkylvärden!$B$7,Y33*(1+$B$9/100),Y33*(1+$B$10/100)) -> 1 | AA33: =IF((Kalkylvärden!$B$6+AA28-1)<=Kalkylvärden!$B$7,Z33*(1+$B$9/100),Z33*(1+$B$10/100)) -> 1 | AB33: =IF((Kalkylvärden!$B$6+AB28-1)<=Kalkylvärden!$B$7,AA33*(1+$B$9/100),AA33*(1+$B$10/100)) -> 1 | AC33: =IF((Kalkylvärden!$B$6+AC28-1)<=Kalkylvärden!$B$7,AB33*(1+$B$9/100),AB33*(1+$B$10/100)) -> 1 | AD33: =IF((Kalkylvärden!$B$6+AD28-1)<=Kalkylvärden!$B$7,AC33*(1+$B$9/100),AC33*(1+$B$10/100)) -> 1 | AE33: =IF((Kalkylvärden!$B$6+AE28-1)<=Kalkylvärden!$B$7,AD33*(1+$B$9/100),AD33*(1+$B$10/100)) -> 1 | AF33: =IF((Kalkylvärden!$B$6+AF28-1)<=Kalkylvärden!$B$7,AE33*(1+$B$9/100),AE33*(1+$B$10/100)) -> 1 | AG33: =IF((Kalkylvärden!$B$6+AG28-1)<=Kalkylvärden!$B$7,AF33*(1+$B$9/100),AF33*(1+$B$10/100)) -> 1 | AH33: =IF((Kalkylvärden!$B$6+AH28-1)<=Kalkylvärden!$B$7,AG33*(1+$B$9/100),AG33*(1+$B$10/100)) -> 1 | AI33: =IF((Kalkylvärden!$B$6+AI28-1)<=Kalkylvärden!$B$7,AH33*(1+$B$9/100),AH33*(1+$B$10/100)) -> 1 | AJ33: =IF((Kalkylvärden!$B$6+AJ28-1)<=Kalkylvärden!$B$7,AI33*(1+$B$9/100),AI33*(1+$B$10/100)) -> 1 | AK33: =IF((Kalkylvärden!$B$6+AK28-1)<=Kalkylvärden!$B$7,AJ33*(1+$B$9/100),AJ33*(1+$B$10/100)) -> 1 | AL33: =IF((Kalkylvärden!$B$6+AL28-1)<=Kalkylvärden!$B$7,AK33*(1+$B$9/100),AK33*(1+$B$10/100)) -> 1 | AM33: =IF((Kalkylvärden!$B$6+AM28-1)<=Kalkylvärden!$B$7,AL33*(1+$B$9/100),AL33*(1+$B$10/100)) -> 1 | AN33: =IF((Kalkylvärden!$B$6+AN28-1)<=Kalkylvärden!$B$7,AM33*(1+$B$9/100),AM33*(1+$B$10/100)) -> 1 | AO33: =IF((Kalkylvärden!$B$6+AO28-1)<=Kalkylvärden!$B$7,AN33*(1+$B$9/100),AN33*(1+$B$10/100)) -> 1 | AP33: =IF((Kalkylvärden!$B$6+AP28-1)<=Kalkylvärden!$B$7,AO33*(1+$B$9/100),AO33*(1+$B$10/100)) -> 1 | AQ33: =IF((Kalkylvärden!$B$6+AQ28-1)<=Kalkylvärden!$B$7,AP33*(1+$B$9/100),AP33*(1+$B$10/100)) -> 1 | AR33: =IF((Kalkylvärden!$B$6+AR28-1)<=Kalkylvärden!$B$7,AQ33*(1+$B$9/100),AQ33*(1+$B$10/100)) -> 1 | AS33: =IF((Kalkylvärden!$B$6+AS28-1)<=Kalkylvärden!$B$7,AR33*(1+$B$9/100),AR33*(1+$B$10/100)) -> 1 | AT33: =IF((Kalkylvärden!$B$6+AT28-1)<=Kalkylvärden!$B$7,AS33*(1+$B$9/100),AS33*(1+$B$10/100)) -> 1 | AU33: =IF((Kalkylvärden!$B$6+AU28-1)<=Kalkylvärden!$B$7,AT33*(1+$B$9/100),AT33*(1+$B$10/100)) -> 1 | AV33: =IF((Kalkylvärden!$B$6+AV28-1)<=Kalkylvärden!$B$7,AU33*(1+$B$9/100),AU33*(1+$B$10/100)) -> 1 | AW33: =IF((Kalkylvärden!$B$6+AW28-1)<=Kalkylvärden!$B$7,AV33*(1+$B$9/100),AV33*(1+$B$10/100)) -> 1 | AX33: =IF((Kalkylvärden!$B$6+AX28-1)<=Kalkylvärden!$B$7,AW33*(1+$B$9/100),AW33*(1+$B$10/100)) -> 1 | AY33: =IF((Kalkylvärden!$B$6+AY28-1)<=Kalkylvärden!$B$7,AX33*(1+$B$9/100),AX33*(1+$B$10/100)) -> 1 | AZ33: =IF((Kalkylvärden!$B$6+AZ28-1)<=Kalkylvärden!$B$7,AY33*(1+$B$9/100),AY33*(1+$B$10/100)) -> 1 | BA33: =IF((Kalkylvärden!$B$6+BA28-1)<=Kalkylvärden!$B$7,AZ33*(1+$B$9/100),AZ33*(1+$B$10/100)) -> 1 | BB33: =IF((Kalkylvärden!$B$6+BB28-1)<=Kalkylvärden!$B$7,BA33*(1+$B$9/100),BA33*(1+$B$10/100)) -> 1 | BC33: =IF((Kalkylvärden!$B$6+BC28-1)<=Kalkylvärden!$B$7,BB33*(1+$B$9/100),BB33*(1+$B$10/100)) -> 1 | BD33: =IF((Kalkylvärden!$B$6+BD28-1)<=Kalkylvärden!$B$7,BC33*(1+$B$9/100),BC33*(1+$B$10/100)) -> 1 | BE33: =IF((Kalkylvärden!$B$6+BE28-1)<=Kalkylvärden!$B$7,BD33*(1+$B$9/100),BD33*(1+$B$10/100)) -> 1 | BF33: =IF((Kalkylvärden!$B$6+BF28-1)<=Kalkylvärden!$B$7,BE33*(1+$B$9/100),BE33*(1+$B$10/100)) -> 1 | BG33: =IF((Kalkylvärden!$B$6+BG28-1)<=Kalkylvärden!$B$7,BF33*(1+$B$9/100),BF33*(1+$B$10/100)) -> 1 | BH33: =IF((Kalkylvärden!$B$6+BH28-1)<=Kalkylvärden!$B$7,BG33*(1+$B$9/100),BG33*(1+$B$10/100)) -> 1 | BI33: =IF((Kalkylvärden!$B$6+BI28-1)<=Kalkylvärden!$B$7,BH33*(1+$B$9/100),BH33*(1+$B$10/100)) -> 1 | BJ33: =IF((Kalkylvärden!$B$6+BJ28-1)<=Kalkylvärden!$B$7,BI33*(1+$B$9/100),BI33*(1+$B$10/100)) -> 1 | BK33: =IF((Kalkylvärden!$B$6+BK28-1)<=Kalkylvärden!$B$7,BJ33*(1+$B$9/100),BJ33*(1+$B$10/100)) -> 1 | BL33: =IF((Kalkylvärden!$B$6+BL28-1)<=Kalkylvärden!$B$7,BK33*(1+$B$9/100),BK33*(1+$B$10/100)) -> 1 | BM33: =IF((Kalkylvärden!$B$6+BM28-1)<=Kalkylvärden!$B$7,BL33*(1+$B$9/100),BL33*(1+$B$10/100)) -> 1 | BN33: =IF((Kalkylvärden!$B$6+BN28-1)<=Kalkylvärden!$B$7,BM33*(1+$B$9/100),BM33*(1+$B$10/100)) -> 1 | BO33: =IF((Kalkylvärden!$B$6+BO28-1)<=Kalkylvärden!$B$7,BN33*(1+$B$9/100),BN33*(1+$B$10/100)) -> 1 | BP33: =IF((Kalkylvärden!$B$6+BP28-1)<=Kalkylvärden!$B$7,BO33*(1+$B$9/100),BO33*(1+$B$10/100)) -> 1 | BQ33: =IF((Kalkylvärden!$B$6+BQ28-1)<=Kalkylvärden!$B$7,BP33*(1+$B$9/100),BP33*(1+$B$10/100)) -> 1 | BR33: =IF((Kalkylvärden!$B$6+BR28-1)<=Kalkylvärden!$B$7,BQ33*(1+$B$9/100),BQ33*(1+$B$10/100)) -> 1
A34: Trafiktillväxt (Gång och cykel) | B34: 1 | C34: =IF((Kalkylvärden!$B$6+Diskontering!C28-1)<=Kalkylvärden!$B$8,Diskontering!B34*(1+Diskontering!$B$12/100),Diskontering!B34*(1+Diskontering!$B$13/100)) -> 1.0001 | D34: =IF((Kalkylvärden!$B$6+Diskontering!D28-1)<=Kalkylvärden!$B$8,Diskontering!C34*(1+Diskontering!$B$12/100),Diskontering!C34*(1+Diskontering!$B$13/100)) -> 1.00020001 | E34: =IF((Kalkylvärden!$B$6+Diskontering!E28-1)<=Kalkylvärden!$B$8,Diskontering!D34*(1+Diskontering!$B$12/100),Diskontering!D34*(1+Diskontering!$B$13/100)) -> 1.00030003 | F34: =IF((Kalkylvärden!$B$6+Diskontering!F28-1)<=Kalkylvärden!$B$8,Diskontering!E34*(1+Diskontering!$B$12/100),Diskontering!E34*(1+Diskontering!$B$13/100)) -> 1.00040006 | G34: =IF((Kalkylvärden!$B$6+Diskontering!G28-1)<=Kalkylvärden!$B$8,Diskontering!F34*(1+Diskontering!$B$12/100),Diskontering!F34*(1+Diskontering!$B$13/100)) -> 1.0005001 | H34: =IF((Kalkylvärden!$B$6+Diskontering!H28-1)<=Kalkylvärden!$B$8,Diskontering!G34*(1+Diskontering!$B$12/100),Diskontering!G34*(1+Diskontering!$B$13/100)) -> 1.00060015 | I34: =IF((Kalkylvärden!$B$6+Diskontering!I28-1)<=Kalkylvärden!$B$8,Diskontering!H34*(1+Diskontering!$B$12/100),Diskontering!H34*(1+Diskontering!$B$13/100)) -> 1.00070021 | J34: =IF((Kalkylvärden!$B$6+Diskontering!J28-1)<=Kalkylvärden!$B$8,Diskontering!I34*(1+Diskontering!$B$12/100),Diskontering!I34*(1+Diskontering!$B$13/100)) -> 1.00080028 | K34: =IF((Kalkylvärden!$B$6+Diskontering!K28-1)<=Kalkylvärden!$B$8,Diskontering!J34*(1+Diskontering!$B$12/100),Diskontering!J34*(1+Diskontering!$B$13/100)) -> 1.00090036 | L34: =IF((Kalkylvärden!$B$6+Diskontering!L28-1)<=Kalkylvärden!$B$8,Diskontering!K34*(1+Diskontering!$B$12/100),Diskontering!K34*(1+Diskontering!$B$13/100)) -> 1.00100045 | M34: =IF((Kalkylvärden!$B$6+Diskontering!M28-1)<=Kalkylvärden!$B$8,Diskontering!L34*(1+Diskontering!$B$12/100),Diskontering!L34*(1+Diskontering!$B$13/100)) -> 1.00110055 | N34: =IF((Kalkylvärden!$B$6+Diskontering!N28-1)<=Kalkylvärden!$B$8,Diskontering!M34*(1+Diskontering!$B$12/100),Diskontering!M34*(1+Diskontering!$B$13/100)) -> 1.00120066 | O34: =IF((Kalkylvärden!$B$6+Diskontering!O28-1)<=Kalkylvärden!$B$8,Diskontering!N34*(1+Diskontering!$B$12/100),Diskontering!N34*(1+Diskontering!$B$13/100)) -> 1.00130078 | P34: =IF((Kalkylvärden!$B$6+Diskontering!P28-1)<=Kalkylvärden!$B$8,Diskontering!O34*(1+Diskontering!$B$12/100),Diskontering!O34*(1+Diskontering!$B$13/100)) -> 1.00140091 | Q34: =IF((Kalkylvärden!$B$6+Diskontering!Q28-1)<=Kalkylvärden!$B$8,Diskontering!P34*(1+Diskontering!$B$12/100),Diskontering!P34*(1+Diskontering!$B$13/100)) -> 1.00150105 | R34: =IF((Kalkylvärden!$B$6+Diskontering!R28-1)<=Kalkylvärden!$B$8,Diskontering!Q34*(1+Diskontering!$B$12/100),Diskontering!Q34*(1+Diskontering!$B$13/100)) -> 1.001601201 | S34: =IF((Kalkylvärden!$B$6+Diskontering!S28-1)<=Kalkylvärden!$B$8,Diskontering!R34*(1+Diskontering!$B$12/100),Diskontering!R34*(1+Diskontering!$B$13/100)) -> 1.001701361 | T34: =IF((Kalkylvärden!$B$6+Diskontering!T28-1)<=Kalkylvärden!$B$8,Diskontering!S34*(1+Diskontering!$B$12/100),Diskontering!S34*(1+Diskontering!$B$13/100)) -> 1.001801531 | U34: =IF((Kalkylvärden!$B$6+Diskontering!U28-1)<=Kalkylvärden!$B$8,Diskontering!T34*(1+Diskontering!$B$12/100),Diskontering!T34*(1+Diskontering!$B$13/100)) -> 1.001901711 | V34: =IF((Kalkylvärden!$B$6+Diskontering!V28-1)<=Kalkylvärden!$B$8,Diskontering!U34*(1+Diskontering!$B$12/100),Diskontering!U34*(1+Diskontering!$B$13/100)) -> 1.002001901 | W34: =IF((Kalkylvärden!$B$6+Diskontering!W28-1)<=Kalkylvärden!$B$8,Diskontering!V34*(1+Diskontering!$B$12/100),Diskontering!V34*(1+Diskontering!$B$13/100)) -> 1.002102101 | X34: =IF((Kalkylvärden!$B$6+Diskontering!X28-1)<=Kalkylvärden!$B$8,Diskontering!W34*(1+Diskontering!$B$12/100),Diskontering!W34*(1+Diskontering!$B$13/100)) -> 1.002202312 | Y34: =IF((Kalkylvärden!$B$6+Diskontering!Y28-1)<=Kalkylvärden!$B$8,Diskontering!X34*(1+Diskontering!$B$12/100),Diskontering!X34*(1+Diskontering!$B$13/100)) -> 1.002302532 | Z34: =IF((Kalkylvärden!$B$6+Diskontering!Z28-1)<=Kalkylvärden!$B$8,Diskontering!Y34*(1+Diskontering!$B$12/100),Diskontering!Y34*(1+Diskontering!$B$13/100)) -> 1.002402762 | AA34: =IF((Kalkylvärden!$B$6+Diskontering!AA28-1)<=Kalkylvärden!$B$8,Diskontering!Z34*(1+Diskontering!$B$12/100),Diskontering!Z34*(1+Diskontering!$B$13/100)) -> 1.002503002 | AB34: =IF((Kalkylvärden!$B$6+Diskontering!AB28-1)<=Kalkylvärden!$B$8,Diskontering!AA34*(1+Diskontering!$B$12/100),Diskontering!AA34*(1+Diskontering!$B$13/100)) -> 1.002603253 | AC34: =IF((Kalkylvärden!$B$6+Diskontering!AC28-1)<=Kalkylvärden!$B$8,Diskontering!AB34*(1+Diskontering!$B$12/100),Diskontering!AB34*(1+Diskontering!$B$13/100)) -> 1.002703513 | AD34: =IF((Kalkylvärden!$B$6+Diskontering!AD28-1)<=Kalkylvärden!$B$8,Diskontering!AC34*(1+Diskontering!$B$12/100),Diskontering!AC34*(1+Diskontering!$B$13/100)) -> 1.002803783 | AE34: =IF((Kalkylvärden!$B$6+Diskontering!AE28-1)<=Kalkylvärden!$B$8,Diskontering!AD34*(1+Diskontering!$B$12/100),Diskontering!AD34*(1+Diskontering!$B$13/100)) -> 1.002904064 | AF34: =IF((Kalkylvärden!$B$6+Diskontering!AF28-1)<=Kalkylvärden!$B$8,Diskontering!AE34*(1+Diskontering!$B$12/100),Diskontering!AE34*(1+Diskontering!$B$13/100)) -> 1.003004354 | AG34: =IF((Kalkylvärden!$B$6+Diskontering!AG28-1)<=Kalkylvärden!$B$8,Diskontering!AF34*(1+Diskontering!$B$12/100),Diskontering!AF34*(1+Diskontering!$B$13/100)) -> 1.003104654 | AH34: =IF((Kalkylvärden!$B$6+Diskontering!AH28-1)<=Kalkylvärden!$B$8,Diskontering!AG34*(1+Diskontering!$B$12/100),Diskontering!AG34*(1+Diskontering!$B$13/100)) -> 1.003204965 | AI34: =IF((Kalkylvärden!$B$6+Diskontering!AI28-1)<=Kalkylvärden!$B$8,Diskontering!AH34*(1+Diskontering!$B$12/100),Diskontering!AH34*(1+Diskontering!$B$13/100)) -> 1.003305285 | AJ34: =IF((Kalkylvärden!$B$6+Diskontering!AJ28-1)<=Kalkylvärden!$B$8,Diskontering!AI34*(1+Diskontering!$B$12/100),Diskontering!AI34*(1+Diskontering!$B$13/100)) -> 1.003405616 | AK34: =IF((Kalkylvärden!$B$6+Diskontering!AK28-1)<=Kalkylvärden!$B$8,Diskontering!AJ34*(1+Diskontering!$B$12/100),Diskontering!AJ34*(1+Diskontering!$B$13/100)) -> 1.003505957 | AL34: =IF((Kalkylvärden!$B$6+Diskontering!AL28-1)<=Kalkylvärden!$B$8,Diskontering!AK34*(1+Diskontering!$B$12/100),Diskontering!AK34*(1+Diskontering!$B$13/100)) -> 1.003606307 | AM34: =IF((Kalkylvärden!$B$6+Diskontering!AM28-1)<=Kalkylvärden!$B$8,Diskontering!AL34*(1+Diskontering!$B$12/100),Diskontering!AL34*(1+Diskontering!$B$13/100)) -> 1.003706668 | AN34: =IF((Kalkylvärden!$B$6+Diskontering!AN28-1)<=Kalkylvärden!$B$8,Diskontering!AM34*(1+Diskontering!$B$12/100),Diskontering!AM34*(1+Diskontering!$B$13/100)) -> 1.003807038 | AO34: =IF((Kalkylvärden!$B$6+Diskontering!AO28-1)<=Kalkylvärden!$B$8,Diskontering!AN34*(1+Diskontering!$B$12/100),Diskontering!AN34*(1+Diskontering!$B$13/100)) -> 1.003907419 | AP34: =IF((Kalkylvärden!$B$6+Diskontering!AP28-1)<=Kalkylvärden!$B$8,Diskontering!AO34*(1+Diskontering!$B$12/100),Diskontering!AO34*(1+Diskontering!$B$13/100)) -> 1.00400781 | AQ34: =IF((Kalkylvärden!$B$6+Diskontering!AQ28-1)<=Kalkylvärden!$B$8,Diskontering!AP34*(1+Diskontering!$B$12/100),Diskontering!AP34*(1+Diskontering!$B$13/100)) -> 1.004108211 | AR34: =IF((Kalkylvärden!$B$6+Diskontering!AR28-1)<=Kalkylvärden!$B$8,Diskontering!AQ34*(1+Diskontering!$B$12/100),Diskontering!AQ34*(1+Diskontering!$B$13/100)) -> 1.004208621 | AS34: =IF((Kalkylvärden!$B$6+Diskontering!AS28-1)<=Kalkylvärden!$B$8,Diskontering!AR34*(1+Diskontering!$B$12/100),Diskontering!AR34*(1+Diskontering!$B$13/100)) -> 1.004309042 | AT34: =IF((Kalkylvärden!$B$6+Diskontering!AT28-1)<=Kalkylvärden!$B$8,Diskontering!AS34*(1+Diskontering!$B$12/100),Diskontering!AS34*(1+Diskontering!$B$13/100)) -> 1.004409473 | AU34: =IF((Kalkylvärden!$B$6+Diskontering!AU28-1)<=Kalkylvärden!$B$8,Diskontering!AT34*(1+Diskontering!$B$12/100),Diskontering!AT34*(1+Diskontering!$B$13/100)) -> 1.004509914 | AV34: =IF((Kalkylvärden!$B$6+Diskontering!AV28-1)<=Kalkylvärden!$B$8,Diskontering!AU34*(1+Diskontering!$B$12/100),Diskontering!AU34*(1+Diskontering!$B$13/100)) -> 1.004610365 | AW34: =IF((Kalkylvärden!$B$6+Diskontering!AW28-1)<=Kalkylvärden!$B$8,Diskontering!AV34*(1+Diskontering!$B$12/100),Diskontering!AV34*(1+Diskontering!$B$13/100)) -> 1.004710826 | AX34: =IF((Kalkylvärden!$B$6+Diskontering!AX28-1)<=Kalkylvärden!$B$8,Diskontering!AW34*(1+Diskontering!$B$12/100),Diskontering!AW34*(1+Diskontering!$B$13/100)) -> 1.004811297 | AY34: =IF((Kalkylvärden!$B$6+Diskontering!AY28-1)<=Kalkylvärden!$B$8,Diskontering!AX34*(1+Diskontering!$B$12/100),Diskontering!AX34*(1+Diskontering!$B$13/100)) -> 1.004911778 | AZ34: =IF((Kalkylvärden!$B$6+Diskontering!AZ28-1)<=Kalkylvärden!$B$8,Diskontering!AY34*(1+Diskontering!$B$12/100),Diskontering!AY34*(1+Diskontering!$B$13/100)) -> 1.00501227 | BA34: =IF((Kalkylvärden!$B$6+Diskontering!BA28-1)<=Kalkylvärden!$B$8,Diskontering!AZ34*(1+Diskontering!$B$12/100),Diskontering!AZ34*(1+Diskontering!$B$13/100)) -> 1.005112771 | BB34: =IF((Kalkylvärden!$B$6+Diskontering!BB28-1)<=Kalkylvärden!$B$8,Diskontering!BA34*(1+Diskontering!$B$12/100),Diskontering!BA34*(1+Diskontering!$B$13/100)) -> 1.005213282 | BC34: =IF((Kalkylvärden!$B$6+Diskontering!BC28-1)<=Kalkylvärden!$B$8,Diskontering!BB34*(1+Diskontering!$B$12/100),Diskontering!BB34*(1+Diskontering!$B$13/100)) -> 1.005313803 | BD34: =IF((Kalkylvärden!$B$6+Diskontering!BD28-1)<=Kalkylvärden!$B$8,Diskontering!BC34*(1+Diskontering!$B$12/100),Diskontering!BC34*(1+Diskontering!$B$13/100)) -> 1.005414335 | BE34: =IF((Kalkylvärden!$B$6+Diskontering!BE28-1)<=Kalkylvärden!$B$8,Diskontering!BD34*(1+Diskontering!$B$12/100),Diskontering!BD34*(1+Diskontering!$B$13/100)) -> 1.005514876 | BF34: =IF((Kalkylvärden!$B$6+Diskontering!BF28-1)<=Kalkylvärden!$B$8,Diskontering!BE34*(1+Diskontering!$B$12/100),Diskontering!BE34*(1+Diskontering!$B$13/100)) -> 1.005615428 | BG34: =IF((Kalkylvärden!$B$6+Diskontering!BG28-1)<=Kalkylvärden!$B$8,Diskontering!BF34*(1+Diskontering!$B$12/100),Diskontering!BF34*(1+Diskontering!$B$13/100)) -> 1.005715989 | BH34: =IF((Kalkylvärden!$B$6+Diskontering!BH28-1)<=Kalkylvärden!$B$8,Diskontering!BG34*(1+Diskontering!$B$12/100),Diskontering!BG34*(1+Diskontering!$B$13/100)) -> 1.005816561 | BI34: =IF((Kalkylvärden!$B$6+Diskontering!BI28-1)<=Kalkylvärden!$B$8,Diskontering!BH34*(1+Diskontering!$B$12/100),Diskontering!BH34*(1+Diskontering!$B$13/100)) -> 1.005917143 | BJ34: =IF((Kalkylvärden!$B$6+Diskontering!BJ28-1)<=Kalkylvärden!$B$8,Diskontering!BI34*(1+Diskontering!$B$12/100),Diskontering!BI34*(1+Diskontering!$B$13/100)) -> 1.006017734 | BK34: =IF((Kalkylvärden!$B$6+Diskontering!BK28-1)<=Kalkylvärden!$B$8,Diskontering!BJ34*(1+Diskontering!$B$12/100),Diskontering!BJ34*(1+Diskontering!$B$13/100)) -> 1.006118336 | BL34: =IF((Kalkylvärden!$B$6+Diskontering!BL28-1)<=Kalkylvärden!$B$8,Diskontering!BK34*(1+Diskontering!$B$12/100),Diskontering!BK34*(1+Diskontering!$B$13/100)) -> 1.006218948 | BM34: =IF((Kalkylvärden!$B$6+Diskontering!BM28-1)<=Kalkylvärden!$B$8,Diskontering!BL34*(1+Diskontering!$B$12/100),Diskontering!BL34*(1+Diskontering!$B$13/100)) -> 1.00631957 | BN34: =IF((Kalkylvärden!$B$6+Diskontering!BN28-1)<=Kalkylvärden!$B$8,Diskontering!BM34*(1+Diskontering!$B$12/100),Diskontering!BM34*(1+Diskontering!$B$13/100)) -> 1.006420202 | BO34: =IF((Kalkylvärden!$B$6+Diskontering!BO28-1)<=Kalkylvärden!$B$8,Diskontering!BN34*(1+Diskontering!$B$12/100),Diskontering!BN34*(1+Diskontering!$B$13/100)) -> 1.006520844 | BP34: =IF((Kalkylvärden!$B$6+Diskontering!BP28-1)<=Kalkylvärden!$B$8,Diskontering!BO34*(1+Diskontering!$B$12/100),Diskontering!BO34*(1+Diskontering!$B$13/100)) -> 1.006621496 | BQ34: =IF((Kalkylvärden!$B$6+Diskontering!BQ28-1)<=Kalkylvärden!$B$8,Diskontering!BP34*(1+Diskontering!$B$12/100),Diskontering!BP34*(1+Diskontering!$B$13/100)) -> 1.006722158 | BR34: =IF((Kalkylvärden!$B$6+Diskontering!BR28-1)<=Kalkylvärden!$B$8,Diskontering!BQ34*(1+Diskontering!$B$12/100),Diskontering!BQ34*(1+Diskontering!$B$13/100)) -> 1.00682283
A35: Trafiktillväxt (Pb och Lb) * Trafiktillväxt (antal tåg) | B35: =B32*B33 -> 1 | C35: =C32*C33 -> 1.02 | D35: 1.0404 | E35: 1.061208 | F35: 1.08243216 | G35: 1.104080803 | H35: 1.126162419 | I35: 1.148685668 | J35: 1.171659381 | K35: 1.195092569 | L35: 1.21899442 | M35: 1.243374308 | N35: 1.268241795 | O35: 1.29360663 | P35: 1.319478763 | Q35: 1.345868338 | R35: 1.35259768 | S35: 1.359360668 | T35: 1.366157472 | U35: 1.372988259 | V35: 1.3798532 | W35: 1.386752466 | X35: 1.393686229 | Y35: 1.40065466 | Z35: 1.407657933 | AA35: 1.414696223 | AB35: 1.421769704 | AC35: 1.428878552 | AD35: 1.436022945 | AE35: 1.44320306 | AF35: 1.450419075 | AG35: 1.457671171 | AH35: 1.464959527 | AI35: 1.472284324 | AJ35: 1.479645746 | AK35: 1.487043974 | AL35: 1.494479194 | AM35: 1.50195159 | AN35: 1.509461348 | AO35: 1.517008655 | AP35: 1.524593698 | AQ35: 1.532216667 | AR35: 1.53987775 | AS35: 1.547577139 | AT35: 1.555315025 | AU35: 1.5630916 | AV35: 1.570907058 | AW35: 1.578761593 | AX35: 1.586655401 | AY35: 1.594588678 | AZ35: 1.602561621 | BA35: 1.610574429 | BB35: 1.618627302 | BC35: 1.626720438 | BD35: 1.63485404 | BE35: 1.64302831 | BF35: 1.651243452 | BG35: 1.659499669 | BH35: 1.667797168 | BI35: 1.676136153 | BJ35: 1.684516834 | BK35: 1.692939418 | BL35: 1.701404116 | BM35: 1.709911136 | BN35: 1.718460692 | BO35: =BO32*BO33 -> 1.727052995 | BP35: 1.73568826 | BQ35: 1.744366702 | BR35: 1.753088535
A36: Trafiktillväxt (antal tåg) * (Gång och cykel) | B36: =B33*B34 -> 1 | C36: 1.0001 | D36: 1.00020001 | E36: 1.00030003 | F36: 1.00040006 | G36: 1.0005001 | H36: 1.00060015 | I36: 1.00070021 | J36: 1.00080028 | K36: 1.00090036 | L36: 1.00100045 | M36: 1.00110055 | N36: 1.00120066 | O36: 1.00130078 | P36: 1.00140091 | Q36: 1.00150105 | R36: 1.001601201 | S36: 1.001701361 | T36: 1.001801531 | U36: 1.001901711 | V36: 1.002001901 | W36: 1.002102101 | X36: 1.002202312 | Y36: 1.002302532 | Z36: 1.002402762 | AA36: 1.002503002 | AB36: 1.002603253 | AC36: 1.002703513 | AD36: 1.002803783 | AE36: 1.002904064 | AF36: 1.003004354 | AG36: 1.003104654 | AH36: 1.003204965 | AI36: 1.003305285 | AJ36: 1.003405616 | AK36: 1.003505957 | AL36: 1.003606307 | AM36: 1.003706668 | AN36: 1.003807038 | AO36: 1.003907419 | AP36: 1.00400781 | AQ36: 1.004108211 | AR36: 1.004208621 | AS36: 1.004309042 | AT36: 1.004409473 | AU36: 1.004509914 | AV36: 1.004610365 | AW36: 1.004710826 | AX36: 1.004811297 | AY36: 1.004911778 | AZ36: 1.00501227 | BA36: 1.005112771 | BB36: 1.005213282 | BC36: 1.005313803 | BD36: 1.005414335 | BE36: 1.005514876 | BF36: 1.005615428 | BG36: 1.005715989 | BH36: 1.005816561 | BI36: 1.005917143 | BJ36: 1.006017734 | BK36: 1.006118336 | BL36: 1.006218948 | BM36: 1.00631957 | BN36: 1.006420202 | BO36: 1.006520844 | BP36: 1.006621496 | BQ36: 1.006722158 | BR36: 1.00682283
A38: Diskonteringsnuvärde UTAN uppräkning med real BNP
A39: Diskonteringsnuvärde (Pb och Lb) | B39: =B32/B29 -> 1 | C39: =C32/C29 -> 0.9855072464 | D39: =D32/D29 -> 0.9712245327 | E39: 0.9571488148 | F39: 0.9432770928 | G39: 0.9296064103 | H39: 0.9161338537 | I39: 0.9028565514 | J39: 0.8897716739 | K39: 0.8768764322 | L39: 0.8641680781 | M39: 0.8516439031 | N39: 0.8393012378 | O39: 0.8271374518 | P39: 0.8151499525 | Q39: 0.803336185 | R39: 0.7800510782 | S39: 0.7574409021 | T39: 0.7354860933 | U39: 0.7141676558 | V39: 0.6934671441 | W39: 0.6733666471 | X39: 0.6538487733 | Y39: 0.6348966349 | Z39: 0.6164938339 | AA39: 0.5986244474 | AB39: 0.5812730142 | AC39: 0.564424521 | AD39: 0.54806439 | AE39: 0.5321784656 | AF39: 0.5167530028 | AG39: 0.5017746549 | AH39: 0.487230462 | AI39: 0.47310784 | AJ39: 0.4593945692 | AK39: 0.4460787846 | AL39: 0.4331489648 | AM39: 0.4205939223 | AN39: 0.4084027941 | AO39: 0.396565032 | AP39: 0.3850703934 | AQ39: 0.3739089327 | AR39: 0.3630709926 | AS39: 0.3525471957 | AT39: 0.3423284364 | AU39: 0.3324058731 | AV39: 0.3227709202 | AW39: 0.3134152414 | AX39: 0.3043307416 | AY39: 0.2955095607 | AZ39: 0.2869440662 | BA39: 0.2786268469 | BB39: 0.2705507064 | BC39: 0.2627086569 | BD39: 0.2550939133 | BE39: 0.2476998868 | BF39: 0.2405201799 | BG39: 0.2335485805 | BH39: 0.2267790564 | BI39: 0.2202057504 | BJ39: 0.2138229751 | BK39: 0.2076252077 | BL39: 0.2016070857 | BM39: 0.1957634021 | BN39: 0.1900891006 | BO39: =BO32/BO29 -> 0.1845792716 | BP39: 0.1792291477 | BQ39: 0.1740341 | BR39: 0.1689896333
A40: Diskonteringsnuvärde (G/C) | B40: =B34/B29 -> 1 | C40: =C34/C29 -> 0.9662801932 | D40: 0.9336974118 | E40: 0.9022133155 | F40: 0.8717908569 | G40: 0.8423942376 | H40: 0.8139888667 | I40: 0.7865413194 | J40: 0.7600192981 | K40: 0.7343915943 | L40: 0.7096280516 | M40: 0.6856995308 | N40: 0.6625778752 | O40: 0.6402358773 | P40: 0.6186472472 | Q40: 0.5977865816 | R40: 0.5776293335 | S40: 0.558151784 | T40: 0.5393310137 | U40: 0.5211448762 | V40: 0.5035719716 | W40: 0.4865916221 | X40: 0.4701838466 | Y40: 0.4543293382 | Z40: 0.4390094407 | AA40: 0.4242061272 | AB40: 0.4099019785 | AC40: 0.396080163 | AD40: 0.3827244165 | AE40: 0.3698190231 | AF40: 0.3573487971 | AG40: 0.3452990647 | AH40: 0.333655647 | AI40: 0.322404843 | AJ40: 0.311533414 | AK40: 0.3010285675 | AL40: 0.2908779424 | AM40: 0.2810695944 | AN40: 0.271591982 | AO40: 0.2624339528 | AP40: 0.2535847306 | AQ40: 0.2450339025 | AR40: 0.2367714067 | AS40: 0.2287875206 | AT40: 0.2210728496 | AU40: 0.2136183158 | AV40: 0.2064151475 | AW40: 0.1994548686 | AX40: 0.192729289 | AY40: 0.1862304946 | AZ40: 0.1799508383 | BA40: 0.1738829308 | BB40: 0.168019632 | BC40: 0.1623540425 | BD40: 0.1568794955 | BE40: 0.1515895493 | BF40: 0.146477979 | BG40: 0.1415387698 | BH40: 0.1367661098 | BI40: 0.132154383 | BJ40: 0.1276981628 | BK40: 0.1233922054 | BL40: 0.1192314441 | BM40: 0.1152109828 | BN40: 0.1113260908 | BO40: =BO34/BO29 -> 0.1075721965 | BP40: 0.1039448828 | BQ40: 0.1004398814 | BR40: 0.09705306805
A41: Diskonteringsnuvärde (Pb och Lb)* (antal tåg) | B41: =B35/B29 -> 1 | C41: =C35/C29 -> 0.9855072464 | D41: 0.9712245327 | E41: 0.9571488148 | F41: 0.9432770928 | G41: 0.9296064103 | H41: 0.9161338537 | I41: 0.9028565514 | J41: 0.8897716739 | K41: 0.8768764322 | L41: 0.8641680781 | M41: 0.8516439031 | N41: 0.8393012378 | O41: 0.8271374518 | P41: 0.8151499525 | Q41: 0.803336185 | R41: 0.7800510782 | S41: 0.7574409021 | T41: 0.7354860933 | U41: 0.7141676558 | V41: 0.6934671441 | W41: 0.6733666471 | X41: 0.6538487733 | Y41: 0.6348966349 | Z41: 0.6164938339 | AA41: 0.5986244474 | AB41: 0.5812730142 | AC41: 0.564424521 | AD41: 0.54806439 | AE41: 0.5321784656 | AF41: 0.5167530028 | AG41: 0.5017746549 | AH41: 0.487230462 | AI41: 0.47310784 | AJ41: 0.4593945692 | AK41: 0.4460787846 | AL41: 0.4331489648 | AM41: 0.4205939223 | AN41: 0.4084027941 | AO41: 0.396565032 | AP41: 0.3850703934 | AQ41: 0.3739089327 | AR41: 0.3630709926 | AS41: 0.3525471957 | AT41: 0.3423284364 | AU41: 0.3324058731 | AV41: 0.3227709202 | AW41: 0.3134152414 | AX41: 0.3043307416 | AY41: 0.2955095607 | AZ41: 0.2869440662 | BA41: 0.2786268469 | BB41: 0.2705507064 | BC41: 0.2627086569 | BD41: 0.2550939133 | BE41: 0.2476998868 | BF41: 0.2405201799 | BG41: 0.2335485805 | BH41: 0.2267790564 | BI41: 0.2202057504 | BJ41: 0.2138229751 | BK41: 0.2076252077 | BL41: 0.2016070857 | BM41: 0.1957634021 | BN41: 0.1900891006 | BO41: =BO35/BO29 -> 0.1845792716 | BP41: 0.1792291477 | BQ41: 0.1740341 | BR41: 0.1689896333
A42: Diskonteringsnuvärde (antal tåg) och (Gång och cykel) | B42: =B36/B29 -> 1 | C42: =C36/C29 -> 0.9662801932 | D42: 0.9336974118 | E42: 0.9022133155 | F42: 0.8717908569 | G42: 0.8423942376 | H42: 0.8139888667 | I42: 0.7865413194 | J42: 0.7600192981 | K42: 0.7343915943 | L42: 0.7096280516 | M42: 0.6856995308 | N42: 0.6625778752 | O42: 0.6402358773 | P42: 0.6186472472 | Q42: 0.5977865816 | R42: 0.5776293335 | S42: 0.558151784 | T42: 0.5393310137 | U42: 0.5211448762 | V42: 0.5035719716 | W42: 0.4865916221 | X42: 0.4701838466 | Y42: 0.4543293382 | Z42: 0.4390094407 | AA42: 0.4242061272 | AB42: 0.4099019785 | AC42: 0.396080163 | AD42: 0.3827244165 | AE42: 0.3698190231 | AF42: 0.3573487971 | AG42: 0.3452990647 | AH42: 0.333655647 | AI42: 0.322404843 | AJ42: 0.311533414 | AK42: 0.3010285675 | AL42: 0.2908779424 | AM42: 0.2810695944 | AN42: 0.271591982 | AO42: 0.2624339528 | AP42: 0.2535847306 | AQ42: 0.2450339025 | AR42: 0.2367714067 | AS42: 0.2287875206 | AT42: 0.2210728496 | AU42: 0.2136183158 | AV42: 0.2064151475 | AW42: 0.1994548686 | AX42: 0.192729289 | AY42: 0.1862304946 | AZ42: 0.1799508383 | BA42: 0.1738829308 | BB42: 0.168019632 | BC42: 0.1623540425 | BD42: 0.1568794955 | BE42: 0.1515895493 | BF42: 0.146477979 | BG42: 0.1415387698 | BH42: 0.1367661098 | BI42: 0.132154383 | BJ42: 0.1276981628 | BK42: 0.1233922054 | BL42: 0.1192314441 | BM42: 0.1152109828 | BN42: 0.1113260908 | BO42: =BO36/BO29 -> 0.1075721965 | BP42: 0.1039448828 | BQ42: 0.1004398814 | BR42: 0.09705306805
A44: Uppräkningsfaktor för real BNP | B44: =IF((Kalkylvärden!$B$6+C28-1)<=(Kalkylvärden!$B$6+Kalkylvärden!$B$14),(1+$B$16/100)^(B28-1),(1+$B$16/100)^(Kalkylvärden!$B$14)) -> 1 | C44: =IF((Kalkylvärden!$B$6+D28-1)<=(Kalkylvärden!$B$6+Kalkylvärden!$B$14),(1+$B$16/100)^(C28-1),(1+$B$16/100)^(Kalkylvärden!$B$14)) -> 1.015 | D44: =IF((Kalkylvärden!$B$6+E28-1)<=(Kalkylvärden!$B$6+Kalkylvärden!$B$14),(1+$B$16/100)^(D28-1),(1+$B$16/100)^(Kalkylvärden!$B$14)) -> 1.030225 | E44: =IF((Kalkylvärden!$B$6+F28-1)<=(Kalkylvärden!$B$6+Kalkylvärden!$B$14),(1+$B$16/100)^(E28-1),(1+$B$16/100)^(Kalkylvärden!$B$14)) -> 1.045678375 | F44: =IF((Kalkylvärden!$B$6+G28-1)<=(Kalkylvärden!$B$6+Kalkylvärden!$B$14),(1+$B$16/100)^(F28-1),(1+$B$16/100)^(Kalkylvärden!$B$14)) -> 1.061363551 | G44: =IF((Kalkylvärden!$B$6+H28-1)<=(Kalkylvärden!$B$6+Kalkylvärden!$B$14),(1+$B$16/100)^(G28-1),(1+$B$16/100)^(Kalkylvärden!$B$14)) -> 1.077284004 | H44: =IF((Kalkylvärden!$B$6+I28-1)<=(Kalkylvärden!$B$6+Kalkylvärden!$B$14),(1+$B$16/100)^(H28-1),(1+$B$16/100)^(Kalkylvärden!$B$14)) -> 1.093443264 | I44: =IF((Kalkylvärden!$B$6+J28-1)<=(Kalkylvärden!$B$6+Kalkylvärden!$B$14),(1+$B$16/100)^(I28-1),(1+$B$16/100)^(Kalkylvärden!$B$14)) -> 1.109844913 | J44: =IF((Kalkylvärden!$B$6+K28-1)<=(Kalkylvärden!$B$6+Kalkylvärden!$B$14),(1+$B$16/100)^(J28-1),(1+$B$16/100)^(Kalkylvärden!$B$14)) -> 1.126492587 | K44: =IF((Kalkylvärden!$B$6+L28-1)<=(Kalkylvärden!$B$6+Kalkylvärden!$B$14),(1+$B$16/100)^(K28-1),(1+$B$16/100)^(Kalkylvärden!$B$14)) -> 1.143389975 | L44: =IF((Kalkylvärden!$B$6+M28-1)<=(Kalkylvärden!$B$6+Kalkylvärden!$B$14),(1+$B$16/100)^(L28-1),(1+$B$16/100)^(Kalkylvärden!$B$14)) -> 1.160540825 | M44: =IF((Kalkylvärden!$B$6+N28-1)<=(Kalkylvärden!$B$6+Kalkylvärden!$B$14),(1+$B$16/100)^(M28-1),(1+$B$16/100)^(Kalkylvärden!$B$14)) -> 1.177948937 | N44: =IF((Kalkylvärden!$B$6+O28-1)<=(Kalkylvärden!$B$6+Kalkylvärden!$B$14),(1+$B$16/100)^(N28-1),(1+$B$16/100)^(Kalkylvärden!$B$14)) -> 1.195618171 | O44: =IF((Kalkylvärden!$B$6+P28-1)<=(Kalkylvärden!$B$6+Kalkylvärden!$B$14),(1+$B$16/100)^(O28-1),(1+$B$16/100)^(Kalkylvärden!$B$14)) -> 1.213552444 | P44: =IF((Kalkylvärden!$B$6+Q28-1)<=(Kalkylvärden!$B$6+Kalkylvärden!$B$14),(1+$B$16/100)^(P28-1),(1+$B$16/100)^(Kalkylvärden!$B$14)) -> 1.231755731 | Q44: =IF((Kalkylvärden!$B$6+R28-1)<=(Kalkylvärden!$B$6+Kalkylvärden!$B$14),(1+$B$16/100)^(Q28-1),(1+$B$16/100)^(Kalkylvärden!$B$14)) -> 1.250232067 | R44: =IF((Kalkylvärden!$B$6+S28-1)<=(Kalkylvärden!$B$6+Kalkylvärden!$B$14),(1+$B$16/100)^(R28-1),(1+$B$16/100)^(Kalkylvärden!$B$14)) -> 1.268985548 | S44: =IF((Kalkylvärden!$B$6+T28-1)<=(Kalkylvärden!$B$6+Kalkylvärden!$B$14),(1+$B$16/100)^(S28-1),(1+$B$16/100)^(Kalkylvärden!$B$14)) -> 1.288020331 | T44: =IF((Kalkylvärden!$B$6+U28-1)<=(Kalkylvärden!$B$6+Kalkylvärden!$B$14),(1+$B$16/100)^(T28-1),(1+$B$16/100)^(Kalkylvärden!$B$14)) -> 1.307340636 | U44: =IF((Kalkylvärden!$B$6+V28-1)<=(Kalkylvärden!$B$6+Kalkylvärden!$B$14),(1+$B$16/100)^(U28-1),(1+$B$16/100)^(Kalkylvärden!$B$14)) -> 1.326950745 | V44: =IF((Kalkylvärden!$B$6+W28-1)<=(Kalkylvärden!$B$6+Kalkylvärden!$B$14),(1+$B$16/100)^(V28-1),(1+$B$16/100)^(Kalkylvärden!$B$14)) -> 1.346855007 | W44: =IF((Kalkylvärden!$B$6+X28-1)<=(Kalkylvärden!$B$6+Kalkylvärden!$B$14),(1+$B$16/100)^(W28-1),(1+$B$16/100)^(Kalkylvärden!$B$14)) -> 1.367057832 | X44: =IF((Kalkylvärden!$B$6+Y28-1)<=(Kalkylvärden!$B$6+Kalkylvärden!$B$14),(1+$B$16/100)^(X28-1),(1+$B$16/100)^(Kalkylvärden!$B$14)) -> 1.387563699 | Y44: =IF((Kalkylvärden!$B$6+Z28-1)<=(Kalkylvärden!$B$6+Kalkylvärden!$B$14),(1+$B$16/100)^(Y28-1),(1+$B$16/100)^(Kalkylvärden!$B$14)) -> 1.408377155 | Z44: =IF((Kalkylvärden!$B$6+AA28-1)<=(Kalkylvärden!$B$6+Kalkylvärden!$B$14),(1+$B$16/100)^(Z28-1),(1+$B$16/100)^(Kalkylvärden!$B$14)) -> 1.429502812 | AA44: =IF((Kalkylvärden!$B$6+AB28-1)<=(Kalkylvärden!$B$6+Kalkylvärden!$B$14),(1+$B$16/100)^(AA28-1),(1+$B$16/100)^(Kalkylvärden!$B$14)) -> 1.450945354 | AB44: =IF((Kalkylvärden!$B$6+AC28-1)<=(Kalkylvärden!$B$6+Kalkylvärden!$B$14),(1+$B$16/100)^(AB28-1),(1+$B$16/100)^(Kalkylvärden!$B$14)) -> 1.472709534 | AC44: =IF((Kalkylvärden!$B$6+AD28-1)<=(Kalkylvärden!$B$6+Kalkylvärden!$B$14),(1+$B$16/100)^(AC28-1),(1+$B$16/100)^(Kalkylvärden!$B$14)) -> 1.494800177 | AD44: =IF((Kalkylvärden!$B$6+AE28-1)<=(Kalkylvärden!$B$6+Kalkylvärden!$B$14),(1+$B$16/100)^(AD28-1),(1+$B$16/100)^(Kalkylvärden!$B$14)) -> 1.51722218 | AE44: =IF((Kalkylvärden!$B$6+AF28-1)<=(Kalkylvärden!$B$6+Kalkylvärden!$B$14),(1+$B$16/100)^(AE28-1),(1+$B$16/100)^(Kalkylvärden!$B$14)) -> 1.539980513 | AF44: =IF((Kalkylvärden!$B$6+AG28-1)<=(Kalkylvärden!$B$6+Kalkylvärden!$B$14),(1+$B$16/100)^(AF28-1),(1+$B$16/100)^(Kalkylvärden!$B$14)) -> 1.56308022 | AG44: =IF((Kalkylvärden!$B$6+AH28-1)<=(Kalkylvärden!$B$6+Kalkylvärden!$B$14),(1+$B$16/100)^(AG28-1),(1+$B$16/100)^(Kalkylvärden!$B$14)) -> 1.586526424 | AH44: =IF((Kalkylvärden!$B$6+AI28-1)<=(Kalkylvärden!$B$6+Kalkylvärden!$B$14),(1+$B$16/100)^(AH28-1),(1+$B$16/100)^(Kalkylvärden!$B$14)) -> 1.61032432 | AI44: =IF((Kalkylvärden!$B$6+AJ28-1)<=(Kalkylvärden!$B$6+Kalkylvärden!$B$14),(1+$B$16/100)^(AI28-1),(1+$B$16/100)^(Kalkylvärden!$B$14)) -> 1.634479185 | AJ44: =IF((Kalkylvärden!$B$6+AK28-1)<=(Kalkylvärden!$B$6+Kalkylvärden!$B$14),(1+$B$16/100)^(AJ28-1),(1+$B$16/100)^(Kalkylvärden!$B$14)) -> 1.658996373 | AK44: =IF((Kalkylvärden!$B$6+AL28-1)<=(Kalkylvärden!$B$6+Kalkylvärden!$B$14),(1+$B$16/100)^(AK28-1),(1+$B$16/100)^(Kalkylvärden!$B$14)) -> 1.683881318 | AL44: =IF((Kalkylvärden!$B$6+AM28-1)<=(Kalkylvärden!$B$6+Kalkylvärden!$B$14),(1+$B$16/100)^(AL28-1),(1+$B$16/100)^(Kalkylvärden!$B$14)) -> 1.709139538 | AM44: =IF((Kalkylvärden!$B$6+AN28-1)<=(Kalkylvärden!$B$6+Kalkylvärden!$B$14),(1+$B$16/100)^(AM28-1),(1+$B$16/100)^(Kalkylvärden!$B$14)) -> 1.734776631 | AN44: =IF((Kalkylvärden!$B$6+AO28-1)<=(Kalkylvärden!$B$6+Kalkylvärden!$B$14),(1+$B$16/100)^(AN28-1),(1+$B$16/100)^(Kalkylvärden!$B$14)) -> 1.760798281 | AO44: =IF((Kalkylvärden!$B$6+AP28-1)<=(Kalkylvärden!$B$6+Kalkylvärden!$B$14),(1+$B$16/100)^(AO28-1),(1+$B$16/100)^(Kalkylvärden!$B$14)) -> 1.787210255 | AP44: =IF((Kalkylvärden!$B$6+AQ28-1)<=(Kalkylvärden!$B$6+Kalkylvärden!$B$14),(1+$B$16/100)^(AP28-1),(1+$B$16/100)^(Kalkylvärden!$B$14)) -> 1.814018409 | AQ44: =IF((Kalkylvärden!$B$6+AR28-1)<=(Kalkylvärden!$B$6+Kalkylvärden!$B$14),(1+$B$16/100)^(AQ28-1),(1+$B$16/100)^(Kalkylvärden!$B$14)) -> 1.814018409 | AR44: =IF((Kalkylvärden!$B$6+AS28-1)<=(Kalkylvärden!$B$6+Kalkylvärden!$B$14),(1+$B$16/100)^(AR28-1),(1+$B$16/100)^(Kalkylvärden!$B$14)) -> 1.814018409 | AS44: =IF((Kalkylvärden!$B$6+AT28-1)<=(Kalkylvärden!$B$6+Kalkylvärden!$B$14),(1+$B$16/100)^(AS28-1),(1+$B$16/100)^(Kalkylvärden!$B$14)) -> 1.814018409 | AT44: =IF((Kalkylvärden!$B$6+AU28-1)<=(Kalkylvärden!$B$6+Kalkylvärden!$B$14),(1+$B$16/100)^(AT28-1),(1+$B$16/100)^(Kalkylvärden!$B$14)) -> 1.814018409 | AU44: =IF((Kalkylvärden!$B$6+AV28-1)<=(Kalkylvärden!$B$6+Kalkylvärden!$B$14),(1+$B$16/100)^(AU28-1),(1+$B$16/100)^(Kalkylvärden!$B$14)) -> 1.814018409 | AV44: =IF((Kalkylvärden!$B$6+AW28-1)<=(Kalkylvärden!$B$6+Kalkylvärden!$B$14),(1+$B$16/100)^(AV28-1),(1+$B$16/100)^(Kalkylvärden!$B$14)) -> 1.814018409 | AW44: =IF((Kalkylvärden!$B$6+AX28-1)<=(Kalkylvärden!$B$6+Kalkylvärden!$B$14),(1+$B$16/100)^(AW28-1),(1+$B$16/100)^(Kalkylvärden!$B$14)) -> 1.814018409 | AX44: =IF((Kalkylvärden!$B$6+AY28-1)<=(Kalkylvärden!$B$6+Kalkylvärden!$B$14),(1+$B$16/100)^(AX28-1),(1+$B$16/100)^(Kalkylvärden!$B$14)) -> 1.814018409 | AY44: =IF((Kalkylvärden!$B$6+AZ28-1)<=(Kalkylvärden!$B$6+Kalkylvärden!$B$14),(1+$B$16/100)^(AY28-1),(1+$B$16/100)^(Kalkylvärden!$B$14)) -> 1.814018409 | AZ44: =IF((Kalkylvärden!$B$6+BA28-1)<=(Kalkylvärden!$B$6+Kalkylvärden!$B$14),(1+$B$16/100)^(AZ28-1),(1+$B$16/100)^(Kalkylvärden!$B$14)) -> 1.814018409 | BA44: =IF((Kalkylvärden!$B$6+BB28-1)<=(Kalkylvärden!$B$6+Kalkylvärden!$B$14),(1+$B$16/100)^(BA28-1),(1+$B$16/100)^(Kalkylvärden!$B$14)) -> 1.814018409 | BB44: =IF((Kalkylvärden!$B$6+BC28-1)<=(Kalkylvärden!$B$6+Kalkylvärden!$B$14),(1+$B$16/100)^(BB28-1),(1+$B$16/100)^(Kalkylvärden!$B$14)) -> 1.814018409 | BC44: =IF((Kalkylvärden!$B$6+BD28-1)<=(Kalkylvärden!$B$6+Kalkylvärden!$B$14),(1+$B$16/100)^(BC28-1),(1+$B$16/100)^(Kalkylvärden!$B$14)) -> 1.814018409 | BD44: =IF((Kalkylvärden!$B$6+BE28-1)<=(Kalkylvärden!$B$6+Kalkylvärden!$B$14),(1+$B$16/100)^(BD28-1),(1+$B$16/100)^(Kalkylvärden!$B$14)) -> 1.814018409 | BE44: =IF((Kalkylvärden!$B$6+BF28-1)<=(Kalkylvärden!$B$6+Kalkylvärden!$B$14),(1+$B$16/100)^(BE28-1),(1+$B$16/100)^(Kalkylvärden!$B$14)) -> 1.814018409 | BF44: =IF((Kalkylvärden!$B$6+BG28-1)<=(Kalkylvärden!$B$6+Kalkylvärden!$B$14),(1+$B$16/100)^(BF28-1),(1+$B$16/100)^(Kalkylvärden!$B$14)) -> 1.814018409 | BG44: =IF((Kalkylvärden!$B$6+BH28-1)<=(Kalkylvärden!$B$6+Kalkylvärden!$B$14),(1+$B$16/100)^(BG28-1),(1+$B$16/100)^(Kalkylvärden!$B$14)) -> 1.814018409 | BH44: =IF((Kalkylvärden!$B$6+BI28-1)<=(Kalkylvärden!$B$6+Kalkylvärden!$B$14),(1+$B$16/100)^(BH28-1),(1+$B$16/100)^(Kalkylvärden!$B$14)) -> 1.814018409 | BI44: =IF((Kalkylvärden!$B$6+BJ28-1)<=(Kalkylvärden!$B$6+Kalkylvärden!$B$14),(1+$B$16/100)^(BI28-1),(1+$B$16/100)^(Kalkylvärden!$B$14)) -> 1.814018409 | BJ44: =IF((Kalkylvärden!$B$6+BK28-1)<=(Kalkylvärden!$B$6+Kalkylvärden!$B$14),(1+$B$16/100)^(BJ28-1),(1+$B$16/100)^(Kalkylvärden!$B$14)) -> 1.814018409 | BK44: =IF((Kalkylvärden!$B$6+BL28-1)<=(Kalkylvärden!$B$6+Kalkylvärden!$B$14),(1+$B$16/100)^(BK28-1),(1+$B$16/100)^(Kalkylvärden!$B$14)) -> 1.814018409 | BL44: =IF((Kalkylvärden!$B$6+BM28-1)<=(Kalkylvärden!$B$6+Kalkylvärden!$B$14),(1+$B$16/100)^(BL28-1),(1+$B$16/100)^(Kalkylvärden!$B$14)) -> 1.814018409 | BM44: =IF((Kalkylvärden!$B$6+BN28-1)<=(Kalkylvärden!$B$6+Kalkylvärden!$B$14),(1+$B$16/100)^(BM28-1),(1+$B$16/100)^(Kalkylvärden!$B$14)) -> 1.814018409 | BN44: =IF((Kalkylvärden!$B$6+BO28-1)<=(Kalkylvärden!$B$6+Kalkylvärden!$B$14),(1+$B$16/100)^(BN28-1),(1+$B$16/100)^(Kalkylvärden!$B$14)) -> 1.814018409 | BO44: =IF((Kalkylvärden!$B$6+BP28-1)<=(Kalkylvärden!$B$6+Kalkylvärden!$B$14),(1+$B$16/100)^(BO28-1),(1+$B$16/100)^(Kalkylvärden!$B$14)) -> 1.814018409 | BP44: =IF((Kalkylvärden!$B$6+BQ28-1)<=(Kalkylvärden!$B$6+Kalkylvärden!$B$14),(1+$B$16/100)^(BP28-1),(1+$B$16/100)^(Kalkylvärden!$B$14)) -> 1.814018409 | BQ44: =IF((Kalkylvärden!$B$6+BR28-1)<=(Kalkylvärden!$B$6+Kalkylvärden!$B$14),(1+$B$16/100)^(BQ28-1),(1+$B$16/100)^(Kalkylvärden!$B$14)) -> 1.814018409 | BR44: =IF((Kalkylvärden!$B$6+BS28-1)<=(Kalkylvärden!$B$6+Kalkylvärden!$B$14),(1+$B$16/100)^(BR28-1),(1+$B$16/100)^(Kalkylvärden!$B$14)) -> 1.814018409
A46: Diskonteringsnuvärde MED uppräkningsfaktor för real BNP
A47: Diskonteringsnuvärde (Pb och Lb) | B47: =(B32*B44)/B29 -> 1 | C47: =(C32*C44)/C29 -> 1.000289855 | D47: 1.000579794 | E47: 1.000869817 | F47: 1.001159924 | G47: 1.001450116 | H47: 1.001740391 | I47: 1.002030751 | J47: 1.002321194 | K47: 1.002611722 | L47: 1.002902334 | M47: 1.003193031 | N47: 1.003483811 | O47: 1.003774676 | P47: 1.004065625 | Q47: 1.004356659 | R47: 0.9898735447 | S47: 0.9755992813 | T47: 0.9615308569 | U47: 0.9476653032 | V47: 0.9339996948 | W47: 0.9205311485 | X47: 0.9072568225 | Y47: 0.8941739162 | Z47: 0.8812796691 | AA47: 0.8685713609 | AB47: 0.8560463101 | AC47: 0.8437018742 | AD47: 0.8315354486 | AE47: 0.8195444664 | AF47: 0.8077263976 | AG47: 0.7960787489 | AH47: 0.7845990625 | AI47: 0.7732849166 | AJ47: 0.762133924 | AK47: 0.7511437319 | AL47: 0.7403120216 | AM47: 0.7296365076 | AN47: 0.7191149377 | AO47: 0.7087450919 | AP47: 0.6985247822 | AQ47: 0.6782776871 | AR47: 0.6586174643 | AS47: 0.639527103 | AT47: 0.6209900855 | AU47: 0.6029903729 | AV47: 0.5855123911 | AW47: 0.5685410174 | AX47: 0.5520615676 | AY47: 0.5360597831 | AZ47: 0.5205218183 | BA47: 0.5054342294 | BB47: 0.4907839619 | BC47: 0.4765583398 | BD47: 0.4627450546 | BE47: 0.4493321544 | BF47: 0.436308034 | BG47: 0.4236614243 | BH47: 0.4113813831 | BI47: 0.399457285 | BJ47: 0.387878813 | BK47: 0.3766359488 | BL47: 0.3657189648 | BM47: 0.3551184151 | BN47: 0.3448251277 | BO47: =(BO32*BO44)/BO29 -> 0.3348301965 | BP47: 0.3251249734 | BQ47: 0.3157010611 | BR47: 0.3065503057
A48: Diskonteringsnuvärde (G/C) | B48: =(B34*B44)/B29 -> 1 | C48: =(C34*C44)/C29 -> 0.9807743961 | D48: 0.9619184161 | E48: 0.9434249537 | F48: 0.9252870393 | G48: 0.9074978372 | H48: 0.8900506433 | I48: 0.8729388822 | J48: 0.856156105 | K48: 0.8396959869 | L48: 0.8235523245 | M48: 0.8077190337 | N48: 0.7921901476 | O48: 0.7769598136 | P48: 0.762022292 | Q48: 0.7473719533 | R48: 0.7330032762 | S48: 0.7189108455 | T48: 0.7050893504 | U48: 0.6915335819 | V48: 0.6782384312 | W48: 0.6651988878 | X48: 0.6524100375 | Y48: 0.6398670605 | Z48: 0.6275652299 | AA48: 0.6154999094 | AB48: 0.6036665519 | AC48: 0.592060698 | AD48: 0.5806779735 | AE48: 0.5695140888 | AF48: 0.5585648366 | AG48: 0.5478260903 | AH48: 0.5372938029 | AI48: 0.5269640051 | AJ48: 0.5168328038 | AK48: 0.5068963811 | AL48: 0.4971509921 | AM48: 0.487592964 | AN48: 0.4782186949 | AO48: 0.4690246517 | AP48: 0.4600073695 | AQ48: 0.4444960099 | AR48: 0.4295076903 | AS48: 0.415024774 | AT48: 0.4010302188 | AU48: 0.3875075574 | AV48: 0.3744408774 | AW48: 0.3618148034 | AX48: 0.3496144781 | AY48: 0.3378255455 | AZ48: 0.3264341334 | BA48: 0.3154268375 | BB48: 0.3047907055 | BC48: 0.2945132218 | BD48: 0.2845822928 | BE48: 0.2749862329 | BF48: 0.2657137503 | BG48: 0.256753934 | BH48: 0.2480962409 | BI48: 0.2397304836 | BJ48: 0.231646818 | BK48: 0.2238357321 | BL48: 0.2162880345 | BM48: 0.2089948437 | BN48: 0.201947578 | BO48: =(BO34*BO44)/BO29 -> 0.1951379447 | BP48: 0.1885579309 | BQ48: 0.1821997939 | BR48: 0.1760560521
A49: Diskonteringsnuvärde (Pb och Lb) + (antal tåg) | B49: =(B32*B33*B44)/B29 -> 1 | C49: =(C32*C33*C44)/C29 -> 1.000289855 | D49: 1.000579794 | E49: 1.000869817 | F49: 1.001159924 | G49: 1.001450116 | H49: 1.001740391 | I49: 1.002030751 | J49: 1.002321194 | K49: 1.002611722 | L49: 1.002902334 | M49: 1.003193031 | N49: 1.003483811 | O49: 1.003774676 | P49: 1.004065625 | Q49: 1.004356659 | R49: 0.9898735447 | S49: 0.9755992813 | T49: 0.9615308569 | U49: 0.9476653032 | V49: 0.9339996948 | W49: 0.9205311485 | X49: 0.9072568225 | Y49: 0.8941739162 | Z49: 0.8812796691 | AA49: 0.8685713609 | AB49: 0.8560463101 | AC49: 0.8437018742 | AD49: 0.8315354486 | AE49: 0.8195444664 | AF49: 0.8077263976 | AG49: 0.7960787489 | AH49: 0.7845990625 | AI49: 0.7732849166 | AJ49: 0.762133924 | AK49: 0.7511437319 | AL49: 0.7403120216 | AM49: 0.7296365076 | AN49: 0.7191149377 | AO49: 0.7087450919 | AP49: 0.6985247822 | AQ49: 0.6782776871 | AR49: 0.6586174643 | AS49: 0.639527103 | AT49: 0.6209900855 | AU49: 0.6029903729 | AV49: 0.5855123911 | AW49: 0.5685410174 | AX49: 0.5520615676 | AY49: 0.5360597831 | AZ49: 0.5205218183 | BA49: 0.5054342294 | BB49: 0.4907839619 | BC49: 0.4765583398 | BD49: 0.4627450546 | BE49: 0.4493321544 | BF49: 0.436308034 | BG49: 0.4236614243 | BH49: 0.4113813831 | BI49: 0.399457285 | BJ49: 0.387878813 | BK49: 0.3766359488 | BL49: 0.3657189648 | BM49: 0.3551184151 | BN49: 0.3448251277 | BO49: =(BO32*BO33*BO44)/BO29 -> 0.3348301965 | BP49: 0.3251249734 | BQ49: 0.3157010611 | BR49: 0.3065503057
A50: Diskonteringsnuvärde (antal tåg) och (Gång och cykel) | B50: =(B33*B34*B44)/B29 -> 1 | C50: =(C33*C34*C44)/C29 -> 0.9807743961 | D50: 0.9619184161 | E50: 0.9434249537 | F50: 0.9252870393 | G50: 0.9074978372 | H50: 0.8900506433 | I50: 0.8729388822 | J50: 0.856156105 | K50: 0.8396959869 | L50: 0.8235523245 | M50: 0.8077190337 | N50: 0.7921901476 | O50: 0.7769598136 | P50: 0.762022292 | Q50: 0.7473719533 | R50: 0.7330032762 | S50: 0.7189108455 | T50: 0.7050893504 | U50: 0.6915335819 | V50: 0.6782384312 | W50: 0.6651988878 | X50: 0.6524100375 | Y50: 0.6398670605 | Z50: 0.6275652299 | AA50: 0.6154999094 | AB50: 0.6036665519 | AC50: 0.592060698 | AD50: 0.5806779735 | AE50: 0.5695140888 | AF50: 0.5585648366 | AG50: 0.5478260903 | AH50: 0.5372938029 | AI50: 0.5269640051 | AJ50: 0.5168328038 | AK50: 0.5068963811 | AL50: 0.4971509921 | AM50: 0.487592964 | AN50: 0.4782186949 | AO50: 0.4690246517 | AP50: 0.4600073695 | AQ50: 0.4444960099 | AR50: 0.4295076903 | AS50: 0.415024774 | AT50: 0.4010302188 | AU50: 0.3875075574 | AV50: 0.3744408774 | AW50: 0.3618148034 | AX50: 0.3496144781 | AY50: 0.3378255455 | AZ50: 0.3264341334 | BA50: 0.3154268375 | BB50: 0.3047907055 | BC50: 0.2945132218 | BD50: 0.2845822928 | BE50: 0.2749862329 | BF50: 0.2657137503 | BG50: 0.256753934 | BH50: 0.2480962409 | BI50: 0.2397304836 | BJ50: 0.231646818 | BK50: 0.2238357321 | BL50: 0.2162880345 | BM50: 0.2089948437 | BN50: 0.201947578 | BO50: =(BO33*BO34*BO44)/BO29 -> 0.1951379447 | BP50: 0.1885579309 | BQ50: 0.1821997939 | BR50: 0.1760560521
A52: KALKYLRESULTAT (DISKONTERINGAR)
A54: Investeringskostnader
A55: År | B55: =Indata!B11 -> -6 | C55: =B55+1 -> -5 | D55: -4 | E55: -3 | F55: -2 | G55: -1 | H55: =Indata!H11 -> 2025 | I55: 2026 | J55: 2027 | K55: 2028 | L55: 2029 | M55: 2030 | N55: 2031 | O55: 2032 | P55: 2033 | Q55: 2034 | R55: 2035 | S55: 2036 | T55: 2037 | U55: 2038 | V55: 2039 | W55: 2040 | X55: 2041 | Y55: 2042 | Z55: 2043 | AA55: 2044 | AB55: 2045 | AC55: 2046 | AD55: 2047 | AE55: 2048 | AF55: 2049 | AG55: 2050 | AH55: 2051 | AI55: 2052 | AJ55: 2053 | AK55: 2054 | AL55: 2055 | AM55: 2056 | AN55: 2057 | AO55: 2058 | AP55: 2059 | AQ55: 2060 | AR55: 2061 | AS55: 2062 | AT55: 2063 | AU55: 2064 | AV55: 2065 | AW55: 2066 | AX55: 2067 | AY55: 2068 | AZ55: 2069 | BA55: 2070 | BB55: 2071 | BC55: 2072 | BD55: 2073 | BE55: 2074 | BF55: 2075 | BG55: 2076 | BH55: 2077 | BI55: 2078 | BJ55: 2079 | BK55: 2080 | BL55: 2081 | BM55: 2082 | BN55: 2083 | BO55: =BN55+1 -> 2084 | BP55: 2085 | BQ55: 2086 | BR55: 2087 | BS55: 2088
A56: Anläggningskostnader UA (prisnivå 2010-06) | B56: =Indata!B12 -> 0 | C56: =Indata!C12 -> 0 | D56: =Indata!D12 -> 0 | E56: =Indata!E12 -> 0 | F56: =Indata!F12 -> 0 | G56: =Indata!G12 -> 0 | H56: =Indata!H12 -> 0 | I56: =Indata!I12 -> 0 | J56: =Indata!J12 -> 0 | K56: =Indata!K12 -> 0 | L56: =Indata!L12 -> 0 | M56: =Indata!M12 -> 0 | N56: =Indata!N12 -> 0 | O56: =Indata!O12 -> 0 | P56: =Indata!P12 -> 0 | Q56: =Indata!Q12 -> 0 | R56: =Indata!R12 -> 0 | S56: =Indata!S12 -> 0 | T56: =Indata!T12 -> 0 | U56: =Indata!U12 -> 0 | V56: =Indata!V12 -> 0 | W56: =Indata!W12 -> 0 | X56: =Indata!X12 -> 0 | Y56: =Indata!Y12 -> 0 | Z56: =Indata!Z12 -> 0 | AA56: =Indata!AA12 -> 0 | AB56: =Indata!AB12 -> 0 | AC56: =Indata!AC12 -> 0 | AD56: =Indata!AD12 -> 0 | AE56: =Indata!AE12 -> 0 | AF56: =Indata!AF12 -> 0 | AG56: =Indata!AG12 -> 0 | AH56: =Indata!AH12 -> 0 | AI56: =Indata!AI12 -> 0 | AJ56: =Indata!AJ12 -> 0 | AK56: =Indata!AK12 -> 0 | AL56: =Indata!AL12 -> 0 | AM56: =Indata!AM12 -> 0 | AN56: =Indata!AN12 -> 0 | AO56: =Indata!AO12 -> 0 | AP56: =Indata!AP12 -> 0 | AQ56: =Indata!AQ12 -> 0 | AR56: =Indata!AR12 -> 0 | AS56: =Indata!AS12 -> 0 | AT56: =Indata!AT12 -> 0 | AU56: =Indata!AU12 -> 0 | AV56: =Indata!AV12 -> 0 | AW56: =Indata!AW12 -> 0 | AX56: =Indata!AX12 -> 0 | AY56: =Indata!AY12 -> 0 | AZ56: =Indata!AZ12 -> 0 | BA56: =Indata!BA12 -> 0 | BB56: =Indata!BB12 -> 0 | BC56: =Indata!BC12 -> 0 | BD56: =Indata!BD12 -> 0 | BE56: =Indata!BE12 -> 0 | BF56: =Indata!BF12 -> 0 | BG56: =Indata!BG12 -> 0 | BH56: =Indata!BH12 -> 0 | BI56: =Indata!BI12 -> 0 | BJ56: =Indata!BJ12 -> 0 | BK56: =Indata!BK12 -> 0 | BL56: =Indata!BL12 -> 0 | BM56: =Indata!BM12 -> 0 | BN56: =Indata!BN12 -> 0 | BO56: =Indata!BO12 -> 0 | BP56: =Indata!BP12 -> 0 | BQ56: =Indata!BQ12 -> 0 | BR56: =Indata!BR12 -> 0 | BS56: =Indata!BS12 -> 0
A57: Anläggningskostnader JA (prisnivå 2010-06) | B57: =Indata!B13 -> 0 | C57: =Indata!C13 -> 0 | D57: =Indata!D13 -> 0 | E57: =Indata!E13 -> 0 | F57: =Indata!F13 -> 0 | G57: =Indata!G13 -> 0 | H57: =Indata!H13 -> 0 | I57: =Indata!I13 -> 0 | J57: =Indata!J13 -> 0 | K57: =Indata!K13 -> 0 | L57: =Indata!L13 -> 0 | M57: =Indata!M13 -> 0 | N57: =Indata!N13 -> 0 | O57: =Indata!O13 -> 0 | P57: =Indata!P13 -> 0 | Q57: =Indata!Q13 -> 0 | R57: =Indata!R13 -> 0 | S57: =Indata!S13 -> 0 | T57: =Indata!T13 -> 0 | U57: =Indata!U13 -> 0 | V57: =Indata!V13 -> 0 | W57: =Indata!W13 -> 0 | X57: =Indata!X13 -> 0 | Y57: =Indata!Y13 -> 0 | Z57: =Indata!Z13 -> 0 | AA57: =Indata!AA13 -> 0 | AB57: =Indata!AB13 -> 0 | AC57: =Indata!AC13 -> 0 | AD57: =Indata!AD13 -> 0 | AE57: =Indata!AE13 -> 0 | AF57: =Indata!AF13 -> 0 | AG57: =Indata!AG13 -> 0 | AH57: =Indata!AH13 -> 0 | AI57: =Indata!AI13 -> 0 | AJ57: =Indata!AJ13 -> 0 | AK57: =Indata!AK13 -> 0 | AL57: =Indata!AL13 -> 0 | AM57: =Indata!AM13 -> 0 | AN57: =Indata!AN13 -> 0 | AO57: =Indata!AO13 -> 0 | AP57: =Indata!AP13 -> 0 | AQ57: =Indata!AQ13 -> 0 | AR57: =Indata!AR13 -> 0 | AS57: =Indata!AS13 -> 0 | AT57: =Indata!AT13 -> 0 | AU57: =Indata!AU13 -> 0 | AV57: =Indata!AV13 -> 0 | AW57: =Indata!AW13 -> 0 | AX57: =Indata!AX13 -> 0 | AY57: =Indata!AY13 -> 0 | AZ57: =Indata!AZ13 -> 0 | BA57: =Indata!BA13 -> 0 | BB57: =Indata!BB13 -> 0 | BC57: =Indata!BC13 -> 0 | BD57: =Indata!BD13 -> 0 | BE57: =Indata!BE13 -> 0 | BF57: =Indata!BF13 -> 0 | BG57: =Indata!BG13 -> 0 | BH57: =Indata!BH13 -> 0 | BI57: =Indata!BI13 -> 0 | BJ57: =Indata!BJ13 -> 0 | BK57: =Indata!BK13 -> 0 | BL57: =Indata!BL13 -> 0 | BM57: =Indata!BM13 -> 0 | BN57: =Indata!BN13 -> 0 | BO57: =Indata!BO13 -> 0 | BP57: =Indata!BP13 -> 0 | BQ57: =Indata!BQ13 -> 0 | BR57: =Indata!BR13 -> 0 | BS57: =Indata!BS13 -> 0
A58: SEK anl.kostn. UA med skattefaktor | B58: =B56*Kalkylvärden!$B$5 -> 0 | C58: =C56*Kalkylvärden!$B$5 -> 0 | D58: =D56*Kalkylvärden!$B$5 -> 0 | E58: =E56*Kalkylvärden!$B$5 -> 0 | F58: =F56*Kalkylvärden!$B$5 -> 0 | G58: =G56*Kalkylvärden!$B$5 -> 0 | H58: =H56*Kalkylvärden!$B$5 -> 0 | I58: =I56*Kalkylvärden!$B$5 -> 0 | J58: =J56*Kalkylvärden!$B$5 -> 0 | K58: =K56*Kalkylvärden!$B$5 -> 0 | L58: =L56*Kalkylvärden!$B$5 -> 0 | M58: =M56*Kalkylvärden!$B$5 -> 0 | N58: =N56*Kalkylvärden!$B$5 -> 0 | O58: =O56*Kalkylvärden!$B$5 -> 0 | P58: =P56*Kalkylvärden!$B$5 -> 0 | Q58: =Q56*Kalkylvärden!$B$5 -> 0 | R58: =R56*Kalkylvärden!$B$5 -> 0 | S58: =S56*Kalkylvärden!$B$5 -> 0 | T58: =T56*Kalkylvärden!$B$5 -> 0 | U58: =U56*Kalkylvärden!$B$5 -> 0 | V58: =V56*Kalkylvärden!$B$5 -> 0 | W58: =W56*Kalkylvärden!$B$5 -> 0 | X58: =X56*Kalkylvärden!$B$5 -> 0 | Y58: =Y56*Kalkylvärden!$B$5 -> 0 | Z58: =Z56*Kalkylvärden!$B$5 -> 0 | AA58: =AA56*Kalkylvärden!$B$5 -> 0 | AB58: =AB56*Kalkylvärden!$B$5 -> 0 | AC58: =AC56*Kalkylvärden!$B$5 -> 0 | AD58: =AD56*Kalkylvärden!$B$5 -> 0 | AE58: =AE56*Kalkylvärden!$B$5 -> 0 | AF58: =AF56*Kalkylvärden!$B$5 -> 0 | AG58: =AG56*Kalkylvärden!$B$5 -> 0 | AH58: =AH56*Kalkylvärden!$B$5 -> 0 | AI58: =AI56*Kalkylvärden!$B$5 -> 0 | AJ58: =AJ56*Kalkylvärden!$B$5 -> 0 | AK58: =AK56*Kalkylvärden!$B$5 -> 0 | AL58: =AL56*Kalkylvärden!$B$5 -> 0 | AM58: =AM56*Kalkylvärden!$B$5 -> 0 | AN58: =AN56*Kalkylvärden!$B$5 -> 0 | AO58: =AO56*Kalkylvärden!$B$5 -> 0 | AP58: =AP56*Kalkylvärden!$B$5 -> 0 | AQ58: =AQ56*Kalkylvärden!$B$5 -> 0 | AR58: =AR56*Kalkylvärden!$B$5 -> 0 | AS58: =AS56*Kalkylvärden!$B$5 -> 0 | AT58: =AT56*Kalkylvärden!$B$5 -> 0 | AU58: =AU56*Kalkylvärden!$B$5 -> 0 | AV58: =AV56*Kalkylvärden!$B$5 -> 0 | AW58: =AW56*Kalkylvärden!$B$5 -> 0 | AX58: =AX56*Kalkylvärden!$B$5 -> 0 | AY58: =AY56*Kalkylvärden!$B$5 -> 0 | AZ58: =AZ56*Kalkylvärden!$B$5 -> 0 | BA58: =BA56*Kalkylvärden!$B$5 -> 0 | BB58: =BB56*Kalkylvärden!$B$5 -> 0 | BC58: =BC56*Kalkylvärden!$B$5 -> 0 | BD58: =BD56*Kalkylvärden!$B$5 -> 0 | BE58: =BE56*Kalkylvärden!$B$5 -> 0 | BF58: =BF56*Kalkylvärden!$B$5 -> 0 | BG58: =BG56*Kalkylvärden!$B$5 -> 0 | BH58: =BH56*Kalkylvärden!$B$5 -> 0 | BI58: =BI56*Kalkylvärden!$B$5 -> 0 | BJ58: =BJ56*Kalkylvärden!$B$5 -> 0 | BK58: =BK56*Kalkylvärden!$B$5 -> 0 | BL58: =BL56*Kalkylvärden!$B$5 -> 0 | BM58: =BM56*Kalkylvärden!$B$5 -> 0 | BN58: =BN56*Kalkylvärden!$B$5 -> 0 | BO58: =BO56*Kalkylvärden!$B$5 -> 0 | BP58: =BP56*Kalkylvärden!$B$5 -> 0 | BQ58: =BQ56*Kalkylvärden!$B$5 -> 0 | BR58: =BR56*Kalkylvärden!$B$5 -> 0 | BS58: =BS56*Kalkylvärden!$B$5 -> 0
A59: SEK anl.kostn. JA med skattefaktor | B59: =B57*Kalkylvärden!$B$5 -> 0 | C59: =C57*Kalkylvärden!$B$5 -> 0 | D59: =D57*Kalkylvärden!$B$5 -> 0 | E59: =E57*Kalkylvärden!$B$5 -> 0 | F59: =F57*Kalkylvärden!$B$5 -> 0 | G59: =G57*Kalkylvärden!$B$5 -> 0 | H59: =H57*Kalkylvärden!$B$5 -> 0 | I59: =I57*Kalkylvärden!$B$5 -> 0 | J59: =J57*Kalkylvärden!$B$5 -> 0 | K59: =K57*Kalkylvärden!$B$5 -> 0 | L59: =L57*Kalkylvärden!$B$5 -> 0 | M59: =M57*Kalkylvärden!$B$5 -> 0 | N59: =N57*Kalkylvärden!$B$5 -> 0 | O59: =O57*Kalkylvärden!$B$5 -> 0 | P59: =P57*Kalkylvärden!$B$5 -> 0 | Q59: =Q57*Kalkylvärden!$B$5 -> 0 | R59: =R57*Kalkylvärden!$B$5 -> 0 | S59: =S57*Kalkylvärden!$B$5 -> 0 | T59: =T57*Kalkylvärden!$B$5 -> 0 | U59: =U57*Kalkylvärden!$B$5 -> 0 | V59: =V57*Kalkylvärden!$B$5 -> 0 | W59: =W57*Kalkylvärden!$B$5 -> 0 | X59: =X57*Kalkylvärden!$B$5 -> 0 | Y59: =Y57*Kalkylvärden!$B$5 -> 0 | Z59: =Z57*Kalkylvärden!$B$5 -> 0 | AA59: =AA57*Kalkylvärden!$B$5 -> 0 | AB59: =AB57*Kalkylvärden!$B$5 -> 0 | AC59: =AC57*Kalkylvärden!$B$5 -> 0 | AD59: =AD57*Kalkylvärden!$B$5 -> 0 | AE59: =AE57*Kalkylvärden!$B$5 -> 0 | AF59: =AF57*Kalkylvärden!$B$5 -> 0 | AG59: =AG57*Kalkylvärden!$B$5 -> 0 | AH59: =AH57*Kalkylvärden!$B$5 -> 0 | AI59: =AI57*Kalkylvärden!$B$5 -> 0 | AJ59: =AJ57*Kalkylvärden!$B$5 -> 0 | AK59: =AK57*Kalkylvärden!$B$5 -> 0 | AL59: =AL57*Kalkylvärden!$B$5 -> 0 | AM59: =AM57*Kalkylvärden!$B$5 -> 0 | AN59: =AN57*Kalkylvärden!$B$5 -> 0 | AO59: =AO57*Kalkylvärden!$B$5 -> 0 | AP59: =AP57*Kalkylvärden!$B$5 -> 0 | AQ59: =AQ57*Kalkylvärden!$B$5 -> 0 | AR59: =AR57*Kalkylvärden!$B$5 -> 0 | AS59: =AS57*Kalkylvärden!$B$5 -> 0 | AT59: =AT57*Kalkylvärden!$B$5 -> 0 | AU59: =AU57*Kalkylvärden!$B$5 -> 0 | AV59: =AV57*Kalkylvärden!$B$5 -> 0 | AW59: =AW57*Kalkylvärden!$B$5 -> 0 | AX59: =AX57*Kalkylvärden!$B$5 -> 0 | AY59: =AY57*Kalkylvärden!$B$5 -> 0 | AZ59: =AZ57*Kalkylvärden!$B$5 -> 0 | BA59: =BA57*Kalkylvärden!$B$5 -> 0 | BB59: =BB57*Kalkylvärden!$B$5 -> 0 | BC59: =BC57*Kalkylvärden!$B$5 -> 0 | BD59: =BD57*Kalkylvärden!$B$5 -> 0 | BE59: =BE57*Kalkylvärden!$B$5 -> 0 | BF59: =BF57*Kalkylvärden!$B$5 -> 0 | BG59: =BG57*Kalkylvärden!$B$5 -> 0 | BH59: =BH57*Kalkylvärden!$B$5 -> 0 | BI59: =BI57*Kalkylvärden!$B$5 -> 0 | BJ59: =BJ57*Kalkylvärden!$B$5 -> 0 | BK59: =BK57*Kalkylvärden!$B$5 -> 0 | BL59: =BL57*Kalkylvärden!$B$5 -> 0 | BM59: =BM57*Kalkylvärden!$B$5 -> 0 | BN59: =BN57*Kalkylvärden!$B$5 -> 0 | BO59: =BO57*Kalkylvärden!$B$5 -> 0 | BP59: =BP57*Kalkylvärden!$B$5 -> 0 | BQ59: =BQ57*Kalkylvärden!$B$5 -> 0 | BR59: =BR57*Kalkylvärden!$B$5 -> 0 | BS59: =BS57*Kalkylvärden!$B$5 -> 0
A60: Nuvärde SEK anl.kostn. UA | B60: =B58*H29 -> 0 | C60: =C58*G29 -> 0 | D60: =D58*F29 -> 0 | E60: =E58*E29 -> 0 | F60: =F58*D29 -> 0 | G60: =G58*C29 -> 0 | H60: =H58/B29 -> 0 | I60: =I58/C29 -> 0 | J60: 0 | K60: 0 | L60: 0 | M60: 0 | N60: 0 | O60: 0 | P60: 0 | Q60: 0 | R60: 0 | S60: 0 | T60: 0 | U60: 0 | V60: 0 | W60: 0 | X60: 0 | Y60: 0 | Z60: 0 | AA60: 0 | AB60: 0 | AC60: 0 | AD60: 0 | AE60: 0 | AF60: 0 | AG60: 0 | AH60: 0 | AI60: 0 | AJ60: 0 | AK60: 0 | AL60: 0 | AM60: 0 | AN60: 0 | AO60: 0 | AP60: 0 | AQ60: 0 | AR60: 0 | AS60: 0 | AT60: 0 | AU60: 0 | AV60: 0 | AW60: 0 | AX60: 0 | AY60: 0 | AZ60: 0 | BA60: 0 | BB60: 0 | BC60: 0 | BD60: 0 | BE60: 0 | BF60: 0 | BG60: 0 | BH60: 0 | BI60: 0 | BJ60: 0 | BK60: 0 | BL60: 0 | BM60: 0 | BN60: 0 | BO60: 0 | BP60: 0 | BQ60: 0 | BR60: 0 | BS60: 0
A61: Nuvärde SEK anl.kostn. JA | B61: =B59*H29 -> 0 | C61: =C59*G29 -> 0 | D61: =D59*F29 -> 0 | E61: =E59*E29 -> 0 | F61: =F59*D29 -> 0 | G61: =G59*C29 -> 0 | H61: =H59/B29 -> 0 | I61: =I59/C29 -> 0 | J61: 0 | K61: 0 | L61: 0 | M61: 0 | N61: 0 | O61: 0 | P61: 0 | Q61: 0 | R61: 0 | S61: 0 | T61: 0 | U61: 0 | V61: 0 | W61: 0 | X61: 0 | Y61: 0 | Z61: 0 | AA61: 0 | AB61: 0 | AC61: 0 | AD61: 0 | AE61: 0 | AF61: 0 | AG61: 0 | AH61: 0 | AI61: 0 | AJ61: 0 | AK61: 0 | AL61: 0 | AM61: 0 | AN61: 0 | AO61: 0 | AP61: 0 | AQ61: 0 | AR61: 0 | AS61: 0 | AT61: 0 | AU61: 0 | AV61: 0 | AW61: 0 | AX61: 0 | AY61: 0 | AZ61: 0 | BA61: 0 | BB61: 0 | BC61: 0 | BD61: 0 | BE61: 0 | BF61: 0 | BG61: 0 | BH61: 0 | BI61: 0 | BJ61: 0 | BK61: 0 | BL61: 0 | BM61: 0 | BN61: 0 | BO61: 0 | BP61: 0 | BQ61: 0 | BR61: 0 | BS61: 0
A62: Nuvärde SEK anl.kostn. UA-JA | B62: =IF(B55<=(Kalkylvärden!$B$6+Indata!$B$24),B60-B61,"") -> 0 | C62: =IF(C55<=(Kalkylvärden!$B$6+Indata!$B$24),C60-C61,"") -> 0 | D62: =IF(D55<=(Kalkylvärden!$B$6+Indata!$B$24),D60-D61,"") -> 0 | E62: =IF(E55<=(Kalkylvärden!$B$6+Indata!$B$24),E60-E61,"") -> 0 | F62: =IF(F55<=(Kalkylvärden!$B$6+Indata!$B$24),F60-F61,"") -> 0 | G62: =IF(G55<=(Kalkylvärden!$B$6+Indata!$B$24),G60-G61,"") -> 0 | H62: =IF(H55<=(Kalkylvärden!$B$6+Indata!$B$24),H60-H61,"") -> 0 | I62: =IF(I55<=(Kalkylvärden!$B$6+Indata!$B$24),I60-I61,"") -> 0 | J62: =IF(J55<=(Kalkylvärden!$B$6+Indata!$B$24),J60-J61,"") -> 0 | K62: =IF(K55<=(Kalkylvärden!$B$6+Indata!$B$24),K60-K61,"") -> 0 | L62: =IF(L55<=(Kalkylvärden!$B$6+Indata!$B$24),L60-L61,"") -> 0 | M62: =IF(M55<=(Kalkylvärden!$B$6+Indata!$B$24),M60-M61,"") -> 0 | N62: =IF(N55<=(Kalkylvärden!$B$6+Indata!$B$24),N60-N61,"") -> 0 | O62: =IF(O55<=(Kalkylvärden!$B$6+Indata!$B$24),O60-O61,"") -> 0 | P62: =IF(P55<=(Kalkylvärden!$B$6+Indata!$B$24),P60-P61,"") -> 0 | Q62: =IF(Q55<=(Kalkylvärden!$B$6+Indata!$B$24),Q60-Q61,"") -> 0 | R62: =IF(R55<=(Kalkylvärden!$B$6+Indata!$B$24),R60-R61,"") -> 0 | S62: =IF(S55<=(Kalkylvärden!$B$6+Indata!$B$24),S60-S61,"") -> 0 | T62: =IF(T55<=(Kalkylvärden!$B$6+Indata!$B$24),T60-T61,"") -> 0 | U62: =IF(U55<=(Kalkylvärden!$B$6+Indata!$B$24),U60-U61,"") -> 0 | V62: =IF(V55<=(Kalkylvärden!$B$6+Indata!$B$24),V60-V61,"") -> 0 | W62: =IF(W55<=(Kalkylvärden!$B$6+Indata!$B$24),W60-W61,"") -> 0 | X62: =IF(X55<=(Kalkylvärden!$B$6+Indata!$B$24),X60-X61,"") -> 0 | Y62: =IF(Y55<=(Kalkylvärden!$B$6+Indata!$B$24),Y60-Y61,"") -> 0 | Z62: =IF(Z55<=(Kalkylvärden!$B$6+Indata!$B$24),Z60-Z61,"") -> 0 | AA62: =IF(AA55<=(Kalkylvärden!$B$6+Indata!$B$24),AA60-AA61,"") -> 0 | AB62: =IF(AB55<=(Kalkylvärden!$B$6+Indata!$B$24),AB60-AB61,"") -> 0 | AC62: =IF(AC55<=(Kalkylvärden!$B$6+Indata!$B$24),AC60-AC61,"") -> 0 | AD62: =IF(AD55<=(Kalkylvärden!$B$6+Indata!$B$24),AD60-AD61,"") -> 0 | AE62: =IF(AE55<=(Kalkylvärden!$B$6+Indata!$B$24),AE60-AE61,"") -> 0 | AF62: =IF(AF55<=(Kalkylvärden!$B$6+Indata!$B$24),AF60-AF61,"") -> 0 | AG62: =IF(AG55<=(Kalkylvärden!$B$6+Indata!$B$24),AG60-AG61,"") -> 0 | AH62: =IF(AH55<=(Kalkylvärden!$B$6+Indata!$B$24),AH60-AH61,"") -> 0 | AI62: =IF(AI55<=(Kalkylvärden!$B$6+Indata!$B$24),AI60-AI61,"") -> 0 | AJ62: =IF(AJ55<=(Kalkylvärden!$B$6+Indata!$B$24),AJ60-AJ61,"") -> 0 | AK62: =IF(AK55<=(Kalkylvärden!$B$6+Indata!$B$24),AK60-AK61,"") -> 0 | AL62: =IF(AL55<=(Kalkylvärden!$B$6+Indata!$B$24),AL60-AL61,"") -> 0 | AM62: =IF(AM55<=(Kalkylvärden!$B$6+Indata!$B$24),AM60-AM61,"") -> 0 | AN62: =IF(AN55<=(Kalkylvärden!$B$6+Indata!$B$24),AN60-AN61,"") -> 0 | AO62: =IF(AO55<=(Kalkylvärden!$B$6+Indata!$B$24),AO60-AO61,"") -> 0 | AP62: =IF(AP55<=(Kalkylvärden!$B$6+Indata!$B$24),AP60-AP61,"") -> 0 | AQ62: =IF(AQ55<=(Kalkylvärden!$B$6+Indata!$B$24),AQ60-AQ61,"") -> 0 | AR62: =IF(AR55<=(Kalkylvärden!$B$6+Indata!$B$24),AR60-AR61,"") -> 0 | AS62: =IF(AS55<=(Kalkylvärden!$B$6+Indata!$B$24),AS60-AS61,"") -> 0 | AT62: =IF(AT55<=(Kalkylvärden!$B$6+Indata!$B$24),AT60-AT61,"") -> 0 | AU62: =IF(AU55<=(Kalkylvärden!$B$6+Indata!$B$24),AU60-AU61,"") -> 0 | AV62: =IF(AV55<=(Kalkylvärden!$B$6+Indata!$B$24),AV60-AV61,"") -> 0 | AW62: =IF(AW55<=(Kalkylvärden!$B$6+Indata!$B$24),AW60-AW61,"") ->  | AX62: =IF(AX55<=(Kalkylvärden!$B$6+Indata!$B$24),AX60-AX61,"") ->  | AY62: =IF(AY55<=(Kalkylvärden!$B$6+Indata!$B$24),AY60-AY61,"") ->  | AZ62: =IF(AZ55<=(Kalkylvärden!$B$6+Indata!$B$24),AZ60-AZ61,"") ->  | BA62: =IF(BA55<=(Kalkylvärden!$B$6+Indata!$B$24),BA60-BA61,"") ->  | BB62: =IF(BB55<=(Kalkylvärden!$B$6+Indata!$B$24),BB60-BB61,"") ->  | BC62: =IF(BC55<=(Kalkylvärden!$B$6+Indata!$B$24),BC60-BC61,"") ->  | BD62: =IF(BD55<=(Kalkylvärden!$B$6+Indata!$B$24),BD60-BD61,"") ->  | BE62: =IF(BE55<=(Kalkylvärden!$B$6+Indata!$B$24),BE60-BE61,"") ->  | BF62: =IF(BF55<=(Kalkylvärden!$B$6+Indata!$B$24),BF60-BF61,"") ->  | BG62: =IF(BG55<=(Kalkylvärden!$B$6+Indata!$B$24),BG60-BG61,"") ->  | BH62: =IF(BH55<=(Kalkylvärden!$B$6+Indata!$B$24),BH60-BH61,"") ->  | BI62: =IF(BI55<=(Kalkylvärden!$B$6+Indata!$B$24),BI60-BI61,"") ->  | BJ62: =IF(BJ55<=(Kalkylvärden!$B$6+Indata!$B$24),BJ60-BJ61,"") ->  | BK62: =IF(BK55<=(Kalkylvärden!$B$6+Indata!$B$24),BK60-BK61,"") ->  | BL62: =IF(BL55<=(Kalkylvärden!$B$6+Indata!$B$24),BL60-BL61,"") ->  | BM62: =IF(BM55<=(Kalkylvärden!$B$6+Indata!$B$24),BM60-BM61,"") ->  | BN62: =IF(BN55<=(Kalkylvärden!$B$6+Indata!$B$24),BN60-BN61,"") ->  | BO62: =IF(BO55<=(Kalkylvärden!$B$6+Indata!$B$24),BO60-BO61,"") ->  | BP62: =IF(BP55<=(Kalkylvärden!$B$6+Indata!$B$24),BP60-BP61,"") ->  | BQ62: =IF(BQ55<=(Kalkylvärden!$B$6+Indata!$B$24),BQ60-BQ61,"") ->  | BR62: =IF(BR55<=(Kalkylvärden!$B$6+Indata!$B$24),BR60-BR61,"") ->  | BS62: =IF(BS55<=(Kalkylvärden!$B$6+Indata!$B$24),BS60-BS61,"") -> 
A63: Summa nuvärde SEK anläggningskostnader (mkr) | B63: =SUM(B62:BS62) -> 0
A65: Reinvesteringskostnader
A66: År | B66: =Indata!B17 -> -6 | C66: =B66+1 -> -5 | D66: =C66+1 -> -4 | E66: =D66+1 -> -3 | F66: =E66+1 -> -2 | G66: =F66+1 -> -1 | H66: =Indata!H17 -> 2025 | I66: =H66+1 -> 2026 | J66: =I66+1 -> 2027 | K66: =J66+1 -> 2028 | L66: =K66+1 -> 2029 | M66: =L66+1 -> 2030 | N66: =M66+1 -> 2031 | O66: =N66+1 -> 2032 | P66: =O66+1 -> 2033 | Q66: =P66+1 -> 2034 | R66: =Q66+1 -> 2035 | S66: =R66+1 -> 2036 | T66: =S66+1 -> 2037 | U66: =T66+1 -> 2038 | V66: =U66+1 -> 2039 | W66: =V66+1 -> 2040 | X66: =W66+1 -> 2041 | Y66: =X66+1 -> 2042 | Z66: =Y66+1 -> 2043 | AA66: =Z66+1 -> 2044 | AB66: =AA66+1 -> 2045 | AC66: =AB66+1 -> 2046 | AD66: =AC66+1 -> 2047 | AE66: =AD66+1 -> 2048 | AF66: =AE66+1 -> 2049 | AG66: =AF66+1 -> 2050 | AH66: =AG66+1 -> 2051 | AI66: =AH66+1 -> 2052 | AJ66: =AI66+1 -> 2053 | AK66: =AJ66+1 -> 2054 | AL66: =AK66+1 -> 2055 | AM66: =AL66+1 -> 2056 | AN66: =AM66+1 -> 2057 | AO66: =AN66+1 -> 2058 | AP66: =AO66+1 -> 2059 | AQ66: =AP66+1 -> 2060 | AR66: =AQ66+1 -> 2061 | AS66: =AR66+1 -> 2062 | AT66: =AS66+1 -> 2063 | AU66: =AT66+1 -> 2064 | AV66: =AU66+1 -> 2065 | AW66: =AV66+1 -> 2066 | AX66: =AW66+1 -> 2067 | AY66: =AX66+1 -> 2068 | AZ66: =AY66+1 -> 2069 | BA66: =AZ66+1 -> 2070 | BB66: =BA66+1 -> 2071 | BC66: =BB66+1 -> 2072 | BD66: =BC66+1 -> 2073 | BE66: =BD66+1 -> 2074 | BF66: =BE66+1 -> 2075 | BG66: =BF66+1 -> 2076 | BH66: =BG66+1 -> 2077 | BI66: =BH66+1 -> 2078 | BJ66: =BI66+1 -> 2079 | BK66: =BJ66+1 -> 2080 | BL66: =BK66+1 -> 2081 | BM66: =BL66+1 -> 2082 | BN66: =BM66+1 -> 2083 | BO66: =BN66+1 -> 2084 | BP66: =BO66+1 -> 2085 | BQ66: =BP66+1 -> 2086 | BR66: =BQ66+1 -> 2087 | BS66: =BR66+1 -> 2088
A67: Anläggningskostnader UA (prisnivå 2010-06) | B67: =Indata!B18 -> 0 | C67: =Indata!C18 -> 0 | D67: =Indata!D18 -> 0 | E67: =Indata!E18 -> 0 | F67: =Indata!F18 -> 0 | G67: =Indata!G18 -> 0 | H67: =Indata!H18 -> 0 | I67: =Indata!I18 -> 0 | J67: =Indata!J18 -> 0 | K67: =Indata!K18 -> 0 | L67: =Indata!L18 -> 0 | M67: =Indata!M18 -> 0 | N67: =Indata!N18 -> 0 | O67: =Indata!O18 -> 0 | P67: =Indata!P18 -> 0 | Q67: =Indata!Q18 -> 0 | R67: =Indata!R18 -> 0 | S67: =Indata!S18 -> 0 | T67: =Indata!T18 -> 0 | U67: =Indata!U18 -> 0 | V67: =Indata!V18 -> 0 | W67: =Indata!W18 -> 0 | X67: =Indata!X18 -> 0 | Y67: =Indata!Y18 -> 0 | Z67: =Indata!Z18 -> 0 | AA67: =Indata!AA18 -> 0 | AB67: =Indata!AB18 -> 0 | AC67: =Indata!AC18 -> 0 | AD67: =Indata!AD18 -> 0 | AE67: =Indata!AE18 -> 0 | AF67: =Indata!AF18 -> 0 | AG67: =Indata!AG18 -> 0 | AH67: =Indata!AH18 -> 0 | AI67: =Indata!AI18 -> 0 | AJ67: =Indata!AJ18 -> 0 | AK67: =Indata!AK18 -> 0 | AL67: =Indata!AL18 -> 0 | AM67: =Indata!AM18 -> 0 | AN67: =Indata!AN18 -> 0 | AO67: =Indata!AO18 -> 0 | AP67: =Indata!AP18 -> 0 | AQ67: =Indata!AQ18 -> 0 | AR67: =Indata!AR18 -> 0 | AS67: =Indata!AS18 -> 0 | AT67: =Indata!AT18 -> 0 | AU67: =Indata!AU18 -> 0 | AV67: =Indata!AV18 -> 0 | AW67: =Indata!AW18 -> 0 | AX67: =Indata!AX18 -> 0 | AY67: =Indata!AY18 -> 0 | AZ67: =Indata!AZ18 -> 0 | BA67: =Indata!BA18 -> 0 | BB67: =Indata!BB18 -> 0 | BC67: =Indata!BC18 -> 0 | BD67: =Indata!BD18 -> 0 | BE67: =Indata!BE18 -> 0 | BF67: =Indata!BF18 -> 0 | BG67: =Indata!BG18 -> 0 | BH67: =Indata!BH18 -> 0 | BI67: =Indata!BI18 -> 0 | BJ67: =Indata!BJ18 -> 0 | BK67: =Indata!BK18 -> 0 | BL67: =Indata!BL18 -> 0 | BM67: =Indata!BM18 -> 0 | BN67: =Indata!BN18 -> 0 | BO67: =Indata!BO18 -> 0 | BP67: =Indata!BP18 -> 0 | BQ67: =Indata!BQ18 -> 0 | BR67: =Indata!BR18 -> 0 | BS67: =Indata!BS18 -> 0
A68: Anläggningskostnader JA (prisnivå 2010-06) | B68: =Indata!B19 -> 0 | C68: =Indata!C19 -> 0 | D68: =Indata!D19 -> 0 | E68: =Indata!E19 -> 0 | F68: =Indata!F19 -> 0 | G68: =Indata!G19 -> 0 | H68: =Indata!H19 -> 0 | I68: =Indata!I19 -> 0 | J68: =Indata!J19 -> 0 | K68: =Indata!K19 -> 0 | L68: =Indata!L19 -> 0 | M68: =Indata!M19 -> 0 | N68: =Indata!N19 -> 0 | O68: =Indata!O19 -> 0 | P68: =Indata!P19 -> 0 | Q68: =Indata!Q19 -> 0 | R68: =Indata!R19 -> 0 | S68: =Indata!S19 -> 0 | T68: =Indata!T19 -> 0 | U68: =Indata!U19 -> 0 | V68: =Indata!V19 -> 0 | W68: =Indata!W19 -> 0 | X68: =Indata!X19 -> 0 | Y68: =Indata!Y19 -> 0 | Z68: =Indata!Z19 -> 0 | AA68: =Indata!AA19 -> 0 | AB68: =Indata!AB19 -> 0 | AC68: =Indata!AC19 -> 0 | AD68: =Indata!AD19 -> 0 | AE68: =Indata!AE19 -> 0 | AF68: =Indata!AF19 -> 0 | AG68: =Indata!AG19 -> 0 | AH68: =Indata!AH19 -> 0 | AI68: =Indata!AI19 -> 0 | AJ68: =Indata!AJ19 -> 0 | AK68: =Indata!AK19 -> 0 | AL68: =Indata!AL19 -> 0 | AM68: =Indata!AM19 -> 0 | AN68: =Indata!AN19 -> 0 | AO68: =Indata!AO19 -> 0 | AP68: =Indata!AP19 -> 0 | AQ68: =Indata!AQ19 -> 0 | AR68: =Indata!AR19 -> 0 | AS68: =Indata!AS19 -> 0 | AT68: =Indata!AT19 -> 0 | AU68: =Indata!AU19 -> 0 | AV68: =Indata!AV19 -> 0 | AW68: =Indata!AW19 -> 0 | AX68: =Indata!AX19 -> 0 | AY68: =Indata!AY19 -> 0 | AZ68: =Indata!AZ19 -> 0 | BA68: =Indata!BA19 -> 0 | BB68: =Indata!BB19 -> 0 | BC68: =Indata!BC19 -> 0 | BD68: =Indata!BD19 -> 0 | BE68: =Indata!BE19 -> 0 | BF68: =Indata!BF19 -> 0 | BG68: =Indata!BG19 -> 0 | BH68: =Indata!BH19 -> 0 | BI68: =Indata!BI19 -> 0 | BJ68: =Indata!BJ19 -> 0 | BK68: =Indata!BK19 -> 0 | BL68: =Indata!BL19 -> 0 | BM68: =Indata!BM19 -> 0 | BN68: =Indata!BN19 -> 0 | BO68: =Indata!BO19 -> 0 | BP68: =Indata!BP19 -> 0 | BQ68: =Indata!BQ19 -> 0 | BR68: =Indata!BR19 -> 0 | BS68: =Indata!BS19 -> 0
A69: SEK anl.kostn. UA med skattefaktor | B69: =B67*Kalkylvärden!$B$5 -> 0 | C69: =C67*Kalkylvärden!$B$5 -> 0 | D69: =D67*Kalkylvärden!$B$5 -> 0 | E69: =E67*Kalkylvärden!$B$5 -> 0 | F69: =F67*Kalkylvärden!$B$5 -> 0 | G69: =G67*Kalkylvärden!$B$5 -> 0 | H69: =H67*Kalkylvärden!$B$5 -> 0 | I69: =I67*Kalkylvärden!$B$5 -> 0 | J69: =J67*Kalkylvärden!$B$5 -> 0 | K69: =K67*Kalkylvärden!$B$5 -> 0 | L69: =L67*Kalkylvärden!$B$5 -> 0 | M69: =M67*Kalkylvärden!$B$5 -> 0 | N69: =N67*Kalkylvärden!$B$5 -> 0 | O69: =O67*Kalkylvärden!$B$5 -> 0 | P69: =P67*Kalkylvärden!$B$5 -> 0 | Q69: =Q67*Kalkylvärden!$B$5 -> 0 | R69: =R67*Kalkylvärden!$B$5 -> 0 | S69: =S67*Kalkylvärden!$B$5 -> 0 | T69: =T67*Kalkylvärden!$B$5 -> 0 | U69: =U67*Kalkylvärden!$B$5 -> 0 | V69: =V67*Kalkylvärden!$B$5 -> 0 | W69: =W67*Kalkylvärden!$B$5 -> 0 | X69: =X67*Kalkylvärden!$B$5 -> 0 | Y69: =Y67*Kalkylvärden!$B$5 -> 0 | Z69: =Z67*Kalkylvärden!$B$5 -> 0 | AA69: =AA67*Kalkylvärden!$B$5 -> 0 | AB69: =AB67*Kalkylvärden!$B$5 -> 0 | AC69: =AC67*Kalkylvärden!$B$5 -> 0 | AD69: =AD67*Kalkylvärden!$B$5 -> 0 | AE69: =AE67*Kalkylvärden!$B$5 -> 0 | AF69: =AF67*Kalkylvärden!$B$5 -> 0 | AG69: =AG67*Kalkylvärden!$B$5 -> 0 | AH69: =AH67*Kalkylvärden!$B$5 -> 0 | AI69: =AI67*Kalkylvärden!$B$5 -> 0 | AJ69: =AJ67*Kalkylvärden!$B$5 -> 0 | AK69: =AK67*Kalkylvärden!$B$5 -> 0 | AL69: =AL67*Kalkylvärden!$B$5 -> 0 | AM69: =AM67*Kalkylvärden!$B$5 -> 0 | AN69: =AN67*Kalkylvärden!$B$5 -> 0 | AO69: =AO67*Kalkylvärden!$B$5 -> 0 | AP69: =AP67*Kalkylvärden!$B$5 -> 0 | AQ69: =AQ67*Kalkylvärden!$B$5 -> 0 | AR69: =AR67*Kalkylvärden!$B$5 -> 0 | AS69: =AS67*Kalkylvärden!$B$5 -> 0 | AT69: =AT67*Kalkylvärden!$B$5 -> 0 | AU69: =AU67*Kalkylvärden!$B$5 -> 0 | AV69: =AV67*Kalkylvärden!$B$5 -> 0 | AW69: =AW67*Kalkylvärden!$B$5 -> 0 | AX69: =AX67*Kalkylvärden!$B$5 -> 0 | AY69: =AY67*Kalkylvärden!$B$5 -> 0 | AZ69: =AZ67*Kalkylvärden!$B$5 -> 0 | BA69: =BA67*Kalkylvärden!$B$5 -> 0 | BB69: =BB67*Kalkylvärden!$B$5 -> 0 | BC69: =BC67*Kalkylvärden!$B$5 -> 0 | BD69: =BD67*Kalkylvärden!$B$5 -> 0 | BE69: =BE67*Kalkylvärden!$B$5 -> 0 | BF69: =BF67*Kalkylvärden!$B$5 -> 0 | BG69: =BG67*Kalkylvärden!$B$5 -> 0 | BH69: =BH67*Kalkylvärden!$B$5 -> 0 | BI69: =BI67*Kalkylvärden!$B$5 -> 0 | BJ69: =BJ67*Kalkylvärden!$B$5 -> 0 | BK69: =BK67*Kalkylvärden!$B$5 -> 0 | BL69: =BL67*Kalkylvärden!$B$5 -> 0 | BM69: =BM67*Kalkylvärden!$B$5 -> 0 | BN69: =BN67*Kalkylvärden!$B$5 -> 0 | BO69: =BO67*Kalkylvärden!$B$5 -> 0 | BP69: =BP67*Kalkylvärden!$B$5 -> 0 | BQ69: =BQ67*Kalkylvärden!$B$5 -> 0 | BR69: =BR67*Kalkylvärden!$B$5 -> 0 | BS69: =BS67*Kalkylvärden!$B$5 -> 0
A70: SEK anl.kostn. JA med skattefaktor | B70: =B68*Kalkylvärden!$B$5 -> 0 | C70: =C68*Kalkylvärden!$B$5 -> 0 | D70: =D68*Kalkylvärden!$B$5 -> 0 | E70: =E68*Kalkylvärden!$B$5 -> 0 | F70: =F68*Kalkylvärden!$B$5 -> 0 | G70: =G68*Kalkylvärden!$B$5 -> 0 | H70: =H68*Kalkylvärden!$B$5 -> 0 | I70: =I68*Kalkylvärden!$B$5 -> 0 | J70: =J68*Kalkylvärden!$B$5 -> 0 | K70: =K68*Kalkylvärden!$B$5 -> 0 | L70: =L68*Kalkylvärden!$B$5 -> 0 | M70: =M68*Kalkylvärden!$B$5 -> 0 | N70: =N68*Kalkylvärden!$B$5 -> 0 | O70: =O68*Kalkylvärden!$B$5 -> 0 | P70: =P68*Kalkylvärden!$B$5 -> 0 | Q70: =Q68*Kalkylvärden!$B$5 -> 0 | R70: =R68*Kalkylvärden!$B$5 -> 0 | S70: =S68*Kalkylvärden!$B$5 -> 0 | T70: =T68*Kalkylvärden!$B$5 -> 0 | U70: =U68*Kalkylvärden!$B$5 -> 0 | V70: =V68*Kalkylvärden!$B$5 -> 0 | W70: =W68*Kalkylvärden!$B$5 -> 0 | X70: =X68*Kalkylvärden!$B$5 -> 0 | Y70: =Y68*Kalkylvärden!$B$5 -> 0 | Z70: =Z68*Kalkylvärden!$B$5 -> 0 | AA70: =AA68*Kalkylvärden!$B$5 -> 0 | AB70: =AB68*Kalkylvärden!$B$5 -> 0 | AC70: =AC68*Kalkylvärden!$B$5 -> 0 | AD70: =AD68*Kalkylvärden!$B$5 -> 0 | AE70: =AE68*Kalkylvärden!$B$5 -> 0 | AF70: =AF68*Kalkylvärden!$B$5 -> 0 | AG70: =AG68*Kalkylvärden!$B$5 -> 0 | AH70: =AH68*Kalkylvärden!$B$5 -> 0 | AI70: =AI68*Kalkylvärden!$B$5 -> 0 | AJ70: =AJ68*Kalkylvärden!$B$5 -> 0 | AK70: =AK68*Kalkylvärden!$B$5 -> 0 | AL70: =AL68*Kalkylvärden!$B$5 -> 0 | AM70: =AM68*Kalkylvärden!$B$5 -> 0 | AN70: =AN68*Kalkylvärden!$B$5 -> 0 | AO70: =AO68*Kalkylvärden!$B$5 -> 0 | AP70: =AP68*Kalkylvärden!$B$5 -> 0 | AQ70: =AQ68*Kalkylvärden!$B$5 -> 0 | AR70: =AR68*Kalkylvärden!$B$5 -> 0 | AS70: =AS68*Kalkylvärden!$B$5 -> 0 | AT70: =AT68*Kalkylvärden!$B$5 -> 0 | AU70: =AU68*Kalkylvärden!$B$5 -> 0 | AV70: =AV68*Kalkylvärden!$B$5 -> 0 | AW70: =AW68*Kalkylvärden!$B$5 -> 0 | AX70: =AX68*Kalkylvärden!$B$5 -> 0 | AY70: =AY68*Kalkylvärden!$B$5 -> 0 | AZ70: =AZ68*Kalkylvärden!$B$5 -> 0 | BA70: =BA68*Kalkylvärden!$B$5 -> 0 | BB70: =BB68*Kalkylvärden!$B$5 -> 0 | BC70: =BC68*Kalkylvärden!$B$5 -> 0 | BD70: =BD68*Kalkylvärden!$B$5 -> 0 | BE70: =BE68*Kalkylvärden!$B$5 -> 0 | BF70: =BF68*Kalkylvärden!$B$5 -> 0 | BG70: =BG68*Kalkylvärden!$B$5 -> 0 | BH70: =BH68*Kalkylvärden!$B$5 -> 0 | BI70: =BI68*Kalkylvärden!$B$5 -> 0 | BJ70: =BJ68*Kalkylvärden!$B$5 -> 0 | BK70: =BK68*Kalkylvärden!$B$5 -> 0 | BL70: =BL68*Kalkylvärden!$B$5 -> 0 | BM70: =BM68*Kalkylvärden!$B$5 -> 0 | BN70: =BN68*Kalkylvärden!$B$5 -> 0 | BO70: =BO68*Kalkylvärden!$B$5 -> 0 | BP70: =BP68*Kalkylvärden!$B$5 -> 0 | BQ70: =BQ68*Kalkylvärden!$B$5 -> 0 | BR70: =BR68*Kalkylvärden!$B$5 -> 0 | BS70: =BS68*Kalkylvärden!$B$5 -> 0
A71: Nuvärde SEK anl.kostn. UA | B71: =B69*H29 -> 0 | C71: =C69*G29 -> 0 | D71: =D69*F29 -> 0 | E71: =E69*E29 -> 0 | F71: =F69*D29 -> 0 | G71: =G69*C29 -> 0 | H71: =H69/B29 -> 0 | I71: =I69/C29 -> 0 | J71: 0 | K71: 0 | L71: 0 | M71: 0 | N71: 0 | O71: 0 | P71: 0 | Q71: 0 | R71: 0 | S71: 0 | T71: 0 | U71: 0 | V71: 0 | W71: 0 | X71: 0 | Y71: 0 | Z71: 0 | AA71: 0 | AB71: 0 | AC71: 0 | AD71: 0 | AE71: 0 | AF71: 0 | AG71: 0 | AH71: 0 | AI71: 0 | AJ71: 0 | AK71: 0 | AL71: 0 | AM71: 0 | AN71: 0 | AO71: 0 | AP71: 0 | AQ71: 0 | AR71: 0 | AS71: 0 | AT71: 0 | AU71: 0 | AV71: 0 | AW71: 0 | AX71: 0 | AY71: 0 | AZ71: 0 | BA71: 0 | BB71: 0 | BC71: 0 | BD71: 0 | BE71: 0 | BF71: 0 | BG71: 0 | BH71: 0 | BI71: 0 | BJ71: 0 | BK71: 0 | BL71: 0 | BM71: 0 | BN71: 0 | BO71: 0 | BP71: 0 | BQ71: 0 | BR71: 0 | BS71: 0
A72: Nuvärde SEK anl.kostn. JA | B72: =B70*H29 -> 0 | C72: =C70*G29 -> 0 | D72: =D70*F29 -> 0 | E72: =E70*E29 -> 0 | F72: =F70*D29 -> 0 | G72: =G70*C29 -> 0 | H72: =H70/B29 -> 0 | I72: =I70/C29 -> 0 | J72: 0 | K72: 0 | L72: 0 | M72: 0 | N72: 0 | O72: 0 | P72: 0 | Q72: 0 | R72: 0 | S72: 0 | T72: 0 | U72: 0 | V72: 0 | W72: 0 | X72: 0 | Y72: 0 | Z72: 0 | AA72: 0 | AB72: 0 | AC72: 0 | AD72: 0 | AE72: 0 | AF72: 0 | AG72: 0 | AH72: 0 | AI72: 0 | AJ72: 0 | AK72: 0 | AL72: 0 | AM72: 0 | AN72: 0 | AO72: 0 | AP72: 0 | AQ72: 0 | AR72: 0 | AS72: 0 | AT72: 0 | AU72: 0 | AV72: 0 | AW72: 0 | AX72: 0 | AY72: 0 | AZ72: 0 | BA72: 0 | BB72: 0 | BC72: 0 | BD72: 0 | BE72: 0 | BF72: 0 | BG72: 0 | BH72: 0 | BI72: 0 | BJ72: 0 | BK72: 0 | BL72: 0 | BM72: 0 | BN72: 0 | BO72: 0 | BP72: 0 | BQ72: 0 | BR72: 0 | BS72: 0
A73: Nuvärde SEK anl.kostn. UA-JA | B73: =IF(B66<=(Kalkylvärden!$B$6+Indata!$B$24),B71-B72,"") -> 0 | C73: =IF(C66<=(Kalkylvärden!$B$6+Indata!$B$24),C71-C72,"") -> 0 | D73: =IF(D66<=(Kalkylvärden!$B$6+Indata!$B$24),D71-D72,"") -> 0 | E73: =IF(E66<=(Kalkylvärden!$B$6+Indata!$B$24),E71-E72,"") -> 0 | F73: =IF(F66<=(Kalkylvärden!$B$6+Indata!$B$24),F71-F72,"") -> 0 | G73: =IF(G66<=(Kalkylvärden!$B$6+Indata!$B$24),G71-G72,"") -> 0 | H73: =IF(H66<=(Kalkylvärden!$B$6+Indata!$B$24),H71-H72,"") -> 0 | I73: =IF(I66<=(Kalkylvärden!$B$6+Indata!$B$24),I71-I72,"") -> 0 | J73: =IF(J66<=(Kalkylvärden!$B$6+Indata!$B$24),J71-J72,"") -> 0 | K73: =IF(K66<=(Kalkylvärden!$B$6+Indata!$B$24),K71-K72,"") -> 0 | L73: =IF(L66<=(Kalkylvärden!$B$6+Indata!$B$24),L71-L72,"") -> 0 | M73: =IF(M66<=(Kalkylvärden!$B$6+Indata!$B$24),M71-M72,"") -> 0 | N73: =IF(N66<=(Kalkylvärden!$B$6+Indata!$B$24),N71-N72,"") -> 0 | O73: =IF(O66<=(Kalkylvärden!$B$6+Indata!$B$24),O71-O72,"") -> 0 | P73: =IF(P66<=(Kalkylvärden!$B$6+Indata!$B$24),P71-P72,"") -> 0 | Q73: =IF(Q66<=(Kalkylvärden!$B$6+Indata!$B$24),Q71-Q72,"") -> 0 | R73: =IF(R66<=(Kalkylvärden!$B$6+Indata!$B$24),R71-R72,"") -> 0 | S73: =IF(S66<=(Kalkylvärden!$B$6+Indata!$B$24),S71-S72,"") -> 0 | T73: =IF(T66<=(Kalkylvärden!$B$6+Indata!$B$24),T71-T72,"") -> 0 | U73: =IF(U66<=(Kalkylvärden!$B$6+Indata!$B$24),U71-U72,"") -> 0 | V73: =IF(V66<=(Kalkylvärden!$B$6+Indata!$B$24),V71-V72,"") -> 0 | W73: =IF(W66<=(Kalkylvärden!$B$6+Indata!$B$24),W71-W72,"") -> 0 | X73: =IF(X66<=(Kalkylvärden!$B$6+Indata!$B$24),X71-X72,"") -> 0 | Y73: =IF(Y66<=(Kalkylvärden!$B$6+Indata!$B$24),Y71-Y72,"") -> 0 | Z73: =IF(Z66<=(Kalkylvärden!$B$6+Indata!$B$24),Z71-Z72,"") -> 0 | AA73: =IF(AA66<=(Kalkylvärden!$B$6+Indata!$B$24),AA71-AA72,"") -> 0 | AB73: =IF(AB66<=(Kalkylvärden!$B$6+Indata!$B$24),AB71-AB72,"") -> 0 | AC73: =IF(AC66<=(Kalkylvärden!$B$6+Indata!$B$24),AC71-AC72,"") -> 0 | AD73: =IF(AD66<=(Kalkylvärden!$B$6+Indata!$B$24),AD71-AD72,"") -> 0 | AE73: =IF(AE66<=(Kalkylvärden!$B$6+Indata!$B$24),AE71-AE72,"") -> 0 | AF73: =IF(AF66<=(Kalkylvärden!$B$6+Indata!$B$24),AF71-AF72,"") -> 0 | AG73: =IF(AG66<=(Kalkylvärden!$B$6+Indata!$B$24),AG71-AG72,"") -> 0 | AH73: =IF(AH66<=(Kalkylvärden!$B$6+Indata!$B$24),AH71-AH72,"") -> 0 | AI73: =IF(AI66<=(Kalkylvärden!$B$6+Indata!$B$24),AI71-AI72,"") -> 0 | AJ73: =IF(AJ66<=(Kalkylvärden!$B$6+Indata!$B$24),AJ71-AJ72,"") -> 0 | AK73: =IF(AK66<=(Kalkylvärden!$B$6+Indata!$B$24),AK71-AK72,"") -> 0 | AL73: =IF(AL66<=(Kalkylvärden!$B$6+Indata!$B$24),AL71-AL72,"") -> 0 | AM73: =IF(AM66<=(Kalkylvärden!$B$6+Indata!$B$24),AM71-AM72,"") -> 0 | AN73: =IF(AN66<=(Kalkylvärden!$B$6+Indata!$B$24),AN71-AN72,"") -> 0 | AO73: =IF(AO66<=(Kalkylvärden!$B$6+Indata!$B$24),AO71-AO72,"") -> 0 | AP73: =IF(AP66<=(Kalkylvärden!$B$6+Indata!$B$24),AP71-AP72,"") -> 0 | AQ73: =IF(AQ66<=(Kalkylvärden!$B$6+Indata!$B$24),AQ71-AQ72,"") -> 0 | AR73: =IF(AR66<=(Kalkylvärden!$B$6+Indata!$B$24),AR71-AR72,"") -> 0 | AS73: =IF(AS66<=(Kalkylvärden!$B$6+Indata!$B$24),AS71-AS72,"") -> 0 | AT73: =IF(AT66<=(Kalkylvärden!$B$6+Indata!$B$24),AT71-AT72,"") -> 0 | AU73: =IF(AU66<=(Kalkylvärden!$B$6+Indata!$B$24),AU71-AU72,"") -> 0 | AV73: =IF(AV66<=(Kalkylvärden!$B$6+Indata!$B$24),AV71-AV72,"") -> 0 | AW73: =IF(AW66<=(Kalkylvärden!$B$6+Indata!$B$24),AW71-AW72,"") ->  | AX73: =IF(AX66<=(Kalkylvärden!$B$6+Indata!$B$24),AX71-AX72,"") ->  | AY73: =IF(AY66<=(Kalkylvärden!$B$6+Indata!$B$24),AY71-AY72,"") ->  | AZ73: =IF(AZ66<=(Kalkylvärden!$B$6+Indata!$B$24),AZ71-AZ72,"") ->  | BA73: =IF(BA66<=(Kalkylvärden!$B$6+Indata!$B$24),BA71-BA72,"") ->  | BB73: =IF(BB66<=(Kalkylvärden!$B$6+Indata!$B$24),BB71-BB72,"") ->  | BC73: =IF(BC66<=(Kalkylvärden!$B$6+Indata!$B$24),BC71-BC72,"") ->  | BD73: =IF(BD66<=(Kalkylvärden!$B$6+Indata!$B$24),BD71-BD72,"") ->  | BE73: =IF(BE66<=(Kalkylvärden!$B$6+Indata!$B$24),BE71-BE72,"") ->  | BF73: =IF(BF66<=(Kalkylvärden!$B$6+Indata!$B$24),BF71-BF72,"") ->  | BG73: =IF(BG66<=(Kalkylvärden!$B$6+Indata!$B$24),BG71-BG72,"") ->  | BH73: =IF(BH66<=(Kalkylvärden!$B$6+Indata!$B$24),BH71-BH72,"") ->  | BI73: =IF(BI66<=(Kalkylvärden!$B$6+Indata!$B$24),BI71-BI72,"") ->  | BJ73: =IF(BJ66<=(Kalkylvärden!$B$6+Indata!$B$24),BJ71-BJ72,"") ->  | BK73: =IF(BK66<=(Kalkylvärden!$B$6+Indata!$B$24),BK71-BK72,"") ->  | BL73: =IF(BL66<=(Kalkylvärden!$B$6+Indata!$B$24),BL71-BL72,"") ->  | BM73: =IF(BM66<=(Kalkylvärden!$B$6+Indata!$B$24),BM71-BM72,"") ->  | BN73: =IF(BN66<=(Kalkylvärden!$B$6+Indata!$B$24),BN71-BN72,"") ->  | BO73: =IF(BO66<=(Kalkylvärden!$B$6+Indata!$B$24),BO71-BO72,"") ->  | BP73: =IF(BP66<=(Kalkylvärden!$B$6+Indata!$B$24),BP71-BP72,"") ->  | BQ73: =IF(BQ66<=(Kalkylvärden!$B$6+Indata!$B$24),BQ71-BQ72,"") ->  | BR73: =IF(BR66<=(Kalkylvärden!$B$6+Indata!$B$24),BR71-BR72,"") ->  | BS73: =IF(BS66<=(Kalkylvärden!$B$6+Indata!$B$24),BS71-BS72,"") -> 
A74: Summa nuvärde SEK anläggningskostnader (mkr) | B74: =SUM(B73:BS73) -> 0
A76: Drift och underhåll
A77: År | B77: =Kalkylvärden!B6 -> 2025 | C77: =B77+1 -> 2026 | D77: 2027 | E77: 2028 | F77: 2029 | G77: 2030 | H77: 2031 | I77: 2032 | J77: 2033 | K77: 2034 | L77: 2035 | M77: 2036 | N77: 2037 | O77: 2038 | P77: 2039 | Q77: 2040 | R77: 2041 | S77: 2042 | T77: 2043 | U77: 2044 | V77: 2045 | W77: 2046 | X77: 2047 | Y77: 2048 | Z77: 2049 | AA77: 2050 | AB77: 2051 | AC77: 2052 | AD77: 2053 | AE77: 2054 | AF77: 2055 | AG77: 2056 | AH77: 2057 | AI77: 2058 | AJ77: 2059 | AK77: 2060 | AL77: 2061 | AM77: 2062 | AN77: 2063 | AO77: 2064 | AP77: 2065 | AQ77: 2066 | AR77: 2067 | AS77: 2068 | AT77: 2069 | AU77: 2070 | AV77: 2071 | AW77: 2072 | AX77: 2073 | AY77: 2074 | AZ77: 2075 | BA77: 2076 | BB77: 2077 | BC77: 2078 | BD77: 2079 | BE77: 2080 | BF77: 2081 | BG77: 2082 | BH77: 2083 | BI77: 2084 | BJ77: 2085 | BK77: 2086 | BL77: 2087 | BM77: 2088 | BN77: 2089 | BO77: =BN77+1 -> 2090 | BP77: 2091 | BQ77: 2092 | BR77: 2093 | BS77: 2094
A78: Drift och underhåll (mkr/år) | B78: =IF(B77<=(Kalkylvärden!$B$6+Indata!$B$24),Indata!$B$22,"") -> 0 | C78: =IF(C77<=(Kalkylvärden!$B$6+Indata!$B$24),Indata!$B$22,"") -> 0 | D78: =IF(D77<=(Kalkylvärden!$B$6+Indata!$B$24),Indata!$B$22,"") -> 0 | E78: =IF(E77<=(Kalkylvärden!$B$6+Indata!$B$24),Indata!$B$22,"") -> 0 | F78: =IF(F77<=(Kalkylvärden!$B$6+Indata!$B$24),Indata!$B$22,"") -> 0 | G78: =IF(G77<=(Kalkylvärden!$B$6+Indata!$B$24),Indata!$B$22,"") -> 0 | H78: =IF(H77<=(Kalkylvärden!$B$6+Indata!$B$24),Indata!$B$22,"") -> 0 | I78: =IF(I77<=(Kalkylvärden!$B$6+Indata!$B$24),Indata!$B$22,"") -> 0 | J78: =IF(J77<=(Kalkylvärden!$B$6+Indata!$B$24),Indata!$B$22,"") -> 0 | K78: =IF(K77<=(Kalkylvärden!$B$6+Indata!$B$24),Indata!$B$22,"") -> 0 | L78: =IF(L77<=(Kalkylvärden!$B$6+Indata!$B$24),Indata!$B$22,"") -> 0 | M78: =IF(M77<=(Kalkylvärden!$B$6+Indata!$B$24),Indata!$B$22,"") -> 0 | N78: =IF(N77<=(Kalkylvärden!$B$6+Indata!$B$24),Indata!$B$22,"") -> 0 | O78: =IF(O77<=(Kalkylvärden!$B$6+Indata!$B$24),Indata!$B$22,"") -> 0 | P78: =IF(P77<=(Kalkylvärden!$B$6+Indata!$B$24),Indata!$B$22,"") -> 0 | Q78: =IF(Q77<=(Kalkylvärden!$B$6+Indata!$B$24),Indata!$B$22,"") -> 0 | R78: =IF(R77<=(Kalkylvärden!$B$6+Indata!$B$24),Indata!$B$22,"") -> 0 | S78: =IF(S77<=(Kalkylvärden!$B$6+Indata!$B$24),Indata!$B$22,"") -> 0 | T78: =IF(T77<=(Kalkylvärden!$B$6+Indata!$B$24),Indata!$B$22,"") -> 0 | U78: =IF(U77<=(Kalkylvärden!$B$6+Indata!$B$24),Indata!$B$22,"") -> 0 | V78: =IF(V77<=(Kalkylvärden!$B$6+Indata!$B$24),Indata!$B$22,"") -> 0 | W78: =IF(W77<=(Kalkylvärden!$B$6+Indata!$B$24),Indata!$B$22,"") -> 0 | X78: =IF(X77<=(Kalkylvärden!$B$6+Indata!$B$24),Indata!$B$22,"") -> 0 | Y78: =IF(Y77<=(Kalkylvärden!$B$6+Indata!$B$24),Indata!$B$22,"") -> 0 | Z78: =IF(Z77<=(Kalkylvärden!$B$6+Indata!$B$24),Indata!$B$22,"") -> 0 | AA78: =IF(AA77<=(Kalkylvärden!$B$6+Indata!$B$24),Indata!$B$22,"") -> 0 | AB78: =IF(AB77<=(Kalkylvärden!$B$6+Indata!$B$24),Indata!$B$22,"") -> 0 | AC78: =IF(AC77<=(Kalkylvärden!$B$6+Indata!$B$24),Indata!$B$22,"") -> 0 | AD78: =IF(AD77<=(Kalkylvärden!$B$6+Indata!$B$24),Indata!$B$22,"") -> 0 | AE78: =IF(AE77<=(Kalkylvärden!$B$6+Indata!$B$24),Indata!$B$22,"") -> 0 | AF78: =IF(AF77<=(Kalkylvärden!$B$6+Indata!$B$24),Indata!$B$22,"") -> 0 | AG78: =IF(AG77<=(Kalkylvärden!$B$6+Indata!$B$24),Indata!$B$22,"") -> 0 | AH78: =IF(AH77<=(Kalkylvärden!$B$6+Indata!$B$24),Indata!$B$22,"") -> 0 | AI78: =IF(AI77<=(Kalkylvärden!$B$6+Indata!$B$24),Indata!$B$22,"") -> 0 | AJ78: =IF(AJ77<=(Kalkylvärden!$B$6+Indata!$B$24),Indata!$B$22,"") -> 0 | AK78: =IF(AK77<=(Kalkylvärden!$B$6+Indata!$B$24),Indata!$B$22,"") -> 0 | AL78: =IF(AL77<=(Kalkylvärden!$B$6+Indata!$B$24),Indata!$B$22,"") -> 0 | AM78: =IF(AM77<=(Kalkylvärden!$B$6+Indata!$B$24),Indata!$B$22,"") -> 0 | AN78: =IF(AN77<=(Kalkylvärden!$B$6+Indata!$B$24),Indata!$B$22,"") -> 0 | AO78: =IF(AO77<=(Kalkylvärden!$B$6+Indata!$B$24),Indata!$B$22,"") -> 0 | AP78: =IF(AP77<=(Kalkylvärden!$B$6+Indata!$B$24),Indata!$B$22,"") -> 0 | AQ78: =IF(AQ77<=(Kalkylvärden!$B$6+Indata!$B$24),Indata!$B$22,"") ->  | AR78: =IF(AR77<=(Kalkylvärden!$B$6+Indata!$B$24),Indata!$B$22,"") ->  | AS78: =IF(AS77<=(Kalkylvärden!$B$6+Indata!$B$24),Indata!$B$22,"") ->  | AT78: =IF(AT77<=(Kalkylvärden!$B$6+Indata!$B$24),Indata!$B$22,"") ->  | AU78: =IF(AU77<=(Kalkylvärden!$B$6+Indata!$B$24),Indata!$B$22,"") ->  | AV78: =IF(AV77<=(Kalkylvärden!$B$6+Indata!$B$24),Indata!$B$22,"") ->  | AW78: =IF(AW77<=(Kalkylvärden!$B$6+Indata!$B$24),Indata!$B$22,"") ->  | AX78: =IF(AX77<=(Kalkylvärden!$B$6+Indata!$B$24),Indata!$B$22,"") ->  | AY78: =IF(AY77<=(Kalkylvärden!$B$6+Indata!$B$24),Indata!$B$22,"") ->  | AZ78: =IF(AZ77<=(Kalkylvärden!$B$6+Indata!$B$24),Indata!$B$22,"") ->  | BA78: =IF(BA77<=(Kalkylvärden!$B$6+Indata!$B$24),Indata!$B$22,"") ->  | BB78: =IF(BB77<=(Kalkylvärden!$B$6+Indata!$B$24),Indata!$B$22,"") ->  | BC78: =IF(BC77<=(Kalkylvärden!$B$6+Indata!$B$24),Indata!$B$22,"") ->  | BD78: =IF(BD77<=(Kalkylvärden!$B$6+Indata!$B$24),Indata!$B$22,"") ->  | BE78: =IF(BE77<=(Kalkylvärden!$B$6+Indata!$B$24),Indata!$B$22,"") ->  | BF78: =IF(BF77<=(Kalkylvärden!$B$6+Indata!$B$24),Indata!$B$22,"") ->  | BG78: =IF(BG77<=(Kalkylvärden!$B$6+Indata!$B$24),Indata!$B$22,"") ->  | BH78: =IF(BH77<=(Kalkylvärden!$B$6+Indata!$B$24),Indata!$B$22,"") ->  | BI78: =IF(BI77<=(Kalkylvärden!$B$6+Indata!$B$24),Indata!$B$22,"") ->  | BJ78: =IF(BJ77<=(Kalkylvärden!$B$6+Indata!$B$24),Indata!$B$22,"") ->  | BK78: =IF(BK77<=(Kalkylvärden!$B$6+Indata!$B$24),Indata!$B$22,"") ->  | BL78: =IF(BL77<=(Kalkylvärden!$B$6+Indata!$B$24),Indata!$B$22,"") ->  | BM78: =IF(BM77<=(Kalkylvärden!$B$6+Indata!$B$24),Indata!$B$22,"") ->  | BN78: =IF(BN77<=(Kalkylvärden!$B$6+Indata!$B$24),Indata!$B$22,"") ->  | BO78: =IF(BO77<=(Kalkylvärden!$B$6+Indata!$B$24),Indata!$B$22,"") ->  | BP78: =IF(BP77<=(Kalkylvärden!$B$6+Indata!$B$24),Indata!$B$22,"") ->  | BQ78: =IF(BQ77<=(Kalkylvärden!$B$6+Indata!$B$24),Indata!$B$22,"") ->  | BR78: =IF(BR77<=(Kalkylvärden!$B$6+Indata!$B$24),Indata!$B$22,"") ->  | BS78: =IF(BS77<=(Kalkylvärden!$B$6+Indata!$B$24),Indata!$B$22,"") -> 
A79: SEK DoU (mkr/år) | B79: =IF(B77<=(Kalkylvärden!$B$6+Indata!$B$24),B78*Kalkylvärden!$B$5,"") -> 0 | C79: =IF(C77<=(Kalkylvärden!$B$6+Indata!$B$24),C78*Kalkylvärden!$B$5,"") -> 0 | D79: =IF(D77<=(Kalkylvärden!$B$6+Indata!$B$24),D78*Kalkylvärden!$B$5,"") -> 0 | E79: =IF(E77<=(Kalkylvärden!$B$6+Indata!$B$24),E78*Kalkylvärden!$B$5,"") -> 0 | F79: =IF(F77<=(Kalkylvärden!$B$6+Indata!$B$24),F78*Kalkylvärden!$B$5,"") -> 0 | G79: =IF(G77<=(Kalkylvärden!$B$6+Indata!$B$24),G78*Kalkylvärden!$B$5,"") -> 0 | H79: =IF(H77<=(Kalkylvärden!$B$6+Indata!$B$24),H78*Kalkylvärden!$B$5,"") -> 0 | I79: =IF(I77<=(Kalkylvärden!$B$6+Indata!$B$24),I78*Kalkylvärden!$B$5,"") -> 0 | J79: =IF(J77<=(Kalkylvärden!$B$6+Indata!$B$24),J78*Kalkylvärden!$B$5,"") -> 0 | K79: =IF(K77<=(Kalkylvärden!$B$6+Indata!$B$24),K78*Kalkylvärden!$B$5,"") -> 0 | L79: =IF(L77<=(Kalkylvärden!$B$6+Indata!$B$24),L78*Kalkylvärden!$B$5,"") -> 0 | M79: =IF(M77<=(Kalkylvärden!$B$6+Indata!$B$24),M78*Kalkylvärden!$B$5,"") -> 0 | N79: =IF(N77<=(Kalkylvärden!$B$6+Indata!$B$24),N78*Kalkylvärden!$B$5,"") -> 0 | O79: =IF(O77<=(Kalkylvärden!$B$6+Indata!$B$24),O78*Kalkylvärden!$B$5,"") -> 0 | P79: =IF(P77<=(Kalkylvärden!$B$6+Indata!$B$24),P78*Kalkylvärden!$B$5,"") -> 0 | Q79: =IF(Q77<=(Kalkylvärden!$B$6+Indata!$B$24),Q78*Kalkylvärden!$B$5,"") -> 0 | R79: =IF(R77<=(Kalkylvärden!$B$6+Indata!$B$24),R78*Kalkylvärden!$B$5,"") -> 0 | S79: =IF(S77<=(Kalkylvärden!$B$6+Indata!$B$24),S78*Kalkylvärden!$B$5,"") -> 0 | T79: =IF(T77<=(Kalkylvärden!$B$6+Indata!$B$24),T78*Kalkylvärden!$B$5,"") -> 0 | U79: =IF(U77<=(Kalkylvärden!$B$6+Indata!$B$24),U78*Kalkylvärden!$B$5,"") -> 0 | V79: =IF(V77<=(Kalkylvärden!$B$6+Indata!$B$24),V78*Kalkylvärden!$B$5,"") -> 0 | W79: =IF(W77<=(Kalkylvärden!$B$6+Indata!$B$24),W78*Kalkylvärden!$B$5,"") -> 0 | X79: =IF(X77<=(Kalkylvärden!$B$6+Indata!$B$24),X78*Kalkylvärden!$B$5,"") -> 0 | Y79: =IF(Y77<=(Kalkylvärden!$B$6+Indata!$B$24),Y78*Kalkylvärden!$B$5,"") -> 0 | Z79: =IF(Z77<=(Kalkylvärden!$B$6+Indata!$B$24),Z78*Kalkylvärden!$B$5,"") -> 0 | AA79: =IF(AA77<=(Kalkylvärden!$B$6+Indata!$B$24),AA78*Kalkylvärden!$B$5,"") -> 0 | AB79: =IF(AB77<=(Kalkylvärden!$B$6+Indata!$B$24),AB78*Kalkylvärden!$B$5,"") -> 0 | AC79: =IF(AC77<=(Kalkylvärden!$B$6+Indata!$B$24),AC78*Kalkylvärden!$B$5,"") -> 0 | AD79: =IF(AD77<=(Kalkylvärden!$B$6+Indata!$B$24),AD78*Kalkylvärden!$B$5,"") -> 0 | AE79: =IF(AE77<=(Kalkylvärden!$B$6+Indata!$B$24),AE78*Kalkylvärden!$B$5,"") -> 0 | AF79: =IF(AF77<=(Kalkylvärden!$B$6+Indata!$B$24),AF78*Kalkylvärden!$B$5,"") -> 0 | AG79: =IF(AG77<=(Kalkylvärden!$B$6+Indata!$B$24),AG78*Kalkylvärden!$B$5,"") -> 0 | AH79: =IF(AH77<=(Kalkylvärden!$B$6+Indata!$B$24),AH78*Kalkylvärden!$B$5,"") -> 0 | AI79: =IF(AI77<=(Kalkylvärden!$B$6+Indata!$B$24),AI78*Kalkylvärden!$B$5,"") -> 0 | AJ79: =IF(AJ77<=(Kalkylvärden!$B$6+Indata!$B$24),AJ78*Kalkylvärden!$B$5,"") -> 0 | AK79: =IF(AK77<=(Kalkylvärden!$B$6+Indata!$B$24),AK78*Kalkylvärden!$B$5,"") -> 0 | AL79: =IF(AL77<=(Kalkylvärden!$B$6+Indata!$B$24),AL78*Kalkylvärden!$B$5,"") -> 0 | AM79: =IF(AM77<=(Kalkylvärden!$B$6+Indata!$B$24),AM78*Kalkylvärden!$B$5,"") -> 0 | AN79: =IF(AN77<=(Kalkylvärden!$B$6+Indata!$B$24),AN78*Kalkylvärden!$B$5,"") -> 0 | AO79: =IF(AO77<=(Kalkylvärden!$B$6+Indata!$B$24),AO78*Kalkylvärden!$B$5,"") -> 0 | AP79: =IF(AP77<=(Kalkylvärden!$B$6+Indata!$B$24),AP78*Kalkylvärden!$B$5,"") -> 0 | AQ79: =IF(AQ77<=(Kalkylvärden!$B$6+Indata!$B$24),AQ78*Kalkylvärden!$B$5,"") ->  | AR79: =IF(AR77<=(Kalkylvärden!$B$6+Indata!$B$24),AR78*Kalkylvärden!$B$5,"") ->  | AS79: =IF(AS77<=(Kalkylvärden!$B$6+Indata!$B$24),AS78*Kalkylvärden!$B$5,"") ->  | AT79: =IF(AT77<=(Kalkylvärden!$B$6+Indata!$B$24),AT78*Kalkylvärden!$B$5,"") ->  | AU79: =IF(AU77<=(Kalkylvärden!$B$6+Indata!$B$24),AU78*Kalkylvärden!$B$5,"") ->  | AV79: =IF(AV77<=(Kalkylvärden!$B$6+Indata!$B$24),AV78*Kalkylvärden!$B$5,"") ->  | AW79: =IF(AW77<=(Kalkylvärden!$B$6+Indata!$B$24),AW78*Kalkylvärden!$B$5,"") ->  | AX79: =IF(AX77<=(Kalkylvärden!$B$6+Indata!$B$24),AX78*Kalkylvärden!$B$5,"") ->  | AY79: =IF(AY77<=(Kalkylvärden!$B$6+Indata!$B$24),AY78*Kalkylvärden!$B$5,"") ->  | AZ79: =IF(AZ77<=(Kalkylvärden!$B$6+Indata!$B$24),AZ78*Kalkylvärden!$B$5,"") ->  | BA79: =IF(BA77<=(Kalkylvärden!$B$6+Indata!$B$24),BA78*Kalkylvärden!$B$5,"") ->  | BB79: =IF(BB77<=(Kalkylvärden!$B$6+Indata!$B$24),BB78*Kalkylvärden!$B$5,"") ->  | BC79: =IF(BC77<=(Kalkylvärden!$B$6+Indata!$B$24),BC78*Kalkylvärden!$B$5,"") ->  | BD79: =IF(BD77<=(Kalkylvärden!$B$6+Indata!$B$24),BD78*Kalkylvärden!$B$5,"") ->  | BE79: =IF(BE77<=(Kalkylvärden!$B$6+Indata!$B$24),BE78*Kalkylvärden!$B$5,"") ->  | BF79: =IF(BF77<=(Kalkylvärden!$B$6+Indata!$B$24),BF78*Kalkylvärden!$B$5,"") ->  | BG79: =IF(BG77<=(Kalkylvärden!$B$6+Indata!$B$24),BG78*Kalkylvärden!$B$5,"") ->  | BH79: =IF(BH77<=(Kalkylvärden!$B$6+Indata!$B$24),BH78*Kalkylvärden!$B$5,"") ->  | BI79: =IF(BI77<=(Kalkylvärden!$B$6+Indata!$B$24),BI78*Kalkylvärden!$B$5,"") ->  | BJ79: =IF(BJ77<=(Kalkylvärden!$B$6+Indata!$B$24),BJ78*Kalkylvärden!$B$5,"") ->  | BK79: =IF(BK77<=(Kalkylvärden!$B$6+Indata!$B$24),BK78*Kalkylvärden!$B$5,"") ->  | BL79: =IF(BL77<=(Kalkylvärden!$B$6+Indata!$B$24),BL78*Kalkylvärden!$B$5,"") ->  | BM79: =IF(BM77<=(Kalkylvärden!$B$6+Indata!$B$24),BM78*Kalkylvärden!$B$5,"") ->  | BN79: =IF(BN77<=(Kalkylvärden!$B$6+Indata!$B$24),BN78*Kalkylvärden!$B$5,"") ->  | BO79: =IF(BO77<=(Kalkylvärden!$B$6+Indata!$B$24),BO78*Kalkylvärden!$B$5,"") ->  | BP79: =IF(BP77<=(Kalkylvärden!$B$6+Indata!$B$24),BP78*Kalkylvärden!$B$5,"") ->  | BQ79: =IF(BQ77<=(Kalkylvärden!$B$6+Indata!$B$24),BQ78*Kalkylvärden!$B$5,"") ->  | BR79: =IF(BR77<=(Kalkylvärden!$B$6+Indata!$B$24),BR78*Kalkylvärden!$B$5,"") ->  | BS79: =IF(BS77<=(Kalkylvärden!$B$6+Indata!$B$24),BS78*Kalkylvärden!$B$5,"") -> 
A80: Nuvärde SEK DoU (mkr/år) | B80: =IF(B77<=(Kalkylvärden!$B$6+Indata!$B$24),B79/B29,"") -> 0 | C80: =IF(C77<=(Kalkylvärden!$B$6+Indata!$B$24),C79/C29,"") -> 0 | D80: =IF(D77<=(Kalkylvärden!$B$6+Indata!$B$24),D79/D29,"") -> 0 | E80: =IF(E77<=(Kalkylvärden!$B$6+Indata!$B$24),E79/E29,"") -> 0 | F80: =IF(F77<=(Kalkylvärden!$B$6+Indata!$B$24),F79/F29,"") -> 0 | G80: =IF(G77<=(Kalkylvärden!$B$6+Indata!$B$24),G79/G29,"") -> 0 | H80: =IF(H77<=(Kalkylvärden!$B$6+Indata!$B$24),H79/H29,"") -> 0 | I80: =IF(I77<=(Kalkylvärden!$B$6+Indata!$B$24),I79/I29,"") -> 0 | J80: =IF(J77<=(Kalkylvärden!$B$6+Indata!$B$24),J79/J29,"") -> 0 | K80: =IF(K77<=(Kalkylvärden!$B$6+Indata!$B$24),K79/K29,"") -> 0 | L80: =IF(L77<=(Kalkylvärden!$B$6+Indata!$B$24),L79/L29,"") -> 0 | M80: =IF(M77<=(Kalkylvärden!$B$6+Indata!$B$24),M79/M29,"") -> 0 | N80: =IF(N77<=(Kalkylvärden!$B$6+Indata!$B$24),N79/N29,"") -> 0 | O80: =IF(O77<=(Kalkylvärden!$B$6+Indata!$B$24),O79/O29,"") -> 0 | P80: =IF(P77<=(Kalkylvärden!$B$6+Indata!$B$24),P79/P29,"") -> 0 | Q80: =IF(Q77<=(Kalkylvärden!$B$6+Indata!$B$24),Q79/Q29,"") -> 0 | R80: =IF(R77<=(Kalkylvärden!$B$6+Indata!$B$24),R79/R29,"") -> 0 | S80: =IF(S77<=(Kalkylvärden!$B$6+Indata!$B$24),S79/S29,"") -> 0 | T80: =IF(T77<=(Kalkylvärden!$B$6+Indata!$B$24),T79/T29,"") -> 0 | U80: =IF(U77<=(Kalkylvärden!$B$6+Indata!$B$24),U79/U29,"") -> 0 | V80: =IF(V77<=(Kalkylvärden!$B$6+Indata!$B$24),V79/V29,"") -> 0 | W80: =IF(W77<=(Kalkylvärden!$B$6+Indata!$B$24),W79/W29,"") -> 0 | X80: =IF(X77<=(Kalkylvärden!$B$6+Indata!$B$24),X79/X29,"") -> 0 | Y80: =IF(Y77<=(Kalkylvärden!$B$6+Indata!$B$24),Y79/Y29,"") -> 0 | Z80: =IF(Z77<=(Kalkylvärden!$B$6+Indata!$B$24),Z79/Z29,"") -> 0 | AA80: =IF(AA77<=(Kalkylvärden!$B$6+Indata!$B$24),AA79/AA29,"") -> 0 | AB80: =IF(AB77<=(Kalkylvärden!$B$6+Indata!$B$24),AB79/AB29,"") -> 0 | AC80: =IF(AC77<=(Kalkylvärden!$B$6+Indata!$B$24),AC79/AC29,"") -> 0 | AD80: =IF(AD77<=(Kalkylvärden!$B$6+Indata!$B$24),AD79/AD29,"") -> 0 | AE80: =IF(AE77<=(Kalkylvärden!$B$6+Indata!$B$24),AE79/AE29,"") -> 0 | AF80: =IF(AF77<=(Kalkylvärden!$B$6+Indata!$B$24),AF79/AF29,"") -> 0 | AG80: =IF(AG77<=(Kalkylvärden!$B$6+Indata!$B$24),AG79/AG29,"") -> 0 | AH80: =IF(AH77<=(Kalkylvärden!$B$6+Indata!$B$24),AH79/AH29,"") -> 0 | AI80: =IF(AI77<=(Kalkylvärden!$B$6+Indata!$B$24),AI79/AI29,"") -> 0 | AJ80: =IF(AJ77<=(Kalkylvärden!$B$6+Indata!$B$24),AJ79/AJ29,"") -> 0 | AK80: =IF(AK77<=(Kalkylvärden!$B$6+Indata!$B$24),AK79/AK29,"") -> 0 | AL80: =IF(AL77<=(Kalkylvärden!$B$6+Indata!$B$24),AL79/AL29,"") -> 0 | AM80: =IF(AM77<=(Kalkylvärden!$B$6+Indata!$B$24),AM79/AM29,"") -> 0 | AN80: =IF(AN77<=(Kalkylvärden!$B$6+Indata!$B$24),AN79/AN29,"") -> 0 | AO80: =IF(AO77<=(Kalkylvärden!$B$6+Indata!$B$24),AO79/AO29,"") -> 0 | AP80: =IF(AP77<=(Kalkylvärden!$B$6+Indata!$B$24),AP79/AP29,"") -> 0 | AQ80: =IF(AQ77<=(Kalkylvärden!$B$6+Indata!$B$24),AQ79/AQ29,"") ->  | AR80: =IF(AR77<=(Kalkylvärden!$B$6+Indata!$B$24),AR79/AR29,"") ->  | AS80: =IF(AS77<=(Kalkylvärden!$B$6+Indata!$B$24),AS79/AS29,"") ->  | AT80: =IF(AT77<=(Kalkylvärden!$B$6+Indata!$B$24),AT79/AT29,"") ->  | AU80: =IF(AU77<=(Kalkylvärden!$B$6+Indata!$B$24),AU79/AU29,"") ->  | AV80: =IF(AV77<=(Kalkylvärden!$B$6+Indata!$B$24),AV79/AV29,"") ->  | AW80: =IF(AW77<=(Kalkylvärden!$B$6+Indata!$B$24),AW79/AW29,"") ->  | AX80: =IF(AX77<=(Kalkylvärden!$B$6+Indata!$B$24),AX79/AX29,"") ->  | AY80: =IF(AY77<=(Kalkylvärden!$B$6+Indata!$B$24),AY79/AY29,"") ->  | AZ80: =IF(AZ77<=(Kalkylvärden!$B$6+Indata!$B$24),AZ79/AZ29,"") ->  | BA80: =IF(BA77<=(Kalkylvärden!$B$6+Indata!$B$24),BA79/BA29,"") ->  | BB80: =IF(BB77<=(Kalkylvärden!$B$6+Indata!$B$24),BB79/BB29,"") ->  | BC80: =IF(BC77<=(Kalkylvärden!$B$6+Indata!$B$24),BC79/BC29,"") ->  | BD80: =IF(BD77<=(Kalkylvärden!$B$6+Indata!$B$24),BD79/BD29,"") ->  | BE80: =IF(BE77<=(Kalkylvärden!$B$6+Indata!$B$24),BE79/BE29,"") ->  | BF80: =IF(BF77<=(Kalkylvärden!$B$6+Indata!$B$24),BF79/BF29,"") ->  | BG80: =IF(BG77<=(Kalkylvärden!$B$6+Indata!$B$24),BG79/BG29,"") ->  | BH80: =IF(BH77<=(Kalkylvärden!$B$6+Indata!$B$24),BH79/BH29,"") ->  | BI80: =IF(BI77<=(Kalkylvärden!$B$6+Indata!$B$24),BI79/BI29,"") ->  | BJ80: =IF(BJ77<=(Kalkylvärden!$B$6+Indata!$B$24),BJ79/BJ29,"") ->  | BK80: =IF(BK77<=(Kalkylvärden!$B$6+Indata!$B$24),BK79/BK29,"") ->  | BL80: =IF(BL77<=(Kalkylvärden!$B$6+Indata!$B$24),BL79/BL29,"") ->  | BM80: =IF(BM77<=(Kalkylvärden!$B$6+Indata!$B$24),BM79/BM29,"") ->  | BN80: =IF(BN77<=(Kalkylvärden!$B$6+Indata!$B$24),BN79/BN29,"") ->  | BO80: =IF(BO77<=(Kalkylvärden!$B$6+Indata!$B$24),BO79/BO29,"") ->  | BP80: =IF(BP77<=(Kalkylvärden!$B$6+Indata!$B$24),BP79/BP29,"") ->  | BQ80: =IF(BQ77<=(Kalkylvärden!$B$6+Indata!$B$24),BQ79/BQ29,"") ->  | BR80: =IF(BR77<=(Kalkylvärden!$B$6+Indata!$B$24),BR79/BR29,"") ->  | BS80: =IF(BS77<=(Kalkylvärden!$B$6+Indata!$B$24),BS79/BS29,"") -> 
A81: Summa nuvärde SEK DoU (mkr) | B81: =SUM(B80:BS80) -> 0
A84: Trafiksäkerhet, extern effekt
A85: År | B85: =Kalkylvärden!B6 -> 2025 | C85: =B85+1 -> 2026 | D85: 2027 | E85: 2028 | F85: 2029 | G85: 2030 | H85: 2031 | I85: 2032 | J85: 2033 | K85: 2034 | L85: 2035 | M85: 2036 | N85: 2037 | O85: 2038 | P85: 2039 | Q85: 2040 | R85: 2041 | S85: 2042 | T85: 2043 | U85: 2044 | V85: 2045 | W85: 2046 | X85: 2047 | Y85: 2048 | Z85: 2049 | AA85: 2050 | AB85: 2051 | AC85: 2052 | AD85: 2053 | AE85: 2054 | AF85: 2055 | AG85: 2056 | AH85: 2057 | AI85: 2058 | AJ85: 2059 | AK85: 2060 | AL85: 2061 | AM85: 2062 | AN85: 2063 | AO85: 2064 | AP85: 2065 | AQ85: 2066 | AR85: 2067 | AS85: 2068 | AT85: 2069 | AU85: 2070 | AV85: 2071 | AW85: 2072 | AX85: 2073 | AY85: 2074 | AZ85: 2075 | BA85: 2076 | BB85: 2077 | BC85: 2078 | BD85: 2079 | BE85: 2080 | BF85: 2081 | BG85: 2082 | BH85: 2083 | BI85: 2084 | BJ85: 2085 | BK85: 2086 | BL85: 2087 | BM85: 2088 | BN85: 2089 | BO85: =BN85+1 -> 2090 | BP85: 2091 | BQ85: 2092 | BR85: 2093 | BS85: 2094
A86: I Korsning
A87: Trafiksäkerhet, korsning (mkr/år) | B87: =IF(B85<=(Kalkylvärden!$B$6+Indata!$B$24),(Ekonomi!$B$47-Ekonomi!$B$46),"") ->  | C87: =IF(C85<=(Kalkylvärden!$B$6+Indata!$B$24),(Ekonomi!$B$47-Ekonomi!$B$46),"") ->  | D87: =IF(D85<=(Kalkylvärden!$B$6+Indata!$B$24),(Ekonomi!$B$47-Ekonomi!$B$46),"") ->  | E87: =IF(E85<=(Kalkylvärden!$B$6+Indata!$B$24),(Ekonomi!$B$47-Ekonomi!$B$46),"") ->  | F87: =IF(F85<=(Kalkylvärden!$B$6+Indata!$B$24),(Ekonomi!$B$47-Ekonomi!$B$46),"") ->  | G87: =IF(G85<=(Kalkylvärden!$B$6+Indata!$B$24),(Ekonomi!$B$47-Ekonomi!$B$46),"") ->  | H87: =IF(H85<=(Kalkylvärden!$B$6+Indata!$B$24),(Ekonomi!$B$47-Ekonomi!$B$46),"") ->  | I87: =IF(I85<=(Kalkylvärden!$B$6+Indata!$B$24),(Ekonomi!$B$47-Ekonomi!$B$46),"") ->  | J87: =IF(J85<=(Kalkylvärden!$B$6+Indata!$B$24),(Ekonomi!$B$47-Ekonomi!$B$46),"") ->  | K87: =IF(K85<=(Kalkylvärden!$B$6+Indata!$B$24),(Ekonomi!$B$47-Ekonomi!$B$46),"") ->  | L87: =IF(L85<=(Kalkylvärden!$B$6+Indata!$B$24),(Ekonomi!$B$47-Ekonomi!$B$46),"") ->  | M87: =IF(M85<=(Kalkylvärden!$B$6+Indata!$B$24),(Ekonomi!$B$47-Ekonomi!$B$46),"") ->  | N87: =IF(N85<=(Kalkylvärden!$B$6+Indata!$B$24),(Ekonomi!$B$47-Ekonomi!$B$46),"") ->  | O87: =IF(O85<=(Kalkylvärden!$B$6+Indata!$B$24),(Ekonomi!$B$47-Ekonomi!$B$46),"") ->  | P87: =IF(P85<=(Kalkylvärden!$B$6+Indata!$B$24),(Ekonomi!$B$47-Ekonomi!$B$46),"") ->  | Q87: =IF(Q85<=(Kalkylvärden!$B$6+Indata!$B$24),(Ekonomi!$B$47-Ekonomi!$B$46),"") ->  | R87: =IF(R85<=(Kalkylvärden!$B$6+Indata!$B$24),(Ekonomi!$B$47-Ekonomi!$B$46),"") ->  | S87: =IF(S85<=(Kalkylvärden!$B$6+Indata!$B$24),(Ekonomi!$B$47-Ekonomi!$B$46),"") ->  | T87: =IF(T85<=(Kalkylvärden!$B$6+Indata!$B$24),(Ekonomi!$B$47-Ekonomi!$B$46),"") ->  | U87: =IF(U85<=(Kalkylvärden!$B$6+Indata!$B$24),(Ekonomi!$B$47-Ekonomi!$B$46),"") ->  | V87: =IF(V85<=(Kalkylvärden!$B$6+Indata!$B$24),(Ekonomi!$B$47-Ekonomi!$B$46),"") ->  | W87: =IF(W85<=(Kalkylvärden!$B$6+Indata!$B$24),(Ekonomi!$B$47-Ekonomi!$B$46),"") ->  | X87: =IF(X85<=(Kalkylvärden!$B$6+Indata!$B$24),(Ekonomi!$B$47-Ekonomi!$B$46),"") ->  | Y87: =IF(Y85<=(Kalkylvärden!$B$6+Indata!$B$24),(Ekonomi!$B$47-Ekonomi!$B$46),"") ->  | Z87: =IF(Z85<=(Kalkylvärden!$B$6+Indata!$B$24),(Ekonomi!$B$47-Ekonomi!$B$46),"") ->  | AA87: =IF(AA85<=(Kalkylvärden!$B$6+Indata!$B$24),(Ekonomi!$B$47-Ekonomi!$B$46),"") ->  | AB87: =IF(AB85<=(Kalkylvärden!$B$6+Indata!$B$24),(Ekonomi!$B$47-Ekonomi!$B$46),"") ->  | AC87: =IF(AC85<=(Kalkylvärden!$B$6+Indata!$B$24),(Ekonomi!$B$47-Ekonomi!$B$46),"") ->  | AD87: =IF(AD85<=(Kalkylvärden!$B$6+Indata!$B$24),(Ekonomi!$B$47-Ekonomi!$B$46),"") ->  | AE87: =IF(AE85<=(Kalkylvärden!$B$6+Indata!$B$24),(Ekonomi!$B$47-Ekonomi!$B$46),"") ->  | AF87: =IF(AF85<=(Kalkylvärden!$B$6+Indata!$B$24),(Ekonomi!$B$47-Ekonomi!$B$46),"") ->  | AG87: =IF(AG85<=(Kalkylvärden!$B$6+Indata!$B$24),(Ekonomi!$B$47-Ekonomi!$B$46),"") ->  | AH87: =IF(AH85<=(Kalkylvärden!$B$6+Indata!$B$24),(Ekonomi!$B$47-Ekonomi!$B$46),"") ->  | AI87: =IF(AI85<=(Kalkylvärden!$B$6+Indata!$B$24),(Ekonomi!$B$47-Ekonomi!$B$46),"") ->  | AJ87: =IF(AJ85<=(Kalkylvärden!$B$6+Indata!$B$24),(Ekonomi!$B$47-Ekonomi!$B$46),"") ->  | AK87: =IF(AK85<=(Kalkylvärden!$B$6+Indata!$B$24),(Ekonomi!$B$47-Ekonomi!$B$46),"") ->  | AL87: =IF(AL85<=(Kalkylvärden!$B$6+Indata!$B$24),(Ekonomi!$B$47-Ekonomi!$B$46),"") ->  | AM87: =IF(AM85<=(Kalkylvärden!$B$6+Indata!$B$24),(Ekonomi!$B$47-Ekonomi!$B$46),"") ->  | AN87: =IF(AN85<=(Kalkylvärden!$B$6+Indata!$B$24),(Ekonomi!$B$47-Ekonomi!$B$46),"") ->  | AO87: =IF(AO85<=(Kalkylvärden!$B$6+Indata!$B$24),(Ekonomi!$B$47-Ekonomi!$B$46),"") ->  | AP87: =IF(AP85<=(Kalkylvärden!$B$6+Indata!$B$24),(Ekonomi!$B$47-Ekonomi!$B$46),"") ->  | AQ87: =IF(AQ85<=(Kalkylvärden!$B$6+Indata!$B$24),(Ekonomi!$B$47-Ekonomi!$B$46),"") ->  | AR87: =IF(AR85<=(Kalkylvärden!$B$6+Indata!$B$24),(Ekonomi!$B$47-Ekonomi!$B$46),"") ->  | AS87: =IF(AS85<=(Kalkylvärden!$B$6+Indata!$B$24),(Ekonomi!$B$47-Ekonomi!$B$46),"") ->  | AT87: =IF(AT85<=(Kalkylvärden!$B$6+Indata!$B$24),(Ekonomi!$B$47-Ekonomi!$B$46),"") ->  | AU87: =IF(AU85<=(Kalkylvärden!$B$6+Indata!$B$24),(Ekonomi!$B$47-Ekonomi!$B$46),"") ->  | AV87: =IF(AV85<=(Kalkylvärden!$B$6+Indata!$B$24),(Ekonomi!$B$47-Ekonomi!$B$46),"") ->  | AW87: =IF(AW85<=(Kalkylvärden!$B$6+Indata!$B$24),(Ekonomi!$B$47-Ekonomi!$B$46),"") ->  | AX87: =IF(AX85<=(Kalkylvärden!$B$6+Indata!$B$24),(Ekonomi!$B$47-Ekonomi!$B$46),"") ->  | AY87: =IF(AY85<=(Kalkylvärden!$B$6+Indata!$B$24),(Ekonomi!$B$47-Ekonomi!$B$46),"") ->  | AZ87: =IF(AZ85<=(Kalkylvärden!$B$6+Indata!$B$24),(Ekonomi!$B$47-Ekonomi!$B$46),"") ->  | BA87: =IF(BA85<=(Kalkylvärden!$B$6+Indata!$B$24),(Ekonomi!$B$47-Ekonomi!$B$46),"") ->  | BB87: =IF(BB85<=(Kalkylvärden!$B$6+Indata!$B$24),(Ekonomi!$B$47-Ekonomi!$B$46),"") ->  | BC87: =IF(BC85<=(Kalkylvärden!$B$6+Indata!$B$24),(Ekonomi!$B$47-Ekonomi!$B$46),"") ->  | BD87: =IF(BD85<=(Kalkylvärden!$B$6+Indata!$B$24),(Ekonomi!$B$47-Ekonomi!$B$46),"") ->  | BE87: =IF(BE85<=(Kalkylvärden!$B$6+Indata!$B$24),(Ekonomi!$B$47-Ekonomi!$B$46),"") ->  | BF87: =IF(BF85<=(Kalkylvärden!$B$6+Indata!$B$24),(Ekonomi!$B$47-Ekonomi!$B$46),"") ->  | BG87: =IF(BG85<=(Kalkylvärden!$B$6+Indata!$B$24),(Ekonomi!$B$47-Ekonomi!$B$46),"") ->  | BH87: =IF(BH85<=(Kalkylvärden!$B$6+Indata!$B$24),(Ekonomi!$B$47-Ekonomi!$B$46),"") ->  | BI87: =IF(BI85<=(Kalkylvärden!$B$6+Indata!$B$24),(Ekonomi!$B$47-Ekonomi!$B$46),"") ->  | BJ87: =IF(BJ85<=(Kalkylvärden!$B$6+Indata!$B$24),(Ekonomi!$B$47-Ekonomi!$B$46),"") ->  | BK87: =IF(BK85<=(Kalkylvärden!$B$6+Indata!$B$24),(Ekonomi!$B$47-Ekonomi!$B$46),"") ->  | BL87: =IF(BL85<=(Kalkylvärden!$B$6+Indata!$B$24),(Ekonomi!$B$47-Ekonomi!$B$46),"") ->  | BM87: =IF(BM85<=(Kalkylvärden!$B$6+Indata!$B$24),(Ekonomi!$B$47-Ekonomi!$B$46),"") ->  | BN87: =IF(BN85<=(Kalkylvärden!$B$6+Indata!$B$24),(Ekonomi!$B$47-Ekonomi!$B$46),"") ->  | BO87: =IF(BO85<=(Kalkylvärden!$B$6+Indata!$B$24),(Ekonomi!$B$47-Ekonomi!$B$46),"") ->  | BP87: =IF(BP85<=(Kalkylvärden!$B$6+Indata!$B$24),(Ekonomi!$B$47-Ekonomi!$B$46),"") ->  | BQ87: =IF(BQ85<=(Kalkylvärden!$B$6+Indata!$B$24),(Ekonomi!$B$47-Ekonomi!$B$46),"") ->  | BR87: =IF(BR85<=(Kalkylvärden!$B$6+Indata!$B$24),(Ekonomi!$B$47-Ekonomi!$B$46),"") ->  | BS87: =IF(BS85<=(Kalkylvärden!$B$6+Indata!$B$24),(Ekonomi!$B$47-Ekonomi!$B$46),"") -> 
A88: Nuvärde Trafiksäkerhet, korsning (mkr/år) | B88: =IF(B85<=(Kalkylvärden!$B$6+Indata!$B$24),B87*B49,"") ->  | C88: =IF(C85<=(Kalkylvärden!$B$6+Indata!$B$24),C87*C49,"") ->  | D88: =IF(D85<=(Kalkylvärden!$B$6+Indata!$B$24),D87*D49,"") ->  | E88: =IF(E85<=(Kalkylvärden!$B$6+Indata!$B$24),E87*E49,"") ->  | F88: =IF(F85<=(Kalkylvärden!$B$6+Indata!$B$24),F87*F49,"") ->  | G88: =IF(G85<=(Kalkylvärden!$B$6+Indata!$B$24),G87*G49,"") ->  | H88: =IF(H85<=(Kalkylvärden!$B$6+Indata!$B$24),H87*H49,"") ->  | I88: =IF(I85<=(Kalkylvärden!$B$6+Indata!$B$24),I87*I49,"") ->  | J88: =IF(J85<=(Kalkylvärden!$B$6+Indata!$B$24),J87*J49,"") ->  | K88: =IF(K85<=(Kalkylvärden!$B$6+Indata!$B$24),K87*K49,"") ->  | L88: =IF(L85<=(Kalkylvärden!$B$6+Indata!$B$24),L87*L49,"") ->  | M88: =IF(M85<=(Kalkylvärden!$B$6+Indata!$B$24),M87*M49,"") ->  | N88: =IF(N85<=(Kalkylvärden!$B$6+Indata!$B$24),N87*N49,"") ->  | O88: =IF(O85<=(Kalkylvärden!$B$6+Indata!$B$24),O87*O49,"") ->  | P88: =IF(P85<=(Kalkylvärden!$B$6+Indata!$B$24),P87*P49,"") ->  | Q88: =IF(Q85<=(Kalkylvärden!$B$6+Indata!$B$24),Q87*Q49,"") ->  | R88: =IF(R85<=(Kalkylvärden!$B$6+Indata!$B$24),R87*R49,"") ->  | S88: =IF(S85<=(Kalkylvärden!$B$6+Indata!$B$24),S87*S49,"") ->  | T88: =IF(T85<=(Kalkylvärden!$B$6+Indata!$B$24),T87*T49,"") ->  | U88: =IF(U85<=(Kalkylvärden!$B$6+Indata!$B$24),U87*U49,"") ->  | V88: =IF(V85<=(Kalkylvärden!$B$6+Indata!$B$24),V87*V49,"") ->  | W88: =IF(W85<=(Kalkylvärden!$B$6+Indata!$B$24),W87*W49,"") ->  | X88: =IF(X85<=(Kalkylvärden!$B$6+Indata!$B$24),X87*X49,"") ->  | Y88: =IF(Y85<=(Kalkylvärden!$B$6+Indata!$B$24),Y87*Y49,"") ->  | Z88: =IF(Z85<=(Kalkylvärden!$B$6+Indata!$B$24),Z87*Z49,"") ->  | AA88: =IF(AA85<=(Kalkylvärden!$B$6+Indata!$B$24),AA87*AA49,"") ->  | AB88: =IF(AB85<=(Kalkylvärden!$B$6+Indata!$B$24),AB87*AB49,"") ->  | AC88: =IF(AC85<=(Kalkylvärden!$B$6+Indata!$B$24),AC87*AC49,"") ->  | AD88: =IF(AD85<=(Kalkylvärden!$B$6+Indata!$B$24),AD87*AD49,"") ->  | AE88: =IF(AE85<=(Kalkylvärden!$B$6+Indata!$B$24),AE87*AE49,"") ->  | AF88: =IF(AF85<=(Kalkylvärden!$B$6+Indata!$B$24),AF87*AF49,"") ->  | AG88: =IF(AG85<=(Kalkylvärden!$B$6+Indata!$B$24),AG87*AG49,"") ->  | AH88: =IF(AH85<=(Kalkylvärden!$B$6+Indata!$B$24),AH87*AH49,"") ->  | AI88: =IF(AI85<=(Kalkylvärden!$B$6+Indata!$B$24),AI87*AI49,"") ->  | AJ88: =IF(AJ85<=(Kalkylvärden!$B$6+Indata!$B$24),AJ87*AJ49,"") ->  | AK88: =IF(AK85<=(Kalkylvärden!$B$6+Indata!$B$24),AK87*AK49,"") ->  | AL88: =IF(AL85<=(Kalkylvärden!$B$6+Indata!$B$24),AL87*AL49,"") ->  | AM88: =IF(AM85<=(Kalkylvärden!$B$6+Indata!$B$24),AM87*AM49,"") ->  | AN88: =IF(AN85<=(Kalkylvärden!$B$6+Indata!$B$24),AN87*AN49,"") ->  | AO88: =IF(AO85<=(Kalkylvärden!$B$6+Indata!$B$24),AO87*AO49,"") ->  | AP88: =IF(AP85<=(Kalkylvärden!$B$6+Indata!$B$24),AP87*AP49,"") ->  | AQ88: =IF(AQ85<=(Kalkylvärden!$B$6+Indata!$B$24),AQ87*AQ49,"") ->  | AR88: =IF(AR85<=(Kalkylvärden!$B$6+Indata!$B$24),AR87*AR49,"") ->  | AS88: =IF(AS85<=(Kalkylvärden!$B$6+Indata!$B$24),AS87*AS49,"") ->  | AT88: =IF(AT85<=(Kalkylvärden!$B$6+Indata!$B$24),AT87*AT49,"") ->  | AU88: =IF(AU85<=(Kalkylvärden!$B$6+Indata!$B$24),AU87*AU49,"") ->  | AV88: =IF(AV85<=(Kalkylvärden!$B$6+Indata!$B$24),AV87*AV49,"") ->  | AW88: =IF(AW85<=(Kalkylvärden!$B$6+Indata!$B$24),AW87*AW49,"") ->  | AX88: =IF(AX85<=(Kalkylvärden!$B$6+Indata!$B$24),AX87*AX49,"") ->  | AY88: =IF(AY85<=(Kalkylvärden!$B$6+Indata!$B$24),AY87*AY49,"") ->  | AZ88: =IF(AZ85<=(Kalkylvärden!$B$6+Indata!$B$24),AZ87*AZ49,"") ->  | BA88: =IF(BA85<=(Kalkylvärden!$B$6+Indata!$B$24),BA87*BA49,"") ->  | BB88: =IF(BB85<=(Kalkylvärden!$B$6+Indata!$B$24),BB87*BB49,"") ->  | BC88: =IF(BC85<=(Kalkylvärden!$B$6+Indata!$B$24),BC87*BC49,"") ->  | BD88: =IF(BD85<=(Kalkylvärden!$B$6+Indata!$B$24),BD87*BD49,"") ->  | BE88: =IF(BE85<=(Kalkylvärden!$B$6+Indata!$B$24),BE87*BE49,"") ->  | BF88: =IF(BF85<=(Kalkylvärden!$B$6+Indata!$B$24),BF87*BF49,"") ->  | BG88: =IF(BG85<=(Kalkylvärden!$B$6+Indata!$B$24),BG87*BG49,"") ->  | BH88: =IF(BH85<=(Kalkylvärden!$B$6+Indata!$B$24),BH87*BH49,"") ->  | BI88: =IF(BI85<=(Kalkylvärden!$B$6+Indata!$B$24),BI87*BI49,"") ->  | BJ88: =IF(BJ85<=(Kalkylvärden!$B$6+Indata!$B$24),BJ87*BJ49,"") ->  | BK88: =IF(BK85<=(Kalkylvärden!$B$6+Indata!$B$24),BK87*BK49,"") ->  | BL88: =IF(BL85<=(Kalkylvärden!$B$6+Indata!$B$24),BL87*BL49,"") ->  | BM88: =IF(BM85<=(Kalkylvärden!$B$6+Indata!$B$24),BM87*BM49,"") ->  | BN88: =IF(BN85<=(Kalkylvärden!$B$6+Indata!$B$24),BN87*BN49,"") ->  | BO88: =IF(BO85<=(Kalkylvärden!$B$6+Indata!$B$24),BO87*BO49,"") ->  | BP88: =IF(BP85<=(Kalkylvärden!$B$6+Indata!$B$24),BP87*BP49,"") ->  | BQ88: =IF(BQ85<=(Kalkylvärden!$B$6+Indata!$B$24),BQ87*BQ49,"") ->  | BR88: =IF(BR85<=(Kalkylvärden!$B$6+Indata!$B$24),BR87*BR49,"") ->  | BS88: =IF(BS85<=(Kalkylvärden!$B$6+Indata!$B$24),BS87*BS49,"") -> 
A89: Summa nuvärde Trafiksäkerhet, korsning (mkr) | B89: =SUM(B88:BS88) -> 
A91: Vid omledning
A92: Trafiksäkerhet, omledning Pb/Lb (mkr/år) | B92: =IF(B85<=(Kalkylvärden!$B$6+Indata!$B$24),Ekonomi!$B$48,"") ->  | C92: =IF(C85<=(Kalkylvärden!$B$6+Indata!$B$24),Ekonomi!$B$48,"") ->  | D92: =IF(D85<=(Kalkylvärden!$B$6+Indata!$B$24),Ekonomi!$B$48,"") ->  | E92: =IF(E85<=(Kalkylvärden!$B$6+Indata!$B$24),Ekonomi!$B$48,"") ->  | F92: =IF(F85<=(Kalkylvärden!$B$6+Indata!$B$24),Ekonomi!$B$48,"") ->  | G92: =IF(G85<=(Kalkylvärden!$B$6+Indata!$B$24),Ekonomi!$B$48,"") ->  | H92: =IF(H85<=(Kalkylvärden!$B$6+Indata!$B$24),Ekonomi!$B$48,"") ->  | I92: =IF(I85<=(Kalkylvärden!$B$6+Indata!$B$24),Ekonomi!$B$48,"") ->  | J92: =IF(J85<=(Kalkylvärden!$B$6+Indata!$B$24),Ekonomi!$B$48,"") ->  | K92: =IF(K85<=(Kalkylvärden!$B$6+Indata!$B$24),Ekonomi!$B$48,"") ->  | L92: =IF(L85<=(Kalkylvärden!$B$6+Indata!$B$24),Ekonomi!$B$48,"") ->  | M92: =IF(M85<=(Kalkylvärden!$B$6+Indata!$B$24),Ekonomi!$B$48,"") ->  | N92: =IF(N85<=(Kalkylvärden!$B$6+Indata!$B$24),Ekonomi!$B$48,"") ->  | O92: =IF(O85<=(Kalkylvärden!$B$6+Indata!$B$24),Ekonomi!$B$48,"") ->  | P92: =IF(P85<=(Kalkylvärden!$B$6+Indata!$B$24),Ekonomi!$B$48,"") ->  | Q92: =IF(Q85<=(Kalkylvärden!$B$6+Indata!$B$24),Ekonomi!$B$48,"") ->  | R92: =IF(R85<=(Kalkylvärden!$B$6+Indata!$B$24),Ekonomi!$B$48,"") ->  | S92: =IF(S85<=(Kalkylvärden!$B$6+Indata!$B$24),Ekonomi!$B$48,"") ->  | T92: =IF(T85<=(Kalkylvärden!$B$6+Indata!$B$24),Ekonomi!$B$48,"") ->  | U92: =IF(U85<=(Kalkylvärden!$B$6+Indata!$B$24),Ekonomi!$B$48,"") ->  | V92: =IF(V85<=(Kalkylvärden!$B$6+Indata!$B$24),Ekonomi!$B$48,"") ->  | W92: =IF(W85<=(Kalkylvärden!$B$6+Indata!$B$24),Ekonomi!$B$48,"") ->  | X92: =IF(X85<=(Kalkylvärden!$B$6+Indata!$B$24),Ekonomi!$B$48,"") ->  | Y92: =IF(Y85<=(Kalkylvärden!$B$6+Indata!$B$24),Ekonomi!$B$48,"") ->  | Z92: =IF(Z85<=(Kalkylvärden!$B$6+Indata!$B$24),Ekonomi!$B$48,"") ->  | AA92: =IF(AA85<=(Kalkylvärden!$B$6+Indata!$B$24),Ekonomi!$B$48,"") ->  | AB92: =IF(AB85<=(Kalkylvärden!$B$6+Indata!$B$24),Ekonomi!$B$48,"") ->  | AC92: =IF(AC85<=(Kalkylvärden!$B$6+Indata!$B$24),Ekonomi!$B$48,"") ->  | AD92: =IF(AD85<=(Kalkylvärden!$B$6+Indata!$B$24),Ekonomi!$B$48,"") ->  | AE92: =IF(AE85<=(Kalkylvärden!$B$6+Indata!$B$24),Ekonomi!$B$48,"") ->  | AF92: =IF(AF85<=(Kalkylvärden!$B$6+Indata!$B$24),Ekonomi!$B$48,"") ->  | AG92: =IF(AG85<=(Kalkylvärden!$B$6+Indata!$B$24),Ekonomi!$B$48,"") ->  | AH92: =IF(AH85<=(Kalkylvärden!$B$6+Indata!$B$24),Ekonomi!$B$48,"") ->  | AI92: =IF(AI85<=(Kalkylvärden!$B$6+Indata!$B$24),Ekonomi!$B$48,"") ->  | AJ92: =IF(AJ85<=(Kalkylvärden!$B$6+Indata!$B$24),Ekonomi!$B$48,"") ->  | AK92: =IF(AK85<=(Kalkylvärden!$B$6+Indata!$B$24),Ekonomi!$B$48,"") ->  | AL92: =IF(AL85<=(Kalkylvärden!$B$6+Indata!$B$24),Ekonomi!$B$48,"") ->  | AM92: =IF(AM85<=(Kalkylvärden!$B$6+Indata!$B$24),Ekonomi!$B$48,"") ->  | AN92: =IF(AN85<=(Kalkylvärden!$B$6+Indata!$B$24),Ekonomi!$B$48,"") ->  | AO92: =IF(AO85<=(Kalkylvärden!$B$6+Indata!$B$24),Ekonomi!$B$48,"") ->  | AP92: =IF(AP85<=(Kalkylvärden!$B$6+Indata!$B$24),Ekonomi!$B$48,"") ->  | AQ92: =IF(AQ85<=(Kalkylvärden!$B$6+Indata!$B$24),Ekonomi!$B$48,"") ->  | AR92: =IF(AR85<=(Kalkylvärden!$B$6+Indata!$B$24),Ekonomi!$B$48,"") ->  | AS92: =IF(AS85<=(Kalkylvärden!$B$6+Indata!$B$24),Ekonomi!$B$48,"") ->  | AT92: =IF(AT85<=(Kalkylvärden!$B$6+Indata!$B$24),Ekonomi!$B$48,"") ->  | AU92: =IF(AU85<=(Kalkylvärden!$B$6+Indata!$B$24),Ekonomi!$B$48,"") ->  | AV92: =IF(AV85<=(Kalkylvärden!$B$6+Indata!$B$24),Ekonomi!$B$48,"") ->  | AW92: =IF(AW85<=(Kalkylvärden!$B$6+Indata!$B$24),Ekonomi!$B$48,"") ->  | AX92: =IF(AX85<=(Kalkylvärden!$B$6+Indata!$B$24),Ekonomi!$B$48,"") ->  | AY92: =IF(AY85<=(Kalkylvärden!$B$6+Indata!$B$24),Ekonomi!$B$48,"") ->  | AZ92: =IF(AZ85<=(Kalkylvärden!$B$6+Indata!$B$24),Ekonomi!$B$48,"") ->  | BA92: =IF(BA85<=(Kalkylvärden!$B$6+Indata!$B$24),Ekonomi!$B$48,"") ->  | BB92: =IF(BB85<=(Kalkylvärden!$B$6+Indata!$B$24),Ekonomi!$B$48,"") ->  | BC92: =IF(BC85<=(Kalkylvärden!$B$6+Indata!$B$24),Ekonomi!$B$48,"") ->  | BD92: =IF(BD85<=(Kalkylvärden!$B$6+Indata!$B$24),Ekonomi!$B$48,"") ->  | BE92: =IF(BE85<=(Kalkylvärden!$B$6+Indata!$B$24),Ekonomi!$B$48,"") ->  | BF92: =IF(BF85<=(Kalkylvärden!$B$6+Indata!$B$24),Ekonomi!$B$48,"") ->  | BG92: =IF(BG85<=(Kalkylvärden!$B$6+Indata!$B$24),Ekonomi!$B$48,"") ->  | BH92: =IF(BH85<=(Kalkylvärden!$B$6+Indata!$B$24),Ekonomi!$B$48,"") ->  | BI92: =IF(BI85<=(Kalkylvärden!$B$6+Indata!$B$24),Ekonomi!$B$48,"") ->  | BJ92: =IF(BJ85<=(Kalkylvärden!$B$6+Indata!$B$24),Ekonomi!$B$48,"") ->  | BK92: =IF(BK85<=(Kalkylvärden!$B$6+Indata!$B$24),Ekonomi!$B$48,"") ->  | BL92: =IF(BL85<=(Kalkylvärden!$B$6+Indata!$B$24),Ekonomi!$B$48,"") ->  | BM92: =IF(BM85<=(Kalkylvärden!$B$6+Indata!$B$24),Ekonomi!$B$48,"") ->  | BN92: =IF(BN85<=(Kalkylvärden!$B$6+Indata!$B$24),Ekonomi!$B$48,"") ->  | BO92: =IF(BO85<=(Kalkylvärden!$B$6+Indata!$B$24),Ekonomi!$B$48,"") ->  | BP92: =IF(BP85<=(Kalkylvärden!$B$6+Indata!$B$24),Ekonomi!$B$48,"") ->  | BQ92: =IF(BQ85<=(Kalkylvärden!$B$6+Indata!$B$24),Ekonomi!$B$48,"") ->  | BR92: =IF(BR85<=(Kalkylvärden!$B$6+Indata!$B$24),Ekonomi!$B$48,"") ->  | BS92: =IF(BS85<=(Kalkylvärden!$B$6+Indata!$B$24),Ekonomi!$B$48,"") -> 
A93: Trafiksäkerhet, omledning G/C (mkr/år) | B93: =IF(B85<=(Kalkylvärden!$B$6+Indata!$B$24),Ekonomi!$B$49,"") -> 0 | C93: =IF(C85<=(Kalkylvärden!$B$6+Indata!$B$24),Ekonomi!$B$49,"") -> 0 | D93: =IF(D85<=(Kalkylvärden!$B$6+Indata!$B$24),Ekonomi!$B$49,"") -> 0 | E93: =IF(E85<=(Kalkylvärden!$B$6+Indata!$B$24),Ekonomi!$B$49,"") -> 0 | F93: =IF(F85<=(Kalkylvärden!$B$6+Indata!$B$24),Ekonomi!$B$49,"") -> 0 | G93: =IF(G85<=(Kalkylvärden!$B$6+Indata!$B$24),Ekonomi!$B$49,"") -> 0 | H93: =IF(H85<=(Kalkylvärden!$B$6+Indata!$B$24),Ekonomi!$B$49,"") -> 0 | I93: =IF(I85<=(Kalkylvärden!$B$6+Indata!$B$24),Ekonomi!$B$49,"") -> 0 | J93: =IF(J85<=(Kalkylvärden!$B$6+Indata!$B$24),Ekonomi!$B$49,"") -> 0 | K93: =IF(K85<=(Kalkylvärden!$B$6+Indata!$B$24),Ekonomi!$B$49,"") -> 0 | L93: =IF(L85<=(Kalkylvärden!$B$6+Indata!$B$24),Ekonomi!$B$49,"") -> 0 | M93: =IF(M85<=(Kalkylvärden!$B$6+Indata!$B$24),Ekonomi!$B$49,"") -> 0 | N93: =IF(N85<=(Kalkylvärden!$B$6+Indata!$B$24),Ekonomi!$B$49,"") -> 0 | O93: =IF(O85<=(Kalkylvärden!$B$6+Indata!$B$24),Ekonomi!$B$49,"") -> 0 | P93: =IF(P85<=(Kalkylvärden!$B$6+Indata!$B$24),Ekonomi!$B$49,"") -> 0 | Q93: =IF(Q85<=(Kalkylvärden!$B$6+Indata!$B$24),Ekonomi!$B$49,"") -> 0 | R93: =IF(R85<=(Kalkylvärden!$B$6+Indata!$B$24),Ekonomi!$B$49,"") -> 0 | S93: =IF(S85<=(Kalkylvärden!$B$6+Indata!$B$24),Ekonomi!$B$49,"") -> 0 | T93: =IF(T85<=(Kalkylvärden!$B$6+Indata!$B$24),Ekonomi!$B$49,"") -> 0 | U93: =IF(U85<=(Kalkylvärden!$B$6+Indata!$B$24),Ekonomi!$B$49,"") -> 0 | V93: =IF(V85<=(Kalkylvärden!$B$6+Indata!$B$24),Ekonomi!$B$49,"") -> 0 | W93: =IF(W85<=(Kalkylvärden!$B$6+Indata!$B$24),Ekonomi!$B$49,"") -> 0 | X93: =IF(X85<=(Kalkylvärden!$B$6+Indata!$B$24),Ekonomi!$B$49,"") -> 0 | Y93: =IF(Y85<=(Kalkylvärden!$B$6+Indata!$B$24),Ekonomi!$B$49,"") -> 0 | Z93: =IF(Z85<=(Kalkylvärden!$B$6+Indata!$B$24),Ekonomi!$B$49,"") -> 0 | AA93: =IF(AA85<=(Kalkylvärden!$B$6+Indata!$B$24),Ekonomi!$B$49,"") -> 0 | AB93: =IF(AB85<=(Kalkylvärden!$B$6+Indata!$B$24),Ekonomi!$B$49,"") -> 0 | AC93: =IF(AC85<=(Kalkylvärden!$B$6+Indata!$B$24),Ekonomi!$B$49,"") -> 0 | AD93: =IF(AD85<=(Kalkylvärden!$B$6+Indata!$B$24),Ekonomi!$B$49,"") -> 0 | AE93: =IF(AE85<=(Kalkylvärden!$B$6+Indata!$B$24),Ekonomi!$B$49,"") -> 0 | AF93: =IF(AF85<=(Kalkylvärden!$B$6+Indata!$B$24),Ekonomi!$B$49,"") -> 0 | AG93: =IF(AG85<=(Kalkylvärden!$B$6+Indata!$B$24),Ekonomi!$B$49,"") -> 0 | AH93: =IF(AH85<=(Kalkylvärden!$B$6+Indata!$B$24),Ekonomi!$B$49,"") -> 0 | AI93: =IF(AI85<=(Kalkylvärden!$B$6+Indata!$B$24),Ekonomi!$B$49,"") -> 0 | AJ93: =IF(AJ85<=(Kalkylvärden!$B$6+Indata!$B$24),Ekonomi!$B$49,"") -> 0 | AK93: =IF(AK85<=(Kalkylvärden!$B$6+Indata!$B$24),Ekonomi!$B$49,"") -> 0 | AL93: =IF(AL85<=(Kalkylvärden!$B$6+Indata!$B$24),Ekonomi!$B$49,"") -> 0 | AM93: =IF(AM85<=(Kalkylvärden!$B$6+Indata!$B$24),Ekonomi!$B$49,"") -> 0 | AN93: =IF(AN85<=(Kalkylvärden!$B$6+Indata!$B$24),Ekonomi!$B$49,"") -> 0 | AO93: =IF(AO85<=(Kalkylvärden!$B$6+Indata!$B$24),Ekonomi!$B$49,"") -> 0 | AP93: =IF(AP85<=(Kalkylvärden!$B$6+Indata!$B$24),Ekonomi!$B$49,"") -> 0 | AQ93: =IF(AQ85<=(Kalkylvärden!$B$6+Indata!$B$24),Ekonomi!$B$49,"") ->  | AR93: =IF(AR85<=(Kalkylvärden!$B$6+Indata!$B$24),Ekonomi!$B$49,"") ->  | AS93: =IF(AS85<=(Kalkylvärden!$B$6+Indata!$B$24),Ekonomi!$B$49,"") ->  | AT93: =IF(AT85<=(Kalkylvärden!$B$6+Indata!$B$24),Ekonomi!$B$49,"") ->  | AU93: =IF(AU85<=(Kalkylvärden!$B$6+Indata!$B$24),Ekonomi!$B$49,"") ->  | AV93: =IF(AV85<=(Kalkylvärden!$B$6+Indata!$B$24),Ekonomi!$B$49,"") ->  | AW93: =IF(AW85<=(Kalkylvärden!$B$6+Indata!$B$24),Ekonomi!$B$49,"") ->  | AX93: =IF(AX85<=(Kalkylvärden!$B$6+Indata!$B$24),Ekonomi!$B$49,"") ->  | AY93: =IF(AY85<=(Kalkylvärden!$B$6+Indata!$B$24),Ekonomi!$B$49,"") ->  | AZ93: =IF(AZ85<=(Kalkylvärden!$B$6+Indata!$B$24),Ekonomi!$B$49,"") ->  | BA93: =IF(BA85<=(Kalkylvärden!$B$6+Indata!$B$24),Ekonomi!$B$49,"") ->  | BB93: =IF(BB85<=(Kalkylvärden!$B$6+Indata!$B$24),Ekonomi!$B$49,"") ->  | BC93: =IF(BC85<=(Kalkylvärden!$B$6+Indata!$B$24),Ekonomi!$B$49,"") ->  | BD93: =IF(BD85<=(Kalkylvärden!$B$6+Indata!$B$24),Ekonomi!$B$49,"") ->  | BE93: =IF(BE85<=(Kalkylvärden!$B$6+Indata!$B$24),Ekonomi!$B$49,"") ->  | BF93: =IF(BF85<=(Kalkylvärden!$B$6+Indata!$B$24),Ekonomi!$B$49,"") ->  | BG93: =IF(BG85<=(Kalkylvärden!$B$6+Indata!$B$24),Ekonomi!$B$49,"") ->  | BH93: =IF(BH85<=(Kalkylvärden!$B$6+Indata!$B$24),Ekonomi!$B$49,"") ->  | BI93: =IF(BI85<=(Kalkylvärden!$B$6+Indata!$B$24),Ekonomi!$B$49,"") ->  | BJ93: =IF(BJ85<=(Kalkylvärden!$B$6+Indata!$B$24),Ekonomi!$B$49,"") ->  | BK93: =IF(BK85<=(Kalkylvärden!$B$6+Indata!$B$24),Ekonomi!$B$49,"") ->  | BL93: =IF(BL85<=(Kalkylvärden!$B$6+Indata!$B$24),Ekonomi!$B$49,"") ->  | BM93: =IF(BM85<=(Kalkylvärden!$B$6+Indata!$B$24),Ekonomi!$B$49,"") ->  | BN93: =IF(BN85<=(Kalkylvärden!$B$6+Indata!$B$24),Ekonomi!$B$49,"") ->  | BO93: =IF(BO85<=(Kalkylvärden!$B$6+Indata!$B$24),Ekonomi!$B$49,"") ->  | BP93: =IF(BP85<=(Kalkylvärden!$B$6+Indata!$B$24),Ekonomi!$B$49,"") ->  | BQ93: =IF(BQ85<=(Kalkylvärden!$B$6+Indata!$B$24),Ekonomi!$B$49,"") ->  | BR93: =IF(BR85<=(Kalkylvärden!$B$6+Indata!$B$24),Ekonomi!$B$49,"") ->  | BS93: =IF(BS85<=(Kalkylvärden!$B$6+Indata!$B$24),Ekonomi!$B$49,"") -> 
A94: Nuvärde Trafiksäkerhet, omledning Pb/Lb (mkr/år) | B94: =IF(B85<=(Kalkylvärden!$B$6+Indata!$B$24),B92*B47,"") ->  | C94: =IF(C85<=(Kalkylvärden!$B$6+Indata!$B$24),C92*C47,"") ->  | D94: =IF(D85<=(Kalkylvärden!$B$6+Indata!$B$24),D92*D47,"") ->  | E94: =IF(E85<=(Kalkylvärden!$B$6+Indata!$B$24),E92*E47,"") ->  | F94: =IF(F85<=(Kalkylvärden!$B$6+Indata!$B$24),F92*F47,"") ->  | G94: =IF(G85<=(Kalkylvärden!$B$6+Indata!$B$24),G92*G47,"") ->  | H94: =IF(H85<=(Kalkylvärden!$B$6+Indata!$B$24),H92*H47,"") ->  | I94: =IF(I85<=(Kalkylvärden!$B$6+Indata!$B$24),I92*I47,"") ->  | J94: =IF(J85<=(Kalkylvärden!$B$6+Indata!$B$24),J92*J47,"") ->  | K94: =IF(K85<=(Kalkylvärden!$B$6+Indata!$B$24),K92*K47,"") ->  | L94: =IF(L85<=(Kalkylvärden!$B$6+Indata!$B$24),L92*L47,"") ->  | M94: =IF(M85<=(Kalkylvärden!$B$6+Indata!$B$24),M92*M47,"") ->  | N94: =IF(N85<=(Kalkylvärden!$B$6+Indata!$B$24),N92*N47,"") ->  | O94: =IF(O85<=(Kalkylvärden!$B$6+Indata!$B$24),O92*O47,"") ->  | P94: =IF(P85<=(Kalkylvärden!$B$6+Indata!$B$24),P92*P47,"") ->  | Q94: =IF(Q85<=(Kalkylvärden!$B$6+Indata!$B$24),Q92*Q47,"") ->  | R94: =IF(R85<=(Kalkylvärden!$B$6+Indata!$B$24),R92*R47,"") ->  | S94: =IF(S85<=(Kalkylvärden!$B$6+Indata!$B$24),S92*S47,"") ->  | T94: =IF(T85<=(Kalkylvärden!$B$6+Indata!$B$24),T92*T47,"") ->  | U94: =IF(U85<=(Kalkylvärden!$B$6+Indata!$B$24),U92*U47,"") ->  | V94: =IF(V85<=(Kalkylvärden!$B$6+Indata!$B$24),V92*V47,"") ->  | W94: =IF(W85<=(Kalkylvärden!$B$6+Indata!$B$24),W92*W47,"") ->  | X94: =IF(X85<=(Kalkylvärden!$B$6+Indata!$B$24),X92*X47,"") ->  | Y94: =IF(Y85<=(Kalkylvärden!$B$6+Indata!$B$24),Y92*Y47,"") ->  | Z94: =IF(Z85<=(Kalkylvärden!$B$6+Indata!$B$24),Z92*Z47,"") ->  | AA94: =IF(AA85<=(Kalkylvärden!$B$6+Indata!$B$24),AA92*AA47,"") ->  | AB94: =IF(AB85<=(Kalkylvärden!$B$6+Indata!$B$24),AB92*AB47,"") ->  | AC94: =IF(AC85<=(Kalkylvärden!$B$6+Indata!$B$24),AC92*AC47,"") ->  | AD94: =IF(AD85<=(Kalkylvärden!$B$6+Indata!$B$24),AD92*AD47,"") ->  | AE94: =IF(AE85<=(Kalkylvärden!$B$6+Indata!$B$24),AE92*AE47,"") ->  | AF94: =IF(AF85<=(Kalkylvärden!$B$6+Indata!$B$24),AF92*AF47,"") ->  | AG94: =IF(AG85<=(Kalkylvärden!$B$6+Indata!$B$24),AG92*AG47,"") ->  | AH94: =IF(AH85<=(Kalkylvärden!$B$6+Indata!$B$24),AH92*AH47,"") ->  | AI94: =IF(AI85<=(Kalkylvärden!$B$6+Indata!$B$24),AI92*AI47,"") ->  | AJ94: =IF(AJ85<=(Kalkylvärden!$B$6+Indata!$B$24),AJ92*AJ47,"") ->  | AK94: =IF(AK85<=(Kalkylvärden!$B$6+Indata!$B$24),AK92*AK47,"") ->  | AL94: =IF(AL85<=(Kalkylvärden!$B$6+Indata!$B$24),AL92*AL47,"") ->  | AM94: =IF(AM85<=(Kalkylvärden!$B$6+Indata!$B$24),AM92*AM47,"") ->  | AN94: =IF(AN85<=(Kalkylvärden!$B$6+Indata!$B$24),AN92*AN47,"") ->  | AO94: =IF(AO85<=(Kalkylvärden!$B$6+Indata!$B$24),AO92*AO47,"") ->  | AP94: =IF(AP85<=(Kalkylvärden!$B$6+Indata!$B$24),AP92*AP47,"") ->  | AQ94: =IF(AQ85<=(Kalkylvärden!$B$6+Indata!$B$24),AQ92*AQ47,"") ->  | AR94: =IF(AR85<=(Kalkylvärden!$B$6+Indata!$B$24),AR92*AR47,"") ->  | AS94: =IF(AS85<=(Kalkylvärden!$B$6+Indata!$B$24),AS92*AS47,"") ->  | AT94: =IF(AT85<=(Kalkylvärden!$B$6+Indata!$B$24),AT92*AT47,"") ->  | AU94: =IF(AU85<=(Kalkylvärden!$B$6+Indata!$B$24),AU92*AU47,"") ->  | AV94: =IF(AV85<=(Kalkylvärden!$B$6+Indata!$B$24),AV92*AV47,"") ->  | AW94: =IF(AW85<=(Kalkylvärden!$B$6+Indata!$B$24),AW92*AW47,"") ->  | AX94: =IF(AX85<=(Kalkylvärden!$B$6+Indata!$B$24),AX92*AX47,"") ->  | AY94: =IF(AY85<=(Kalkylvärden!$B$6+Indata!$B$24),AY92*AY47,"") ->  | AZ94: =IF(AZ85<=(Kalkylvärden!$B$6+Indata!$B$24),AZ92*AZ47,"") ->  | BA94: =IF(BA85<=(Kalkylvärden!$B$6+Indata!$B$24),BA92*BA47,"") ->  | BB94: =IF(BB85<=(Kalkylvärden!$B$6+Indata!$B$24),BB92*BB47,"") ->  | BC94: =IF(BC85<=(Kalkylvärden!$B$6+Indata!$B$24),BC92*BC47,"") ->  | BD94: =IF(BD85<=(Kalkylvärden!$B$6+Indata!$B$24),BD92*BD47,"") ->  | BE94: =IF(BE85<=(Kalkylvärden!$B$6+Indata!$B$24),BE92*BE47,"") ->  | BF94: =IF(BF85<=(Kalkylvärden!$B$6+Indata!$B$24),BF92*BF47,"") ->  | BG94: =IF(BG85<=(Kalkylvärden!$B$6+Indata!$B$24),BG92*BG47,"") ->  | BH94: =IF(BH85<=(Kalkylvärden!$B$6+Indata!$B$24),BH92*BH47,"") ->  | BI94: =IF(BI85<=(Kalkylvärden!$B$6+Indata!$B$24),BI92*BI47,"") ->  | BJ94: =IF(BJ85<=(Kalkylvärden!$B$6+Indata!$B$24),BJ92*BJ47,"") ->  | BK94: =IF(BK85<=(Kalkylvärden!$B$6+Indata!$B$24),BK92*BK47,"") ->  | BL94: =IF(BL85<=(Kalkylvärden!$B$6+Indata!$B$24),BL92*BL47,"") ->  | BM94: =IF(BM85<=(Kalkylvärden!$B$6+Indata!$B$24),BM92*BM47,"") ->  | BN94: =IF(BN85<=(Kalkylvärden!$B$6+Indata!$B$24),BN92*BN47,"") ->  | BO94: =IF(BO85<=(Kalkylvärden!$B$6+Indata!$B$24),BO92*BO47,"") ->  | BP94: =IF(BP85<=(Kalkylvärden!$B$6+Indata!$B$24),BP92*BP47,"") ->  | BQ94: =IF(BQ85<=(Kalkylvärden!$B$6+Indata!$B$24),BQ92*BQ47,"") ->  | BR94: =IF(BR85<=(Kalkylvärden!$B$6+Indata!$B$24),BR92*BR47,"") ->  | BS94: =IF(BS85<=(Kalkylvärden!$B$6+Indata!$B$24),BS92*BS47,"") -> 
A95: Nuvärde Trafiksäkerhet, omledning G/C (mkr/år) | B95: =IF(B85<=(Kalkylvärden!$B$6+Indata!$B$24),B93*B48,"") -> 0 | C95: =IF(C85<=(Kalkylvärden!$B$6+Indata!$B$24),C93*C48,"") -> 0 | D95: =IF(D85<=(Kalkylvärden!$B$6+Indata!$B$24),D93*D48,"") -> 0 | E95: =IF(E85<=(Kalkylvärden!$B$6+Indata!$B$24),E93*E48,"") -> 0 | F95: =IF(F85<=(Kalkylvärden!$B$6+Indata!$B$24),F93*F48,"") -> 0 | G95: =IF(G85<=(Kalkylvärden!$B$6+Indata!$B$24),G93*G48,"") -> 0 | H95: =IF(H85<=(Kalkylvärden!$B$6+Indata!$B$24),H93*H48,"") -> 0 | I95: =IF(I85<=(Kalkylvärden!$B$6+Indata!$B$24),I93*I48,"") -> 0 | J95: =IF(J85<=(Kalkylvärden!$B$6+Indata!$B$24),J93*J48,"") -> 0 | K95: =IF(K85<=(Kalkylvärden!$B$6+Indata!$B$24),K93*K48,"") -> 0 | L95: =IF(L85<=(Kalkylvärden!$B$6+Indata!$B$24),L93*L48,"") -> 0 | M95: =IF(M85<=(Kalkylvärden!$B$6+Indata!$B$24),M93*M48,"") -> 0 | N95: =IF(N85<=(Kalkylvärden!$B$6+Indata!$B$24),N93*N48,"") -> 0 | O95: =IF(O85<=(Kalkylvärden!$B$6+Indata!$B$24),O93*O48,"") -> 0 | P95: =IF(P85<=(Kalkylvärden!$B$6+Indata!$B$24),P93*P48,"") -> 0 | Q95: =IF(Q85<=(Kalkylvärden!$B$6+Indata!$B$24),Q93*Q48,"") -> 0 | R95: =IF(R85<=(Kalkylvärden!$B$6+Indata!$B$24),R93*R48,"") -> 0 | S95: =IF(S85<=(Kalkylvärden!$B$6+Indata!$B$24),S93*S48,"") -> 0 | T95: =IF(T85<=(Kalkylvärden!$B$6+Indata!$B$24),T93*T48,"") -> 0 | U95: =IF(U85<=(Kalkylvärden!$B$6+Indata!$B$24),U93*U48,"") -> 0 | V95: =IF(V85<=(Kalkylvärden!$B$6+Indata!$B$24),V93*V48,"") -> 0 | W95: =IF(W85<=(Kalkylvärden!$B$6+Indata!$B$24),W93*W48,"") -> 0 | X95: =IF(X85<=(Kalkylvärden!$B$6+Indata!$B$24),X93*X48,"") -> 0 | Y95: =IF(Y85<=(Kalkylvärden!$B$6+Indata!$B$24),Y93*Y48,"") -> 0 | Z95: =IF(Z85<=(Kalkylvärden!$B$6+Indata!$B$24),Z93*Z48,"") -> 0 | AA95: =IF(AA85<=(Kalkylvärden!$B$6+Indata!$B$24),AA93*AA48,"") -> 0 | AB95: =IF(AB85<=(Kalkylvärden!$B$6+Indata!$B$24),AB93*AB48,"") -> 0 | AC95: =IF(AC85<=(Kalkylvärden!$B$6+Indata!$B$24),AC93*AC48,"") -> 0 | AD95: =IF(AD85<=(Kalkylvärden!$B$6+Indata!$B$24),AD93*AD48,"") -> 0 | AE95: =IF(AE85<=(Kalkylvärden!$B$6+Indata!$B$24),AE93*AE48,"") -> 0 | AF95: =IF(AF85<=(Kalkylvärden!$B$6+Indata!$B$24),AF93*AF48,"") -> 0 | AG95: =IF(AG85<=(Kalkylvärden!$B$6+Indata!$B$24),AG93*AG48,"") -> 0 | AH95: =IF(AH85<=(Kalkylvärden!$B$6+Indata!$B$24),AH93*AH48,"") -> 0 | AI95: =IF(AI85<=(Kalkylvärden!$B$6+Indata!$B$24),AI93*AI48,"") -> 0 | AJ95: =IF(AJ85<=(Kalkylvärden!$B$6+Indata!$B$24),AJ93*AJ48,"") -> 0 | AK95: =IF(AK85<=(Kalkylvärden!$B$6+Indata!$B$24),AK93*AK48,"") -> 0 | AL95: =IF(AL85<=(Kalkylvärden!$B$6+Indata!$B$24),AL93*AL48,"") -> 0 | AM95: =IF(AM85<=(Kalkylvärden!$B$6+Indata!$B$24),AM93*AM48,"") -> 0 | AN95: =IF(AN85<=(Kalkylvärden!$B$6+Indata!$B$24),AN93*AN48,"") -> 0 | AO95: =IF(AO85<=(Kalkylvärden!$B$6+Indata!$B$24),AO93*AO48,"") -> 0 | AP95: =IF(AP85<=(Kalkylvärden!$B$6+Indata!$B$24),AP93*AP48,"") -> 0 | AQ95: =IF(AQ85<=(Kalkylvärden!$B$6+Indata!$B$24),AQ93*AQ48,"") ->  | AR95: =IF(AR85<=(Kalkylvärden!$B$6+Indata!$B$24),AR93*AR48,"") ->  | AS95: =IF(AS85<=(Kalkylvärden!$B$6+Indata!$B$24),AS93*AS48,"") ->  | AT95: =IF(AT85<=(Kalkylvärden!$B$6+Indata!$B$24),AT93*AT48,"") ->  | AU95: =IF(AU85<=(Kalkylvärden!$B$6+Indata!$B$24),AU93*AU48,"") ->  | AV95: =IF(AV85<=(Kalkylvärden!$B$6+Indata!$B$24),AV93*AV48,"") ->  | AW95: =IF(AW85<=(Kalkylvärden!$B$6+Indata!$B$24),AW93*AW48,"") ->  | AX95: =IF(AX85<=(Kalkylvärden!$B$6+Indata!$B$24),AX93*AX48,"") ->  | AY95: =IF(AY85<=(Kalkylvärden!$B$6+Indata!$B$24),AY93*AY48,"") ->  | AZ95: =IF(AZ85<=(Kalkylvärden!$B$6+Indata!$B$24),AZ93*AZ48,"") ->  | BA95: =IF(BA85<=(Kalkylvärden!$B$6+Indata!$B$24),BA93*BA48,"") ->  | BB95: =IF(BB85<=(Kalkylvärden!$B$6+Indata!$B$24),BB93*BB48,"") ->  | BC95: =IF(BC85<=(Kalkylvärden!$B$6+Indata!$B$24),BC93*BC48,"") ->  | BD95: =IF(BD85<=(Kalkylvärden!$B$6+Indata!$B$24),BD93*BD48,"") ->  | BE95: =IF(BE85<=(Kalkylvärden!$B$6+Indata!$B$24),BE93*BE48,"") ->  | BF95: =IF(BF85<=(Kalkylvärden!$B$6+Indata!$B$24),BF93*BF48,"") ->  | BG95: =IF(BG85<=(Kalkylvärden!$B$6+Indata!$B$24),BG93*BG48,"") ->  | BH95: =IF(BH85<=(Kalkylvärden!$B$6+Indata!$B$24),BH93*BH48,"") ->  | BI95: =IF(BI85<=(Kalkylvärden!$B$6+Indata!$B$24),BI93*BI48,"") ->  | BJ95: =IF(BJ85<=(Kalkylvärden!$B$6+Indata!$B$24),BJ93*BJ48,"") ->  | BK95: =IF(BK85<=(Kalkylvärden!$B$6+Indata!$B$24),BK93*BK48,"") ->  | BL95: =IF(BL85<=(Kalkylvärden!$B$6+Indata!$B$24),BL93*BL48,"") ->  | BM95: =IF(BM85<=(Kalkylvärden!$B$6+Indata!$B$24),BM93*BM48,"") ->  | BN95: =IF(BN85<=(Kalkylvärden!$B$6+Indata!$B$24),BN93*BN48,"") ->  | BO95: =IF(BO85<=(Kalkylvärden!$B$6+Indata!$B$24),BO93*BO48,"") ->  | BP95: =IF(BP85<=(Kalkylvärden!$B$6+Indata!$B$24),BP93*BP48,"") ->  | BQ95: =IF(BQ85<=(Kalkylvärden!$B$6+Indata!$B$24),BQ93*BQ48,"") ->  | BR95: =IF(BR85<=(Kalkylvärden!$B$6+Indata!$B$24),BR93*BR48,"") ->  | BS95: =IF(BS85<=(Kalkylvärden!$B$6+Indata!$B$24),BS93*BS48,"") -> 
A96: Summa nuvärde Trafiksäkerhet, omledning (mkr) | B96: =SUM(B94:BS95) -> 
A99: Tidskostnader för personer
A100: År | B100: =Kalkylvärden!B6 -> 2025 | C100: =B100+1 -> 2026 | D100: 2027 | E100: 2028 | F100: 2029 | G100: 2030 | H100: 2031 | I100: 2032 | J100: 2033 | K100: 2034 | L100: 2035 | M100: 2036 | N100: 2037 | O100: 2038 | P100: 2039 | Q100: 2040 | R100: 2041 | S100: 2042 | T100: 2043 | U100: 2044 | V100: 2045 | W100: 2046 | X100: 2047 | Y100: 2048 | Z100: 2049 | AA100: 2050 | AB100: 2051 | AC100: 2052 | AD100: 2053 | AE100: 2054 | AF100: 2055 | AG100: 2056 | AH100: 2057 | AI100: 2058 | AJ100: 2059 | AK100: 2060 | AL100: 2061 | AM100: 2062 | AN100: 2063 | AO100: 2064 | AP100: 2065 | AQ100: 2066 | AR100: 2067 | AS100: 2068 | AT100: 2069 | AU100: 2070 | AV100: 2071 | AW100: 2072 | AX100: 2073 | AY100: 2074 | AZ100: 2075 | BA100: 2076 | BB100: 2077 | BC100: 2078 | BD100: 2079 | BE100: 2080 | BF100: 2081 | BG100: 2082 | BH100: 2083 | BI100: 2084 | BJ100: 2085 | BK100: 2086 | BL100: 2087 | BM100: 2088 | BN100: 2089 | BO100: =BN100+1 -> 2090 | BP100: 2091 | BQ100: 2092 | BR100: 2093 | BS100: 2094
A101: I Korsning
A102: Tidskostnader, personer Pb/Lb (mkr/år) | B102: =IF(B100<=(Kalkylvärden!$B$6+Indata!$B$24),(Ekonomi!$B$80-Ekonomi!$B$78),"") ->  | C102: =IF(C100<=(Kalkylvärden!$B$6+Indata!$B$24),(Ekonomi!$B$80-Ekonomi!$B$78),"") ->  | D102: =IF(D100<=(Kalkylvärden!$B$6+Indata!$B$24),(Ekonomi!$B$80-Ekonomi!$B$78),"") ->  | E102: =IF(E100<=(Kalkylvärden!$B$6+Indata!$B$24),(Ekonomi!$B$80-Ekonomi!$B$78),"") ->  | F102: =IF(F100<=(Kalkylvärden!$B$6+Indata!$B$24),(Ekonomi!$B$80-Ekonomi!$B$78),"") ->  | G102: =IF(G100<=(Kalkylvärden!$B$6+Indata!$B$24),(Ekonomi!$B$80-Ekonomi!$B$78),"") ->  | H102: =IF(H100<=(Kalkylvärden!$B$6+Indata!$B$24),(Ekonomi!$B$80-Ekonomi!$B$78),"") ->  | I102: =IF(I100<=(Kalkylvärden!$B$6+Indata!$B$24),(Ekonomi!$B$80-Ekonomi!$B$78),"") ->  | J102: =IF(J100<=(Kalkylvärden!$B$6+Indata!$B$24),(Ekonomi!$B$80-Ekonomi!$B$78),"") ->  | K102: =IF(K100<=(Kalkylvärden!$B$6+Indata!$B$24),(Ekonomi!$B$80-Ekonomi!$B$78),"") ->  | L102: =IF(L100<=(Kalkylvärden!$B$6+Indata!$B$24),(Ekonomi!$B$80-Ekonomi!$B$78),"") ->  | M102: =IF(M100<=(Kalkylvärden!$B$6+Indata!$B$24),(Ekonomi!$B$80-Ekonomi!$B$78),"") ->  | N102: =IF(N100<=(Kalkylvärden!$B$6+Indata!$B$24),(Ekonomi!$B$80-Ekonomi!$B$78),"") ->  | O102: =IF(O100<=(Kalkylvärden!$B$6+Indata!$B$24),(Ekonomi!$B$80-Ekonomi!$B$78),"") ->  | P102: =IF(P100<=(Kalkylvärden!$B$6+Indata!$B$24),(Ekonomi!$B$80-Ekonomi!$B$78),"") ->  | Q102: =IF(Q100<=(Kalkylvärden!$B$6+Indata!$B$24),(Ekonomi!$B$80-Ekonomi!$B$78),"") ->  | R102: =IF(R100<=(Kalkylvärden!$B$6+Indata!$B$24),(Ekonomi!$B$80-Ekonomi!$B$78),"") ->  | S102: =IF(S100<=(Kalkylvärden!$B$6+Indata!$B$24),(Ekonomi!$B$80-Ekonomi!$B$78),"") ->  | T102: =IF(T100<=(Kalkylvärden!$B$6+Indata!$B$24),(Ekonomi!$B$80-Ekonomi!$B$78),"") ->  | U102: =IF(U100<=(Kalkylvärden!$B$6+Indata!$B$24),(Ekonomi!$B$80-Ekonomi!$B$78),"") ->  | V102: =IF(V100<=(Kalkylvärden!$B$6+Indata!$B$24),(Ekonomi!$B$80-Ekonomi!$B$78),"") ->  | W102: =IF(W100<=(Kalkylvärden!$B$6+Indata!$B$24),(Ekonomi!$B$80-Ekonomi!$B$78),"") ->  | X102: =IF(X100<=(Kalkylvärden!$B$6+Indata!$B$24),(Ekonomi!$B$80-Ekonomi!$B$78),"") ->  | Y102: =IF(Y100<=(Kalkylvärden!$B$6+Indata!$B$24),(Ekonomi!$B$80-Ekonomi!$B$78),"") ->  | Z102: =IF(Z100<=(Kalkylvärden!$B$6+Indata!$B$24),(Ekonomi!$B$80-Ekonomi!$B$78),"") ->  | AA102: =IF(AA100<=(Kalkylvärden!$B$6+Indata!$B$24),(Ekonomi!$B$80-Ekonomi!$B$78),"") ->  | AB102: =IF(AB100<=(Kalkylvärden!$B$6+Indata!$B$24),(Ekonomi!$B$80-Ekonomi!$B$78),"") ->  | AC102: =IF(AC100<=(Kalkylvärden!$B$6+Indata!$B$24),(Ekonomi!$B$80-Ekonomi!$B$78),"") ->  | AD102: =IF(AD100<=(Kalkylvärden!$B$6+Indata!$B$24),(Ekonomi!$B$80-Ekonomi!$B$78),"") ->  | AE102: =IF(AE100<=(Kalkylvärden!$B$6+Indata!$B$24),(Ekonomi!$B$80-Ekonomi!$B$78),"") ->  | AF102: =IF(AF100<=(Kalkylvärden!$B$6+Indata!$B$24),(Ekonomi!$B$80-Ekonomi!$B$78),"") ->  | AG102: =IF(AG100<=(Kalkylvärden!$B$6+Indata!$B$24),(Ekonomi!$B$80-Ekonomi!$B$78),"") ->  | AH102: =IF(AH100<=(Kalkylvärden!$B$6+Indata!$B$24),(Ekonomi!$B$80-Ekonomi!$B$78),"") ->  | AI102: =IF(AI100<=(Kalkylvärden!$B$6+Indata!$B$24),(Ekonomi!$B$80-Ekonomi!$B$78),"") ->  | AJ102: =IF(AJ100<=(Kalkylvärden!$B$6+Indata!$B$24),(Ekonomi!$B$80-Ekonomi!$B$78),"") ->  | AK102: =IF(AK100<=(Kalkylvärden!$B$6+Indata!$B$24),(Ekonomi!$B$80-Ekonomi!$B$78),"") ->  | AL102: =IF(AL100<=(Kalkylvärden!$B$6+Indata!$B$24),(Ekonomi!$B$80-Ekonomi!$B$78),"") ->  | AM102: =IF(AM100<=(Kalkylvärden!$B$6+Indata!$B$24),(Ekonomi!$B$80-Ekonomi!$B$78),"") ->  | AN102: =IF(AN100<=(Kalkylvärden!$B$6+Indata!$B$24),(Ekonomi!$B$80-Ekonomi!$B$78),"") ->  | AO102: =IF(AO100<=(Kalkylvärden!$B$6+Indata!$B$24),(Ekonomi!$B$80-Ekonomi!$B$78),"") ->  | AP102: =IF(AP100<=(Kalkylvärden!$B$6+Indata!$B$24),(Ekonomi!$B$80-Ekonomi!$B$78),"") ->  | AQ102: =IF(AQ100<=(Kalkylvärden!$B$6+Indata!$B$24),(Ekonomi!$B$80-Ekonomi!$B$78),"") ->  | AR102: =IF(AR100<=(Kalkylvärden!$B$6+Indata!$B$24),(Ekonomi!$B$80-Ekonomi!$B$78),"") ->  | AS102: =IF(AS100<=(Kalkylvärden!$B$6+Indata!$B$24),(Ekonomi!$B$80-Ekonomi!$B$78),"") ->  | AT102: =IF(AT100<=(Kalkylvärden!$B$6+Indata!$B$24),(Ekonomi!$B$80-Ekonomi!$B$78),"") ->  | AU102: =IF(AU100<=(Kalkylvärden!$B$6+Indata!$B$24),(Ekonomi!$B$80-Ekonomi!$B$78),"") ->  | AV102: =IF(AV100<=(Kalkylvärden!$B$6+Indata!$B$24),(Ekonomi!$B$80-Ekonomi!$B$78),"") ->  | AW102: =IF(AW100<=(Kalkylvärden!$B$6+Indata!$B$24),(Ekonomi!$B$80-Ekonomi!$B$78),"") ->  | AX102: =IF(AX100<=(Kalkylvärden!$B$6+Indata!$B$24),(Ekonomi!$B$80-Ekonomi!$B$78),"") ->  | AY102: =IF(AY100<=(Kalkylvärden!$B$6+Indata!$B$24),(Ekonomi!$B$80-Ekonomi!$B$78),"") ->  | AZ102: =IF(AZ100<=(Kalkylvärden!$B$6+Indata!$B$24),(Ekonomi!$B$80-Ekonomi!$B$78),"") ->  | BA102: =IF(BA100<=(Kalkylvärden!$B$6+Indata!$B$24),(Ekonomi!$B$80-Ekonomi!$B$78),"") ->  | BB102: =IF(BB100<=(Kalkylvärden!$B$6+Indata!$B$24),(Ekonomi!$B$80-Ekonomi!$B$78),"") ->  | BC102: =IF(BC100<=(Kalkylvärden!$B$6+Indata!$B$24),(Ekonomi!$B$80-Ekonomi!$B$78),"") ->  | BD102: =IF(BD100<=(Kalkylvärden!$B$6+Indata!$B$24),(Ekonomi!$B$80-Ekonomi!$B$78),"") ->  | BE102: =IF(BE100<=(Kalkylvärden!$B$6+Indata!$B$24),(Ekonomi!$B$80-Ekonomi!$B$78),"") ->  | BF102: =IF(BF100<=(Kalkylvärden!$B$6+Indata!$B$24),(Ekonomi!$B$80-Ekonomi!$B$78),"") ->  | BG102: =IF(BG100<=(Kalkylvärden!$B$6+Indata!$B$24),(Ekonomi!$B$80-Ekonomi!$B$78),"") ->  | BH102: =IF(BH100<=(Kalkylvärden!$B$6+Indata!$B$24),(Ekonomi!$B$80-Ekonomi!$B$78),"") ->  | BI102: =IF(BI100<=(Kalkylvärden!$B$6+Indata!$B$24),(Ekonomi!$B$80-Ekonomi!$B$78),"") ->  | BJ102: =IF(BJ100<=(Kalkylvärden!$B$6+Indata!$B$24),(Ekonomi!$B$80-Ekonomi!$B$78),"") ->  | BK102: =IF(BK100<=(Kalkylvärden!$B$6+Indata!$B$24),(Ekonomi!$B$80-Ekonomi!$B$78),"") ->  | BL102: =IF(BL100<=(Kalkylvärden!$B$6+Indata!$B$24),(Ekonomi!$B$80-Ekonomi!$B$78),"") ->  | BM102: =IF(BM100<=(Kalkylvärden!$B$6+Indata!$B$24),(Ekonomi!$B$80-Ekonomi!$B$78),"") ->  | BN102: =IF(BN100<=(Kalkylvärden!$B$6+Indata!$B$24),(Ekonomi!$B$80-Ekonomi!$B$78),"") ->  | BO102: =IF(BO100<=(Kalkylvärden!$B$6+Indata!$B$24),(Ekonomi!$B$80-Ekonomi!$B$78),"") ->  | BP102: =IF(BP100<=(Kalkylvärden!$B$6+Indata!$B$24),(Ekonomi!$B$80-Ekonomi!$B$78),"") ->  | BQ102: =IF(BQ100<=(Kalkylvärden!$B$6+Indata!$B$24),(Ekonomi!$B$80-Ekonomi!$B$78),"") ->  | BR102: =IF(BR100<=(Kalkylvärden!$B$6+Indata!$B$24),(Ekonomi!$B$80-Ekonomi!$B$78),"") ->  | BS102: =IF(BS100<=(Kalkylvärden!$B$6+Indata!$B$24),(Ekonomi!$B$80-Ekonomi!$B$78),"") -> 
A103: Tidskostnader, personer G/C (mkr/år) | B103: =IF(B100<=(Kalkylvärden!$B$6+Indata!$B$24),(Ekonomi!$B$81-Ekonomi!$B$79),"") -> 0 | C103: =IF(C100<=(Kalkylvärden!$B$6+Indata!$B$24),(Ekonomi!$B$81-Ekonomi!$B$79),"") -> 0 | D103: =IF(D100<=(Kalkylvärden!$B$6+Indata!$B$24),(Ekonomi!$B$81-Ekonomi!$B$79),"") -> 0 | E103: =IF(E100<=(Kalkylvärden!$B$6+Indata!$B$24),(Ekonomi!$B$81-Ekonomi!$B$79),"") -> 0 | F103: =IF(F100<=(Kalkylvärden!$B$6+Indata!$B$24),(Ekonomi!$B$81-Ekonomi!$B$79),"") -> 0 | G103: =IF(G100<=(Kalkylvärden!$B$6+Indata!$B$24),(Ekonomi!$B$81-Ekonomi!$B$79),"") -> 0 | H103: =IF(H100<=(Kalkylvärden!$B$6+Indata!$B$24),(Ekonomi!$B$81-Ekonomi!$B$79),"") -> 0 | I103: =IF(I100<=(Kalkylvärden!$B$6+Indata!$B$24),(Ekonomi!$B$81-Ekonomi!$B$79),"") -> 0 | J103: =IF(J100<=(Kalkylvärden!$B$6+Indata!$B$24),(Ekonomi!$B$81-Ekonomi!$B$79),"") -> 0 | K103: =IF(K100<=(Kalkylvärden!$B$6+Indata!$B$24),(Ekonomi!$B$81-Ekonomi!$B$79),"") -> 0 | L103: =IF(L100<=(Kalkylvärden!$B$6+Indata!$B$24),(Ekonomi!$B$81-Ekonomi!$B$79),"") -> 0 | M103: =IF(M100<=(Kalkylvärden!$B$6+Indata!$B$24),(Ekonomi!$B$81-Ekonomi!$B$79),"") -> 0 | N103: =IF(N100<=(Kalkylvärden!$B$6+Indata!$B$24),(Ekonomi!$B$81-Ekonomi!$B$79),"") -> 0 | O103: =IF(O100<=(Kalkylvärden!$B$6+Indata!$B$24),(Ekonomi!$B$81-Ekonomi!$B$79),"") -> 0 | P103: =IF(P100<=(Kalkylvärden!$B$6+Indata!$B$24),(Ekonomi!$B$81-Ekonomi!$B$79),"") -> 0 | Q103: =IF(Q100<=(Kalkylvärden!$B$6+Indata!$B$24),(Ekonomi!$B$81-Ekonomi!$B$79),"") -> 0 | R103: =IF(R100<=(Kalkylvärden!$B$6+Indata!$B$24),(Ekonomi!$B$81-Ekonomi!$B$79),"") -> 0 | S103: =IF(S100<=(Kalkylvärden!$B$6+Indata!$B$24),(Ekonomi!$B$81-Ekonomi!$B$79),"") -> 0 | T103: =IF(T100<=(Kalkylvärden!$B$6+Indata!$B$24),(Ekonomi!$B$81-Ekonomi!$B$79),"") -> 0 | U103: =IF(U100<=(Kalkylvärden!$B$6+Indata!$B$24),(Ekonomi!$B$81-Ekonomi!$B$79),"") -> 0 | V103: =IF(V100<=(Kalkylvärden!$B$6+Indata!$B$24),(Ekonomi!$B$81-Ekonomi!$B$79),"") -> 0 | W103: =IF(W100<=(Kalkylvärden!$B$6+Indata!$B$24),(Ekonomi!$B$81-Ekonomi!$B$79),"") -> 0 | X103: =IF(X100<=(Kalkylvärden!$B$6+Indata!$B$24),(Ekonomi!$B$81-Ekonomi!$B$79),"") -> 0 | Y103: =IF(Y100<=(Kalkylvärden!$B$6+Indata!$B$24),(Ekonomi!$B$81-Ekonomi!$B$79),"") -> 0 | Z103: =IF(Z100<=(Kalkylvärden!$B$6+Indata!$B$24),(Ekonomi!$B$81-Ekonomi!$B$79),"") -> 0 | AA103: =IF(AA100<=(Kalkylvärden!$B$6+Indata!$B$24),(Ekonomi!$B$81-Ekonomi!$B$79),"") -> 0 | AB103: =IF(AB100<=(Kalkylvärden!$B$6+Indata!$B$24),(Ekonomi!$B$81-Ekonomi!$B$79),"") -> 0 | AC103: =IF(AC100<=(Kalkylvärden!$B$6+Indata!$B$24),(Ekonomi!$B$81-Ekonomi!$B$79),"") -> 0 | AD103: =IF(AD100<=(Kalkylvärden!$B$6+Indata!$B$24),(Ekonomi!$B$81-Ekonomi!$B$79),"") -> 0 | AE103: =IF(AE100<=(Kalkylvärden!$B$6+Indata!$B$24),(Ekonomi!$B$81-Ekonomi!$B$79),"") -> 0 | AF103: =IF(AF100<=(Kalkylvärden!$B$6+Indata!$B$24),(Ekonomi!$B$81-Ekonomi!$B$79),"") -> 0 | AG103: =IF(AG100<=(Kalkylvärden!$B$6+Indata!$B$24),(Ekonomi!$B$81-Ekonomi!$B$79),"") -> 0 | AH103: =IF(AH100<=(Kalkylvärden!$B$6+Indata!$B$24),(Ekonomi!$B$81-Ekonomi!$B$79),"") -> 0 | AI103: =IF(AI100<=(Kalkylvärden!$B$6+Indata!$B$24),(Ekonomi!$B$81-Ekonomi!$B$79),"") -> 0 | AJ103: =IF(AJ100<=(Kalkylvärden!$B$6+Indata!$B$24),(Ekonomi!$B$81-Ekonomi!$B$79),"") -> 0 | AK103: =IF(AK100<=(Kalkylvärden!$B$6+Indata!$B$24),(Ekonomi!$B$81-Ekonomi!$B$79),"") -> 0 | AL103: =IF(AL100<=(Kalkylvärden!$B$6+Indata!$B$24),(Ekonomi!$B$81-Ekonomi!$B$79),"") -> 0 | AM103: =IF(AM100<=(Kalkylvärden!$B$6+Indata!$B$24),(Ekonomi!$B$81-Ekonomi!$B$79),"") -> 0 | AN103: =IF(AN100<=(Kalkylvärden!$B$6+Indata!$B$24),(Ekonomi!$B$81-Ekonomi!$B$79),"") -> 0 | AO103: =IF(AO100<=(Kalkylvärden!$B$6+Indata!$B$24),(Ekonomi!$B$81-Ekonomi!$B$79),"") -> 0 | AP103: =IF(AP100<=(Kalkylvärden!$B$6+Indata!$B$24),(Ekonomi!$B$81-Ekonomi!$B$79),"") -> 0 | AQ103: =IF(AQ100<=(Kalkylvärden!$B$6+Indata!$B$24),(Ekonomi!$B$81-Ekonomi!$B$79),"") ->  | AR103: =IF(AR100<=(Kalkylvärden!$B$6+Indata!$B$24),(Ekonomi!$B$81-Ekonomi!$B$79),"") ->  | AS103: =IF(AS100<=(Kalkylvärden!$B$6+Indata!$B$24),(Ekonomi!$B$81-Ekonomi!$B$79),"") ->  | AT103: =IF(AT100<=(Kalkylvärden!$B$6+Indata!$B$24),(Ekonomi!$B$81-Ekonomi!$B$79),"") ->  | AU103: =IF(AU100<=(Kalkylvärden!$B$6+Indata!$B$24),(Ekonomi!$B$81-Ekonomi!$B$79),"") ->  | AV103: =IF(AV100<=(Kalkylvärden!$B$6+Indata!$B$24),(Ekonomi!$B$81-Ekonomi!$B$79),"") ->  | AW103: =IF(AW100<=(Kalkylvärden!$B$6+Indata!$B$24),(Ekonomi!$B$81-Ekonomi!$B$79),"") ->  | AX103: =IF(AX100<=(Kalkylvärden!$B$6+Indata!$B$24),(Ekonomi!$B$81-Ekonomi!$B$79),"") ->  | AY103: =IF(AY100<=(Kalkylvärden!$B$6+Indata!$B$24),(Ekonomi!$B$81-Ekonomi!$B$79),"") ->  | AZ103: =IF(AZ100<=(Kalkylvärden!$B$6+Indata!$B$24),(Ekonomi!$B$81-Ekonomi!$B$79),"") ->  | BA103: =IF(BA100<=(Kalkylvärden!$B$6+Indata!$B$24),(Ekonomi!$B$81-Ekonomi!$B$79),"") ->  | BB103: =IF(BB100<=(Kalkylvärden!$B$6+Indata!$B$24),(Ekonomi!$B$81-Ekonomi!$B$79),"") ->  | BC103: =IF(BC100<=(Kalkylvärden!$B$6+Indata!$B$24),(Ekonomi!$B$81-Ekonomi!$B$79),"") ->  | BD103: =IF(BD100<=(Kalkylvärden!$B$6+Indata!$B$24),(Ekonomi!$B$81-Ekonomi!$B$79),"") ->  | BE103: =IF(BE100<=(Kalkylvärden!$B$6+Indata!$B$24),(Ekonomi!$B$81-Ekonomi!$B$79),"") ->  | BF103: =IF(BF100<=(Kalkylvärden!$B$6+Indata!$B$24),(Ekonomi!$B$81-Ekonomi!$B$79),"") ->  | BG103: =IF(BG100<=(Kalkylvärden!$B$6+Indata!$B$24),(Ekonomi!$B$81-Ekonomi!$B$79),"") ->  | BH103: =IF(BH100<=(Kalkylvärden!$B$6+Indata!$B$24),(Ekonomi!$B$81-Ekonomi!$B$79),"") ->  | BI103: =IF(BI100<=(Kalkylvärden!$B$6+Indata!$B$24),(Ekonomi!$B$81-Ekonomi!$B$79),"") ->  | BJ103: =IF(BJ100<=(Kalkylvärden!$B$6+Indata!$B$24),(Ekonomi!$B$81-Ekonomi!$B$79),"") ->  | BK103: =IF(BK100<=(Kalkylvärden!$B$6+Indata!$B$24),(Ekonomi!$B$81-Ekonomi!$B$79),"") ->  | BL103: =IF(BL100<=(Kalkylvärden!$B$6+Indata!$B$24),(Ekonomi!$B$81-Ekonomi!$B$79),"") ->  | BM103: =IF(BM100<=(Kalkylvärden!$B$6+Indata!$B$24),(Ekonomi!$B$81-Ekonomi!$B$79),"") ->  | BN103: =IF(BN100<=(Kalkylvärden!$B$6+Indata!$B$24),(Ekonomi!$B$81-Ekonomi!$B$79),"") ->  | BO103: =IF(BO100<=(Kalkylvärden!$B$6+Indata!$B$24),(Ekonomi!$B$81-Ekonomi!$B$79),"") ->  | BP103: =IF(BP100<=(Kalkylvärden!$B$6+Indata!$B$24),(Ekonomi!$B$81-Ekonomi!$B$79),"") ->  | BQ103: =IF(BQ100<=(Kalkylvärden!$B$6+Indata!$B$24),(Ekonomi!$B$81-Ekonomi!$B$79),"") ->  | BR103: =IF(BR100<=(Kalkylvärden!$B$6+Indata!$B$24),(Ekonomi!$B$81-Ekonomi!$B$79),"") ->  | BS103: =IF(BS100<=(Kalkylvärden!$B$6+Indata!$B$24),(Ekonomi!$B$81-Ekonomi!$B$79),"") -> 
A104: Nuvärde Tidskostnader, personer Pb/Lb (mkr/år) | B104: =IF(B100<=(Kalkylvärden!$B$6+Indata!$B$24),B102*B49,"") ->  | C104: =IF(C100<=(Kalkylvärden!$B$6+Indata!$B$24),C102*C49,"") ->  | D104: =IF(D100<=(Kalkylvärden!$B$6+Indata!$B$24),D102*D49,"") ->  | E104: =IF(E100<=(Kalkylvärden!$B$6+Indata!$B$24),E102*E49,"") ->  | F104: =IF(F100<=(Kalkylvärden!$B$6+Indata!$B$24),F102*F49,"") ->  | G104: =IF(G100<=(Kalkylvärden!$B$6+Indata!$B$24),G102*G49,"") ->  | H104: =IF(H100<=(Kalkylvärden!$B$6+Indata!$B$24),H102*H49,"") ->  | I104: =IF(I100<=(Kalkylvärden!$B$6+Indata!$B$24),I102*I49,"") ->  | J104: =IF(J100<=(Kalkylvärden!$B$6+Indata!$B$24),J102*J49,"") ->  | K104: =IF(K100<=(Kalkylvärden!$B$6+Indata!$B$24),K102*K49,"") ->  | L104: =IF(L100<=(Kalkylvärden!$B$6+Indata!$B$24),L102*L49,"") ->  | M104: =IF(M100<=(Kalkylvärden!$B$6+Indata!$B$24),M102*M49,"") ->  | N104: =IF(N100<=(Kalkylvärden!$B$6+Indata!$B$24),N102*N49,"") ->  | O104: =IF(O100<=(Kalkylvärden!$B$6+Indata!$B$24),O102*O49,"") ->  | P104: =IF(P100<=(Kalkylvärden!$B$6+Indata!$B$24),P102*P49,"") ->  | Q104: =IF(Q100<=(Kalkylvärden!$B$6+Indata!$B$24),Q102*Q49,"") ->  | R104: =IF(R100<=(Kalkylvärden!$B$6+Indata!$B$24),R102*R49,"") ->  | S104: =IF(S100<=(Kalkylvärden!$B$6+Indata!$B$24),S102*S49,"") ->  | T104: =IF(T100<=(Kalkylvärden!$B$6+Indata!$B$24),T102*T49,"") ->  | U104: =IF(U100<=(Kalkylvärden!$B$6+Indata!$B$24),U102*U49,"") ->  | V104: =IF(V100<=(Kalkylvärden!$B$6+Indata!$B$24),V102*V49,"") ->  | W104: =IF(W100<=(Kalkylvärden!$B$6+Indata!$B$24),W102*W49,"") ->  | X104: =IF(X100<=(Kalkylvärden!$B$6+Indata!$B$24),X102*X49,"") ->  | Y104: =IF(Y100<=(Kalkylvärden!$B$6+Indata!$B$24),Y102*Y49,"") ->  | Z104: =IF(Z100<=(Kalkylvärden!$B$6+Indata!$B$24),Z102*Z49,"") ->  | AA104: =IF(AA100<=(Kalkylvärden!$B$6+Indata!$B$24),AA102*AA49,"") ->  | AB104: =IF(AB100<=(Kalkylvärden!$B$6+Indata!$B$24),AB102*AB49,"") ->  | AC104: =IF(AC100<=(Kalkylvärden!$B$6+Indata!$B$24),AC102*AC49,"") ->  | AD104: =IF(AD100<=(Kalkylvärden!$B$6+Indata!$B$24),AD102*AD49,"") ->  | AE104: =IF(AE100<=(Kalkylvärden!$B$6+Indata!$B$24),AE102*AE49,"") ->  | AF104: =IF(AF100<=(Kalkylvärden!$B$6+Indata!$B$24),AF102*AF49,"") ->  | AG104: =IF(AG100<=(Kalkylvärden!$B$6+Indata!$B$24),AG102*AG49,"") ->  | AH104: =IF(AH100<=(Kalkylvärden!$B$6+Indata!$B$24),AH102*AH49,"") ->  | AI104: =IF(AI100<=(Kalkylvärden!$B$6+Indata!$B$24),AI102*AI49,"") ->  | AJ104: =IF(AJ100<=(Kalkylvärden!$B$6+Indata!$B$24),AJ102*AJ49,"") ->  | AK104: =IF(AK100<=(Kalkylvärden!$B$6+Indata!$B$24),AK102*AK49,"") ->  | AL104: =IF(AL100<=(Kalkylvärden!$B$6+Indata!$B$24),AL102*AL49,"") ->  | AM104: =IF(AM100<=(Kalkylvärden!$B$6+Indata!$B$24),AM102*AM49,"") ->  | AN104: =IF(AN100<=(Kalkylvärden!$B$6+Indata!$B$24),AN102*AN49,"") ->  | AO104: =IF(AO100<=(Kalkylvärden!$B$6+Indata!$B$24),AO102*AO49,"") ->  | AP104: =IF(AP100<=(Kalkylvärden!$B$6+Indata!$B$24),AP102*AP49,"") ->  | AQ104: =IF(AQ100<=(Kalkylvärden!$B$6+Indata!$B$24),AQ102*AQ49,"") ->  | AR104: =IF(AR100<=(Kalkylvärden!$B$6+Indata!$B$24),AR102*AR49,"") ->  | AS104: =IF(AS100<=(Kalkylvärden!$B$6+Indata!$B$24),AS102*AS49,"") ->  | AT104: =IF(AT100<=(Kalkylvärden!$B$6+Indata!$B$24),AT102*AT49,"") ->  | AU104: =IF(AU100<=(Kalkylvärden!$B$6+Indata!$B$24),AU102*AU49,"") ->  | AV104: =IF(AV100<=(Kalkylvärden!$B$6+Indata!$B$24),AV102*AV49,"") ->  | AW104: =IF(AW100<=(Kalkylvärden!$B$6+Indata!$B$24),AW102*AW49,"") ->  | AX104: =IF(AX100<=(Kalkylvärden!$B$6+Indata!$B$24),AX102*AX49,"") ->  | AY104: =IF(AY100<=(Kalkylvärden!$B$6+Indata!$B$24),AY102*AY49,"") ->  | AZ104: =IF(AZ100<=(Kalkylvärden!$B$6+Indata!$B$24),AZ102*AZ49,"") ->  | BA104: =IF(BA100<=(Kalkylvärden!$B$6+Indata!$B$24),BA102*BA49,"") ->  | BB104: =IF(BB100<=(Kalkylvärden!$B$6+Indata!$B$24),BB102*BB49,"") ->  | BC104: =IF(BC100<=(Kalkylvärden!$B$6+Indata!$B$24),BC102*BC49,"") ->  | BD104: =IF(BD100<=(Kalkylvärden!$B$6+Indata!$B$24),BD102*BD49,"") ->  | BE104: =IF(BE100<=(Kalkylvärden!$B$6+Indata!$B$24),BE102*BE49,"") ->  | BF104: =IF(BF100<=(Kalkylvärden!$B$6+Indata!$B$24),BF102*BF49,"") ->  | BG104: =IF(BG100<=(Kalkylvärden!$B$6+Indata!$B$24),BG102*BG49,"") ->  | BH104: =IF(BH100<=(Kalkylvärden!$B$6+Indata!$B$24),BH102*BH49,"") ->  | BI104: =IF(BI100<=(Kalkylvärden!$B$6+Indata!$B$24),BI102*BI49,"") ->  | BJ104: =IF(BJ100<=(Kalkylvärden!$B$6+Indata!$B$24),BJ102*BJ49,"") ->  | BK104: =IF(BK100<=(Kalkylvärden!$B$6+Indata!$B$24),BK102*BK49,"") ->  | BL104: =IF(BL100<=(Kalkylvärden!$B$6+Indata!$B$24),BL102*BL49,"") ->  | BM104: =IF(BM100<=(Kalkylvärden!$B$6+Indata!$B$24),BM102*BM49,"") ->  | BN104: =IF(BN100<=(Kalkylvärden!$B$6+Indata!$B$24),BN102*BN49,"") ->  | BO104: =IF(BO100<=(Kalkylvärden!$B$6+Indata!$B$24),BO102*BO49,"") ->  | BP104: =IF(BP100<=(Kalkylvärden!$B$6+Indata!$B$24),BP102*BP49,"") ->  | BQ104: =IF(BQ100<=(Kalkylvärden!$B$6+Indata!$B$24),BQ102*BQ49,"") ->  | BR104: =IF(BR100<=(Kalkylvärden!$B$6+Indata!$B$24),BR102*BR49,"") ->  | BS104: =IF(BS100<=(Kalkylvärden!$B$6+Indata!$B$24),BS102*BS49,"") -> 
A105: Nuvärde Tidskostnader, personer G/C (mkr/år) | B105: =IF(B100<=(Kalkylvärden!$B$6+Indata!$B$24),B103*B50,"") -> 0 | C105: =IF(C100<=(Kalkylvärden!$B$6+Indata!$B$24),C103*C50,"") -> 0 | D105: =IF(D100<=(Kalkylvärden!$B$6+Indata!$B$24),D103*D50,"") -> 0 | E105: =IF(E100<=(Kalkylvärden!$B$6+Indata!$B$24),E103*E50,"") -> 0 | F105: =IF(F100<=(Kalkylvärden!$B$6+Indata!$B$24),F103*F50,"") -> 0 | G105: =IF(G100<=(Kalkylvärden!$B$6+Indata!$B$24),G103*G50,"") -> 0 | H105: =IF(H100<=(Kalkylvärden!$B$6+Indata!$B$24),H103*H50,"") -> 0 | I105: =IF(I100<=(Kalkylvärden!$B$6+Indata!$B$24),I103*I50,"") -> 0 | J105: =IF(J100<=(Kalkylvärden!$B$6+Indata!$B$24),J103*J50,"") -> 0 | K105: =IF(K100<=(Kalkylvärden!$B$6+Indata!$B$24),K103*K50,"") -> 0 | L105: =IF(L100<=(Kalkylvärden!$B$6+Indata!$B$24),L103*L50,"") -> 0 | M105: =IF(M100<=(Kalkylvärden!$B$6+Indata!$B$24),M103*M50,"") -> 0 | N105: =IF(N100<=(Kalkylvärden!$B$6+Indata!$B$24),N103*N50,"") -> 0 | O105: =IF(O100<=(Kalkylvärden!$B$6+Indata!$B$24),O103*O50,"") -> 0 | P105: =IF(P100<=(Kalkylvärden!$B$6+Indata!$B$24),P103*P50,"") -> 0 | Q105: =IF(Q100<=(Kalkylvärden!$B$6+Indata!$B$24),Q103*Q50,"") -> 0 | R105: =IF(R100<=(Kalkylvärden!$B$6+Indata!$B$24),R103*R50,"") -> 0 | S105: =IF(S100<=(Kalkylvärden!$B$6+Indata!$B$24),S103*S50,"") -> 0 | T105: =IF(T100<=(Kalkylvärden!$B$6+Indata!$B$24),T103*T50,"") -> 0 | U105: =IF(U100<=(Kalkylvärden!$B$6+Indata!$B$24),U103*U50,"") -> 0 | V105: =IF(V100<=(Kalkylvärden!$B$6+Indata!$B$24),V103*V50,"") -> 0 | W105: =IF(W100<=(Kalkylvärden!$B$6+Indata!$B$24),W103*W50,"") -> 0 | X105: =IF(X100<=(Kalkylvärden!$B$6+Indata!$B$24),X103*X50,"") -> 0 | Y105: =IF(Y100<=(Kalkylvärden!$B$6+Indata!$B$24),Y103*Y50,"") -> 0 | Z105: =IF(Z100<=(Kalkylvärden!$B$6+Indata!$B$24),Z103*Z50,"") -> 0 | AA105: =IF(AA100<=(Kalkylvärden!$B$6+Indata!$B$24),AA103*AA50,"") -> 0 | AB105: =IF(AB100<=(Kalkylvärden!$B$6+Indata!$B$24),AB103*AB50,"") -> 0 | AC105: =IF(AC100<=(Kalkylvärden!$B$6+Indata!$B$24),AC103*AC50,"") -> 0 | AD105: =IF(AD100<=(Kalkylvärden!$B$6+Indata!$B$24),AD103*AD50,"") -> 0 | AE105: =IF(AE100<=(Kalkylvärden!$B$6+Indata!$B$24),AE103*AE50,"") -> 0 | AF105: =IF(AF100<=(Kalkylvärden!$B$6+Indata!$B$24),AF103*AF50,"") -> 0 | AG105: =IF(AG100<=(Kalkylvärden!$B$6+Indata!$B$24),AG103*AG50,"") -> 0 | AH105: =IF(AH100<=(Kalkylvärden!$B$6+Indata!$B$24),AH103*AH50,"") -> 0 | AI105: =IF(AI100<=(Kalkylvärden!$B$6+Indata!$B$24),AI103*AI50,"") -> 0 | AJ105: =IF(AJ100<=(Kalkylvärden!$B$6+Indata!$B$24),AJ103*AJ50,"") -> 0 | AK105: =IF(AK100<=(Kalkylvärden!$B$6+Indata!$B$24),AK103*AK50,"") -> 0 | AL105: =IF(AL100<=(Kalkylvärden!$B$6+Indata!$B$24),AL103*AL50,"") -> 0 | AM105: =IF(AM100<=(Kalkylvärden!$B$6+Indata!$B$24),AM103*AM50,"") -> 0 | AN105: =IF(AN100<=(Kalkylvärden!$B$6+Indata!$B$24),AN103*AN50,"") -> 0 | AO105: =IF(AO100<=(Kalkylvärden!$B$6+Indata!$B$24),AO103*AO50,"") -> 0 | AP105: =IF(AP100<=(Kalkylvärden!$B$6+Indata!$B$24),AP103*AP50,"") -> 0 | AQ105: =IF(AQ100<=(Kalkylvärden!$B$6+Indata!$B$24),AQ103*AQ50,"") ->  | AR105: =IF(AR100<=(Kalkylvärden!$B$6+Indata!$B$24),AR103*AR50,"") ->  | AS105: =IF(AS100<=(Kalkylvärden!$B$6+Indata!$B$24),AS103*AS50,"") ->  | AT105: =IF(AT100<=(Kalkylvärden!$B$6+Indata!$B$24),AT103*AT50,"") ->  | AU105: =IF(AU100<=(Kalkylvärden!$B$6+Indata!$B$24),AU103*AU50,"") ->  | AV105: =IF(AV100<=(Kalkylvärden!$B$6+Indata!$B$24),AV103*AV50,"") ->  | AW105: =IF(AW100<=(Kalkylvärden!$B$6+Indata!$B$24),AW103*AW50,"") ->  | AX105: =IF(AX100<=(Kalkylvärden!$B$6+Indata!$B$24),AX103*AX50,"") ->  | AY105: =IF(AY100<=(Kalkylvärden!$B$6+Indata!$B$24),AY103*AY50,"") ->  | AZ105: =IF(AZ100<=(Kalkylvärden!$B$6+Indata!$B$24),AZ103*AZ50,"") ->  | BA105: =IF(BA100<=(Kalkylvärden!$B$6+Indata!$B$24),BA103*BA50,"") ->  | BB105: =IF(BB100<=(Kalkylvärden!$B$6+Indata!$B$24),BB103*BB50,"") ->  | BC105: =IF(BC100<=(Kalkylvärden!$B$6+Indata!$B$24),BC103*BC50,"") ->  | BD105: =IF(BD100<=(Kalkylvärden!$B$6+Indata!$B$24),BD103*BD50,"") ->  | BE105: =IF(BE100<=(Kalkylvärden!$B$6+Indata!$B$24),BE103*BE50,"") ->  | BF105: =IF(BF100<=(Kalkylvärden!$B$6+Indata!$B$24),BF103*BF50,"") ->  | BG105: =IF(BG100<=(Kalkylvärden!$B$6+Indata!$B$24),BG103*BG50,"") ->  | BH105: =IF(BH100<=(Kalkylvärden!$B$6+Indata!$B$24),BH103*BH50,"") ->  | BI105: =IF(BI100<=(Kalkylvärden!$B$6+Indata!$B$24),BI103*BI50,"") ->  | BJ105: =IF(BJ100<=(Kalkylvärden!$B$6+Indata!$B$24),BJ103*BJ50,"") ->  | BK105: =IF(BK100<=(Kalkylvärden!$B$6+Indata!$B$24),BK103*BK50,"") ->  | BL105: =IF(BL100<=(Kalkylvärden!$B$6+Indata!$B$24),BL103*BL50,"") ->  | BM105: =IF(BM100<=(Kalkylvärden!$B$6+Indata!$B$24),BM103*BM50,"") ->  | BN105: =IF(BN100<=(Kalkylvärden!$B$6+Indata!$B$24),BN103*BN50,"") ->  | BO105: =IF(BO100<=(Kalkylvärden!$B$6+Indata!$B$24),BO103*BO50,"") ->  | BP105: =IF(BP100<=(Kalkylvärden!$B$6+Indata!$B$24),BP103*BP50,"") ->  | BQ105: =IF(BQ100<=(Kalkylvärden!$B$6+Indata!$B$24),BQ103*BQ50,"") ->  | BR105: =IF(BR100<=(Kalkylvärden!$B$6+Indata!$B$24),BR103*BR50,"") ->  | BS105: =IF(BS100<=(Kalkylvärden!$B$6+Indata!$B$24),BS103*BS50,"") -> 
A106: Summa nuvärde Tidskostnader, personer (mkr) | B106: =SUM(B104:BS105) -> 
A108: Vid omledning
A109: Tidskostnader, personer Pb/Lb (mkr/år) | B109: =IF(B100<=(Kalkylvärden!$B$6+Indata!$B$24),Ekonomi!$B$82,"") -> 0 | C109: =IF(C100<=(Kalkylvärden!$B$6+Indata!$B$24),Ekonomi!$B$82,"") -> 0 | D109: =IF(D100<=(Kalkylvärden!$B$6+Indata!$B$24),Ekonomi!$B$82,"") -> 0 | E109: =IF(E100<=(Kalkylvärden!$B$6+Indata!$B$24),Ekonomi!$B$82,"") -> 0 | F109: =IF(F100<=(Kalkylvärden!$B$6+Indata!$B$24),Ekonomi!$B$82,"") -> 0 | G109: =IF(G100<=(Kalkylvärden!$B$6+Indata!$B$24),Ekonomi!$B$82,"") -> 0 | H109: =IF(H100<=(Kalkylvärden!$B$6+Indata!$B$24),Ekonomi!$B$82,"") -> 0 | I109: =IF(I100<=(Kalkylvärden!$B$6+Indata!$B$24),Ekonomi!$B$82,"") -> 0 | J109: =IF(J100<=(Kalkylvärden!$B$6+Indata!$B$24),Ekonomi!$B$82,"") -> 0 | K109: =IF(K100<=(Kalkylvärden!$B$6+Indata!$B$24),Ekonomi!$B$82,"") -> 0 | L109: =IF(L100<=(Kalkylvärden!$B$6+Indata!$B$24),Ekonomi!$B$82,"") -> 0 | M109: =IF(M100<=(Kalkylvärden!$B$6+Indata!$B$24),Ekonomi!$B$82,"") -> 0 | N109: =IF(N100<=(Kalkylvärden!$B$6+Indata!$B$24),Ekonomi!$B$82,"") -> 0 | O109: =IF(O100<=(Kalkylvärden!$B$6+Indata!$B$24),Ekonomi!$B$82,"") -> 0 | P109: =IF(P100<=(Kalkylvärden!$B$6+Indata!$B$24),Ekonomi!$B$82,"") -> 0 | Q109: =IF(Q100<=(Kalkylvärden!$B$6+Indata!$B$24),Ekonomi!$B$82,"") -> 0 | R109: =IF(R100<=(Kalkylvärden!$B$6+Indata!$B$24),Ekonomi!$B$82,"") -> 0 | S109: =IF(S100<=(Kalkylvärden!$B$6+Indata!$B$24),Ekonomi!$B$82,"") -> 0 | T109: =IF(T100<=(Kalkylvärden!$B$6+Indata!$B$24),Ekonomi!$B$82,"") -> 0 | U109: =IF(U100<=(Kalkylvärden!$B$6+Indata!$B$24),Ekonomi!$B$82,"") -> 0 | V109: =IF(V100<=(Kalkylvärden!$B$6+Indata!$B$24),Ekonomi!$B$82,"") -> 0 | W109: =IF(W100<=(Kalkylvärden!$B$6+Indata!$B$24),Ekonomi!$B$82,"") -> 0 | X109: =IF(X100<=(Kalkylvärden!$B$6+Indata!$B$24),Ekonomi!$B$82,"") -> 0 | Y109: =IF(Y100<=(Kalkylvärden!$B$6+Indata!$B$24),Ekonomi!$B$82,"") -> 0 | Z109: =IF(Z100<=(Kalkylvärden!$B$6+Indata!$B$24),Ekonomi!$B$82,"") -> 0 | AA109: =IF(AA100<=(Kalkylvärden!$B$6+Indata!$B$24),Ekonomi!$B$82,"") -> 0 | AB109: =IF(AB100<=(Kalkylvärden!$B$6+Indata!$B$24),Ekonomi!$B$82,"") -> 0 | AC109: =IF(AC100<=(Kalkylvärden!$B$6+Indata!$B$24),Ekonomi!$B$82,"") -> 0 | AD109: =IF(AD100<=(Kalkylvärden!$B$6+Indata!$B$24),Ekonomi!$B$82,"") -> 0 | AE109: =IF(AE100<=(Kalkylvärden!$B$6+Indata!$B$24),Ekonomi!$B$82,"") -> 0 | AF109: =IF(AF100<=(Kalkylvärden!$B$6+Indata!$B$24),Ekonomi!$B$82,"") -> 0 | AG109: =IF(AG100<=(Kalkylvärden!$B$6+Indata!$B$24),Ekonomi!$B$82,"") -> 0 | AH109: =IF(AH100<=(Kalkylvärden!$B$6+Indata!$B$24),Ekonomi!$B$82,"") -> 0 | AI109: =IF(AI100<=(Kalkylvärden!$B$6+Indata!$B$24),Ekonomi!$B$82,"") -> 0 | AJ109: =IF(AJ100<=(Kalkylvärden!$B$6+Indata!$B$24),Ekonomi!$B$82,"") -> 0 | AK109: =IF(AK100<=(Kalkylvärden!$B$6+Indata!$B$24),Ekonomi!$B$82,"") -> 0 | AL109: =IF(AL100<=(Kalkylvärden!$B$6+Indata!$B$24),Ekonomi!$B$82,"") -> 0 | AM109: =IF(AM100<=(Kalkylvärden!$B$6+Indata!$B$24),Ekonomi!$B$82,"") -> 0 | AN109: =IF(AN100<=(Kalkylvärden!$B$6+Indata!$B$24),Ekonomi!$B$82,"") -> 0 | AO109: =IF(AO100<=(Kalkylvärden!$B$6+Indata!$B$24),Ekonomi!$B$82,"") -> 0 | AP109: =IF(AP100<=(Kalkylvärden!$B$6+Indata!$B$24),Ekonomi!$B$82,"") -> 0 | AQ109: =IF(AQ100<=(Kalkylvärden!$B$6+Indata!$B$24),Ekonomi!$B$82,"") ->  | AR109: =IF(AR100<=(Kalkylvärden!$B$6+Indata!$B$24),Ekonomi!$B$82,"") ->  | AS109: =IF(AS100<=(Kalkylvärden!$B$6+Indata!$B$24),Ekonomi!$B$82,"") ->  | AT109: =IF(AT100<=(Kalkylvärden!$B$6+Indata!$B$24),Ekonomi!$B$82,"") ->  | AU109: =IF(AU100<=(Kalkylvärden!$B$6+Indata!$B$24),Ekonomi!$B$82,"") ->  | AV109: =IF(AV100<=(Kalkylvärden!$B$6+Indata!$B$24),Ekonomi!$B$82,"") ->  | AW109: =IF(AW100<=(Kalkylvärden!$B$6+Indata!$B$24),Ekonomi!$B$82,"") ->  | AX109: =IF(AX100<=(Kalkylvärden!$B$6+Indata!$B$24),Ekonomi!$B$82,"") ->  | AY109: =IF(AY100<=(Kalkylvärden!$B$6+Indata!$B$24),Ekonomi!$B$82,"") ->  | AZ109: =IF(AZ100<=(Kalkylvärden!$B$6+Indata!$B$24),Ekonomi!$B$82,"") ->  | BA109: =IF(BA100<=(Kalkylvärden!$B$6+Indata!$B$24),Ekonomi!$B$82,"") ->  | BB109: =IF(BB100<=(Kalkylvärden!$B$6+Indata!$B$24),Ekonomi!$B$82,"") ->  | BC109: =IF(BC100<=(Kalkylvärden!$B$6+Indata!$B$24),Ekonomi!$B$82,"") ->  | BD109: =IF(BD100<=(Kalkylvärden!$B$6+Indata!$B$24),Ekonomi!$B$82,"") ->  | BE109: =IF(BE100<=(Kalkylvärden!$B$6+Indata!$B$24),Ekonomi!$B$82,"") ->  | BF109: =IF(BF100<=(Kalkylvärden!$B$6+Indata!$B$24),Ekonomi!$B$82,"") ->  | BG109: =IF(BG100<=(Kalkylvärden!$B$6+Indata!$B$24),Ekonomi!$B$82,"") ->  | BH109: =IF(BH100<=(Kalkylvärden!$B$6+Indata!$B$24),Ekonomi!$B$82,"") ->  | BI109: =IF(BI100<=(Kalkylvärden!$B$6+Indata!$B$24),Ekonomi!$B$82,"") ->  | BJ109: =IF(BJ100<=(Kalkylvärden!$B$6+Indata!$B$24),Ekonomi!$B$82,"") ->  | BK109: =IF(BK100<=(Kalkylvärden!$B$6+Indata!$B$24),Ekonomi!$B$82,"") ->  | BL109: =IF(BL100<=(Kalkylvärden!$B$6+Indata!$B$24),Ekonomi!$B$82,"") ->  | BM109: =IF(BM100<=(Kalkylvärden!$B$6+Indata!$B$24),Ekonomi!$B$82,"") ->  | BN109: =IF(BN100<=(Kalkylvärden!$B$6+Indata!$B$24),Ekonomi!$B$82,"") ->  | BO109: =IF(BO100<=(Kalkylvärden!$B$6+Indata!$B$24),Ekonomi!$B$82,"") ->  | BP109: =IF(BP100<=(Kalkylvärden!$B$6+Indata!$B$24),Ekonomi!$B$82,"") ->  | BQ109: =IF(BQ100<=(Kalkylvärden!$B$6+Indata!$B$24),Ekonomi!$B$82,"") ->  | BR109: =IF(BR100<=(Kalkylvärden!$B$6+Indata!$B$24),Ekonomi!$B$82,"") ->  | BS109: =IF(BS100<=(Kalkylvärden!$B$6+Indata!$B$24),Ekonomi!$B$82,"") -> 
A110: Tidskostnader, personer G/C (mkr/år) | B110: =IF(B100<=(Kalkylvärden!$B$6+Indata!$B$24),Ekonomi!$B$83,"") -> 0 | C110: =IF(C100<=(Kalkylvärden!$B$6+Indata!$B$24),Ekonomi!$B$83,"") -> 0 | D110: =IF(D100<=(Kalkylvärden!$B$6+Indata!$B$24),Ekonomi!$B$83,"") -> 0 | E110: =IF(E100<=(Kalkylvärden!$B$6+Indata!$B$24),Ekonomi!$B$83,"") -> 0 | F110: =IF(F100<=(Kalkylvärden!$B$6+Indata!$B$24),Ekonomi!$B$83,"") -> 0 | G110: =IF(G100<=(Kalkylvärden!$B$6+Indata!$B$24),Ekonomi!$B$83,"") -> 0 | H110: =IF(H100<=(Kalkylvärden!$B$6+Indata!$B$24),Ekonomi!$B$83,"") -> 0 | I110: =IF(I100<=(Kalkylvärden!$B$6+Indata!$B$24),Ekonomi!$B$83,"") -> 0 | J110: =IF(J100<=(Kalkylvärden!$B$6+Indata!$B$24),Ekonomi!$B$83,"") -> 0 | K110: =IF(K100<=(Kalkylvärden!$B$6+Indata!$B$24),Ekonomi!$B$83,"") -> 0 | L110: =IF(L100<=(Kalkylvärden!$B$6+Indata!$B$24),Ekonomi!$B$83,"") -> 0 | M110: =IF(M100<=(Kalkylvärden!$B$6+Indata!$B$24),Ekonomi!$B$83,"") -> 0 | N110: =IF(N100<=(Kalkylvärden!$B$6+Indata!$B$24),Ekonomi!$B$83,"") -> 0 | O110: =IF(O100<=(Kalkylvärden!$B$6+Indata!$B$24),Ekonomi!$B$83,"") -> 0 | P110: =IF(P100<=(Kalkylvärden!$B$6+Indata!$B$24),Ekonomi!$B$83,"") -> 0 | Q110: =IF(Q100<=(Kalkylvärden!$B$6+Indata!$B$24),Ekonomi!$B$83,"") -> 0 | R110: =IF(R100<=(Kalkylvärden!$B$6+Indata!$B$24),Ekonomi!$B$83,"") -> 0 | S110: =IF(S100<=(Kalkylvärden!$B$6+Indata!$B$24),Ekonomi!$B$83,"") -> 0 | T110: =IF(T100<=(Kalkylvärden!$B$6+Indata!$B$24),Ekonomi!$B$83,"") -> 0 | U110: =IF(U100<=(Kalkylvärden!$B$6+Indata!$B$24),Ekonomi!$B$83,"") -> 0 | V110: =IF(V100<=(Kalkylvärden!$B$6+Indata!$B$24),Ekonomi!$B$83,"") -> 0 | W110: =IF(W100<=(Kalkylvärden!$B$6+Indata!$B$24),Ekonomi!$B$83,"") -> 0 | X110: =IF(X100<=(Kalkylvärden!$B$6+Indata!$B$24),Ekonomi!$B$83,"") -> 0 | Y110: =IF(Y100<=(Kalkylvärden!$B$6+Indata!$B$24),Ekonomi!$B$83,"") -> 0 | Z110: =IF(Z100<=(Kalkylvärden!$B$6+Indata!$B$24),Ekonomi!$B$83,"") -> 0 | AA110: =IF(AA100<=(Kalkylvärden!$B$6+Indata!$B$24),Ekonomi!$B$83,"") -> 0 | AB110: =IF(AB100<=(Kalkylvärden!$B$6+Indata!$B$24),Ekonomi!$B$83,"") -> 0 | AC110: =IF(AC100<=(Kalkylvärden!$B$6+Indata!$B$24),Ekonomi!$B$83,"") -> 0 | AD110: =IF(AD100<=(Kalkylvärden!$B$6+Indata!$B$24),Ekonomi!$B$83,"") -> 0 | AE110: =IF(AE100<=(Kalkylvärden!$B$6+Indata!$B$24),Ekonomi!$B$83,"") -> 0 | AF110: =IF(AF100<=(Kalkylvärden!$B$6+Indata!$B$24),Ekonomi!$B$83,"") -> 0 | AG110: =IF(AG100<=(Kalkylvärden!$B$6+Indata!$B$24),Ekonomi!$B$83,"") -> 0 | AH110: =IF(AH100<=(Kalkylvärden!$B$6+Indata!$B$24),Ekonomi!$B$83,"") -> 0 | AI110: =IF(AI100<=(Kalkylvärden!$B$6+Indata!$B$24),Ekonomi!$B$83,"") -> 0 | AJ110: =IF(AJ100<=(Kalkylvärden!$B$6+Indata!$B$24),Ekonomi!$B$83,"") -> 0 | AK110: =IF(AK100<=(Kalkylvärden!$B$6+Indata!$B$24),Ekonomi!$B$83,"") -> 0 | AL110: =IF(AL100<=(Kalkylvärden!$B$6+Indata!$B$24),Ekonomi!$B$83,"") -> 0 | AM110: =IF(AM100<=(Kalkylvärden!$B$6+Indata!$B$24),Ekonomi!$B$83,"") -> 0 | AN110: =IF(AN100<=(Kalkylvärden!$B$6+Indata!$B$24),Ekonomi!$B$83,"") -> 0 | AO110: =IF(AO100<=(Kalkylvärden!$B$6+Indata!$B$24),Ekonomi!$B$83,"") -> 0 | AP110: =IF(AP100<=(Kalkylvärden!$B$6+Indata!$B$24),Ekonomi!$B$83,"") -> 0 | AQ110: =IF(AQ100<=(Kalkylvärden!$B$6+Indata!$B$24),Ekonomi!$B$83,"") ->  | AR110: =IF(AR100<=(Kalkylvärden!$B$6+Indata!$B$24),Ekonomi!$B$83,"") ->  | AS110: =IF(AS100<=(Kalkylvärden!$B$6+Indata!$B$24),Ekonomi!$B$83,"") ->  | AT110: =IF(AT100<=(Kalkylvärden!$B$6+Indata!$B$24),Ekonomi!$B$83,"") ->  | AU110: =IF(AU100<=(Kalkylvärden!$B$6+Indata!$B$24),Ekonomi!$B$83,"") ->  | AV110: =IF(AV100<=(Kalkylvärden!$B$6+Indata!$B$24),Ekonomi!$B$83,"") ->  | AW110: =IF(AW100<=(Kalkylvärden!$B$6+Indata!$B$24),Ekonomi!$B$83,"") ->  | AX110: =IF(AX100<=(Kalkylvärden!$B$6+Indata!$B$24),Ekonomi!$B$83,"") ->  | AY110: =IF(AY100<=(Kalkylvärden!$B$6+Indata!$B$24),Ekonomi!$B$83,"") ->  | AZ110: =IF(AZ100<=(Kalkylvärden!$B$6+Indata!$B$24),Ekonomi!$B$83,"") ->  | BA110: =IF(BA100<=(Kalkylvärden!$B$6+Indata!$B$24),Ekonomi!$B$83,"") ->  | BB110: =IF(BB100<=(Kalkylvärden!$B$6+Indata!$B$24),Ekonomi!$B$83,"") ->  | BC110: =IF(BC100<=(Kalkylvärden!$B$6+Indata!$B$24),Ekonomi!$B$83,"") ->  | BD110: =IF(BD100<=(Kalkylvärden!$B$6+Indata!$B$24),Ekonomi!$B$83,"") ->  | BE110: =IF(BE100<=(Kalkylvärden!$B$6+Indata!$B$24),Ekonomi!$B$83,"") ->  | BF110: =IF(BF100<=(Kalkylvärden!$B$6+Indata!$B$24),Ekonomi!$B$83,"") ->  | BG110: =IF(BG100<=(Kalkylvärden!$B$6+Indata!$B$24),Ekonomi!$B$83,"") ->  | BH110: =IF(BH100<=(Kalkylvärden!$B$6+Indata!$B$24),Ekonomi!$B$83,"") ->  | BI110: =IF(BI100<=(Kalkylvärden!$B$6+Indata!$B$24),Ekonomi!$B$83,"") ->  | BJ110: =IF(BJ100<=(Kalkylvärden!$B$6+Indata!$B$24),Ekonomi!$B$83,"") ->  | BK110: =IF(BK100<=(Kalkylvärden!$B$6+Indata!$B$24),Ekonomi!$B$83,"") ->  | BL110: =IF(BL100<=(Kalkylvärden!$B$6+Indata!$B$24),Ekonomi!$B$83,"") ->  | BM110: =IF(BM100<=(Kalkylvärden!$B$6+Indata!$B$24),Ekonomi!$B$83,"") ->  | BN110: =IF(BN100<=(Kalkylvärden!$B$6+Indata!$B$24),Ekonomi!$B$83,"") ->  | BO110: =IF(BO100<=(Kalkylvärden!$B$6+Indata!$B$24),Ekonomi!$B$83,"") ->  | BP110: =IF(BP100<=(Kalkylvärden!$B$6+Indata!$B$24),Ekonomi!$B$83,"") ->  | BQ110: =IF(BQ100<=(Kalkylvärden!$B$6+Indata!$B$24),Ekonomi!$B$83,"") ->  | BR110: =IF(BR100<=(Kalkylvärden!$B$6+Indata!$B$24),Ekonomi!$B$83,"") ->  | BS110: =IF(BS100<=(Kalkylvärden!$B$6+Indata!$B$24),Ekonomi!$B$83,"") -> 
A111: Nuvärde Tidskostnader, personer Pb/Lb (mkr/år) | B111: =IF(B100<=(Kalkylvärden!$B$6+Indata!$B$24),B109*B47,"") -> 0 | C111: =IF(C100<=(Kalkylvärden!$B$6+Indata!$B$24),C109*C47,"") -> 0 | D111: =IF(D100<=(Kalkylvärden!$B$6+Indata!$B$24),D109*D47,"") -> 0 | E111: =IF(E100<=(Kalkylvärden!$B$6+Indata!$B$24),E109*E47,"") -> 0 | F111: =IF(F100<=(Kalkylvärden!$B$6+Indata!$B$24),F109*F47,"") -> 0 | G111: =IF(G100<=(Kalkylvärden!$B$6+Indata!$B$24),G109*G47,"") -> 0 | H111: =IF(H100<=(Kalkylvärden!$B$6+Indata!$B$24),H109*H47,"") -> 0 | I111: =IF(I100<=(Kalkylvärden!$B$6+Indata!$B$24),I109*I47,"") -> 0 | J111: =IF(J100<=(Kalkylvärden!$B$6+Indata!$B$24),J109*J47,"") -> 0 | K111: =IF(K100<=(Kalkylvärden!$B$6+Indata!$B$24),K109*K47,"") -> 0 | L111: =IF(L100<=(Kalkylvärden!$B$6+Indata!$B$24),L109*L47,"") -> 0 | M111: =IF(M100<=(Kalkylvärden!$B$6+Indata!$B$24),M109*M47,"") -> 0 | N111: =IF(N100<=(Kalkylvärden!$B$6+Indata!$B$24),N109*N47,"") -> 0 | O111: =IF(O100<=(Kalkylvärden!$B$6+Indata!$B$24),O109*O47,"") -> 0 | P111: =IF(P100<=(Kalkylvärden!$B$6+Indata!$B$24),P109*P47,"") -> 0 | Q111: =IF(Q100<=(Kalkylvärden!$B$6+Indata!$B$24),Q109*Q47,"") -> 0 | R111: =IF(R100<=(Kalkylvärden!$B$6+Indata!$B$24),R109*R47,"") -> 0 | S111: =IF(S100<=(Kalkylvärden!$B$6+Indata!$B$24),S109*S47,"") -> 0 | T111: =IF(T100<=(Kalkylvärden!$B$6+Indata!$B$24),T109*T47,"") -> 0 | U111: =IF(U100<=(Kalkylvärden!$B$6+Indata!$B$24),U109*U47,"") -> 0 | V111: =IF(V100<=(Kalkylvärden!$B$6+Indata!$B$24),V109*V47,"") -> 0 | W111: =IF(W100<=(Kalkylvärden!$B$6+Indata!$B$24),W109*W47,"") -> 0 | X111: =IF(X100<=(Kalkylvärden!$B$6+Indata!$B$24),X109*X47,"") -> 0 | Y111: =IF(Y100<=(Kalkylvärden!$B$6+Indata!$B$24),Y109*Y47,"") -> 0 | Z111: =IF(Z100<=(Kalkylvärden!$B$6+Indata!$B$24),Z109*Z47,"") -> 0 | AA111: =IF(AA100<=(Kalkylvärden!$B$6+Indata!$B$24),AA109*AA47,"") -> 0 | AB111: =IF(AB100<=(Kalkylvärden!$B$6+Indata!$B$24),AB109*AB47,"") -> 0 | AC111: =IF(AC100<=(Kalkylvärden!$B$6+Indata!$B$24),AC109*AC47,"") -> 0 | AD111: =IF(AD100<=(Kalkylvärden!$B$6+Indata!$B$24),AD109*AD47,"") -> 0 | AE111: =IF(AE100<=(Kalkylvärden!$B$6+Indata!$B$24),AE109*AE47,"") -> 0 | AF111: =IF(AF100<=(Kalkylvärden!$B$6+Indata!$B$24),AF109*AF47,"") -> 0 | AG111: =IF(AG100<=(Kalkylvärden!$B$6+Indata!$B$24),AG109*AG47,"") -> 0 | AH111: =IF(AH100<=(Kalkylvärden!$B$6+Indata!$B$24),AH109*AH47,"") -> 0 | AI111: =IF(AI100<=(Kalkylvärden!$B$6+Indata!$B$24),AI109*AI47,"") -> 0 | AJ111: =IF(AJ100<=(Kalkylvärden!$B$6+Indata!$B$24),AJ109*AJ47,"") -> 0 | AK111: =IF(AK100<=(Kalkylvärden!$B$6+Indata!$B$24),AK109*AK47,"") -> 0 | AL111: =IF(AL100<=(Kalkylvärden!$B$6+Indata!$B$24),AL109*AL47,"") -> 0 | AM111: =IF(AM100<=(Kalkylvärden!$B$6+Indata!$B$24),AM109*AM47,"") -> 0 | AN111: =IF(AN100<=(Kalkylvärden!$B$6+Indata!$B$24),AN109*AN47,"") -> 0 | AO111: =IF(AO100<=(Kalkylvärden!$B$6+Indata!$B$24),AO109*AO47,"") -> 0 | AP111: =IF(AP100<=(Kalkylvärden!$B$6+Indata!$B$24),AP109*AP47,"") -> 0 | AQ111: =IF(AQ100<=(Kalkylvärden!$B$6+Indata!$B$24),AQ109*AQ47,"") ->  | AR111: =IF(AR100<=(Kalkylvärden!$B$6+Indata!$B$24),AR109*AR47,"") ->  | AS111: =IF(AS100<=(Kalkylvärden!$B$6+Indata!$B$24),AS109*AS47,"") ->  | AT111: =IF(AT100<=(Kalkylvärden!$B$6+Indata!$B$24),AT109*AT47,"") ->  | AU111: =IF(AU100<=(Kalkylvärden!$B$6+Indata!$B$24),AU109*AU47,"") ->  | AV111: =IF(AV100<=(Kalkylvärden!$B$6+Indata!$B$24),AV109*AV47,"") ->  | AW111: =IF(AW100<=(Kalkylvärden!$B$6+Indata!$B$24),AW109*AW47,"") ->  | AX111: =IF(AX100<=(Kalkylvärden!$B$6+Indata!$B$24),AX109*AX47,"") ->  | AY111: =IF(AY100<=(Kalkylvärden!$B$6+Indata!$B$24),AY109*AY47,"") ->  | AZ111: =IF(AZ100<=(Kalkylvärden!$B$6+Indata!$B$24),AZ109*AZ47,"") ->  | BA111: =IF(BA100<=(Kalkylvärden!$B$6+Indata!$B$24),BA109*BA47,"") ->  | BB111: =IF(BB100<=(Kalkylvärden!$B$6+Indata!$B$24),BB109*BB47,"") ->  | BC111: =IF(BC100<=(Kalkylvärden!$B$6+Indata!$B$24),BC109*BC47,"") ->  | BD111: =IF(BD100<=(Kalkylvärden!$B$6+Indata!$B$24),BD109*BD47,"") ->  | BE111: =IF(BE100<=(Kalkylvärden!$B$6+Indata!$B$24),BE109*BE47,"") ->  | BF111: =IF(BF100<=(Kalkylvärden!$B$6+Indata!$B$24),BF109*BF47,"") ->  | BG111: =IF(BG100<=(Kalkylvärden!$B$6+Indata!$B$24),BG109*BG47,"") ->  | BH111: =IF(BH100<=(Kalkylvärden!$B$6+Indata!$B$24),BH109*BH47,"") ->  | BI111: =IF(BI100<=(Kalkylvärden!$B$6+Indata!$B$24),BI109*BI47,"") ->  | BJ111: =IF(BJ100<=(Kalkylvärden!$B$6+Indata!$B$24),BJ109*BJ47,"") ->  | BK111: =IF(BK100<=(Kalkylvärden!$B$6+Indata!$B$24),BK109*BK47,"") ->  | BL111: =IF(BL100<=(Kalkylvärden!$B$6+Indata!$B$24),BL109*BL47,"") ->  | BM111: =IF(BM100<=(Kalkylvärden!$B$6+Indata!$B$24),BM109*BM47,"") ->  | BN111: =IF(BN100<=(Kalkylvärden!$B$6+Indata!$B$24),BN109*BN47,"") ->  | BO111: =IF(BO100<=(Kalkylvärden!$B$6+Indata!$B$24),BO109*BO47,"") ->  | BP111: =IF(BP100<=(Kalkylvärden!$B$6+Indata!$B$24),BP109*BP47,"") ->  | BQ111: =IF(BQ100<=(Kalkylvärden!$B$6+Indata!$B$24),BQ109*BQ47,"") ->  | BR111: =IF(BR100<=(Kalkylvärden!$B$6+Indata!$B$24),BR109*BR47,"") ->  | BS111: =IF(BS100<=(Kalkylvärden!$B$6+Indata!$B$24),BS109*BS47,"") -> 
A112: Nuvärde Tidskostnader, personer G/C (mkr/år) | B112: =IF(B100<=(Kalkylvärden!$B$6+Indata!$B$24),B110*B48,"") -> 0 | C112: =IF(C100<=(Kalkylvärden!$B$6+Indata!$B$24),C110*C48,"") -> 0 | D112: =IF(D100<=(Kalkylvärden!$B$6+Indata!$B$24),D110*D48,"") -> 0 | E112: =IF(E100<=(Kalkylvärden!$B$6+Indata!$B$24),E110*E48,"") -> 0 | F112: =IF(F100<=(Kalkylvärden!$B$6+Indata!$B$24),F110*F48,"") -> 0 | G112: =IF(G100<=(Kalkylvärden!$B$6+Indata!$B$24),G110*G48,"") -> 0 | H112: =IF(H100<=(Kalkylvärden!$B$6+Indata!$B$24),H110*H48,"") -> 0 | I112: =IF(I100<=(Kalkylvärden!$B$6+Indata!$B$24),I110*I48,"") -> 0 | J112: =IF(J100<=(Kalkylvärden!$B$6+Indata!$B$24),J110*J48,"") -> 0 | K112: =IF(K100<=(Kalkylvärden!$B$6+Indata!$B$24),K110*K48,"") -> 0 | L112: =IF(L100<=(Kalkylvärden!$B$6+Indata!$B$24),L110*L48,"") -> 0 | M112: =IF(M100<=(Kalkylvärden!$B$6+Indata!$B$24),M110*M48,"") -> 0 | N112: =IF(N100<=(Kalkylvärden!$B$6+Indata!$B$24),N110*N48,"") -> 0 | O112: =IF(O100<=(Kalkylvärden!$B$6+Indata!$B$24),O110*O48,"") -> 0 | P112: =IF(P100<=(Kalkylvärden!$B$6+Indata!$B$24),P110*P48,"") -> 0 | Q112: =IF(Q100<=(Kalkylvärden!$B$6+Indata!$B$24),Q110*Q48,"") -> 0 | R112: =IF(R100<=(Kalkylvärden!$B$6+Indata!$B$24),R110*R48,"") -> 0 | S112: =IF(S100<=(Kalkylvärden!$B$6+Indata!$B$24),S110*S48,"") -> 0 | T112: =IF(T100<=(Kalkylvärden!$B$6+Indata!$B$24),T110*T48,"") -> 0 | U112: =IF(U100<=(Kalkylvärden!$B$6+Indata!$B$24),U110*U48,"") -> 0 | V112: =IF(V100<=(Kalkylvärden!$B$6+Indata!$B$24),V110*V48,"") -> 0 | W112: =IF(W100<=(Kalkylvärden!$B$6+Indata!$B$24),W110*W48,"") -> 0 | X112: =IF(X100<=(Kalkylvärden!$B$6+Indata!$B$24),X110*X48,"") -> 0 | Y112: =IF(Y100<=(Kalkylvärden!$B$6+Indata!$B$24),Y110*Y48,"") -> 0 | Z112: =IF(Z100<=(Kalkylvärden!$B$6+Indata!$B$24),Z110*Z48,"") -> 0 | AA112: =IF(AA100<=(Kalkylvärden!$B$6+Indata!$B$24),AA110*AA48,"") -> 0 | AB112: =IF(AB100<=(Kalkylvärden!$B$6+Indata!$B$24),AB110*AB48,"") -> 0 | AC112: =IF(AC100<=(Kalkylvärden!$B$6+Indata!$B$24),AC110*AC48,"") -> 0 | AD112: =IF(AD100<=(Kalkylvärden!$B$6+Indata!$B$24),AD110*AD48,"") -> 0 | AE112: =IF(AE100<=(Kalkylvärden!$B$6+Indata!$B$24),AE110*AE48,"") -> 0 | AF112: =IF(AF100<=(Kalkylvärden!$B$6+Indata!$B$24),AF110*AF48,"") -> 0 | AG112: =IF(AG100<=(Kalkylvärden!$B$6+Indata!$B$24),AG110*AG48,"") -> 0 | AH112: =IF(AH100<=(Kalkylvärden!$B$6+Indata!$B$24),AH110*AH48,"") -> 0 | AI112: =IF(AI100<=(Kalkylvärden!$B$6+Indata!$B$24),AI110*AI48,"") -> 0 | AJ112: =IF(AJ100<=(Kalkylvärden!$B$6+Indata!$B$24),AJ110*AJ48,"") -> 0 | AK112: =IF(AK100<=(Kalkylvärden!$B$6+Indata!$B$24),AK110*AK48,"") -> 0 | AL112: =IF(AL100<=(Kalkylvärden!$B$6+Indata!$B$24),AL110*AL48,"") -> 0 | AM112: =IF(AM100<=(Kalkylvärden!$B$6+Indata!$B$24),AM110*AM48,"") -> 0 | AN112: =IF(AN100<=(Kalkylvärden!$B$6+Indata!$B$24),AN110*AN48,"") -> 0 | AO112: =IF(AO100<=(Kalkylvärden!$B$6+Indata!$B$24),AO110*AO48,"") -> 0 | AP112: =IF(AP100<=(Kalkylvärden!$B$6+Indata!$B$24),AP110*AP48,"") -> 0 | AQ112: =IF(AQ100<=(Kalkylvärden!$B$6+Indata!$B$24),AQ110*AQ48,"") ->  | AR112: =IF(AR100<=(Kalkylvärden!$B$6+Indata!$B$24),AR110*AR48,"") ->  | AS112: =IF(AS100<=(Kalkylvärden!$B$6+Indata!$B$24),AS110*AS48,"") ->  | AT112: =IF(AT100<=(Kalkylvärden!$B$6+Indata!$B$24),AT110*AT48,"") ->  | AU112: =IF(AU100<=(Kalkylvärden!$B$6+Indata!$B$24),AU110*AU48,"") ->  | AV112: =IF(AV100<=(Kalkylvärden!$B$6+Indata!$B$24),AV110*AV48,"") ->  | AW112: =IF(AW100<=(Kalkylvärden!$B$6+Indata!$B$24),AW110*AW48,"") ->  | AX112: =IF(AX100<=(Kalkylvärden!$B$6+Indata!$B$24),AX110*AX48,"") ->  | AY112: =IF(AY100<=(Kalkylvärden!$B$6+Indata!$B$24),AY110*AY48,"") ->  | AZ112: =IF(AZ100<=(Kalkylvärden!$B$6+Indata!$B$24),AZ110*AZ48,"") ->  | BA112: =IF(BA100<=(Kalkylvärden!$B$6+Indata!$B$24),BA110*BA48,"") ->  | BB112: =IF(BB100<=(Kalkylvärden!$B$6+Indata!$B$24),BB110*BB48,"") ->  | BC112: =IF(BC100<=(Kalkylvärden!$B$6+Indata!$B$24),BC110*BC48,"") ->  | BD112: =IF(BD100<=(Kalkylvärden!$B$6+Indata!$B$24),BD110*BD48,"") ->  | BE112: =IF(BE100<=(Kalkylvärden!$B$6+Indata!$B$24),BE110*BE48,"") ->  | BF112: =IF(BF100<=(Kalkylvärden!$B$6+Indata!$B$24),BF110*BF48,"") ->  | BG112: =IF(BG100<=(Kalkylvärden!$B$6+Indata!$B$24),BG110*BG48,"") ->  | BH112: =IF(BH100<=(Kalkylvärden!$B$6+Indata!$B$24),BH110*BH48,"") ->  | BI112: =IF(BI100<=(Kalkylvärden!$B$6+Indata!$B$24),BI110*BI48,"") ->  | BJ112: =IF(BJ100<=(Kalkylvärden!$B$6+Indata!$B$24),BJ110*BJ48,"") ->  | BK112: =IF(BK100<=(Kalkylvärden!$B$6+Indata!$B$24),BK110*BK48,"") ->  | BL112: =IF(BL100<=(Kalkylvärden!$B$6+Indata!$B$24),BL110*BL48,"") ->  | BM112: =IF(BM100<=(Kalkylvärden!$B$6+Indata!$B$24),BM110*BM48,"") ->  | BN112: =IF(BN100<=(Kalkylvärden!$B$6+Indata!$B$24),BN110*BN48,"") ->  | BO112: =IF(BO100<=(Kalkylvärden!$B$6+Indata!$B$24),BO110*BO48,"") ->  | BP112: =IF(BP100<=(Kalkylvärden!$B$6+Indata!$B$24),BP110*BP48,"") ->  | BQ112: =IF(BQ100<=(Kalkylvärden!$B$6+Indata!$B$24),BQ110*BQ48,"") ->  | BR112: =IF(BR100<=(Kalkylvärden!$B$6+Indata!$B$24),BR110*BR48,"") ->  | BS112: =IF(BS100<=(Kalkylvärden!$B$6+Indata!$B$24),BS110*BS48,"") -> 
A113: Summa nuvärde Tidskostnader, personer (mkr) | B113: =SUM(B111:BS112) -> 0
A116: Tidskostnader för gods
A117: År | B117: =Kalkylvärden!B6 -> 2025 | C117: =B117+1 -> 2026 | D117: 2027 | E117: 2028 | F117: 2029 | G117: 2030 | H117: 2031 | I117: 2032 | J117: 2033 | K117: 2034 | L117: 2035 | M117: 2036 | N117: 2037 | O117: 2038 | P117: 2039 | Q117: 2040 | R117: 2041 | S117: 2042 | T117: 2043 | U117: 2044 | V117: 2045 | W117: 2046 | X117: 2047 | Y117: 2048 | Z117: 2049 | AA117: 2050 | AB117: 2051 | AC117: 2052 | AD117: 2053 | AE117: 2054 | AF117: 2055 | AG117: 2056 | AH117: 2057 | AI117: 2058 | AJ117: 2059 | AK117: 2060 | AL117: 2061 | AM117: 2062 | AN117: 2063 | AO117: 2064 | AP117: 2065 | AQ117: 2066 | AR117: 2067 | AS117: 2068 | AT117: 2069 | AU117: 2070 | AV117: 2071 | AW117: 2072 | AX117: 2073 | AY117: 2074 | AZ117: 2075 | BA117: 2076 | BB117: 2077 | BC117: 2078 | BD117: 2079 | BE117: 2080 | BF117: 2081 | BG117: 2082 | BH117: 2083 | BI117: 2084 | BJ117: 2085 | BK117: 2086 | BL117: 2087 | BM117: 2088 | BN117: 2089 | BO117: =BN117+1 -> 2090 | BP117: 2091 | BQ117: 2092 | BR117: 2093 | BS117: 2094
A118: I Korsning
A119: Tidskostnader, gods (mkr/år) | B119: =IF(B117<=(Kalkylvärden!$B$6+Indata!$B$24),(Ekonomi!$B$100-Ekonomi!$B$99),"") ->  | C119: =IF(C117<=(Kalkylvärden!$B$6+Indata!$B$24),(Ekonomi!$B$100-Ekonomi!$B$99),"") ->  | D119: =IF(D117<=(Kalkylvärden!$B$6+Indata!$B$24),(Ekonomi!$B$100-Ekonomi!$B$99),"") ->  | E119: =IF(E117<=(Kalkylvärden!$B$6+Indata!$B$24),(Ekonomi!$B$100-Ekonomi!$B$99),"") ->  | F119: =IF(F117<=(Kalkylvärden!$B$6+Indata!$B$24),(Ekonomi!$B$100-Ekonomi!$B$99),"") ->  | G119: =IF(G117<=(Kalkylvärden!$B$6+Indata!$B$24),(Ekonomi!$B$100-Ekonomi!$B$99),"") ->  | H119: =IF(H117<=(Kalkylvärden!$B$6+Indata!$B$24),(Ekonomi!$B$100-Ekonomi!$B$99),"") ->  | I119: =IF(I117<=(Kalkylvärden!$B$6+Indata!$B$24),(Ekonomi!$B$100-Ekonomi!$B$99),"") ->  | J119: =IF(J117<=(Kalkylvärden!$B$6+Indata!$B$24),(Ekonomi!$B$100-Ekonomi!$B$99),"") ->  | K119: =IF(K117<=(Kalkylvärden!$B$6+Indata!$B$24),(Ekonomi!$B$100-Ekonomi!$B$99),"") ->  | L119: =IF(L117<=(Kalkylvärden!$B$6+Indata!$B$24),(Ekonomi!$B$100-Ekonomi!$B$99),"") ->  | M119: =IF(M117<=(Kalkylvärden!$B$6+Indata!$B$24),(Ekonomi!$B$100-Ekonomi!$B$99),"") ->  | N119: =IF(N117<=(Kalkylvärden!$B$6+Indata!$B$24),(Ekonomi!$B$100-Ekonomi!$B$99),"") ->  | O119: =IF(O117<=(Kalkylvärden!$B$6+Indata!$B$24),(Ekonomi!$B$100-Ekonomi!$B$99),"") ->  | P119: =IF(P117<=(Kalkylvärden!$B$6+Indata!$B$24),(Ekonomi!$B$100-Ekonomi!$B$99),"") ->  | Q119: =IF(Q117<=(Kalkylvärden!$B$6+Indata!$B$24),(Ekonomi!$B$100-Ekonomi!$B$99),"") ->  | R119: =IF(R117<=(Kalkylvärden!$B$6+Indata!$B$24),(Ekonomi!$B$100-Ekonomi!$B$99),"") ->  | S119: =IF(S117<=(Kalkylvärden!$B$6+Indata!$B$24),(Ekonomi!$B$100-Ekonomi!$B$99),"") ->  | T119: =IF(T117<=(Kalkylvärden!$B$6+Indata!$B$24),(Ekonomi!$B$100-Ekonomi!$B$99),"") ->  | U119: =IF(U117<=(Kalkylvärden!$B$6+Indata!$B$24),(Ekonomi!$B$100-Ekonomi!$B$99),"") ->  | V119: =IF(V117<=(Kalkylvärden!$B$6+Indata!$B$24),(Ekonomi!$B$100-Ekonomi!$B$99),"") ->  | W119: =IF(W117<=(Kalkylvärden!$B$6+Indata!$B$24),(Ekonomi!$B$100-Ekonomi!$B$99),"") ->  | X119: =IF(X117<=(Kalkylvärden!$B$6+Indata!$B$24),(Ekonomi!$B$100-Ekonomi!$B$99),"") ->  | Y119: =IF(Y117<=(Kalkylvärden!$B$6+Indata!$B$24),(Ekonomi!$B$100-Ekonomi!$B$99),"") ->  | Z119: =IF(Z117<=(Kalkylvärden!$B$6+Indata!$B$24),(Ekonomi!$B$100-Ekonomi!$B$99),"") ->  | AA119: =IF(AA117<=(Kalkylvärden!$B$6+Indata!$B$24),(Ekonomi!$B$100-Ekonomi!$B$99),"") ->  | AB119: =IF(AB117<=(Kalkylvärden!$B$6+Indata!$B$24),(Ekonomi!$B$100-Ekonomi!$B$99),"") ->  | AC119: =IF(AC117<=(Kalkylvärden!$B$6+Indata!$B$24),(Ekonomi!$B$100-Ekonomi!$B$99),"") ->  | AD119: =IF(AD117<=(Kalkylvärden!$B$6+Indata!$B$24),(Ekonomi!$B$100-Ekonomi!$B$99),"") ->  | AE119: =IF(AE117<=(Kalkylvärden!$B$6+Indata!$B$24),(Ekonomi!$B$100-Ekonomi!$B$99),"") ->  | AF119: =IF(AF117<=(Kalkylvärden!$B$6+Indata!$B$24),(Ekonomi!$B$100-Ekonomi!$B$99),"") ->  | AG119: =IF(AG117<=(Kalkylvärden!$B$6+Indata!$B$24),(Ekonomi!$B$100-Ekonomi!$B$99),"") ->  | AH119: =IF(AH117<=(Kalkylvärden!$B$6+Indata!$B$24),(Ekonomi!$B$100-Ekonomi!$B$99),"") ->  | AI119: =IF(AI117<=(Kalkylvärden!$B$6+Indata!$B$24),(Ekonomi!$B$100-Ekonomi!$B$99),"") ->  | AJ119: =IF(AJ117<=(Kalkylvärden!$B$6+Indata!$B$24),(Ekonomi!$B$100-Ekonomi!$B$99),"") ->  | AK119: =IF(AK117<=(Kalkylvärden!$B$6+Indata!$B$24),(Ekonomi!$B$100-Ekonomi!$B$99),"") ->  | AL119: =IF(AL117<=(Kalkylvärden!$B$6+Indata!$B$24),(Ekonomi!$B$100-Ekonomi!$B$99),"") ->  | AM119: =IF(AM117<=(Kalkylvärden!$B$6+Indata!$B$24),(Ekonomi!$B$100-Ekonomi!$B$99),"") ->  | AN119: =IF(AN117<=(Kalkylvärden!$B$6+Indata!$B$24),(Ekonomi!$B$100-Ekonomi!$B$99),"") ->  | AO119: =IF(AO117<=(Kalkylvärden!$B$6+Indata!$B$24),(Ekonomi!$B$100-Ekonomi!$B$99),"") ->  | AP119: =IF(AP117<=(Kalkylvärden!$B$6+Indata!$B$24),(Ekonomi!$B$100-Ekonomi!$B$99),"") ->  | AQ119: =IF(AQ117<=(Kalkylvärden!$B$6+Indata!$B$24),(Ekonomi!$B$100-Ekonomi!$B$99),"") ->  | AR119: =IF(AR117<=(Kalkylvärden!$B$6+Indata!$B$24),(Ekonomi!$B$100-Ekonomi!$B$99),"") ->  | AS119: =IF(AS117<=(Kalkylvärden!$B$6+Indata!$B$24),(Ekonomi!$B$100-Ekonomi!$B$99),"") ->  | AT119: =IF(AT117<=(Kalkylvärden!$B$6+Indata!$B$24),(Ekonomi!$B$100-Ekonomi!$B$99),"") ->  | AU119: =IF(AU117<=(Kalkylvärden!$B$6+Indata!$B$24),(Ekonomi!$B$100-Ekonomi!$B$99),"") ->  | AV119: =IF(AV117<=(Kalkylvärden!$B$6+Indata!$B$24),(Ekonomi!$B$100-Ekonomi!$B$99),"") ->  | AW119: =IF(AW117<=(Kalkylvärden!$B$6+Indata!$B$24),(Ekonomi!$B$100-Ekonomi!$B$99),"") ->  | AX119: =IF(AX117<=(Kalkylvärden!$B$6+Indata!$B$24),(Ekonomi!$B$100-Ekonomi!$B$99),"") ->  | AY119: =IF(AY117<=(Kalkylvärden!$B$6+Indata!$B$24),(Ekonomi!$B$100-Ekonomi!$B$99),"") ->  | AZ119: =IF(AZ117<=(Kalkylvärden!$B$6+Indata!$B$24),(Ekonomi!$B$100-Ekonomi!$B$99),"") ->  | BA119: =IF(BA117<=(Kalkylvärden!$B$6+Indata!$B$24),(Ekonomi!$B$100-Ekonomi!$B$99),"") ->  | BB119: =IF(BB117<=(Kalkylvärden!$B$6+Indata!$B$24),(Ekonomi!$B$100-Ekonomi!$B$99),"") ->  | BC119: =IF(BC117<=(Kalkylvärden!$B$6+Indata!$B$24),(Ekonomi!$B$100-Ekonomi!$B$99),"") ->  | BD119: =IF(BD117<=(Kalkylvärden!$B$6+Indata!$B$24),(Ekonomi!$B$100-Ekonomi!$B$99),"") ->  | BE119: =IF(BE117<=(Kalkylvärden!$B$6+Indata!$B$24),(Ekonomi!$B$100-Ekonomi!$B$99),"") ->  | BF119: =IF(BF117<=(Kalkylvärden!$B$6+Indata!$B$24),(Ekonomi!$B$100-Ekonomi!$B$99),"") ->  | BG119: =IF(BG117<=(Kalkylvärden!$B$6+Indata!$B$24),(Ekonomi!$B$100-Ekonomi!$B$99),"") ->  | BH119: =IF(BH117<=(Kalkylvärden!$B$6+Indata!$B$24),(Ekonomi!$B$100-Ekonomi!$B$99),"") ->  | BI119: =IF(BI117<=(Kalkylvärden!$B$6+Indata!$B$24),(Ekonomi!$B$100-Ekonomi!$B$99),"") ->  | BJ119: =IF(BJ117<=(Kalkylvärden!$B$6+Indata!$B$24),(Ekonomi!$B$100-Ekonomi!$B$99),"") ->  | BK119: =IF(BK117<=(Kalkylvärden!$B$6+Indata!$B$24),(Ekonomi!$B$100-Ekonomi!$B$99),"") ->  | BL119: =IF(BL117<=(Kalkylvärden!$B$6+Indata!$B$24),(Ekonomi!$B$100-Ekonomi!$B$99),"") ->  | BM119: =IF(BM117<=(Kalkylvärden!$B$6+Indata!$B$24),(Ekonomi!$B$100-Ekonomi!$B$99),"") ->  | BN119: =IF(BN117<=(Kalkylvärden!$B$6+Indata!$B$24),(Ekonomi!$B$100-Ekonomi!$B$99),"") ->  | BO119: =IF(BO117<=(Kalkylvärden!$B$6+Indata!$B$24),(Ekonomi!$B$100-Ekonomi!$B$99),"") ->  | BP119: =IF(BP117<=(Kalkylvärden!$B$6+Indata!$B$24),(Ekonomi!$B$100-Ekonomi!$B$99),"") ->  | BQ119: =IF(BQ117<=(Kalkylvärden!$B$6+Indata!$B$24),(Ekonomi!$B$100-Ekonomi!$B$99),"") ->  | BR119: =IF(BR117<=(Kalkylvärden!$B$6+Indata!$B$24),(Ekonomi!$B$100-Ekonomi!$B$99),"") ->  | BS119: =IF(BS117<=(Kalkylvärden!$B$6+Indata!$B$24),(Ekonomi!$B$100-Ekonomi!$B$99),"") -> 
A120: Nuvärde Tidskostnader, gods (mkr/år) | B120: =IF(B117<=(Kalkylvärden!$B$6+Indata!$B$24),B119*B41,"") ->  | C120: =IF(C117<=(Kalkylvärden!$B$6+Indata!$B$24),C119*C41,"") ->  | D120: =IF(D117<=(Kalkylvärden!$B$6+Indata!$B$24),D119*D41,"") ->  | E120: =IF(E117<=(Kalkylvärden!$B$6+Indata!$B$24),E119*E41,"") ->  | F120: =IF(F117<=(Kalkylvärden!$B$6+Indata!$B$24),F119*F41,"") ->  | G120: =IF(G117<=(Kalkylvärden!$B$6+Indata!$B$24),G119*G41,"") ->  | H120: =IF(H117<=(Kalkylvärden!$B$6+Indata!$B$24),H119*H41,"") ->  | I120: =IF(I117<=(Kalkylvärden!$B$6+Indata!$B$24),I119*I41,"") ->  | J120: =IF(J117<=(Kalkylvärden!$B$6+Indata!$B$24),J119*J41,"") ->  | K120: =IF(K117<=(Kalkylvärden!$B$6+Indata!$B$24),K119*K41,"") ->  | L120: =IF(L117<=(Kalkylvärden!$B$6+Indata!$B$24),L119*L41,"") ->  | M120: =IF(M117<=(Kalkylvärden!$B$6+Indata!$B$24),M119*M41,"") ->  | N120: =IF(N117<=(Kalkylvärden!$B$6+Indata!$B$24),N119*N41,"") ->  | O120: =IF(O117<=(Kalkylvärden!$B$6+Indata!$B$24),O119*O41,"") ->  | P120: =IF(P117<=(Kalkylvärden!$B$6+Indata!$B$24),P119*P41,"") ->  | Q120: =IF(Q117<=(Kalkylvärden!$B$6+Indata!$B$24),Q119*Q41,"") ->  | R120: =IF(R117<=(Kalkylvärden!$B$6+Indata!$B$24),R119*R41,"") ->  | S120: =IF(S117<=(Kalkylvärden!$B$6+Indata!$B$24),S119*S41,"") ->  | T120: =IF(T117<=(Kalkylvärden!$B$6+Indata!$B$24),T119*T41,"") ->  | U120: =IF(U117<=(Kalkylvärden!$B$6+Indata!$B$24),U119*U41,"") ->  | V120: =IF(V117<=(Kalkylvärden!$B$6+Indata!$B$24),V119*V41,"") ->  | W120: =IF(W117<=(Kalkylvärden!$B$6+Indata!$B$24),W119*W41,"") ->  | X120: =IF(X117<=(Kalkylvärden!$B$6+Indata!$B$24),X119*X41,"") ->  | Y120: =IF(Y117<=(Kalkylvärden!$B$6+Indata!$B$24),Y119*Y41,"") ->  | Z120: =IF(Z117<=(Kalkylvärden!$B$6+Indata!$B$24),Z119*Z41,"") ->  | AA120: =IF(AA117<=(Kalkylvärden!$B$6+Indata!$B$24),AA119*AA41,"") ->  | AB120: =IF(AB117<=(Kalkylvärden!$B$6+Indata!$B$24),AB119*AB41,"") ->  | AC120: =IF(AC117<=(Kalkylvärden!$B$6+Indata!$B$24),AC119*AC41,"") ->  | AD120: =IF(AD117<=(Kalkylvärden!$B$6+Indata!$B$24),AD119*AD41,"") ->  | AE120: =IF(AE117<=(Kalkylvärden!$B$6+Indata!$B$24),AE119*AE41,"") ->  | AF120: =IF(AF117<=(Kalkylvärden!$B$6+Indata!$B$24),AF119*AF41,"") ->  | AG120: =IF(AG117<=(Kalkylvärden!$B$6+Indata!$B$24),AG119*AG41,"") ->  | AH120: =IF(AH117<=(Kalkylvärden!$B$6+Indata!$B$24),AH119*AH41,"") ->  | AI120: =IF(AI117<=(Kalkylvärden!$B$6+Indata!$B$24),AI119*AI41,"") ->  | AJ120: =IF(AJ117<=(Kalkylvärden!$B$6+Indata!$B$24),AJ119*AJ41,"") ->  | AK120: =IF(AK117<=(Kalkylvärden!$B$6+Indata!$B$24),AK119*AK41,"") ->  | AL120: =IF(AL117<=(Kalkylvärden!$B$6+Indata!$B$24),AL119*AL41,"") ->  | AM120: =IF(AM117<=(Kalkylvärden!$B$6+Indata!$B$24),AM119*AM41,"") ->  | AN120: =IF(AN117<=(Kalkylvärden!$B$6+Indata!$B$24),AN119*AN41,"") ->  | AO120: =IF(AO117<=(Kalkylvärden!$B$6+Indata!$B$24),AO119*AO41,"") ->  | AP120: =IF(AP117<=(Kalkylvärden!$B$6+Indata!$B$24),AP119*AP41,"") ->  | AQ120: =IF(AQ117<=(Kalkylvärden!$B$6+Indata!$B$24),AQ119*AQ41,"") ->  | AR120: =IF(AR117<=(Kalkylvärden!$B$6+Indata!$B$24),AR119*AR41,"") ->  | AS120: =IF(AS117<=(Kalkylvärden!$B$6+Indata!$B$24),AS119*AS41,"") ->  | AT120: =IF(AT117<=(Kalkylvärden!$B$6+Indata!$B$24),AT119*AT41,"") ->  | AU120: =IF(AU117<=(Kalkylvärden!$B$6+Indata!$B$24),AU119*AU41,"") ->  | AV120: =IF(AV117<=(Kalkylvärden!$B$6+Indata!$B$24),AV119*AV41,"") ->  | AW120: =IF(AW117<=(Kalkylvärden!$B$6+Indata!$B$24),AW119*AW41,"") ->  | AX120: =IF(AX117<=(Kalkylvärden!$B$6+Indata!$B$24),AX119*AX41,"") ->  | AY120: =IF(AY117<=(Kalkylvärden!$B$6+Indata!$B$24),AY119*AY41,"") ->  | AZ120: =IF(AZ117<=(Kalkylvärden!$B$6+Indata!$B$24),AZ119*AZ41,"") ->  | BA120: =IF(BA117<=(Kalkylvärden!$B$6+Indata!$B$24),BA119*BA41,"") ->  | BB120: =IF(BB117<=(Kalkylvärden!$B$6+Indata!$B$24),BB119*BB41,"") ->  | BC120: =IF(BC117<=(Kalkylvärden!$B$6+Indata!$B$24),BC119*BC41,"") ->  | BD120: =IF(BD117<=(Kalkylvärden!$B$6+Indata!$B$24),BD119*BD41,"") ->  | BE120: =IF(BE117<=(Kalkylvärden!$B$6+Indata!$B$24),BE119*BE41,"") ->  | BF120: =IF(BF117<=(Kalkylvärden!$B$6+Indata!$B$24),BF119*BF41,"") ->  | BG120: =IF(BG117<=(Kalkylvärden!$B$6+Indata!$B$24),BG119*BG41,"") ->  | BH120: =IF(BH117<=(Kalkylvärden!$B$6+Indata!$B$24),BH119*BH41,"") ->  | BI120: =IF(BI117<=(Kalkylvärden!$B$6+Indata!$B$24),BI119*BI41,"") ->  | BJ120: =IF(BJ117<=(Kalkylvärden!$B$6+Indata!$B$24),BJ119*BJ41,"") ->  | BK120: =IF(BK117<=(Kalkylvärden!$B$6+Indata!$B$24),BK119*BK41,"") ->  | BL120: =IF(BL117<=(Kalkylvärden!$B$6+Indata!$B$24),BL119*BL41,"") ->  | BM120: =IF(BM117<=(Kalkylvärden!$B$6+Indata!$B$24),BM119*BM41,"") ->  | BN120: =IF(BN117<=(Kalkylvärden!$B$6+Indata!$B$24),BN119*BN41,"") ->  | BO120: =IF(BO117<=(Kalkylvärden!$B$6+Indata!$B$24),BO119*BO41,"") ->  | BP120: =IF(BP117<=(Kalkylvärden!$B$6+Indata!$B$24),BP119*BP41,"") ->  | BQ120: =IF(BQ117<=(Kalkylvärden!$B$6+Indata!$B$24),BQ119*BQ41,"") ->  | BR120: =IF(BR117<=(Kalkylvärden!$B$6+Indata!$B$24),BR119*BR41,"") ->  | BS120: =IF(BS117<=(Kalkylvärden!$B$6+Indata!$B$24),BS119*BS41,"") -> 
A121: Summa nuvärde Tidskostnader, gods (mkr) | B121: =SUM(B120:BS120) -> 
A123: Vid omledning
A124: Tidskostnader, gods (mkr/år) | B124: =IF(B117<=(Kalkylvärden!$B$6+Indata!$B$24),Ekonomi!$B$101,"") -> 0 | C124: =IF(C117<=(Kalkylvärden!$B$6+Indata!$B$24),Ekonomi!$B$101,"") -> 0 | D124: =IF(D117<=(Kalkylvärden!$B$6+Indata!$B$24),Ekonomi!$B$101,"") -> 0 | E124: =IF(E117<=(Kalkylvärden!$B$6+Indata!$B$24),Ekonomi!$B$101,"") -> 0 | F124: =IF(F117<=(Kalkylvärden!$B$6+Indata!$B$24),Ekonomi!$B$101,"") -> 0 | G124: =IF(G117<=(Kalkylvärden!$B$6+Indata!$B$24),Ekonomi!$B$101,"") -> 0 | H124: =IF(H117<=(Kalkylvärden!$B$6+Indata!$B$24),Ekonomi!$B$101,"") -> 0 | I124: =IF(I117<=(Kalkylvärden!$B$6+Indata!$B$24),Ekonomi!$B$101,"") -> 0 | J124: =IF(J117<=(Kalkylvärden!$B$6+Indata!$B$24),Ekonomi!$B$101,"") -> 0 | K124: =IF(K117<=(Kalkylvärden!$B$6+Indata!$B$24),Ekonomi!$B$101,"") -> 0 | L124: =IF(L117<=(Kalkylvärden!$B$6+Indata!$B$24),Ekonomi!$B$101,"") -> 0 | M124: =IF(M117<=(Kalkylvärden!$B$6+Indata!$B$24),Ekonomi!$B$101,"") -> 0 | N124: =IF(N117<=(Kalkylvärden!$B$6+Indata!$B$24),Ekonomi!$B$101,"") -> 0 | O124: =IF(O117<=(Kalkylvärden!$B$6+Indata!$B$24),Ekonomi!$B$101,"") -> 0 | P124: =IF(P117<=(Kalkylvärden!$B$6+Indata!$B$24),Ekonomi!$B$101,"") -> 0 | Q124: =IF(Q117<=(Kalkylvärden!$B$6+Indata!$B$24),Ekonomi!$B$101,"") -> 0 | R124: =IF(R117<=(Kalkylvärden!$B$6+Indata!$B$24),Ekonomi!$B$101,"") -> 0 | S124: =IF(S117<=(Kalkylvärden!$B$6+Indata!$B$24),Ekonomi!$B$101,"") -> 0 | T124: =IF(T117<=(Kalkylvärden!$B$6+Indata!$B$24),Ekonomi!$B$101,"") -> 0 | U124: =IF(U117<=(Kalkylvärden!$B$6+Indata!$B$24),Ekonomi!$B$101,"") -> 0 | V124: =IF(V117<=(Kalkylvärden!$B$6+Indata!$B$24),Ekonomi!$B$101,"") -> 0 | W124: =IF(W117<=(Kalkylvärden!$B$6+Indata!$B$24),Ekonomi!$B$101,"") -> 0 | X124: =IF(X117<=(Kalkylvärden!$B$6+Indata!$B$24),Ekonomi!$B$101,"") -> 0 | Y124: =IF(Y117<=(Kalkylvärden!$B$6+Indata!$B$24),Ekonomi!$B$101,"") -> 0 | Z124: =IF(Z117<=(Kalkylvärden!$B$6+Indata!$B$24),Ekonomi!$B$101,"") -> 0 | AA124: =IF(AA117<=(Kalkylvärden!$B$6+Indata!$B$24),Ekonomi!$B$101,"") -> 0 | AB124: =IF(AB117<=(Kalkylvärden!$B$6+Indata!$B$24),Ekonomi!$B$101,"") -> 0 | AC124: =IF(AC117<=(Kalkylvärden!$B$6+Indata!$B$24),Ekonomi!$B$101,"") -> 0 | AD124: =IF(AD117<=(Kalkylvärden!$B$6+Indata!$B$24),Ekonomi!$B$101,"") -> 0 | AE124: =IF(AE117<=(Kalkylvärden!$B$6+Indata!$B$24),Ekonomi!$B$101,"") -> 0 | AF124: =IF(AF117<=(Kalkylvärden!$B$6+Indata!$B$24),Ekonomi!$B$101,"") -> 0 | AG124: =IF(AG117<=(Kalkylvärden!$B$6+Indata!$B$24),Ekonomi!$B$101,"") -> 0 | AH124: =IF(AH117<=(Kalkylvärden!$B$6+Indata!$B$24),Ekonomi!$B$101,"") -> 0 | AI124: =IF(AI117<=(Kalkylvärden!$B$6+Indata!$B$24),Ekonomi!$B$101,"") -> 0 | AJ124: =IF(AJ117<=(Kalkylvärden!$B$6+Indata!$B$24),Ekonomi!$B$101,"") -> 0 | AK124: =IF(AK117<=(Kalkylvärden!$B$6+Indata!$B$24),Ekonomi!$B$101,"") -> 0 | AL124: =IF(AL117<=(Kalkylvärden!$B$6+Indata!$B$24),Ekonomi!$B$101,"") -> 0 | AM124: =IF(AM117<=(Kalkylvärden!$B$6+Indata!$B$24),Ekonomi!$B$101,"") -> 0 | AN124: =IF(AN117<=(Kalkylvärden!$B$6+Indata!$B$24),Ekonomi!$B$101,"") -> 0 | AO124: =IF(AO117<=(Kalkylvärden!$B$6+Indata!$B$24),Ekonomi!$B$101,"") -> 0 | AP124: =IF(AP117<=(Kalkylvärden!$B$6+Indata!$B$24),Ekonomi!$B$101,"") -> 0 | AQ124: =IF(AQ117<=(Kalkylvärden!$B$6+Indata!$B$24),Ekonomi!$B$101,"") ->  | AR124: =IF(AR117<=(Kalkylvärden!$B$6+Indata!$B$24),Ekonomi!$B$101,"") ->  | AS124: =IF(AS117<=(Kalkylvärden!$B$6+Indata!$B$24),Ekonomi!$B$101,"") ->  | AT124: =IF(AT117<=(Kalkylvärden!$B$6+Indata!$B$24),Ekonomi!$B$101,"") ->  | AU124: =IF(AU117<=(Kalkylvärden!$B$6+Indata!$B$24),Ekonomi!$B$101,"") ->  | AV124: =IF(AV117<=(Kalkylvärden!$B$6+Indata!$B$24),Ekonomi!$B$101,"") ->  | AW124: =IF(AW117<=(Kalkylvärden!$B$6+Indata!$B$24),Ekonomi!$B$101,"") ->  | AX124: =IF(AX117<=(Kalkylvärden!$B$6+Indata!$B$24),Ekonomi!$B$101,"") ->  | AY124: =IF(AY117<=(Kalkylvärden!$B$6+Indata!$B$24),Ekonomi!$B$101,"") ->  | AZ124: =IF(AZ117<=(Kalkylvärden!$B$6+Indata!$B$24),Ekonomi!$B$101,"") ->  | BA124: =IF(BA117<=(Kalkylvärden!$B$6+Indata!$B$24),Ekonomi!$B$101,"") ->  | BB124: =IF(BB117<=(Kalkylvärden!$B$6+Indata!$B$24),Ekonomi!$B$101,"") ->  | BC124: =IF(BC117<=(Kalkylvärden!$B$6+Indata!$B$24),Ekonomi!$B$101,"") ->  | BD124: =IF(BD117<=(Kalkylvärden!$B$6+Indata!$B$24),Ekonomi!$B$101,"") ->  | BE124: =IF(BE117<=(Kalkylvärden!$B$6+Indata!$B$24),Ekonomi!$B$101,"") ->  | BF124: =IF(BF117<=(Kalkylvärden!$B$6+Indata!$B$24),Ekonomi!$B$101,"") ->  | BG124: =IF(BG117<=(Kalkylvärden!$B$6+Indata!$B$24),Ekonomi!$B$101,"") ->  | BH124: =IF(BH117<=(Kalkylvärden!$B$6+Indata!$B$24),Ekonomi!$B$101,"") ->  | BI124: =IF(BI117<=(Kalkylvärden!$B$6+Indata!$B$24),Ekonomi!$B$101,"") ->  | BJ124: =IF(BJ117<=(Kalkylvärden!$B$6+Indata!$B$24),Ekonomi!$B$101,"") ->  | BK124: =IF(BK117<=(Kalkylvärden!$B$6+Indata!$B$24),Ekonomi!$B$101,"") ->  | BL124: =IF(BL117<=(Kalkylvärden!$B$6+Indata!$B$24),Ekonomi!$B$101,"") ->  | BM124: =IF(BM117<=(Kalkylvärden!$B$6+Indata!$B$24),Ekonomi!$B$101,"") ->  | BN124: =IF(BN117<=(Kalkylvärden!$B$6+Indata!$B$24),Ekonomi!$B$101,"") ->  | BO124: =IF(BO117<=(Kalkylvärden!$B$6+Indata!$B$24),Ekonomi!$B$101,"") ->  | BP124: =IF(BP117<=(Kalkylvärden!$B$6+Indata!$B$24),Ekonomi!$B$101,"") ->  | BQ124: =IF(BQ117<=(Kalkylvärden!$B$6+Indata!$B$24),Ekonomi!$B$101,"") ->  | BR124: =IF(BR117<=(Kalkylvärden!$B$6+Indata!$B$24),Ekonomi!$B$101,"") ->  | BS124: =IF(BS117<=(Kalkylvärden!$B$6+Indata!$B$24),Ekonomi!$B$101,"") -> 
A125: Nuvärde Tidskostnader, gods (mkr/år) | B125: =IF(B117<=(Kalkylvärden!$B$6+Indata!$B$24),B124*B39,"") -> 0 | C125: =IF(C117<=(Kalkylvärden!$B$6+Indata!$B$24),C124*C39,"") -> 0 | D125: =IF(D117<=(Kalkylvärden!$B$6+Indata!$B$24),D124*D39,"") -> 0 | E125: =IF(E117<=(Kalkylvärden!$B$6+Indata!$B$24),E124*E39,"") -> 0 | F125: =IF(F117<=(Kalkylvärden!$B$6+Indata!$B$24),F124*F39,"") -> 0 | G125: =IF(G117<=(Kalkylvärden!$B$6+Indata!$B$24),G124*G39,"") -> 0 | H125: =IF(H117<=(Kalkylvärden!$B$6+Indata!$B$24),H124*H39,"") -> 0 | I125: =IF(I117<=(Kalkylvärden!$B$6+Indata!$B$24),I124*I39,"") -> 0 | J125: =IF(J117<=(Kalkylvärden!$B$6+Indata!$B$24),J124*J39,"") -> 0 | K125: =IF(K117<=(Kalkylvärden!$B$6+Indata!$B$24),K124*K39,"") -> 0 | L125: =IF(L117<=(Kalkylvärden!$B$6+Indata!$B$24),L124*L39,"") -> 0 | M125: =IF(M117<=(Kalkylvärden!$B$6+Indata!$B$24),M124*M39,"") -> 0 | N125: =IF(N117<=(Kalkylvärden!$B$6+Indata!$B$24),N124*N39,"") -> 0 | O125: =IF(O117<=(Kalkylvärden!$B$6+Indata!$B$24),O124*O39,"") -> 0 | P125: =IF(P117<=(Kalkylvärden!$B$6+Indata!$B$24),P124*P39,"") -> 0 | Q125: =IF(Q117<=(Kalkylvärden!$B$6+Indata!$B$24),Q124*Q39,"") -> 0 | R125: =IF(R117<=(Kalkylvärden!$B$6+Indata!$B$24),R124*R39,"") -> 0 | S125: =IF(S117<=(Kalkylvärden!$B$6+Indata!$B$24),S124*S39,"") -> 0 | T125: =IF(T117<=(Kalkylvärden!$B$6+Indata!$B$24),T124*T39,"") -> 0 | U125: =IF(U117<=(Kalkylvärden!$B$6+Indata!$B$24),U124*U39,"") -> 0 | V125: =IF(V117<=(Kalkylvärden!$B$6+Indata!$B$24),V124*V39,"") -> 0 | W125: =IF(W117<=(Kalkylvärden!$B$6+Indata!$B$24),W124*W39,"") -> 0 | X125: =IF(X117<=(Kalkylvärden!$B$6+Indata!$B$24),X124*X39,"") -> 0 | Y125: =IF(Y117<=(Kalkylvärden!$B$6+Indata!$B$24),Y124*Y39,"") -> 0 | Z125: =IF(Z117<=(Kalkylvärden!$B$6+Indata!$B$24),Z124*Z39,"") -> 0 | AA125: =IF(AA117<=(Kalkylvärden!$B$6+Indata!$B$24),AA124*AA39,"") -> 0 | AB125: =IF(AB117<=(Kalkylvärden!$B$6+Indata!$B$24),AB124*AB39,"") -> 0 | AC125: =IF(AC117<=(Kalkylvärden!$B$6+Indata!$B$24),AC124*AC39,"") -> 0 | AD125: =IF(AD117<=(Kalkylvärden!$B$6+Indata!$B$24),AD124*AD39,"") -> 0 | AE125: =IF(AE117<=(Kalkylvärden!$B$6+Indata!$B$24),AE124*AE39,"") -> 0 | AF125: =IF(AF117<=(Kalkylvärden!$B$6+Indata!$B$24),AF124*AF39,"") -> 0 | AG125: =IF(AG117<=(Kalkylvärden!$B$6+Indata!$B$24),AG124*AG39,"") -> 0 | AH125: =IF(AH117<=(Kalkylvärden!$B$6+Indata!$B$24),AH124*AH39,"") -> 0 | AI125: =IF(AI117<=(Kalkylvärden!$B$6+Indata!$B$24),AI124*AI39,"") -> 0 | AJ125: =IF(AJ117<=(Kalkylvärden!$B$6+Indata!$B$24),AJ124*AJ39,"") -> 0 | AK125: =IF(AK117<=(Kalkylvärden!$B$6+Indata!$B$24),AK124*AK39,"") -> 0 | AL125: =IF(AL117<=(Kalkylvärden!$B$6+Indata!$B$24),AL124*AL39,"") -> 0 | AM125: =IF(AM117<=(Kalkylvärden!$B$6+Indata!$B$24),AM124*AM39,"") -> 0 | AN125: =IF(AN117<=(Kalkylvärden!$B$6+Indata!$B$24),AN124*AN39,"") -> 0 | AO125: =IF(AO117<=(Kalkylvärden!$B$6+Indata!$B$24),AO124*AO39,"") -> 0 | AP125: =IF(AP117<=(Kalkylvärden!$B$6+Indata!$B$24),AP124*AP39,"") -> 0 | AQ125: =IF(AQ117<=(Kalkylvärden!$B$6+Indata!$B$24),AQ124*AQ39,"") ->  | AR125: =IF(AR117<=(Kalkylvärden!$B$6+Indata!$B$24),AR124*AR39,"") ->  | AS125: =IF(AS117<=(Kalkylvärden!$B$6+Indata!$B$24),AS124*AS39,"") ->  | AT125: =IF(AT117<=(Kalkylvärden!$B$6+Indata!$B$24),AT124*AT39,"") ->  | AU125: =IF(AU117<=(Kalkylvärden!$B$6+Indata!$B$24),AU124*AU39,"") ->  | AV125: =IF(AV117<=(Kalkylvärden!$B$6+Indata!$B$24),AV124*AV39,"") ->  | AW125: =IF(AW117<=(Kalkylvärden!$B$6+Indata!$B$24),AW124*AW39,"") ->  | AX125: =IF(AX117<=(Kalkylvärden!$B$6+Indata!$B$24),AX124*AX39,"") ->  | AY125: =IF(AY117<=(Kalkylvärden!$B$6+Indata!$B$24),AY124*AY39,"") ->  | AZ125: =IF(AZ117<=(Kalkylvärden!$B$6+Indata!$B$24),AZ124*AZ39,"") ->  | BA125: =IF(BA117<=(Kalkylvärden!$B$6+Indata!$B$24),BA124*BA39,"") ->  | BB125: =IF(BB117<=(Kalkylvärden!$B$6+Indata!$B$24),BB124*BB39,"") ->  | BC125: =IF(BC117<=(Kalkylvärden!$B$6+Indata!$B$24),BC124*BC39,"") ->  | BD125: =IF(BD117<=(Kalkylvärden!$B$6+Indata!$B$24),BD124*BD39,"") ->  | BE125: =IF(BE117<=(Kalkylvärden!$B$6+Indata!$B$24),BE124*BE39,"") ->  | BF125: =IF(BF117<=(Kalkylvärden!$B$6+Indata!$B$24),BF124*BF39,"") ->  | BG125: =IF(BG117<=(Kalkylvärden!$B$6+Indata!$B$24),BG124*BG39,"") ->  | BH125: =IF(BH117<=(Kalkylvärden!$B$6+Indata!$B$24),BH124*BH39,"") ->  | BI125: =IF(BI117<=(Kalkylvärden!$B$6+Indata!$B$24),BI124*BI39,"") ->  | BJ125: =IF(BJ117<=(Kalkylvärden!$B$6+Indata!$B$24),BJ124*BJ39,"") ->  | BK125: =IF(BK117<=(Kalkylvärden!$B$6+Indata!$B$24),BK124*BK39,"") ->  | BL125: =IF(BL117<=(Kalkylvärden!$B$6+Indata!$B$24),BL124*BL39,"") ->  | BM125: =IF(BM117<=(Kalkylvärden!$B$6+Indata!$B$24),BM124*BM39,"") ->  | BN125: =IF(BN117<=(Kalkylvärden!$B$6+Indata!$B$24),BN124*BN39,"") ->  | BO125: =IF(BO117<=(Kalkylvärden!$B$6+Indata!$B$24),BO124*BO39,"") ->  | BP125: =IF(BP117<=(Kalkylvärden!$B$6+Indata!$B$24),BP124*BP39,"") ->  | BQ125: =IF(BQ117<=(Kalkylvärden!$B$6+Indata!$B$24),BQ124*BQ39,"") ->  | BR125: =IF(BR117<=(Kalkylvärden!$B$6+Indata!$B$24),BR124*BR39,"") ->  | BS125: =IF(BS117<=(Kalkylvärden!$B$6+Indata!$B$24),BS124*BS39,"") -> 
A126: Summa nuvärde Tidskostnader, gods (mkr) | B126: =SUM(B125:BS125) -> 0
A129: Fordonskostnader
